Workbook

Sheet Supplementary Table 1
A1: Supplementary Table 1. Statistics of whole genome shotgun and PE reads for C. olitorius and C. capsularis
A3: Data type | B3: C. olitorius | G3: C. capsularis
B4: Total reads | C4: Total bases | D4: Mean read length (bp) | E4: GC (%) | F4: Coverage (x) | G4: Total reads | H4: Total bases | I4: Mean read length (bp) | J4: GC (%) | K4: Coverage (x)
A5: gDNA
A6: 454 Shotgun | B6: 11,196,925 | C6: 5,650,572,918 | D6: 499.13 | E6: 37.61 | F6: 12.56 | G6: 13,811,960 | H6: 7,874,021,745 | I6: 570.09 | J6: 38.61 | K6: 19.69
A7: 454 Paired End | B7: 21,266,395 | C7: 7,392,811,545 | D7: - | E7: - | F7: 16.43 | G7: 15,967,589 | H7: 5,820,012,503 | I7: - | J7: - | K7: 14.55
A8: 454 3K Paired End | B8: 7,177,174 | C8: 2,559,951,978 | D8: 356.68 | E8: 39.59 | F8: 5.69 | G8: 5,695,445 | H8: 2,044,867,085 | I8: 358.89 | J8: 42.81 | K8: 5.11
A9: 454 8K Paired End | B9: 6,879,238 | C9: 2,469,306,786 | D9: 358.79 | E9: 38.21 | F9: 5.49 | G9: 6,000,883 | H9: 2,262,314,385 | I9: 375.09 | J9: 37.86 | K9: 5.66
A10: 454 20K Paired End | B10: 7,209,983 | C10: 2,363,552,781 | D10: 328.71 | E10: 37.99 | F10: 5.25 | G10: 4,271,261 | H10: 1,512,831,033 | I10: 353.77 | J10: 39.61 | K10: 3.78
A11: Total 454 | B11: 32,463,320 | C11: 13,043,384,463 | D11: - | E11: - | F11: 28.99 | G11: 29,779,549 | H11: 13,694,034,248 | I11: - | J11: - | K11: 34.24
A12: cDNA (Seedlings transcriptome)
A13: 454 Shotgun | B13: 3,524,872 | C13: 1,181,505,805 | D13: 320 | E13: 41.44 | F13: - | G13: 4,955,770 | H13: 1,861,584,194 | I13: 375.51 | J13: 47.11 | K13: -
B15: Coverage (x) = (read count * read length ) / estimated genome size.

Sheet Supplementary Table 2
A1: Supplementary Table 2. Contig and scaffold metrics of the C. olitorius and C. capsularis genome assemblies, assembled by CABOG
C3: C. olitorius | D3: C. capsularis
A4: Contigs | B4: Number of contigs | C4: 47,661 | D4: 19,261
B5: Total length of contigs (Mb) | C5: 410.19 | D5: 331.96
B6: GC content (%) | C6: 37 | D6: 35.49
B7: Number of Ns | C7: 1,323 | D7: 1,007
B8: Minimum length (bp) | C8: 64 | D8: 66
B9: Maximum length (bp) | C9: 363,252 | D9: 440,223
B10: Average (kb) | C10: 8.61 | D10: 17.23
B11: N50 of contigs (nos.) | C11: 2,778 | D11: 2,124
B12: L50 of contigs (kb) | C12: 40.22 | D12: 45.58
B13: N90 of contigs (nos.) | C13: 16,806 | D13: 7,786
B14: L90 of contigs (kb) | C14: 2.5 | D14: 10.2
A15: Scaffolds* | B15: Number of scaffolds | C15: 22,944 | D15: 6,125
B16: Total length of scaffolds (Mb) | C16: 445.05 | D16: 338.13
B17: GC content (%) | C17: 34.1 | D17: 34.84
B18: Number of Ns | C18: 34,896,183 | D18: 6,184,029
B19: Minimum length (bp) | C19: 505 | D19: 503
B20: Maximum length (bp) | C20: 45,450,648 | D20: 28,544,057
B21: Average (kb) | C21: 19.39 | D21: 55.2
B22: N50 of scaffolds (nos.) | C22: 31 | D22: 14
B23: L50 of scaffolds (kb) | C23: 3,297 | D23: 4,133
B24: N80 of scaffolds (nos.) | C24: 415 | D24: 231
B25: L80 of scaffolds (kb) | C25: 76.22 | D25: 120.48
A26: *Final scaffolds with less than 500 bp were excluded.

Sheet Supplementary Table 3
A1: Supplementary Table 3. Digestion metrics of selected high-density MapCards for whole-genome mapping
A3: Corchorus olitorius | H3: Corchorus capsularis
A4: MapCards ID | B4: Molecules | C4: MQ | D4: Average Molecule Size | E4: Average Fragment Size | F4: Gap Max | G4: QC (%) | H4: MapCards ID | I4: Molecules | J4: MQ | K4: Average Molecule Size | L4: Average Fragment Size | M4: Gap Max | N4: QC (%)
A5: 34611LB | B5: 70747 | C5: 0.434 | D5: 264.129 | E5: 20.65 | F5: 9 | G5: 6.74 | H5: 34558LB | I5: 46012 | J5: 0.455 | K5: 249.691 | L5: 15.0697 | M5: 8 | N5: 5.77
A6: 34469LB | B6: 95615 | C6: 0.403 | D6: 276.081 | E6: 20.9 | F6: 9 | G6: 6.68 | H6: 34571LB | I6: 34497 | J6: 0.439 | K6: 235.601 | L6: 15.1506 | M6: 9 | N6: 5.04
A7: 34412LB | B7: 91501 | C7: 0.479 | D7: 265.857 | E7: 16.57 | F7: 9 | G7: 6.51 | H7: 57557LA | I7: 73208 | J7: 0.504 | K7: 272.509 | L7: 16.4537 | M7: 10 | N7: 7.05
A8: 34610LB | B8: 85664 | C8: 0.519 | D8: 265.928 | E8: 15.54 | F8: 10 | G8: 6.27 | H8: 57558LA | I8: 76472 | J8: 0.499 | K8: 270.207 | L8: 16.1297 | M8: 10 | N8: 8.25
A9: 34477LB | B9: 80653 | C9: 0.46 | D9: 278.687 | E9: 19.07 | F9: 9 | G9: 6.23 | H9: 57559LA | I9: 71764 | J9: 0.466 | K9: 275.37 | L9: 17.1313 | M9: 8 | N9: 6.88
A10: 34478LB | B10: 98328 | C10: 0.429 | D10: 260.932 | E10: 16.55 | F10: 11 | G10: 5.37 | H10: 35095LB | I10: 96473 | J10: 0.509 | K10: 269.901 | L10: 15.5938 | M10: 11 | N10: 5.33
A11: 34608LB | B11: 36546 | C11: 0.408 | D11: 249.889 | E11: 18.33 | F11: 7 | G11: 5.34 | H11: 34817LB | I11: 96728 | J11: 0.485 | K11: 265.58 | L11: 15.4514 | M11: 11 | N11: 5.05
A12: 34581LB | B12: 82279 | C12: 0.401 | D12: 250.204 | E12: 19.17 | F12: 10 | G12: 5.34 | H12: 34857LB | I12: 74854 | J12: 0.497 | K12: 261.372 | L12: 16.0048 | M12: 11 | N12: 6.5
A13: 34612LB | B13: 77998 | C13: 0.405 | D13: 268.475 | E13: 21.32 | F13: 9 | G13: 5.2 | H13: 34659LB | I13: 69665 | J13: 0.451 | K13: 255.032 | L13: 17.1032 | M13: 9 | N13: 4.8
A14: 34464LB | B14: 120574 | C14: 0.411 | D14: 263.375 | E14: 18.39 | F14: 10 | G14: 5.14
A15: 34408LB | B15: 60735 | C15: 0.515 | D15: 262.011 | E15: 14.86 | F15: 10 | G15: 4.93

Sheet Supplementary Table 4
A1: Supplementary Table 4. Summary of single molecule restriction map data (for whole-genome mapping)
A3: Description | B3: Corchorus olitorius | C3: Corchorus capsularis
A4: Number of Molecules | B4: 360,906 | C4: 260,615
A5: Average Size of Molecules (Kb) | B5: 356.37 | C5: 356.99
A6: Minimum molecule size (Kb) | B6: 256.66 | C6: 257.49
A7: Average Size of Fragments (Kb) | B7: 18.03 | C7: 16.32
A8: Total Size (Gb) | B8: 128.62 | C8: 93.04

Sheet Supplementary Table 5
A1: Supplementary Table 5. Scaffold and super-scaffold metrics after incorporated whole-genome mapping data
B3: Corchorus olitorius | H3: Corchorus capsularis
B4: Scaffold | D4: Scaffold with WGM data | F4: Super-scaffold with WGM data | H4: Scaffold | J4: Scaffold with WGM data | L4: Super-scaffold with WGM data
B5: bp | C5: Number | D5: bp | E5: Number | F5: bp | G5: Number | H5: bp | I5: Number | J5: bp | K5: Number | L5: bp | M5: Number
A6: N90 | B6: 24,498 | C6: 1,393 | D6: 25,655 | E6: 1,310 | F6: 1,728,628 | G6: 53 | H6: 54,966 | I6: 649 | J6: 64,414 | K6: 496 | L6: 3,333,289 | M6: 26
A7: N80 | B7: 76,212 | C7: 415 | D7: 80,819 | E7: 349 | F7: 3,191,231 | G7: 39 | H7: 120,486 | I7: 231 | J7: 161,776 | K7: 94 | L7: 5,090,693 | M7: 18
A8: N70 | B8: 512,242 | C8: 91 | D8: 1,088,902 | E8: 66 | F8: 3,711,256 | G8: 29 | H8: 447,632 | I8: 59 | J8: 3,483,279 | K8: 25 | L8: 7,692,605 | M8: 13
A9: N60 | B9: 1,858,926 | C9: 48 | D9: 3,006,041 | E9: 41 | F9: 4,660,539 | G9: 21 | H9: 2,540,495 | I9: 25 | J9: 6,286,715 | K9: 16 | L9: 11,270,819 | M9: 9
A10: N50ᵃ | B10: 3,297,173 | C10: 31 | D10: 4,000,463 | E10: 27 | F10: 5,313,332 | G10: 14 | H10: 4,133,005 | I10: 14 | J10: 8,510,645 | K10: 11 | L10: 15,221,191 | M10: 7
A11: Largest Scaffold length | B11: 45,450,648 | D11: 51,763,092 | F11: 51,763,092 | H11: 28,544,057 | J11: 38,573,939 | L11: 38,573,939
A12: Total | B12: 445,055,616 | C12: 22,944 | D12: 457,378,199 | E12: 22,910 | F12: 337,337,192ᵇ | G12: 100 | H12: 338,134,566 | I12: 6,125 | J12: 398,524,924 | K12: 6,074 | L12: 313,417,016ᵇ | M12: 63
A13: ᵃN50 refers to a length-weighted median such that 50% of the genome is contained in contigs or scaffolds of the indicated size or greater. ᵇTotal length of the super-scaffolds only, excluding scaffolds that were not assembled into super-scaffolds.

Sheet Supplementary Table 6
A1: Supplementary Table 6. Sequence alignment statistics (using whole genome optical map data).
A3: Parameters | B3: C.olitorius | C3: C.capsularis
A4: Number of aligned scaffold | B4: 100 | C4: 63
A5: Total size of aligned contigs (Mb) | B5: 337.3 | C5: 313.4
A6: Genome cioverage (%) | B6: 97.21 | C6: 82.13
A7: Mapping/placement rate (%) | B7: 82.23 | C7: 94.41
A8: Unplaced sequences (%) | B8: 17.77 | C8: 5.59
A9: Number of total gaps | B9: 103 | C9: 87
A10: Gap closed | B10: 34 | C10: 51

Sheet Supplementary Table 7
A1: Supplementary Table 7. Overview of assembly anchoring on the 7 jute linkage groups for both the genome
A3: Linkage group | B3: Corchorus olitorius | F3: Corchorus capsularis
B4: Size (Mbp) | C4: Anchored markers | D4: Number of scaffold | E4: Gene number per linkage group | F4: Size (Mbp) | G4: Anchored markers | H4: Number of scaffold | I4: Gene number per linkage group
A5: LG1 | B5: 31.68 | C5: 116 | D5: 12 | E5: 3,485 | F5: 21.82 | G5: 90 | H5: 9 | I5: 1,920
A6: LG2 | B6: 99.57 | C6: 128 | D6: 27 | E6: 7,762 | F6: 75.06 | G6: 76 | H6: 35 | I6: 4,637
A7: LG3 | B7: 29.08 | C7: 84 | D7: 11 | E7: 2,756 | F7: 27.56 | G7: 37 | H7: 6 | I7: 2,361
A8: LG4 | B8: 65.70 | C8: 27 | D8: 11 | E8: 5,568 | F8: 31.79 | G8: 33 | H8: 19 | I8: 2,815
A9: LG5 | B9: 15.45 | C9: 33 | D9: 8 | E9: 2,089 | F9: 38.28 | G9: 48 | H9: 10 | I9: 2,965
A10: LG6 | B10: 11.08 | C10: 29 | D10: 5 | E10: 1,525 | F10: 23.54 | G10: 37 | H10: 5 | I10: 1,945
A11: LG7 | B11: 7.97 | C11: 20 | D11: 5 | E11: 965 | F11: 2.65 | G11: 13 | H11: 2 | I11: 343
A12: Total | B12: 260.53 | C12: 437 | D12: 79 | E12: 24,150 | F12: 220.70 | G12: 334 | H12: 86 | I12: 16,986

Sheet Supplementary Table 8
A1: Supplementary Table 8. Transcriptome assembly features for C. olitorius and C. capsularis
A3: Description | B3: C. olitorius | C3: C. capsularis
A4: Number of isotigs | B4: 43,420 | C4: 36,023
A5: Number of isogroups | B5: 23,069 | C5: 22,610
A6: Number of N50 isotigs | B6: 11,189 | C6: 8,622
A7: Median length (bp) | B7: 1,416 | C7: 1,191
A8: Isotig N50 length (bp) | B8: 2,176 | C8: 2,024
A9: Mean length of isotigs (bp) | B9: 1,710 | C9: 1,573
A10: Length of largest isotig (bp) | B10: 16,873 | C10: 15,748
A11: Number of isotigs aligned to genome (> 90% sequence identity) | B11: 43,195 (99.48%) | C11: 35,281 (97.94%)

Sheet Supplementary Table 9
A1: Supplementary Table 9. Alignment of isotigs to WGS scaffolds of C. olitorius and C. capsularis
A3: Programs | B3: C. olitorius | H3: C. capsularis
B4: Alignment identity (%) | C4: Isotig coverage (%) | D4: Isotig length (bp) | E4: Aligned Isotig (no.) | F4: Total Isotig (no.) | G4: Isotig aligned (%) | H4: Alignment identity (%) | I4: Isotig coverage (%) | J4: Isotig length (bp) | K4: Aligned Isotig (no.) | L4: Total Isotig (no.) | M4: Isotig aligned (%)
A5: BLAT | B5: 90 | C5: >=0 | D5: >=0 | E5: 43,195 | F5: 43,420 | G5: 99.48 | H5: 90 | I5: >=0 | J5: >=0 | K5: 35,281 | L5: 36,023 | M5: 97.94
A6: PslIsotig Filter | B6: 90 | C6: 90 | D6: >=0 | E6: 40,004 | F6: 43,088 | G6: 92.84 | H6: 90 | I6: 90 | J6: >=0 | K6: 31,275 | L6: 35,104 | M6: 89.09
B7: 90 | C7: 90 | D7: >=100 | E7: 39,977 | F7: 43,088 | G7: 92.78 | H7: 90 | I7: 90 | J7: >=100 | K7: 31,239 | L7: 35,104 | M7: 88.99
B8: 90 | C8: 95 | D8: >=0 | E8: 39,190 | F8: 43,088 | G8: 90.95 | H8: 90 | I8: 95 | J8: >=0 | K8: 30285 | L8: 35,104 | M8: 86.27
B9: 90 | C9: 95 | D9: >=100 | E9: 39,165 | F9: 43,088 | G9: 90.9 | H9: 90 | I9: 95 | J9: >=100 | K9: 30,256 | L9: 35,104 | M9: 86.19
B10: 95 | C10: 95 | D10: >=0 | E10: 39,030 | F10: 43,088 | G10: 90.58 | H10: 95 | I10: 95 | J10: >=0 | K10: 30,064 | L10: 35,104 | M10: 85.64
B11: 95 | C11: 95 | D11: >=100 | E11: 39,005 | F11: 43,088 | G11: 90.52 | H11: 95 | I11: 95 | J11: >=100 | K11: 30,035 | L11: 35,104 | M11: 85.56
B12: 95 | C12: 90 | D12: >=0 | E12: 39,812 | F12: 43,088 | G12: 92.4 | H12: 95 | I12: 90 | J12: >=0 | K12: 31,029 | L12: 35,104 | M12: 88.39
B13: 95 | C13: 90 | D13: >=100 | E13: 39,785 | F13: 43,088 | G13: 92.33 | H13: 95 | I13: 90 | J13: >=100 | K13: 30,993 | L13: 35,104 | M13: 88.29

Sheet Supplementary Table 10
A1: Supplementary Table 10. Completeness of the genome based on 248 ultra-conserved core eukaryotic genes using Core Eukaryotic Genes Mapping Approach (CEGMA)
A3: Description | B3: Fully mapped CEGs | D3: Fully + partially mapped CEGs
B4: C. olitorius | C4: C. capsularis | D4: C. olitorius | E4: C. capsularis
A5: Number of CEGs present in the assembly | B5: 236 | C5: 236 | D5: 242 | E5: 243
A6: Completeness of the genome (%) | B6: 95.16 | C6: 95.16 | D6: 97.58 | E6: 97.98
A7: Average number of orthologs per CEG | B7: 2.13 | C7: 1.94 | D7: 2.59 | E7: 2.3
A8: CEGs with more than one ortholog (%) | B8: 55.08 | C8: 54.24 | D8: 63.64 | E8: 63.79

Sheet Supplementary Table 11
A1: Supplementary Table 11. Numbers of reads mapped to the assembled C. olitorius and C. capsularis genome
A3: Description | B3: Read number | D3: % of read
B4: C. olitorius | C4: C. capsularis | D4: C. olitorius | E4: C. capsularis
A5: Unique mapped | B5: 26,715,060 | C5: 23,311,431 | D5: 82.29 | E5: 78.28
A7: Un-mapped | B7: 5,748,260 | C7: 6,468,118 | D7: 17.71 | E7: 21.72
A8: Total | B8: 32,463,320 | C8: =SUM(C5:C7) -> 29,779,549 | D8: 100 | E8: 100

Sheet Supplementary Table 12
A1: Supplementary Table 12. Prediction of protein-coding genes in Corchorus olitorius and Corchorus capsularis. Gene sets were predicted independently and then combined to the final gene set, which contained 37,031 protein coding genes for Corchorus olitoriusand 30,096 protein coding genes for Corchorus capsularis.
C3: Corchorus olitorius | H3: Corchorus capsularis
A4: Gene set | C4: Number | D4: Average CDS Length (bp) | E4: Average Exon Number per gene | F4: Average Exon Length (bp) | G4: Average Intron Length (bp) | H4: Number | I4: Average CDS Length (bp) | J4: Average Exon Number per gene | K4: Average Exon Length (bp) | L4: Average Intron Length (bp)
A5: De novo | B5: Augustus | C5: 49,507 | D5: 1,260.29 | E5: 3.79 | F5: 419.83 | G5: 313.98 | H5: 44,294 | I5: 1,675.27 | J5: 4.89 | K5: 341.96 | L5: 347.02
A6: Homolog | B6: A. thaliana (Augustus) | C6: 48,397 | D6: 1,171.28 | E6: 4.05 | F6: 375.73 | G6: 276.37 | H6: 50,389 | I6: 1,340.99 | J6: 4.49 | K6: 298.06 | L6: 267.98
B7: V.vinifera(Geneid) | C7: 42,893 | D7: 901.96 | E7: 3.48 | F7: 258.93 | G7: 859.22 | H7: 39,115 | I7: 711.763 | J7: 3.42 | K7: 207.65 | L7: 939.29
A8: EVM | C8: 31,788 | D8: 1,130.86 | E8: 3.51 | F8: 322.16 | G8: 291.06 | H8: 24,795 | I8: 1,262.41 | J8: 4.99 | K8: 252.58 | L8: 327.18
A9: RNA_Seq | C9: 31,232 | D9: 966.46 | E9: 4.29 | F9: 225.17 | G9: 352.03 | H9: 26,157 | I9: 1,112.16 | J9: 4.89 | K9: 227.29 | L9: 436.79
A10: Final set | C10: 37,031 | D10: 927.39 | E10: 4.00 | F10: 231.76 | G10: 376.78 | H10: 30,096 | I10: 1,035.91 | J10: 4.58 | K10: 226.17 | L10: 451.96

Sheet Supplementary Table 13
A1: Supplementary Table 13. Comparison of structural features of the protein coding genes among sequenced malvaceous plant genomes
A3: Description | B3: C. olitorius | C3: C. capsularis | D3: Cotton | E3: Cacao
A4: Number of gene models | B4: 37,031 | C4: 30,096 | D4: 40,976 | E4: 28,798
A5: Total gene size (Mb) | B5: 87.35 | C5: 83.04 | D5: 115.7 | E5: 129.85
A6: Mean gene size (bp) | B6: 2,359 | C6: 2,759 | D6: 2,485 | E6: 3,346
A7: Mean CDS length (bp) | B7: 927 | C7: 1036 | D7: 1,104 | E7: 1,163
A8: Mean exons per gene | B8: 4.00 | C8: 4.58 | D8: 4.51 | E8: 5.03
A9: Mean exon length (bp) | B9: 232 | C9: 226 | D9: 244 | E9: 231

Sheet Supplementary Table 14
A1: Supplementary Table 14. miRNA types found in the Corchorus olitorius and Corchorus capsularis genomes
A3: miRNA Group | B3: Corchorus olitorius | D3: Corchorus capsularis
B4: miRNA Count | C4: No. of Bases | D4: miRNA Count | E4: No. of Bases
A5: miR160 | B5: 2 | C5: 42 | D5: 0 | E5: 0
A6: miR162 | B6: 0 | C6: 0 | D6: 1 | E6: 21
A7: miR172 | B7: 2 | C7: 46 | D7: 1 | E7: 23
A8: miR319 | B8: 4 | C8: 84 | D8: 3 | E8: 63
A9: miR396 | B9: 5 | C9: 105 | D9: 6 | E9: 126
A10: miR-10b-3p | B10: 0 | C10: 0 | D10: 1 | E10: 20
A11: miR-5416 | B11: 1 | C11: 22 | D11: 0 | E11: 0
A12: miR-5422 | B12: 1 | C12: 22 | D12: 0 | E12: 0
A13: miR-5452-5p | B13: 1 | C13: 20 | D13: 0 | E13: 0
A14: miR-514 | B14: 1 | C14: 20 | D14: 0 | E14: 0
A15: miR156a | B15: 0 | C15: 0 | D15: 2 | E15: 40
A16: miR159 | B16: 2 | C16: 42 | D16: 1 | E16: 21
A17: miR160-5p | B17: 1 | C17: 21 | D17: 1 | E17: 21
A18: miR167-3p | B18: 1 | C18: 21 | D18: 1 | E18: 21
A19: miR167-5p | B19: 2 | C19: 42 | D19: 3 | E19: 63
A20: miR394 | B20: 2 | C20: 40 | D20: 2 | E20: 40
A21: miR398 | B21: 2 | C21: 40 | D21: 1 | E21: 20
A22: miR156b-3p | B22: 1 | C22: 22 | D22: 0 | E22: 0
A23: miR156d-3p | B23: 1 | C23: 21 | D23: 1 | E23: 21
A24: miR158b-5p | B24: 0 | C24: 0 | D24: 1 | E24: 20
A25: miR159b-3p | B25: 0 | C25: 0 | D25: 1 | E25: 21
A26: miR159c-3p | B26: 2 | C26: 42 | D26: 2 | E26: 42
A27: miR160a-3p | B27: 1 | C27: 21 | D27: 0 | E27: 0
A28: miR162a-5p | B28: 0 | C28: 0 | D28: 1 | E28: 21
A29: miR164a-3p | B29: 0 | C29: 0 | D29: 1 | E29: 21
A30: miR164a-5p | B30: 3 | C30: 63 | D30: 4 | E30: 84
A31: miR164b-3p | B31: 1 | C31: 21 | D31: 0 | E31: 0
A32: miR165a-5p | B32: 3 | C32: 60 | D32: 2 | E32: 40
A33: miR166a-5p | B33: 3 | C33: 63 | D33: 3 | E33: 63
A34: miR167b-3p | B34: 1 | C34: 23 | D34: 1 | E34: 23
A35: miR167c-5p | B35: 1 | C35: 21 | D35: 2 | E35: 42
A36: miR168a-5p | B36: 1 | C36: 21 | D36: 1 | E36: 21
A37: miR169a-3p | B37: 2 | C37: 42 | D37: 3 | E37: 63
A38: miR169c-3p | B38: 0 | C38: 0 | D38: 1 | E38: 21
A39: miR169d-5p | B39: 4 | C39: 84 | D39: 5 | E39: 105
A40: miR169h-3p | B40: 2 | C40: 38 | D40: 2 | E40: 38
A41: miR169h-5p | B41: 1 | C41: 21 | D41: 0 | E41: 0
A42: miR170-3p | B42: 1 | C42: 21 | D42: 3 | E42: 63
A43: miR170-5p | B43: 1 | C43: 21 | D43: 0 | E43: 0
A44: miR171a-3p | B44: 0 | C44: 0 | D44: 1 | E44: 21
A45: miR171c-5p | B45: 0 | C45: 0 | D45: 1 | E45: 21
A46: miR172a-5p | B46: 1 | C46: 21 | D46: 1 | E46: 21
A47: miR172b-5p | B47: 2 | C47: 42 | D47: 2 | E47: 42
A48: miR172e-3p | B48: 1 | C48: 20 | D48: 1 | E48: 20
A49: miR2111a-3p | B49: 2 | C49: 42 | D49: 1 | E49: 21
A50: miR2111a-5p | B50: 2 | C50: 42 | D50: 1 | E50: 21
A51: miR319b-5p | B51: 0 | C51: 0 | D51: 1 | E51: 21
A52: miR319c-3p | B52: 1 | C52: 21 | D52: 0 | E52: 0
A53: miR390a-3p | B53: 1 | C53: 21 | D53: 1 | E53: 21
A54: miR390a-5p | B54: 1 | C54: 21 | D54: 1 | E54: 21
A55: miR393a-3p | B55: 1 | C55: 21 | D55: 1 | E55: 21
A56: miR394a-3p | B56: 1 | C56: 20 | D56: 1 | E56: 20
A57: miR395b-3p | B57: 1 | C57: 21 | D57: 0 | E57: 0
A58: miR395d-5p | B58: 1 | C58: 21 | D58: 0 | E58: 0
A59: miR396b-3p | B59: 2 | C59: 42 | D59: 2 | E59: 42
A60: miR399a-3p | B60: 3 | C60: 63 | D60: 3 | E60: 63
A61: miR399a-5p | B61: 0 | C61: 0 | D61: 1 | E61: 22
A62: miR399b-3p | B62: 2 | C62: 42 | D62: 0 | E62: 0
A63: miR399b-5p | B63: 1 | C63: 21 | D63: 0 | E63: 0
A64: miR399h-5p | B64: 1 | C64: 22 | D64: 0 | E64: 0
A65: miR403-3p | B65: 3 | C65: 63 | D65: 2 | E65: 42
A66: miR408-5p | B66: 0 | C66: 0 | D66: 1 | E66: 21
A67: miR827-3p | B67: 1 | C67: 21 | D67: 0 | E67: 0
A68: miR828-3p | B68: 1 | C68: 22 | D68: 1 | E68: 22
A69: miR828-5p | B69: 1 | C69: 22 | D69: 1 | E69: 22
A70: miR837-5p | B70: 1 | C70: 21 | D70: 0 | E70: 0
A71: miR859-3p | B71: 1 | C71: 21 | D71: 0 | E71: 0
A72: miR-33 | B72: 0 | C72: 0 | D72: 1 | E72: 19
A73: miR-3757 | B73: 1 | C73: 23 | D73: 0 | E73: 0
A74: miR-6003-3p | B74: 0 | C74: 0 | D74: 1 | E74: 19
A75: miR-6006-3p | B75: 1 | C75: 20 | D75: 1 | E75: 20
A76: miR171e | B76: 1 | C76: 21 | D76: 0 | E76: 0
A77: miR477a | B77: 0 | C77: 0 | D77: 1 | E77: 20
A78: miR477f | B78: 1 | C78: 20 | D78: 1 | E78: 20
A79: miR529 | B79: 0 | C79: 0 | D79: 1 | E79: 21
A80: miR530 | B80: 2 | C80: 40 | D80: 1 | E80: 20
A81: miR-137-3p | B81: 0 | C81: 0 | D81: 1 | E81: 21
A82: miR169g-3p | B82: 1 | C82: 21 | D82: 1 | E82: 21
A83: miR1888a | B83: 1 | C83: 21 | D83: 0 | E83: 0
A84: miR3434-5p | B84: 1 | C84: 20 | D84: 0 | E84: 0
A85: miR414 | B85: 2 | C85: 42 | D85: 0 | E85: 0
A86: miR4227 | B86: 0 | C86: 0 | D86: 2 | E86: 42
A87: miR4243 | B87: 1 | C87: 21 | D87: 0 | E87: 0
A88: miR5021 | B88: 19 | C88: 380 | D88: 21 | E88: 420
A89: miR5640 | B89: 0 | C89: 0 | D89: 1 | E89: 21
A90: miR5658 | B90: 5 | C90: 105 | D90: 3 | E90: 63
A91: miR5998a | B91: 2 | C91: 42 | D91: 1 | E91: 21
A92: miR863-3p | B92: 1 | C92: 21 | D92: 0 | E92: 0
A93: miR865-5p | B93: 1 | C93: 21 | D93: 0 | E93: 0
A94: miR156 | B94: 4 | C94: 88 | D94: 3 | E94: 66
A95: miR1127 | B95: 13 | C95: 273 | D95: 1 | E95: 21
A96: miR159 | B96: 0 | C96: 0 | D96: 2 | E96: 40
A97: miR166f | B97: 4 | C97: 84 | D97: 4 | E97: 84
A98: miR395a | B98: 4 | C98: 80 | D98: 2 | E98: 40
A99: miR5054 | B99: 1 | C99: 18 | D99: 0 | E99: 0
A100: miR5181b | B100: 2 | C100: 42 | D100: 1 | E100: 21
A101: miR5203 | B101: 7 | C101: 147 | D101: 0 | E101: 0
A102: miR-153 | B102: 1 | C102: 20 | D102: 0 | E102: 0
A103: miR-705 | B103: 1 | C103: 20 | D103: 0 | E103: 0
A104: miR-137 | B104: 2 | C104: 36 | D104: 3 | E104: 54
A105: miR-2742 | B105: 1 | C105: 19 | D105: 2 | E105: 38
A106: miR-2744 | B106: 0 | C106: 0 | D106: 1 | E106: 18
A107: miR-3375-5p | B107: 1 | C107: 22 | D107: 0 | E107: 0
A108: miR-1281 | B108: 2 | C108: 34 | D108: 1 | E108: 17
A109: miR-1603 | B109: 1 | C109: 20 | D109: 1 | E109: 20
A110: miR-1814a | B110: 3 | C110: 60 | D110: 2 | E110: 40
A111: miR-1814b | B111: 0 | C111: 0 | D111: 2 | E111: 40
A112: miR-1814c | B112: 3 | C112: 60 | D112: 1 | E112: 20
A113: miR-190b | B113: 1 | C113: 21 | D113: 0 | E113: 0
A114: miR-2284a | B114: 0 | C114: 0 | D114: 1 | E114: 20
A115: miR-2284aa-1 | B115: 1 | C115: 21 | D115: 1 | E115: 21
A116: miR-2284c | B116: 0 | C116: 0 | D116: 1 | E116: 20
A117: miR-2293 | B117: 6 | C117: 120 | D117: 3 | E117: 60
A118: miR-2298 | B118: 1 | C118: 20 | D118: 0 | E118: 0
A119: miR-2301 | B119: 1 | C119: 20 | D119: 0 | E119: 0
A120: miR-2304 | B120: 1 | C120: 20 | D120: 0 | E120: 0
A121: miR-2305 | B121: 1 | C121: 20 | D121: 0 | E121: 0
A122: miR-2310 | B122: 0 | C122: 0 | D122: 1 | E122: 21
A123: miR-2325a | B123: 1 | C123: 20 | D123: 0 | E123: 0
A124: miR-2325c | B124: 19 | C124: 380 | D124: 25 | E124: 500
A125: miR-2337 | B125: 1 | C125: 20 | D125: 1 | E125: 20
A126: miR-2345 | B126: 1 | C126: 20 | D126: 1 | E126: 20
A127: miR-2354 | B127: 1 | C127: 21 | D127: 0 | E127: 0
A128: miR-2359 | B128: 2 | C128: 40 | D128: 3 | E128: 60
A129: miR-2361 | B129: 3 | C129: 60 | D129: 4 | E129: 80
A130: miR-2365 | B130: 1 | C130: 20 | D130: 0 | E130: 0
A131: miR-2393 | B131: 11 | C131: 220 | D131: 13 | E131: 260
A132: miR-2405 | B132: 0 | C132: 0 | D132: 1 | E132: 20
A133: miR-2420 | B133: 1 | C133: 20 | D133: 0 | E133: 0
A134: miR-2421 | B134: 2 | C134: 40 | D134: 2 | E134: 40
A135: miR-2429 | B135: 3 | C135: 60 | D135: 0 | E135: 0
A136: miR-2434 | B136: 2 | C136: 40 | D136: 1 | E136: 20
A137: miR-2444 | B137: 20 | C137: 400 | D137: 12 | E137: 240
A138: miR-2479 | B138: 1 | C138: 20 | D138: 1 | E138: 20
A139: miR-2488 | B139: 1 | C139: 20 | D139: 1 | E139: 20
A140: miR-2881 | B140: 3 | C140: 54 | D140: 5 | E140: 90
A141: miR-2886 | B141: 1 | C141: 18 | D141: 0 | E141: 0
A142: miR-2888 | B142: 1 | C142: 19 | D142: 0 | E142: 0
A143: miR-2899 | B143: 0 | C143: 0 | D143: 1 | E143: 18
A144: miR-2917 | B144: 5 | C144: 80 | D144: 0 | E144: 0
A145: miR-3613 | B145: 0 | C145: 0 | D145: 1 | E145: 22
A146: miR-6528 | B146: 2 | C146: 40 | D146: 0 | E146: 0
A147: miR-9-3p | B147: 1 | C147: 17 | D147: 0 | E147: 0
A148: miR171 | B148: 0 | C148: 0 | D148: 1 | E148: 21
A149: miR396a-3p | B149: 0 | C149: 0 | D149: 1 | E149: 21
A150: miR396b | B150: 0 | C150: 0 | D150: 1 | E150: 21
A151: miR396c | B151: 0 | C151: 0 | D151: 1 | E151: 21
A152: miR-2212-3p | B152: 1 | C152: 22 | D152: 0 | E152: 0
A153: miR-261 | B153: 1 | C153: 19 | D153: 0 | E153: 0
A154: miR-272 | B154: 1 | C154: 18 | D154: 0 | E154: 0
A155: miR-5549-3p | B155: 1 | C155: 21 | D155: 0 | E155: 0
A156: miR-590 | B156: 1 | C156: 21 | D156: 0 | E156: 0
A157: let-7f-5p | B157: 0 | C157: 0 | D157: 1 | E157: 18
A158: miR-4000b-2-3p | B158: 1 | C158: 19 | D158: 0 | E158: 0
A159: miR-4001e-3p | B159: 3 | C159: 54 | D159: 3 | E159: 54
A160: miR-4002-5p | B160: 3 | C160: 60 | D160: 0 | E160: 0
A161: miR-4006c-3p | B161: 0 | C161: 0 | D161: 1 | E161: 20
A162: miR-4006e-3p | B162: 1 | C162: 18 | D162: 0 | E162: 0
A163: miR-4007-5p | B163: 0 | C163: 0 | D163: 1 | E163: 20
A164: miR-4009b-5p | B164: 1 | C164: 20 | D164: 0 | E164: 0
A165: miR-4020b-5p | B165: 2 | C165: 40 | D165: 0 | E165: 0
A166: miR-4024-5p | B166: 1 | C166: 19 | D166: 1 | E166: 19
A167: miR-4027-5p | B167: 0 | C167: 0 | D167: 1 | E167: 20
A168: miR-4028-3p | B168: 0 | C168: 0 | D168: 2 | E168: 40
A169: miR-4039-3p | B169: 1 | C169: 20 | D169: 0 | E169: 0
A170: miR-4077a-5p | B170: 1 | C170: 20 | D170: 1 | E170: 20
A171: miR-4090-3p | B171: 0 | C171: 0 | D171: 1 | E171: 18
A172: miR-4101-3p | B172: 2 | C172: 38 | D172: 0 | E172: 0
A173: miR-4108-5p | B173: 1 | C173: 18 | D173: 1 | E173: 18
A174: miR-4111-3p | B174: 2 | C174: 38 | D174: 1 | E174: 19
A175: miR-4112-5p | B175: 1 | C175: 20 | D175: 0 | E175: 0
A176: miR-4116-5p | B176: 2 | C176: 36 | D176: 0 | E176: 0
A177: miR-4117-5p | B177: 1 | C177: 18 | D177: 2 | E177: 36
A178: miR-4120-5p | B178: 2 | C178: 38 | D178: 2 | E178: 38
A179: miR-4121-3p | B179: 0 | C179: 0 | D179: 1 | E179: 19
A180: miR-4133-3p | B180: 2 | C180: 38 | D180: 0 | E180: 0
A181: miR-4145-3p | B181: 2 | C181: 38 | D181: 2 | E181: 38
A182: miR-4150-5p | B182: 1 | C182: 19 | D182: 0 | E182: 0
A183: miR-4152-5p | B183: 1 | C183: 18 | D183: 0 | E183: 0
A184: miR-4154-3p | B184: 0 | C184: 0 | D184: 2 | E184: 36
A185: miR-4162-3p | B185: 1 | C185: 20 | D185: 0 | E185: 0
A186: miR-4166-5p | B186: 0 | C186: 0 | D186: 1 | E186: 19
A187: miR-4172-3p | B187: 0 | C187: 0 | D187: 1 | E187: 19
A188: miR-4177-5p | B188: 1 | C188: 20 | D188: 0 | E188: 0
A189: miR-4179a-3p | B189: 2 | C189: 36 | D189: 0 | E189: 0
A190: miR-4179a-5p | B190: 3 | C190: 54 | D190: 0 | E190: 0
A191: miR-4184-3p | B191: 2 | C191: 36 | D191: 3 | E191: 54
A192: miR-4185-5p | B192: 1 | C192: 18 | D192: 0 | E192: 0
A193: miR-4188-5p | B193: 6 | C193: 108 | D193: 1 | E193: 18
A194: miR-4192-3p | B194: 6 | C194: 108 | D194: 1 | E194: 18
A195: miR-4194-3p | B195: 10 | C195: 180 | D195: 4 | E195: 72
A196: miR-4194-5p | B196: 0 | C196: 0 | D196: 1 | E196: 18
A197: miR-4198-5p | B197: 3 | C197: 54 | D197: 2 | E197: 36
A198: miR-4205-5p | B198: 2 | C198: 36 | D198: 0 | E198: 0
A199: miR-4206-3p | B199: 1 | C199: 18 | D199: 2 | E199: 36
A200: miR-4208-3p | B200: 4 | C200: 72 | D200: 2 | E200: 36
A201: miR-4210-5p | B201: 0 | C201: 0 | D201: 1 | E201: 20
... 340 more rows

Sheet Supplementary Table 15
A1: Supplementary Table 15. tRNA types found in the Corchorus olitorius and Corchorus capsularis genomes
A3: tRNA type | B3: Corchorus olitorius | D3: Corchorus capsularis
B4: count | C4: length | D4: count | E4: length
A5: Ala | B5: 22 | C5: 1,606 | D5: 2 | E5: 146
A6: Arg | B6: 31 | C6: 2,268 | D6: 17 | E6: 1,239
A7: Asn | B7: 9 | C7: 658 | D7: 4 | E7: 296
A8: Asp | B8: 23 | C8: 1,657 | D8: 4 | E8: 288
A9: Cys | B9: 20 | C9: 1,436 | D9: 7 | E9: 504
A10: Gln | B10: 17 | C10: 1,223 | D10: 11 | E10: 792
A11: Glu | B11: 33 | C11: 2,396 | D11: 11 | E11: 795
A12: Gly | B12: 39 | C12: 2,779 | D12: 21 | E12: 1,492
A13: His | B13: 12 | C13: 869 | D13: 4 | E13: 288
A14: Ile | B14: 13 | C14: 962 | D14: 1 | E14: 73
A15: Leu | B15: 36 | C15: 2,956 | D15: 14 | E15: 1,143
A16: Lys | B16: 4 | C16: 292 | D16: 0 | E16: 0
A17: Met | B17: 51 | C17: 3,829 | D17: 19 | E17: 1,493
A18: Phe | B18: 14 | C18: 1,019 | D18: 11 | E18: 792
A19: Pro | B19: 32 | C19: 2,316 | D19: 5 | E19: 368
A20: Pseudo | B20: 16 | C20: 1,176 | D20: 8 | E20: 574
A21: Ser | B21: 44 | C21: 3,691 | D21: 25 | E21: 2,123
A22: Thr | B22: 21 | C22: 1,525 | D22: 9 | E22: 651
A23: Trp | B23: 16 | C23: 1,161 | D23: 11 | E23: 796
A24: Tyr | B24: 11 | C24: 995 | D24: 11 | E24: 1,008
A25: Undet | B25: 4 | C25: 336 | D25: 1 | E25: 72
A26: Val | B26: 20 | C26: 1,471 | D26: 7 | E26: 516
A27: Total | B27: =SUM(B5:B26) -> 488 | C27: =SUM(C5:C26) -> 36,621 | D27: =SUM(D5:D26) -> 203 | E27: =SUM(E5:E26) -> 15,449

Sheet Supplementary Table 16
A1: Supplementary Table 16. rRNA types found in the Corchorus olitorius and Corchorus capsularis genomes
A3: rRNA type | B3: Corchorus olitorius | D3: Corchorus capsularis
B4: Number | C4: length | D4: Number | E4: length
A5: 18S | B5: 14 | C5: 18,827 | D5: 17 | E5: 19,762
A6: 28S | B6: 9 | C6: 23,838 | D6: 3 | E6: 6,249
A7: 5.8S | B7: 57 | C7: 6,529 | D7: 90 | E7: 10,327
A8: Total | B8: =SUM(B5:B7) -> 80 | C8: =SUM(C5:C7) -> 49,194 | D8: =SUM(D5:D7) -> 110 | E8: =SUM(E5:E7) -> 36,338

Sheet Supplementary Table 17
A1: Supplementary Table 17. Comparison of the C. olitorius and C. capsularis genomes to other sequenced plant genomes
A3: Name | B3: Genome size (Mb) | C3: Gene number | D3: Gene densitya | E3: Transposable elementsb
A4: C. olitorius | B4: 447 | C4: 37,031 | D4: 0.90* | E4: 53.72
A5: C. capsularis | B5: 404 | C5: 30,096 | D5: 0.91* | E5: 56.17
A6: Gossypium raimondii | B6: 880 | C6: 40,976 | D6: 0.47 | E6: 56.9
A7: Theobroma cacao | B7: 430 | C7: 28,798 | D7: 0.67 | E7: 24.25
A8: Linum usitatissimum | B8: 373 | C8: 43,484 | D8: 1.16 | E8: 24.29
A9: Populus trichocarpa | B9: 485 | C9: 45,555 | D9: 0.94 | E9: 35
A10: Ricinus communis | B10: 350 | C10: 31,237 | D10: 0.89 | E10: 50.33
A11: Medicago truncatula | B11: 470 | C11: 47,845 | D11: 1.02 | E11: 48.8
A12: Glycine max | B12: 1,115 | C12: 46,430 | D12: 0.42 | E12: 50.3
A13: Vitis vinifera | B13: 487 | C13: 30,434 | D13: 0.63 | E13: 41.4
A14: Arabidopsis thaliana | B14: 120 | C14: 27,228 | D14: 2.2 | E14: 18.5
A15: Carica papaya | B15: 372 | C15: 24,746 | D15: 0.66 | E15: 51.9
A16: Oryza sativa | B16: 420 | C16: 40,577 | D16: 0.97 | E16: 39.5
A17: Zea mays | B17: 2,200 | C17: 32,540 | D17: 0.15 | E17: 84.2
A18: Sorghum bicolor | B18: 740 | C18: 34,496 | D18: 0.47 | E18: 61.98
A19: a Gene density expressed in number of genes per 10 kb. b Expressed in % of total genome size. * Determined based on total contig length (410.19 Mb and 331.96 Mb for C. olitorius and C. capsularis respectively).

Sheet Supplementary Table 18
A1: Supplementary Table 18. C. olitorius and C. capsularis genome redundancy classified per number of copies. Major groups of repetitive positions and their representation in the C. olitorius and C. capsularis genomes.
B3: Copies (no.) | C3: Estimated total length (Mb) | E3: Genome coverage (%) | G3: Assembled (%)
C4: C. olitorius | D4: C. capsularis | E4: C. olitorius | F4: C. capsularis | G4: C. olitorius | H4: C. capsularis
A5: Genic regions | B5: 1 | C5: 207.35 | D5: 177.13 | E5: 46.28 | F5: 43.83 | G5: 98.93 | H5: 87.62
A6: Repetitive regions | B6: >1-2 | C6: 173.12 | D6: 145.62 | E6: 38.65 | F6: 36.04 | G6: - | H6: -
B7: 3-100 | C7: 59.03 | D7: 75.08 | E7: 13.18 | F7: 18.58 | G7: - | H7: -
B8: >100 | C8: 8.45 | D8: 6.26 | E8: 1.89 | F8: 1.55 | G8: - | H8: -
A9: Total repeat | B9: - | C9: 240.6 | D9: 226.96 | E9: 53.72 | F9: 56.17 | G9: 85.22 | H9: 77.41
A10: Total | B10: - | C10: 447.95 | D10: 404.09 | E10: 100 | F10: 100 | G10: 91.57 | H10: 82.15

Sheet Supplementary Table 19
A1: Supplementary Table 19. Repeat content in the assembled C. olitorius and C. capsularis genomes
A3: Type | B3: Length occupied (bp) | D3: Total repeats (%) | F3: Assembled genome (%)
B4: C. olitorius | C4: C. capsularis | D4: C. olitorius | E4: C. capsularis | F4: C. olitorius | G4: C. capsularis
A5: DNA elements | B5: 12,570,560 | C5: 13,319,024 | D5: 6.13 | E5: 7.58 | F5: 3.06 | G5: 4.01
A6: Retrotransposons | B6: 106,496,874 | C6: 87,367,196 | D6: 51.94 | E6: 49.73 | F6: 25.96 | G6: 26.32
A7: LTR | B7: 94,693,301 | C7: 75,615,228 | D7: 46.18 | E7: 43.04 | F7: 23.08 | G7: 22.78
A8: LINE | B8: 11,521,650 | C8: 11,510,338 | D8: 5.62 | E8: 6.55 | F8: 2.81 | G8: 3.46
A9: SINE | B9: 281,923 | C9: 241,630 | D9: 0.14 | E9: 0.14 | F9: 0.07 | G9: 0.07
A10: Unclassified | B10: 82,157,968 | C10: 71,541,332 | D10: 40.07 | E10: 40.73 | F10: 20.03 | G10: 21.55
A11: Satellites | B11: 585,118 | C11: 444,967 | D11: 0.28 | E11: 0.25 | F11: 0.14 | G11: 0.13
A12: Simple repeats | B12: 2,834,619 | C12: 2,659,070 | D12: 1.38 | E12: 1.51 | F12: 0.69 | G12: 0.8
A13: Small RNA | B13: 412,217 | C13: 345,755 | D13: 0.2 | E13: 0.2 | F13: 0.1 | G13: 0.1
A14: Total repeats | B14: 205,057,356 | C14: 175,677,344 | D14: 100 | E14: 100 | F14: 49.98 | G14: 52.91
A15: Low complexity sequence | B15: 9,016,216 | C15: 7,801,638 | D15: - | E15: - | F15: 2.2 | G15: 2.35

Sheet Supplementary Table 20
A1: Supplementary Table 20. Protein datasets used for OrthoMCL gene family analyses. Data was downloaded from Phytozome v9.1, except for Corchorus olitorius and Corchorus capsularis.
A3: Organism | B3: Number of proteins without splice variants
A4: Corchorus olitorius | B4: 37,031
A5: Corchorus capsularis | B5: 30,096
A6: Theobroma cacao | B6: 40,836
A7: Gossypium raimondii | B7: 65,850
A8: Arabidopsis thaliana | B8: 32,785
A9: Linum usitatissimum | B9: 43,236
A10: Populus trichocarpa | B10: 64,059
A11: Ricinus communis | B11: 31,140
A12: Solanum lycopersicum | B12: 34,635
A13: Solanum tuberosum | B13: 48,235
A14: Medicago truncatula | B14: 44,656
A15: Vitis vinifera | B15: 26,278
A16: Fragaria vesca | B16: 32,812
A17: Glycine max | B17: 65,536
A18: Oryza sativa | B18: 45,231

Sheet Supplementary Table 21
A1: Supplementary Table 21. InterPro domains within the C. olitorius specific lineage. Only the most abundant domains (≥5 hits) are listed.
A3: InterPro ID | B3: Hits | C3: Description
A4: IPR001810 | B4: 148 | C4: F-box domain, cyclin-like
A5: IPR001128 | B5: 48 | C5: Cytochrome P450
A6: IPR005162 | B6: 46 | C6: Retrotransposon gag protein
A7: IPR012340 | B7: 41 | C7: Nucleic acid-binding, OB-fold
A8: IPR003656 | B8: 37 | C8: Zinc finger, BED-type predicted
A9: IPR025558 | B9: 31 | C9: Domain of unknown function DUF4283
A10: IPR003690 | B10: 30 | C10: Mitochodrial transcription termination factor-related
A11: IPR003441 | B11: 29 | C11: No apical meristem (NAM) protein
A12: IPR003480 | B12: 26 | C12: Transferase
A13: IPR012337 | B13: 23 | C13: Ribonuclease H-like domain
A14: IPR003340 | B14: 22 | C14: B3 DNA binding domain
A15: IPR003676 | B15: 22 | C15: Auxin responsive SAUR protein
A16: IPR000467 | B16: 19 | C16: G-patch domain
A17: IPR001965 | B17: 18 | C17: Zinc finger, PHD-type
A18: IPR000863 | B18: 17 | C18: Sulfotransferase domain
A19: IPR008502 | B19: 16 | C19: Prolamin-like domain
A20: IPR000504 | B20: 15 | C20: RNA recognition motif domain
A21: IPR001611 | B21: 15 | C21: Leucine-rich repeat
A22: IPR005135 | B22: 15 | C22: Endonuclease/exonuclease/phosphatase
A23: IPR007750 | B23: 15 | C23: Protein of unknown function DUF674
A24: IPR019557 | B24: 15 | C24: Aminotransferase-like, plant mobile domain
A25: IPR001245 | B25: 14 | C25: Serine-threonine/tyrosine-protein kinase catalytic domain
A26: IPR002198 | B26: 14 | C26: Short-chain dehydrogenase/reductase SDR
A27: IPR004252 | B27: 14 | C27: Transposase, Ptta/En/Spm, plant
A28: IPR004265 | B28: 14 | C28: Plant disease resistance response protein
A29: IPR004330 | B29: 14 | C29: FAR1 DNA binding domain
A30: IPR005123 | B30: 13 | C30: Oxoglutarate/iron-dependent dioxygenase
A31: IPR017451 | B31: 13 | C31: F-box associated interaction domain
A32: IPR000668 | B32: 12 | C32: Peptidase C1A, papain C-terminal
A33: IPR006527 | B33: 12 | C33: F-box associated domain, type 1
A34: IPR000719 | B34: 11 | C34: Protein kinase, catalytic domain
A35: IPR006652 | B35: 11 | C35: Kelch repeat type 1
A36: IPR008906 | B36: 11 | C36: HAT dimerisation
A37: IPR025836 | B37: 11 | C37: Zinc knuckle CX2CX4HX4C
A38: IPR000916 | B38: 10 | C38: Bet v I domain
A39: IPR005299 | B39: 10 | C39: SAM dependent carboxyl methyltransferase
A40: IPR006501 | B40: 10 | C40: Pectinesterase inhibitor
A41: IPR000620 | B41: 9 | C41: Drug/metabolite transporter
A42: IPR024752 | B42: 9 | C42: Myb/SANT-like domain
A43: IPR000767 | B43: 8 | C43: Disease resistance protein
A44: IPR002213 | B44: 8 | C44: UDP-glucuronosyl/UDP-glucosyltransferase
A45: IPR010666 | B45: 8 | C45: Zinc finger, GRF-type
A46: IPR025312 | B46: 8 | C46: Domain of unknown function DUF4216
A47: IPR026960 | B47: 8 | C47: Reverse transcriptase zinc-binding domain
A48: IPR002182 | B48: 7 | C48: NB-ARC
A49: IPR006564 | B49: 7 | C49: Zinc finger, PMZ-type
A50: IPR000528 | B50: 6 | C50: Plant lipid transfer protein/Par allergen
A51: IPR002885 | B51: 6 | C51: Pentatricopeptide repeat
A52: IPR006566 | B52: 6 | C52: FBD
A53: IPR011424 | B53: 6 | C53: C1-like
A54: IPR013242 | B54: 6 | C54: Retroviral aspartyl protease
A55: IPR000157 | B55: 5 | C55: Toll/interleukin-1 receptor homology (TIR) domain
A56: IPR001087 | B56: 5 | C56: Lipase, GDSL
A57: IPR002219 | B57: 5 | C57: Protein kinase C-like, phorbol ester/diacylglycerol binding
A58: IPR003653 | B58: 5 | C58: Peptidase C48, SUMO/Sentrin/Ubl1
A59: IPR004332 | B59: 5 | C59: Transposase, MuDR, plant
A60: IPR008207 | B60: 5 | C60: Signal transduction histidine kinase, phosphotransfer (Hpt) domain
A61: IPR013525 | B61: 5 | C61: ABC-2 type transporter

Sheet Supplementary Table 22
A1: Supplementary Table 22. InterPro domains within the C. capsularis specific lineage. Only the most abundant domains (≥2 hits) are listed.
A3: InterPro ID | B3: Hits | C3: Description
A4: IPR001584 | B4: 13 | C4: Integrase, catalytic core
A5: IPR001810 | B5: 13 | C5: F-box domain, cyclin-like
A6: IPR003441 | B6: 10 | C6: No apical meristem (NAM) protein
A7: IPR012337 | B7: 10 | C7: Ribonuclease H-like domain
A8: IPR013103 | B8: 9 | C8: Reverse transcriptase, RNA-dependent DNA polymerase
A9: IPR005162 | B9: 8 | C9: Retrotransposon gag protein
A10: IPR000477 | B10: 6 | C10: Reverse transcriptase
A11: IPR001878 | B11: 6 | C11: Zinc finger, CCHC-type
A12: IPR001680 | B12: 5 | C12: WD40 repeat
A13: IPR005123 | B13: 4 | C13: Oxoglutarate/iron-dependent dioxygenase
A14: IPR019557 | B14: 4 | C14: Aminotransferase-like, plant mobile domain
A15: IPR025558 | B15: 4 | C15: Domain of unknown function DUF4283
A16: IPR002902 | B16: 3 | C16: Gnk2-homologous domain
A17: IPR003340 | B17: 3 | C17: B3 DNA binding domain
A18: IPR004827 | B18: 3 | C18: Basic-leucine zipper domain
A19: IPR005174 | B19: 3 | C19: Protein of unknown function DUF295
A20: IPR005202 | B20: 3 | C20: Transcription factor GRAS
A21: IPR000008 | B21: 2 | C21: C2 calcium-dependent membrane targeting
A22: IPR000907 | B22: 2 | C22: Lipoxygenase
A23: IPR001077 | B23: 2 | C23: O-methyltransferase, family 2
A24: IPR001128 | B24: 2 | C24: Cytochrome P450
A25: IPR001245 | B25: 2 | C25: Serine-threonine/tyrosine-protein kinase catalytic domain
A26: IPR001251 | B26: 2 | C26: CRAL-TRIO domain
A27: IPR001461 | B27: 2 | C27: Peptidase A1
A28: IPR001509 | B28: 2 | C28: NAD-dependent epimerase/dehydratase
A29: IPR001701 | B29: 2 | C29: Glycoside hydrolase, family 9
A30: IPR001841 | B30: 2 | C30: Zinc finger, RING-type
A31: IPR002083 | B31: 2 | C31: MATH
A32: IPR002100 | B32: 2 | C32: Transcription factor, MADS-box
A33: IPR002213 | B33: 2 | C33: UDP-glucuronosyl/UDP-glucosyltransferase
A34: IPR002925 | B34: 2 | C34: Dienelactone hydrolase
A35: IPR003480 | B35: 2 | C35: Transferase
A36: IPR003593 | B36: 2 | C36: AAA+ ATPase domain
A37: IPR003656 | B37: 2 | C37: Zinc finger, BED-type predicted
A38: IPR003690 | B38: 2 | C38: Mitochodrial transcription termination factor-related
A39: IPR004242 | B39: 2 | C39: Transposon, En/Spm-like
A40: IPR004252 | B40: 2 | C40: Transposase, Ptta/En/Spm, plant
A41: IPR004331 | B41: 2 | C41: SPX, N-terminal
A42: IPR006671 | B42: 2 | C42: Cyclin, N-terminal
A43: IPR007592 | B43: 2 | C43: Protein of unknown function DUF573
A44: IPR008978 | B44: 2 | C44: HSP20-like chaperone
A45: IPR012900 | B45: 2 | C45: G-box binding, MFMR
A46: IPR013216 | B46: 2 | C46: Methyltransferase type 11
A47: IPR018499 | B47: 2 | C47: Tetraspanin/Peripherin
A48: IPR021418 | B48: 2 | C48: THO complex, subunitTHOC2, C-terminal
A49: IPR026840 | B49: 2 | C49: Armadillo repeat-containing protein 3 and Serine/threonine-protein kinase CTR1

Sheet Supplementary Table 23
A1: Supplementay Table 23. List of jute-specific genes (only significantly expressed in fiber cells comapred to seedlings RNA-seq) of Corchorus olitorius (FDR: False Discovery Rate, FDR < 0.05).
A3: Gene Model | B3: Annotation | C3: FPKM value for seedlings | D3: FPKM value for fiber cells | E3: log2 fold change | F3: p_value | G3: q_value | H3: significant
A4: COLO4_15430 | B4: Patatin/Phospholipase A2-related | C4: 0.135947 | D4: 346.481 | E4: 11.3155 | F4: 5e-05 | G4: 0.000179896 | H4: yes
A5: COLO4_11844 | B5: Hypothetical protein | C5: 0.268663 | D5: 47.5284 | E5: 7.46685 | F5: 5e-05 | G5: 0.000179896 | H5: yes
A6: COLO4_30582 | B6: Plant disease resistance response protein | C6: 0.199219 | D6: 22.2052 | E6: 6.8004 | F6: 0.0032 | G6: 0.00778848 | H6: yes
A7: COLO4_07073 | B7: Aminotransferase-like, plant mobile domain | C7: 1.15627 | D7: 73.7409 | E7: 5.99492 | F7: 5e-05 | G7: 0.000179896 | H7: yes
A8: COLO4_35728 | B8: FBD | C8: 0.0316045 | D8: 1.62528 | E8: 5.68442 | F8: 0.00035 | G8: 0.00107397 | H8: yes
A9: COLO4_36676 | B9: F-box domain, cyclin-like | C9: 1.09553 | D9: 54.03 | E9: 5.62406 | F9: 5e-05 | G9: 0.000179896 | H9: yes
A10: COLO4_27744 | B10: Serine-threonine/tyrosine-protein kinase catalytic domain | C10: 0.375462 | D10: 15.8444 | E10: 5.39916 | F10: 5e-05 | G10: 0.000179896 | H10: yes
A11: COLO4_29066 | B11: MATH | C11: 0.291141 | D11: 7.77758 | E11: 4.73953 | F11: 5e-05 | G11: 0.000179896 | H11: yes
A12: COLO4_30776 | B12: Galactose oxidase, beta-propeller | C12: 0.189664 | D12: 4.2587 | E12: 4.4889 | F12: 5e-05 | G12: 0.000179896 | H12: yes
A13: COLO4_34387 | B13: Myb/SANT-like domain | C13: 0.536979 | D13: 11.471 | E13: 4.41698 | F13: 5e-05 | G13: 0.000179896 | H13: yes
A14: COLO4_20300 | B14: putative nuclear matrix constituent protein 1-like protein-like | C14: 0.181442 | D14: 3.54592 | E14: 4.28858 | F14: 0.00055 | G14: 0.00160111 | H14: yes
A15: COLO4_14882 | B15: F-box domain, cyclin-like | C15: 0.139127 | D15: 2.67329 | E15: 4.26414 | F15: 0.00045 | G15: 0.0013369 | H15: yes
A16: COLO4_31655 | B16: S-locus glycoprotein | C16: 1.38337 | D16: 24.9272 | E16: 4.17147 | F16: 5e-05 | G16: 0.000179896 | H16: yes
A17: COLO4_13576 | B17: C1-like | C17: 0.569871 | D17: 8.49949 | E17: 3.89867 | F17: 5e-05 | G17: 0.000179896 | H17: yes
A18: COLO4_28974 | B18: Leucine-rich repeat | C18: 0.160946 | D18: 2.38898 | E18: 3.89175 | F18: 0.01315 | G18: 0.027792 | H18: yes
A19: COLO4_20932 | B19: Myb/SANT-like domain | C19: 0.323657 | D19: 4.39108 | E19: 3.76204 | F19: 0.0003 | G19: 0.000932184 | H19: yes
A20: COLO4_13136 | B20: Bet v I domain | C20: 13.6839 | D20: 182.875 | E20: 3.74031 | F20: 5e-05 | G20: 0.000179896 | H20: yes
A21: COLO4_31580 | B21: F-box domain, cyclin-like | C21: 0.0293316 | D21: 0.379521 | E21: 3.69365 | F21: 0.00995 | G21: 0.0216936 | H21: yes
A22: COLO4_23679 | B22: Cytochrome P450 | C22: 0.706723 | D22: 8.97762 | E22: 3.66712 | F22: 5e-05 | G22: 0.000179896 | H22: yes
A23: COLO4_14781 | B23: Zinc finger, PHD-type | C23: 0.0843009 | D23: 1.03754 | E23: 3.62148 | F23: 0.0006 | G23: 0.00173133 | H23: yes
A24: COLO4_17707 | B24: Uncharacterised domain Wax2, C-terminal | C24: 0.133522 | D24: 1.60824 | E24: 3.59033 | F24: 5e-05 | G24: 0.000179896 | H24: yes
A25: COLO4_08318 | B25: F-box domain, cyclin-like | C25: 0.0444337 | D25: 0.531399 | E25: 3.58007 | F25: 0.01735 | G25: 0.0355784 | H25: yes
A26: COLO4_23474 | B26: Nucleosome assembly protein (NAP) | C26: 0.197166 | D26: 2.31513 | E26: 3.55361 | F26: 0.00055 | G26: 0.00160111 | H26: yes
A27: COLO4_06784 | B27: Leucine-rich repeat | C27: 0.418002 | D27: 4.85758 | E27: 3.53866 | F27: 0.00585 | G27: 0.0134887 | H27: yes
A28: COLO4_20623 | B28: Myb/SANT-like domain | C28: 0.179125 | D28: 1.96932 | E28: 3.45865 | F28: 0.0004 | G28: 0.00119976 | H28: yes
A29: COLO4_16601 | B29: Zinc finger, PHD-type | C29: 0.128934 | D29: 1.39437 | E29: 3.43491 | F29: 5e-05 | G29: 0.000179896 | H29: yes
A30: COLO4_31621 | B30: F-box domain, cyclin-like | C30: 0.120098 | D30: 1.25066 | E30: 3.38041 | F30: 0.0003 | G30: 0.000932184 | H30: yes
A31: COLO4_30549 | B31: F-box/FBD/LRR-repeat protein | C31: 0.1609 | D31: 1.64074 | E31: 3.35011 | F31: 0.00035 | G31: 0.00107397 | H31: yes
A32: COLO4_13964 | B32: F-box associated domain, type 1 | C32: 0.148556 | D32: 1.44702 | E32: 3.284 | F32: 0.0001 | G32: 0.000343627 | H32: yes
A33: COLO4_08774 | B33: Myb/SANT-like domain | C33: 0.292184 | D33: 2.83312 | E33: 3.27744 | F33: 0.0005 | G33: 0.00147317 | H33: yes
A34: COLO4_07700 | B34: C1-like | C34: 0.0598932 | D34: 0.580352 | E34: 3.27647 | F34: 0.0011 | G34: 0.00299715 | H34: yes
A35: COLO4_17590 | B35: Hypothetical protein | C35: 0.0917808 | D35: 0.870438 | E35: 3.24548 | F35: 0.02175 | G35: 0.0434537 | H35: yes
A36: COLO4_04270 | B36: F-box domain, cyclin-like | C36: 1.86211 | D36: 17.6513 | E36: 3.24476 | F36: 5e-05 | G36: 0.000179896 | H36: yes
A37: COLO4_12081 | B37: Leucine-rich repeat | C37: 0.764739 | D37: 7.13506 | E37: 3.22189 | F37: 5e-05 | G37: 0.000179896 | H37: yes
A38: COLO4_14740 | B38: Zinc finger, PHD-type | C38: 0.273019 | D38: 2.3577 | E38: 3.1103 | F38: 5e-05 | G38: 0.000179896 | H38: yes
A39: COLO4_23819 | B39: Cytochrome P450 | C39: 0.868677 | D39: 7.36021 | E39: 3.08286 | F39: 5e-05 | G39: 0.000179896 | H39: yes
A40: COLO4_11201 | B40: Unnamed protein | C40: 0.0548253 | D40: 0.464458 | E40: 3.08263 | F40: 0.02225 | G40: 0.0443511 | H40: yes
A41: COLO4_03389 | B41: Oxoglutarate/iron-dependent dioxygenase | C41: 0.925608 | D41: 7.80876 | E41: 3.07662 | F41: 5e-05 | G41: 0.000179896 | H41: yes
A42: COLO4_17456 | B42: Kelch repeat type 1 | C42: 0.240908 | D42: 1.99994 | E42: 3.0534 | F42: 0.00115 | G42: 0.00311928 | H42: yes
A43: COLO4_29194 | B43: Zinc finger, RING-type | C43: 0.820994 | D43: 6.4851 | E43: 2.98169 | F43: 5e-05 | G43: 0.000179896 | H43: yes
A44: COLO4_35856 | B44: Ribonuclease H-like domain | C44: 1.48689 | D44: 11.2621 | E44: 2.92111 | F44: 5e-05 | G44: 0.000179896 | H44: yes
A45: COLO4_17546 | B45: Unnamed protein | C45: 3.62139 | D45: 26.4688 | E45: 2.86968 | F45: 5e-05 | G45: 0.000179896 | H45: yes
A46: COLO4_09953 | B46: Kelch repeat type 1 | C46: 0.205751 | D46: 1.44814 | E46: 2.81523 | F46: 0.00015 | G46: 0.000499572 | H46: yes
A47: COLO4_22884 | B47: Pentatricopeptide repeat | C47: 0.92178 | D47: 6.48292 | E47: 2.81415 | F47: 5e-05 | G47: 0.000179896 | H47: yes
A48: COLO4_03709 | B48: Terpene synthase, metal-binding domain | C48: 0.981269 | D48: 6.79447 | E48: 2.79164 | F48: 5e-05 | G48: 0.000179896 | H48: yes
A49: COLO4_03452 | B49: Hypothetical protein | C49: 3.1403 | D49: 19.9877 | E49: 2.67014 | F49: 5e-05 | G49: 0.000179896 | H49: yes
A50: COLO4_38347 | B50: Hypothetical protein | C50: 0.152213 | D50: 0.966132 | E50: 2.66613 | F50: 0.01435 | G50: 0.0300497 | H50: yes
A51: COLO4_12180 | B51: putative disease resistance RPP13-like protein 1-like | C51: 3.1025 | D51: 19.6199 | E51: 2.66082 | F51: 5e-05 | G51: 0.000179896 | H51: yes
A52: COLO4_12079 | B52: Leucine-rich repeat | C52: 0.0955467 | D52: 0.592371 | E52: 2.63222 | F52: 0.00715 | G52: 0.0161523 | H52: yes
A53: COLO4_12986 | B53: Protein of unknown function DUF295 | C53: 0.546842 | D53: 3.3461 | E53: 2.61329 | F53: 0.00025 | G53: 0.000793275 | H53: yes
A54: COLO4_30308 | B54: Ribonuclease H-like domain | C54: 3.27581 | D54: 19.7368 | E54: 2.59096 | F54: 0.00125 | G54: 0.00336278 | H54: yes
A55: COLO4_36314 | B55: PGG domain | C55: 0.194951 | D55: 1.17342 | E55: 2.58954 | F55: 5e-05 | G55: 0.000179896 | H55: yes
A56: COLO4_31563 | B56: F-box domain, cyclin-like | C56: 0.284473 | D56: 1.63325 | E56: 2.52138 | F56: 0.0002 | G56: 0.000649769 | H56: yes
A57: COLO4_06427 | B57: Endonuclease/exonuclease/phosphatase | C57: 0.5962 | D57: 3.40634 | E57: 2.51435 | F57: 0.00055 | G57: 0.00160111 | H57: yes
A58: COLO4_14439 | B58: Domain of unknown function DUF382 | C58: 0.154519 | D58: 0.865815 | E58: 2.48627 | F58: 0.00475 | G58: 0.0111566 | H58: yes
A59: COLO4_16602 | B59: Zinc finger, PHD-type | C59: 0.0633882 | D59: 0.342245 | E59: 2.43274 | F59: 0.00345 | G59: 0.00834401 | H59: yes
A60: COLO4_36063 | B60: Unnamed protein | C60: 0.308188 | D60: 1.58452 | E60: 2.36216 | F60: 0.00825 | G60: 0.018349 | H60: yes
A61: COLO4_32288 | B61: Ribonuclease H-like protein | C61: 0.504733 | D61: 2.55305 | E61: 2.33863 | F61: 0.00055 | G61: 0.00160111 | H61: yes
A62: COLO4_03910 | B62: Unnamed protein | C62: 0.119491 | D62: 0.596203 | E62: 2.3189 | F62: 0.0019 | G62: 0.00487913 | H62: yes
A63: COLO4_14909 | B63: PGG domain | C63: 0.0725171 | D63: 0.358753 | E63: 2.3066 | F63: 0.01285 | G63: 0.0271965 | H63: yes
A64: COLO4_03338 | B64: PGG domain | C64: 0.116981 | D64: 0.546027 | E64: 2.2227 | F64: 0.0096 | G64: 0.0210156 | H64: yes
A65: COLO4_29748 | B65: ADP-ribosylarginine hydrolase-like protein 1 | C65: 0.522755 | D65: 2.34226 | E65: 2.1637 | F65: 5e-05 | G65: 0.000179896 | H65: yes
A66: COLO4_03900 | B66: Protein kinase, catalytic domain | C66: 0.0989355 | D66: 0.441144 | E66: 2.15669 | F66: 0.0154 | G66: 0.0320259 | H66: yes
A67: COLO4_31581 | B67: F-box domain, cyclin-like | C67: 0.0868714 | D67: 0.36233 | E67: 2.06035 | F67: 0.015 | G67: 0.0312917 | H67: yes
A68: COLO4_33093 | B68: No apical meristem (NAM) protein | C68: 2.02534 | D68: 8.28471 | E68: 2.03229 | F68: 0.00015 | G68: 0.000499572 | H68: yes
A69: COLO4_18866 | B69: C1-like | C69: 0.0986122 | D69: 0.400565 | E69: 2.0222 | F69: 0.00175 | G69: 0.00453627 | H69: yes
A70: COLO4_07287 | B70: F-box domain, cyclin-like | C70: 0.407854 | D70: 1.62622 | E70: 1.9954 | F70: 0.0003 | G70: 0.000932184 | H70: yes
A71: COLO4_16143 | B71: Proteinase inhibitor I3, Kunitz legume | C71: 2.23154 | D71: 8.59788 | E71: 1.94594 | F71: 0.0001 | G71: 0.000343627 | H71: yes
A72: COLO4_13138 | B72: Bet v I domain | C72: 135.538 | D72: 517.185 | E72: 1.93198 | F72: 5e-05 | G72: 0.000179896 | H72: yes
A73: COLO4_12965 | B73: F-box associated domain, type 3 | C73: 0.564023 | D73: 2.14017 | E73: 1.9239 | F73: 0.0053 | G73: 0.0123318 | H73: yes
A74: COLO4_12392 | B74: Hypothetical protein | C74: 6.16038 | D74: 22.9614 | E74: 1.89812 | F74: 5e-05 | G74: 0.000179896 | H74: yes
A75: COLO4_19424 | B75: Cytochrome P450 | C75: 0.272673 | D75: 0.975027 | E75: 1.83827 | F75: 0.0112 | G75: 0.0240727 | H75: yes
A76: COLO4_08695 | B76: Aldo/keto reductase | C76: 5.2207 | D76: 18.0239 | E76: 1.7876 | F76: 5e-05 | G76: 0.000179896 | H76: yes
A77: COLO4_30618 | B77: Cytochrome P450 | C77: 3.07833 | D77: 10.2109 | E77: 1.72988 | F77: 5e-05 | G77: 0.000179896 | H77: yes
A78: COLO4_28982 | B78: F-box domain, cyclin-like | C78: 0.119621 | D78: 0.390084 | E78: 1.70532 | F78: 0.0027 | G78: 0.00668857 | H78: yes
A79: COLO4_12985 | B79: Protein of unknown function DUF295 | C79: 0.634162 | D79: 2.05012 | E79: 1.69278 | F79: 0.0039 | G79: 0.00933073 | H79: yes
A80: COLO4_36877 | B80: Domain of unknown function DUF223 | C80: 16.6155 | D80: 53.141 | E80: 1.67729 | F80: 5e-05 | G80: 0.000179896 | H80: yes
A81: COLO4_09561 | B81: Kelch repeat type 1 | C81: 0.969294 | D81: 2.99167 | E81: 1.62594 | F81: 0.0003 | G81: 0.000932184 | H81: yes
A82: COLO4_15973 | B82: AUX/IAA protein | C82: 17.6913 | D82: 49.6973 | E82: 1.49013 | F82: 5e-05 | G82: 0.000179896 | H82: yes
A83: COLO4_08691 | B83: Aldo/keto reductase | C83: 0.713099 | D83: 1.97847 | E83: 1.47221 | F83: 0.01005 | G83: 0.0218871 | H83: yes
A84: COLO4_20415 | B84: Serine-threonine/tyrosine-protein kinase catalytic domain | C84: 0.852145 | D84: 2.3467 | E84: 1.46146 | F84: 0.00155 | G84: 0.00407501 | H84: yes
A85: COLO4_09232 | B85: Retrotransposon gag protein | C85: 21.4547 | D85: 57.161 | E85: 1.41373 | F85: 0.00025 | G85: 0.000793275 | H85: yes
A86: COLO4_31364 | B86: Nucleic acid-binding, OB-fold | C86: 1.37173 | D86: 3.63237 | E86: 1.40492 | F86: 5e-05 | G86: 0.000179896 | H86: yes
A87: COLO4_17486 | B87: Serine-threonine/tyrosine-protein kinase catalytic domain | C87: 50.6659 | D87: 133.392 | E87: 1.39658 | F87: 5e-05 | G87: 0.000179896 | H87: yes
A88: COLO4_06888 | B88: PAN-2 domain | C88: 0.706594 | D88: 1.83012 | E88: 1.37299 | F88: 0.02525 | G88: 0.0496507 | H88: yes
A89: COLO4_10419 | B89: F-box domain, cyclin-like | C89: 0.461208 | D89: 1.18699 | E89: 1.36382 | F89: 0.0038 | G89: 0.00911474 | H89: yes
A90: COLO4_23685 | B90: putative disease resistance protein | C90: 1.87242 | D90: 4.57916 | E90: 1.29018 | F90: 5e-05 | G90: 0.000179896 | H90: yes
A91: COLO4_33010 | B91: Unnamed protein | C91: 70.3034 | D91: 170.566 | E91: 1.27866 | F91: 5e-05 | G91: 0.000179896 | H91: yes
A92: COLO4_09168 | B92: F-box domain, cyclin-like | C92: 1.24083 | D92: 2.96929 | E92: 1.25882 | F92: 0.00285 | G92: 0.00702783 | H92: yes
A93: COLO4_17153 | B93: Toll/interleukin-1 receptor homology (TIR) domain | C93: 0.623127 | D93: 1.45009 | E93: 1.21854 | F93: 0.0109 | G93: 0.0235197 | H93: yes
A94: COLO4_24092 | B94: Kelch repeat type 1 | C94: 16.3245 | D94: 37.3606 | E94: 1.19448 | F94: 5e-05 | G94: 0.000179896 | H94: yes
A95: COLO4_35275 | B95: Nucleic acid-binding, OB-fold | C95: 4.74219 | D95: 10.7789 | E95: 1.18459 | F95: 5e-05 | G95: 0.000179896 | H95: yes
A96: COLO4_23193 | B96: F-box domain, cyclin-like | C96: 4.68704 | D96: 10.4052 | E96: 1.15056 | F96: 0.0003 | G96: 0.000932184 | H96: yes
A97: COLO4_05307 | B97: FBD | C97: 18.7394 | D97: 40.6612 | E97: 1.11758 | F97: 0.00015 | G97: 0.000499572 | H97: yes
A98: COLO4_35136 | B98: FBD | C98: 6.7005 | D98: 14.3924 | E98: 1.10296 | F98: 0.0001 | G98: 0.000343627 | H98: yes
A99: COLO4_32069 | B99: Hypothetical protein | C99: 27.9764 | D99: 60.0629 | E99: 1.10226 | F99: 0.007 | G99: 0.0158559 | H99: yes
A100: COLO4_15532 | B100: 3'-5' exonuclease domain | C100: 1.6566 | D100: 3.4454 | E100: 1.05644 | F100: 0.00425 | G100: 0.0100899 | H100: yes
A101: COLO4_08810 | B101: Domain of unknown function DUF4413 | C101: 4.36755 | D101: 8.88241 | E101: 1.02413 | F101: 0.0208 | G101: 0.0417865 | H101: yes
A102: COLO4_31566 | B102: Protein kinase, catalytic domain | C102: 9.09653 | D102: 18.3919 | E102: 1.01568 | F102: 0.0004 | G102: 0.00119976 | H102: yes
A103: COLO4_15950 | B103: Mitochodrial transcription termination factor-related | C103: 9.53157 | D103: 19.0174 | E103: 0.996537 | F103: 0.0008 | G103: 0.00225197 | H103: yes
A104: COLO4_24883 | B104: Cyclin, C-terminal domain | C104: 3.48233 | D104: 6.4671 | E104: 0.893067 | F104: 0.0051 | G104: 0.011908 | H104: yes
A105: COLO4_31368 | B105: Kelch repeat type 1 | C105: 158.368 | D105: 272.932 | E105: 0.785257 | F105: 0.00095 | G105: 0.00262489 | H105: yes
A106: COLO4_16922 | B106: F-box associated interaction domain | C106: 21.297 | D106: 36.6346 | E106: 0.78256 | F106: 0.00385 | G106: 0.00922331 | H106: yes
A107: COLO4_17442 | B107: Cytochrome P450 | C107: 21.8238 | D107: 35.8505 | E107: 0.71609 | F107: 0.00615 | G107: 0.0141136 | H107: yes
A108: COLO4_24952 | B108: Nucleic acid-binding, OB-fold | C108: 4.45563 | D108: 7.2428 | E108: 0.700919 | F108: 0.01325 | G108: 0.0279706 | H108: yes
A109: COLO4_23719 | B109: Disease resistance protein | C109: 6.72721 | D109: 4.23075 | E109: -0.669095 | F109: 0.01785 | G109: 0.0365091 | H109: yes
A110: COLO4_15836 | B110: Oxoglutarate/iron-dependent dioxygenase | C110: 22.3728 | D110: 13.8136 | E110: -0.695653 | F110: 0.00675 | G110: 0.0153514 | H110: yes
A111: COLO4_32231 | B111: Disease resistance protein | C111: 5.34051 | D111: 3.21314 | E111: -0.732992 | F111: 0.00825 | G111: 0.018349 | H111: yes
A112: COLO4_30520 | B112: cc-nbs-lrr resistance protein | C112: 56.4714 | D112: 33.9343 | E112: -0.734775 | F112: 0.02315 | G112: 0.0459641 | H112: yes
A113: COLO4_15818 | B113: Mitochodrial transcription termination factor-related | C113: 7.75652 | D113: 4.46273 | E113: -0.797484 | F113: 0.01105 | G113: 0.0238048 | H113: yes
A114: COLO4_19951 | B114: ABC-2 type transporter | C114: 121.413 | D114: 68.6173 | E114: -0.823284 | F114: 0.0014 | G114: 0.00372045 | H114: yes
A115: COLO4_34879 | B115: Toll/interleukin-1 receptor homology (TIR) domain | C115: 6.04997 | D115: 3.39696 | E115: -0.832684 | F115: 0.01725 | G115: 0.0353934 | H115: yes
A116: COLO4_27566 | B116: FAR1 DNA binding domain | C116: 4.23721 | D116: 2.28478 | E116: -0.891062 | F116: 0.00355 | G116: 0.00856459 | H116: yes
A117: COLO4_06966 | B117: SANT/Myb domain | C117: 5.90842 | D117: 3.17836 | E117: -0.894489 | F117: 0.01855 | G117: 0.0377729 | H117: yes
A118: COLO4_21735 | B118: ABC transporter-like | C118: 13.2471 | D118: 6.77545 | E118: -0.967287 | F118: 0.0113 | G118: 0.0242732 | H118: yes
A119: COLO4_06467 | B119: Nucleic acid-binding, OB-fold | C119: 15.4868 | D119: 7.64039 | E119: -1.01932 | F119: 5e-05 | G119: 0.000179896 | H119: yes
A120: COLO4_38165 | B120: Longin domain | C120: 6.64999 | D120: 3.25212 | E120: -1.03197 | F120: 0.0017 | G120: 0.00442206 | H120: yes
A121: COLO4_29506 | B121: Mitochodrial transcription termination factor-related | C121: 9.0615 | D121: 4.39453 | E121: -1.04404 | F121: 0.00095 | G121: 0.00262489 | H121: yes
A122: COLO4_13767 | B122: Adenosylhomocysteinase | C122: 83.489 | D122: 40.4869 | E122: -1.04413 | F122: 5e-05 | G122: 0.000179896 | H122: yes
A123: COLO4_20101 | B123: ABC-2 type transporter | C123: 2.55742 | D123: 1.2356 | E123: -1.04948 | F123: 0.01065 | G123: 0.0230333 | H123: yes
A124: COLO4_12125 | B124: Nucleotidyl transferase domain | C124: 5.97711 | D124: 2.86852 | E124: -1.05914 | F124: 0.00025 | G124: 0.000793275 | H124: yes
A125: COLO4_25222 | B125: Domain of unknown function DUF4283 | C125: 34.7685 | D125: 16.3939 | E125: -1.08462 | F125: 5e-05 | G125: 0.000179896 | H125: yes
A126: COLO4_11356 | B126: B3 DNA binding domain | C126: 2.94755 | D126: 1.37369 | E126: -1.10146 | F126: 0.00175 | G126: 0.00453627 | H126: yes
A127: COLO4_33862 | B127: Transposase, Ptta/En/Spm, plant | C127: 8.84153 | D127: 4.07174 | E127: -1.11865 | F127: 0.00345 | G127: 0.00834401 | H127: yes
A128: COLO4_12667 | B128: Short-chain dehydrogenase/reductase SDR | C128: 12.0042 | D128: 5.41108 | E128: -1.14954 | F128: 0.0006 | G128: 0.00173133 | H128: yes
A129: COLO4_23476 | B129: Nucleosome assembly protein (NAP) | C129: 10.7884 | D129: 4.79777 | E129: -1.16905 | F129: 0.00035 | G129: 0.00107397 | H129: yes
A130: COLO4_03821 | B130: Nucleic acid-binding, OB-fold | C130: 3.12341 | D130: 1.38358 | E130: -1.17472 | F130: 0.0093 | G130: 0.0204189 | H130: yes
A131: COLO4_11357 | B131: B3 DNA binding domain | C131: 2.12094 | D131: 0.935312 | E131: -1.18118 | F131: 0.00165 | G131: 0.00430483 | H131: yes
A132: COLO4_18150 | B132: GAT | C132: 1.97166 | D132: 0.866464 | E132: -1.1862 | F132: 0.0068 | G132: 0.0154568 | H132: yes
A133: COLO4_27826 | B133: Cytochrome P450 | C133: 168.659 | D133: 68.9051 | E133: -1.29142 | F133: 5e-05 | G133: 0.000179896 | H133: yes
A134: COLO4_31307 | B134: Domain of unknown function DUF382 | C134: 2.46327 | D134: 1.00473 | E134: -1.29377 | F134: 0.0026 | G134: 0.00646362 | H134: yes
A135: COLO4_25031 | B135: NB-ARC | C135: 1.43113 | D135: 0.568225 | E135: -1.33262 | F135: 0.01795 | G135: 0.0366988 | H135: yes
A136: COLO4_34880 | B136: NB-ARC | C136: 12.0332 | D136: 4.7569 | E136: -1.33892 | F136: 0.01475 | G136: 0.0308083 | H136: yes
A137: COLO4_17600 | B137: Protein kinase, catalytic domain | C137: 1.71226 | D137: 0.66974 | E137: -1.35423 | F137: 0.01945 | G137: 0.0394059 | H137: yes
A138: COLO4_24824 | B138: Cyclin, C-terminal domain | C138: 1.76989 | D138: 0.681353 | E138: -1.37719 | F138: 0.00125 | G138: 0.00336278 | H138: yes
A139: COLO4_34327 | B139: Protein kinase, catalytic domain | C139: 2.56501 | D139: 0.976754 | E139: -1.3929 | F139: 0.0007 | G139: 0.00199465 | H139: yes
A140: COLO4_15951 | B140: Mitochodrial transcription termination factor-related | C140: 4.69226 | D140: 1.76475 | E140: -1.41082 | F140: 0.00035 | G140: 0.00107397 | H140: yes
A141: COLO4_24061 | B141: FAR1 DNA binding domain | C141: 16.6291 | D141: 6.22638 | E141: -1.41724 | F141: 5e-05 | G141: 0.000179896 | H141: yes
A142: COLO4_26586 | B142: Nucleic acid-binding, OB-fold | C142: 23.5042 | D142: 8.75982 | E142: -1.42394 | F142: 5e-05 | G142: 0.000179896 | H142: yes
A143: COLO4_31366 | B143: DNA helicase PIF1, ATP-dependent | C143: 19.7219 | D143: 7.12017 | E143: -1.46982 | F143: 5e-05 | G143: 0.000179896 | H143: yes
A144: COLO4_37218 | B144: Cupredoxin | C144: 63.1707 | D144: 22.5879 | E144: -1.4837 | F144: 5e-05 | G144: 0.000179896 | H144: yes
A145: COLO4_22726 | B145: B3 DNA binding domain | C145: 2.7099 | D145: 0.942934 | E145: -1.52301 | F145: 5e-05 | G145: 0.000179896 | H145: yes
A146: COLO4_16023 | B146: Adenosylhomocysteinase | C146: 12.3354 | D146: 4.28876 | E146: -1.52417 | F146: 5e-05 | G146: 0.000179896 | H146: yes
A147: COLO4_31112 | B147: Domain of unknown function DUF382 | C147: 2.78755 | D147: 0.94611 | E147: -1.55892 | F147: 0.00015 | G147: 0.000499572 | H147: yes
A148: COLO4_35211 | B148: F-box domain, cyclin-like | C148: 1.8426 | D148: 0.619932 | E148: -1.57156 | F148: 0.0004 | G148: 0.00119976 | H148: yes
A149: COLO4_12988 | B149: Hypothetical protein | C149: 0.337049 | D149: 0.107604 | E149: -1.64723 | F149: 0.00845 | G149: 0.0187428 | H149: yes
A150: COLO4_03287 | B150: Unnamed protein | C150: 17.0037 | D150: 5.33004 | E150: -1.67363 | F150: 5e-05 | G150: 0.000179896 | H150: yes
A151: COLO4_15098 | B151: Hypothetical protein | C151: 26.1927 | D151: 8.1483 | E151: -1.68459 | F151: 5e-05 | G151: 0.000179896 | H151: yes
A152: COLO4_34932 | B152: Toll/interleukin-1 receptor homology (TIR) domain | C152: 0.295064 | D152: 0.0878868 | E152: -1.74731 | F152: 0.01115 | G152: 0.0239835 | H152: yes
A153: COLO4_35173 | B153: Protein kinase, catalytic domain | C153: 6.12934 | D153: 1.79163 | E153: -1.77446 | F153: 5e-05 | G153: 0.000179896 | H153: yes
A154: COLO4_30628 | B154: Prenyltransferase/squalene oxidase | C154: 1.51396 | D154: 0.438456 | E154: -1.78782 | F154: 0.0008 | G154: 0.00225197 | H154: yes
A155: COLO4_08320 | B155: putative disease resistance protein RGA4-like | C155: 1.91684 | D155: 0.552264 | E155: -1.7953 | F155: 0.0165 | G155: 0.0340172 | H155: yes
A156: COLO4_25428 | B156: NB-ARC | C156: 2.96494 | D156: 0.852695 | E156: -1.7979 | F156: 0.00835 | G156: 0.0185389 | H156: yes
A157: COLO4_25541 | B157: Disease resistance protein | C157: 19.3842 | D157: 5.42066 | E157: -1.83834 | F157: 5e-05 | G157: 0.000179896 | H157: yes
A158: COLO4_17769 | B158: Cytochrome P450 | C158: 13.4756 | D158: 3.70639 | E158: -1.86226 | F158: 5e-05 | G158: 0.000179896 | H158: yes
A159: COLO4_30664 | B159: Leucine-rich repeat | C159: 9.03978 | D159: 2.41368 | E159: -1.90506 | F159: 5e-05 | G159: 0.000179896 | H159: yes
A160: COLO4_36127 | B160: Nucleic acid-binding, OB-fold | C160: 1.46822 | D160: 0.391931 | E160: -1.9054 | F160: 0.0037 | G160: 0.00888836 | H160: yes
A161: COLO4_19832 | B161: Transposase, Ptta/En/Spm, plant | C161: 6.31466 | D161: 1.67283 | E161: -1.91641 | F161: 5e-05 | G161: 0.000179896 | H161: yes
A162: COLO4_12379 | B162: F-box domain, cyclin-like | C162: 2.64963 | D162: 0.701453 | E162: -1.91737 | F162: 0.0005 | G162: 0.00147317 | H162: yes
A163: COLO4_29630 | B163: Hypothetical protein | C163: 0.660895 | D163: 0.174862 | E163: -1.9182 | F163: 0.0124 | G163: 0.0263543 | H163: yes
A164: COLO4_03679 | B164: UDP-glucuronosyl/UDP-glucosyltransferase | C164: 29.2096 | D164: 7.72422 | E164: -1.91898 | F164: 5e-05 | G164: 0.000179896 | H164: yes
A165: COLO4_32427 | B165: Protein kinase, catalytic domain | C165: 52.2909 | D165: 13.4895 | E165: -1.95472 | F165: 5e-05 | G165: 0.000179896 | H165: yes
A166: COLO4_10221 | B166: Unnamed protein | C166: 1.10627 | D166: 0.284791 | E166: -1.95773 | F166: 0.0052 | G166: 0.0121258 | H166: yes
A167: COLO4_23466 | B167: branched-chain-amino-acid aminotransferase 2 | C167: 6.80987 | D167: 1.59735 | E167: -2.09195 | F167: 5e-05 | G167: 0.000179896 | H167: yes
A168: COLO4_17698 | B168: Phospholipase-like, arabidopsis | C168: 0.360799 | D168: 0.0808081 | E168: -2.15862 | F168: 0.0036 | G168: 0.00867365 | H168: yes
A169: COLO4_09510 | B169: Epidermal growth factor-like domain | C169: 3.39176 | D169: 0.753402 | E169: -2.17054 | F169: 5e-05 | G169: 0.000179896 | H169: yes
A170: COLO4_13137 | B170: Bet v I domain | C170: 6.81004 | D170: 1.46157 | E170: -2.22014 | F170: 0.0004 | G170: 0.00119976 | H170: yes
A171: COLO4_15025 | B171: Root hair defective 3 GTP-binding | C171: 8.64386 | D171: 1.71705 | E171: -2.33174 | F171: 5e-05 | G171: 0.000179896 | H171: yes
A172: COLO4_30499 | B172: Unnamed protein | C172: 8.89896 | D172: 1.58674 | E172: -2.48757 | F172: 5e-05 | G172: 0.000179896 | H172: yes
A173: COLO4_20814 | B173: Hypothetical protein | C173: 0.861726 | D173: 0.153131 | E173: -2.49247 | F173: 0.00015 | G173: 0.000499572 | H173: yes
A174: COLO4_14133 | B174: Cupredoxin | C174: 54.2234 | D174: 9.40195 | E174: -2.52788 | F174: 5e-05 | G174: 0.000179896 | H174: yes
A175: COLO4_13063 | B175: Bulb-type lectin domain | C175: 15.7437 | D175: 2.72728 | E175: -2.52924 | F175: 5e-05 | G175: 0.000179896 | H175: yes
A176: COLO4_17238 | B176: NB-ARC | C176: 39.6843 | D176: 6.83453 | E176: -2.53766 | F176: 5e-05 | G176: 0.000179896 | H176: yes
A177: COLO4_35052 | B177: Serine-threonine/tyrosine-protein kinase catalytic domain | C177: 3.72337 | D177: 0.639755 | E177: -2.54102 | F177: 5e-05 | G177: 0.000179896 | H177: yes
A178: COLO4_33638 | B178: Bulb-type lectin domain | C178: 1.7009 | D178: 0.290612 | E178: -2.54914 | F178: 5e-05 | G178: 0.000179896 | H178: yes
A179: COLO4_08300 | B179: Protease-associated domain, PA | C179: 1.715 | D179: 0.27506 | E179: -2.64039 | F179: 0.0008 | G179: 0.00225197 | H179: yes
A180: COLO4_10201 | B180: putative disease resistance RPP13-like protein 1-like | C180: 0.447678 | D180: 0.0711685 | E180: -2.65315 | F180: 0.00095 | G180: 0.00262489 | H180: yes
A181: COLO4_10202 | B181: putative disease resistance protein | C181: 0.346242 | D181: 0.052097 | E181: -2.73251 | F181: 0.0164 | G181: 0.0338303 | H181: yes
A182: COLO4_15027 | B182: Root hair defective 3 GTP-binding | C182: 10.6634 | D182: 1.59545 | E182: -2.74063 | F182: 5e-05 | G182: 0.000179896 | H182: yes
A183: COLO4_34648 | B183: Zinc finger, BED-type predicted | C183: 4.44584 | D183: 0.650812 | E183: -2.77214 | F183: 5e-05 | G183: 0.000179896 | H183: yes
A184: COLO4_13173 | B184: Unnamed protein | C184: 4.59881 | D184: 0.659194 | E184: -2.80249 | F184: 5e-05 | G184: 0.000179896 | H184: yes
A185: COLO4_28935 | B185: Zinc finger, CCHC-type | C185: 9.47318 | D185: 1.2537 | E185: -2.91766 | F185: 5e-05 | G185: 0.000179896 | H185: yes
A186: COLO4_05295 | B186: Kelch-type beta propeller | C186: 5.18906 | D186: 0.681382 | E186: -2.92894 | F186: 5e-05 | G186: 0.000179896 | H186: yes
A187: COLO4_07683 | B187: Unnamed protein | C187: 0.961728 | D187: 0.126054 | E187: -2.93158 | F187: 5e-05 | G187: 0.000179896 | H187: yes
A188: COLO4_34878 | B188: Toll/interleukin-1 receptor homology (TIR) domain | C188: 0.362145 | D188: 0.0445778 | E188: -3.02217 | F188: 0.00035 | G188: 0.00107397 | H188: yes
A189: COLO4_30591 | B189: Plant disease resistance response protein | C189: 1.95103 | D189: 0.232929 | E189: -3.06627 | F189: 0.01095 | G189: 0.0236176 | H189: yes
A190: COLO4_20921 | B190: Protein kinase, catalytic domain | C190: 0.744374 | D190: 0.0875867 | E190: -3.08724 | F190: 0.0006 | G190: 0.00173133 | H190: yes
A191: COLO4_30838 | B191: Lipase, GDSL | C191: 3.30032 | D191: 0.378591 | E191: -3.1239 | F191: 0.0001 | G191: 0.000343627 | H191: yes
A192: COLO4_38244 | B192: Hypothetical protein | C192: 3.14572 | D192: 0.33208 | E192: -3.24379 | F192: 0.00285 | G192: 0.00702783 | H192: yes
A193: COLO4_06721 | B193: Endonuclease/exonuclease/phosphatase | C193: 0.737048 | D193: 0.0774943 | E193: -3.2496 | F193: 5e-05 | G193: 0.000179896 | H193: yes
A194: COLO4_28800 | B194: Bet v I domain | C194: 995.21 | D194: 96.3655 | E194: -3.36841 | F194: 5e-05 | G194: 0.000179896 | H194: yes
A195: COLO4_20321 | B195: Unnamed protein | C195: 0.789376 | D195: 0.0763311 | E195: -3.37037 | F195: 5e-05 | G195: 0.000179896 | H195: yes
A196: COLO4_27139 | B196: Aerolysin/haemolysin/leukocidin toxin | C196: 0.368761 | D196: 0.035495 | E196: -3.377 | F196: 0.0078 | G196: 0.0174447 | H196: yes
A197: COLO4_09169 | B197: F-box domain, cyclin-like | C197: 0.720597 | D197: 0.0665144 | E197: -3.43746 | F197: 0.0099 | G197: 0.0215957 | H197: yes
A198: COLO4_35426 | B198: Transferase | C198: 0.991147 | D198: 0.0910204 | E198: -3.44484 | F198: 0.00975 | G198: 0.0212961 | H198: yes
A199: COLO4_21706 | B199: UDP-glucuronosyl/UDP-glucosyltransferase | C199: 13.0164 | D199: 1.15204 | E199: -3.49807 | F199: 5e-05 | G199: 0.000179896 | H199: yes
A200: COLO4_19265 | B200: Nucleic acid-binding, OB-fold | C200: 1.29167 | D200: 0.111425 | E200: -3.53509 | F200: 5e-05 | G200: 0.000179896 | H200: yes
A201: COLO4_29327 | B201: Zinc finger, PHD-type | C201: 15.1504 | D201: 1.30047 | E201: -3.54224 | F201: 5e-05 | G201: 0.000179896 | H201: yes
... 43 more rows

Sheet Supplementary Table 24
A1: Supplementay Table 24. List of jute-specific genes (only significantly expressed in fiber cells comapred to seedlings RNA-seq) of Corchorus capsularis (FDR: False Discovery Rate, FDR < 0.05).
A3: Gene Model | B3: Annotation | C3: FPKM value for seedlings | D3: FPKM value for fiber cells | E3: log2 fold change | F3: p_value | G3: q_value | H3: significant
A4: CCACVL1_15501 | B4: Terpene synthase, N-terminal domain | C4: 0 | D4: 0.655922 | E4: inf | F4: 5e-05 | G4: 0.000126572 | H4: yes
A5: CCACVL1_04469 | B5: Prolamin-like domain | C5: 0 | D5: 23.8171 | E5: inf | F5: 5e-05 | G5: 0.000126572 | H5: yes
A6: CCACVL1_04529 | B6: Myb/SANT-like domain | C6: 0 | D6: 0.0200069 | E6: inf | F6: 5e-05 | G6: 0.000126572 | H6: yes
A7: CCACVL1_10691 | B7: Hypothetical protein | C7: 0 | D7: 0.136427 | E7: inf | F7: 0.0004 | G7: 0.000900273 | H7: yes
A8: CCACVL1_15516 | B8: Hypothetical protein | C8: 1.2054 | D8: 49.8426 | E8: 5.3698 | F8: 5e-05 | G8: 0.000126572 | H8: yes
A9: CCACVL1_13902 | B9: Disease resistance protein | C9: 0.0534925 | D9: 1.93314 | E9: 5.17546 | F9: 5e-05 | G9: 0.000126572 | H9: yes
A10: CCACVL1_20348 | B10: Heat shock protein 70 family | C10: 0.0220023 | D10: 0.726326 | E10: 5.04489 | F10: 0.00495 | G10: 0.00929775 | H10: yes
A11: CCACVL1_04125 | B11: SWEET sugar transporter | C11: 8.21922 | D11: 244.44 | E11: 4.89434 | F11: 5e-05 | G11: 0.000126572 | H11: yes
A12: CCACVL1_24258 | B12: F-box domain, cyclin-like | C12: 0.0412066 | D12: 1.03809 | E12: 4.65492 | F12: 5e-05 | G12: 0.000126572 | H12: yes
A13: CCACVL1_29210 | B13: F-box domain, cyclin-like | C13: 0.249151 | D13: 6.22148 | E13: 4.64217 | F13: 5e-05 | G13: 0.000126572 | H13: yes
A14: CCACVL1_29857 | B14: Protein kinase, catalytic domain | C14: 0.081358 | D14: 1.65027 | E14: 4.34228 | F14: 5e-05 | G14: 0.000126572 | H14: yes
A15: CCACVL1_19774 | B15: Hypothetical protein | C15: 0.16837 | D15: 3.18643 | E15: 4.24224 | F15: 5e-05 | G15: 0.000126572 | H15: yes
A16: CCACVL1_16060 | B16: Nucleic acid-binding, OB-fold | C16: 0.0401911 | D16: 0.757273 | E16: 4.23586 | F16: 5e-05 | G16: 0.000126572 | H16: yes
A17: CCACVL1_04800 | B17: Terpene synthase, metal-binding domain | C17: 0.402179 | D17: 7.14526 | E17: 4.15108 | F17: 5e-05 | G17: 0.000126572 | H17: yes
A18: CCACVL1_14756 | B18: Zinc knuckle CX2CX4HX4C | C18: 0.0257289 | D18: 0.362775 | E18: 3.81761 | F18: 0.00275 | G18: 0.00543209 | H18: yes
A19: CCACVL1_23620 | B19: Oxoglutarate/iron-dependent dioxygenase | C19: 2.86307 | D19: 37.3828 | E19: 3.70674 | F19: 5e-05 | G19: 0.000126572 | H19: yes
A20: CCACVL1_28132 | B20: Ankyrin repeat | C20: 4.43784 | D20: 51.1007 | E20: 3.52541 | F20: 5e-05 | G20: 0.000126572 | H20: yes
A21: CCACVL1_05746 | B21: Hypothetical protein | C21: 0.0314894 | D21: 0.350381 | E21: 3.47598 | F21: 0.00575 | G21: 0.0106899 | H21: yes
A22: CCACVL1_04181 | B22: F-box domain, cyclin-like | C22: 2.04805 | D22: 21.8224 | E22: 3.41349 | F22: 5e-05 | G22: 0.000126572 | H22: yes
A23: CCACVL1_09630 | B23: Domain of unknown function DUF4283 | C23: 0.431494 | D23: 4.26238 | E23: 3.30425 | F23: 5e-05 | G23: 0.000126572 | H23: yes
A24: CCACVL1_29043 | B24: NB-ARC | C24: 0.181607 | D24: 1.75157 | E24: 3.26975 | F24: 0.0002 | G24: 0.000468746 | H24: yes
A25: CCACVL1_01703 | B25: Hypothetical protein | C25: 0.0453815 | D25: 0.369223 | E25: 3.02432 | F25: 0.00685 | G25: 0.0125565 | H25: yes
A26: CCACVL1_04803 | B26: Terpene synthase, metal-binding domain | C26: 4.53759 | D26: 33.0106 | E26: 2.86293 | F26: 5e-05 | G26: 0.000126572 | H26: yes
A27: CCACVL1_07717 | B27: dTDP-4-dehydrorhamnose reductase | C27: 0.340057 | D27: 2.45343 | E27: 2.85095 | F27: 5e-05 | G27: 0.000126572 | H27: yes
A28: CCACVL1_10291 | B28: Hypothetical protein | C28: 0.749445 | D28: 5.03469 | E28: 2.74801 | F28: 5e-05 | G28: 0.000126572 | H28: yes
A29: CCACVL1_15179 | B29: F-box domain, cyclin-like | C29: 0.18656 | D29: 1.20949 | E29: 2.69668 | F29: 5e-05 | G29: 0.000126572 | H29: yes
A30: CCACVL1_01437 | B30: Hypothetical protein | C30: 0.121467 | D30: 0.786595 | E30: 2.69506 | F30: 0.0054 | G30: 0.0100863 | H30: yes
A31: CCACVL1_19939 | B31: UDP-glucuronosyl/UDP-glucosyltransferase | C31: 0.802758 | D31: 5.04692 | E31: 2.65237 | F31: 5e-05 | G31: 0.000126572 | H31: yes
A32: CCACVL1_02370 | B32: GNAT domain | C32: 0.516745 | D32: 3.12721 | E32: 2.59735 | F32: 0.00905 | G32: 0.0161438 | H32: yes
A33: CCACVL1_15585 | B33: Protein kinase, catalytic domain | C33: 0.3222 | D33: 1.83874 | E33: 2.51269 | F33: 5e-05 | G33: 0.000126572 | H33: yes
A34: CCACVL1_13050 | B34: F-box domain, cyclin-like | C34: 0.371863 | D34: 2.07109 | E34: 2.47754 | F34: 5e-05 | G34: 0.000126572 | H34: yes
A35: CCACVL1_19842 | B35: Domain of unknown function DUF4283 | C35: 0.343225 | D35: 1.76632 | E35: 2.36352 | F35: 5e-05 | G35: 0.000126572 | H35: yes
A36: CCACVL1_05264 | B36: Hypothetical protein | C36: 8.84081 | D36: 44.9885 | E36: 2.34731 | F36: 5e-05 | G36: 0.000126572 | H36: yes
A37: CCACVL1_06349 | B37: Unnamed protein | C37: 0.521874 | D37: 2.65366 | E37: 2.34621 | F37: 5e-05 | G37: 0.000126572 | H37: yes
A38: CCACVL1_21136 | B38: Ankyrin repeat | C38: 0.0756952 | D38: 0.355041 | E38: 2.22971 | F38: 0.0003 | G38: 0.000686711 | H38: yes
A39: CCACVL1_21057 | B39: Hypothetical protein | C39: 0.213033 | D39: 0.957929 | E39: 2.16884 | F39: 5e-05 | G39: 0.000126572 | H39: yes
A40: CCACVL1_04298 | B40: F-box domain, cyclin-like | C40: 3.67275 | D40: 16.4918 | E40: 2.16681 | F40: 5e-05 | G40: 0.000126572 | H40: yes
A41: CCACVL1_07794 | B41: Retrotransposon gag protein | C41: 0.0662455 | D41: 0.290103 | E41: 2.13067 | F41: 0.00105 | G41: 0.0022146 | H41: yes
A42: CCACVL1_12440 | B42: Pectinesterase inhibitor | C42: 0.140386 | D42: 0.595163 | E42: 2.08388 | F42: 0.0213 | G42: 0.0352721 | H42: yes
A43: CCACVL1_15980 | B43: Wall-associated receptor kinase galacturonan-binding domain | C43: 1.09049 | D43: 4.57187 | E43: 2.0678 | F43: 5e-05 | G43: 0.000126572 | H43: yes
A44: CCACVL1_25394 | B44: F-box domain, cyclin-like | C44: 1.55903 | D44: 6.29715 | E44: 2.01405 | F44: 5e-05 | G44: 0.000126572 | H44: yes
A45: CCACVL1_15611 | B45: F-box domain, cyclin-like | C45: 0.246165 | D45: 0.978322 | E45: 1.99068 | F45: 0.0001 | G45: 0.000244699 | H45: yes
A46: CCACVL1_16453 | B46: Unnamed protein | C46: 0.274015 | D46: 1.07703 | E46: 1.97474 | F46: 0.0013 | G46: 0.00270472 | H46: yes
A47: CCACVL1_06950 | B47: Protein of unknown function DUF573 | C47: 2.04158 | D47: 7.93745 | E47: 1.95899 | F47: 5e-05 | G47: 0.000126572 | H47: yes
A48: CCACVL1_16590 | B48: Cytochrome P450 | C48: 0.198157 | D48: 0.746858 | E48: 1.91419 | F48: 0.0003 | G48: 0.000686711 | H48: yes
A49: CCACVL1_16358 | B49: F-box domain, cyclin-like | C49: 1.34127 | D49: 4.85266 | E49: 1.85518 | F49: 5e-05 | G49: 0.000126572 | H49: yes
A50: CCACVL1_20231 | B50: Reverse transcriptase | C50: 10.3096 | D50: 37.1503 | E50: 1.84939 | F50: 0.0037 | G50: 0.00713139 | H50: yes
A51: CCACVL1_02110 | B51: Unnamed protein | C51: 0.892681 | D51: 3.21587 | E51: 1.84899 | F51: 5e-05 | G51: 0.000126572 | H51: yes
A52: CCACVL1_30953 | B52: 2Fe-2S ferredoxin-type domain | C52: 62.5764 | D52: 223.747 | E52: 1.83818 | F52: 5e-05 | G52: 0.000126572 | H52: yes
A53: CCACVL1_18627 | B53: Transposase, Ptta/En/Spm, plant | C53: 3.913 | D53: 13.7309 | E53: 1.81107 | F53: 5e-05 | G53: 0.000126572 | H53: yes
A54: CCACVL1_16328 | B54: Phospholipase-like, arabidopsis | C54: 0.0695723 | D54: 0.242795 | E54: 1.80315 | F54: 0.0023 | G54: 0.00460056 | H54: yes
A55: CCACVL1_05896 | B55: Hypothetical protein | C55: 0.193537 | D55: 0.654167 | E55: 1.75705 | F55: 0.0113 | G55: 0.0197806 | H55: yes
A56: CCACVL1_21423 | B56: Disease resistance protein | C56: 0.429718 | D56: 1.45223 | E56: 1.75681 | F56: 0.00215 | G56: 0.0043201 | H56: yes
A57: CCACVL1_27666 | B57: Aldo/keto reductase | C57: 11.3417 | D57: 38.0208 | E57: 1.74516 | F57: 5e-05 | G57: 0.000126572 | H57: yes
A58: CCACVL1_12491 | B58: Armadillo repeat-containing protein 3 and Serine/threonine-protein kinase CTR1 | C58: 0.216682 | D58: 0.721411 | E58: 1.73524 | F58: 0.00145 | G58: 0.00299562 | H58: yes
A59: CCACVL1_00762 | B59: Cytochrome P450 | C59: 2.7194 | D59: 8.91423 | E59: 1.71282 | F59: 5e-05 | G59: 0.000126572 | H59: yes
A60: CCACVL1_12006 | B60: F-box domain, cyclin-like | C60: 6.11679 | D60: 19.7592 | E60: 1.69168 | F60: 5e-05 | G60: 0.000126572 | H60: yes
A61: CCACVL1_15453 | B61: F-box domain, cyclin-like | C61: 6.10636 | D61: 19.0238 | E61: 1.63942 | F61: 5e-05 | G61: 0.000126572 | H61: yes
A62: CCACVL1_21505 | B62: Transposase, Ptta/En/Spm, plant | C62: 3.75315 | D62: 11.5406 | E62: 1.62055 | F62: 5e-05 | G62: 0.000126572 | H62: yes
A63: CCACVL1_19988 | B63: Glycoside hydrolase, family 17 | C63: 3.70093 | D63: 11.0265 | E63: 1.57502 | F63: 5e-05 | G63: 0.000126572 | H63: yes
A64: CCACVL1_29730 | B64: No apical meristem (NAM) protein | C64: 0.12304 | D64: 0.363636 | E64: 1.56336 | F64: 0.0312 | G64: 0.0497529 | H64: yes
A65: CCACVL1_04053 | B65: Gnk2-homologous domain | C65: 0.0612821 | D65: 0.180812 | E65: 1.56095 | F65: 0.02515 | G65: 0.0409238 | H65: yes
A66: CCACVL1_11968 | B66: F-box domain, cyclin-like | C66: 0.0791484 | D66: 0.232496 | E66: 1.55457 | F66: 0.0227 | G66: 0.0373205 | H66: yes
A67: CCACVL1_09791 | B67: Cation-transporting P-type ATPase | C67: 205.924 | D67: 598.514 | E67: 1.53927 | F67: 5e-05 | G67: 0.000126572 | H67: yes
A68: CCACVL1_16116 | B68: Unnamed protein | C68: 5.8095 | D68: 16.5253 | E68: 1.50819 | F68: 5e-05 | G68: 0.000126572 | H68: yes
A69: CCACVL1_10624 | B69: F-box domain, cyclin-like | C69: 0.670733 | D69: 1.85129 | E69: 1.46472 | F69: 0.00025 | G69: 0.000578094 | H69: yes
A70: CCACVL1_22603 | B70: Peptidase M10, metallopeptidase | C70: 0.442633 | D70: 1.19553 | E70: 1.43347 | F70: 0.00035 | G70: 0.000793229 | H70: yes
A71: CCACVL1_06264 | B71: ABC transporter, transmembrane domain | C71: 6.88069 | D71: 18.0511 | E71: 1.39146 | F71: 5e-05 | G71: 0.000126572 | H71: yes
A72: CCACVL1_04297 | B72: F-box domain, cyclin-like | C72: 3.03352 | D72: 7.65274 | E72: 1.33498 | F72: 5e-05 | G72: 0.000126572 | H72: yes
A73: CCACVL1_13390 | B73: Hypothetical protein | C73: 5.05693 | D73: 12.5335 | E73: 1.30946 | F73: 5e-05 | G73: 0.000126572 | H73: yes
A74: CCACVL1_23242 | B74: Cation-transporting P-type ATPase | C74: 0.631637 | D74: 1.56328 | E74: 1.3074 | F74: 5e-05 | G74: 0.000126572 | H74: yes
A75: CCACVL1_29484 | B75: Retrotransposon gag protein | C75: 2.15341 | D75: 5.29851 | E75: 1.29896 | F75: 5e-05 | G75: 0.000126572 | H75: yes
A76: CCACVL1_18272 | B76: Protein of unknown function DUF594 | C76: 0.138677 | D76: 0.337444 | E76: 1.28292 | F76: 0.0126 | G76: 0.0218183 | H76: yes
A77: CCACVL1_19890 | B77: Transposase, Ptta/En/Spm, plant | C77: 3.21287 | D77: 7.71238 | E77: 1.26331 | F77: 5e-05 | G77: 0.000126572 | H77: yes
A78: CCACVL1_23931 | B78: CRAL-TRIO domain | C78: 0.572844 | D78: 1.35138 | E78: 1.23822 | F78: 0.0174 | G78: 0.0293267 | H78: yes
A79: CCACVL1_26113 | B79: Phospholipase-like, arabidopsis | C79: 2.44765 | D79: 5.59264 | E79: 1.19214 | F79: 5e-05 | G79: 0.000126572 | H79: yes
A80: CCACVL1_24091 | B80: Protein kinase-like domain | C80: 23.7979 | D80: 53.4602 | E80: 1.16763 | F80: 5e-05 | G80: 0.000126572 | H80: yes
A81: CCACVL1_15587 | B81: Hypothetical protein | C81: 17.5626 | D81: 39.3114 | E81: 1.16244 | F81: 5e-05 | G81: 0.000126572 | H81: yes
A82: CCACVL1_25343 | B82: Myb/SANT-like domain | C82: 18.2069 | D82: 29.989 | E82: 1.13472 | F82: 0.004015 | G82: 0.001637 | H82: yes
A83: CCACVL1_03967 | B83: Reverse transcriptase | C83: 67.147 | D83: 144.156 | E83: 1.10224 | F83: 5e-05 | G83: 0.000126572 | H83: yes
A84: CCACVL1_16677 | B84: F-box domain, cyclin-like | C84: 0.525613 | D84: 1.05257 | E84: 1.00185 | F84: 0.0072 | G84: 0.0131454 | H84: yes
A85: CCACVL1_29042 | B85: Reverse transcriptase | C85: 11.713 | D85: 22.8936 | E85: 0.966832 | F85: 5e-05 | G85: 0.000126572 | H85: yes
A86: CCACVL1_12049 | B86: F-box domain, cyclin-like | C86: 2.15409 | D86: 4.1547 | E86: 0.947665 | F86: 0.00155 | G86: 0.00318757 | H86: yes
A87: CCACVL1_22790 | B87: FBD | C87: 2.49798 | D87: 4.69436 | E87: 0.910164 | F87: 0.00035 | G87: 0.000793229 | H87: yes
A88: CCACVL1_10364 | B88: Non-haem dioxygenase N-terminal domain | C88: 3.71507 | D88: 6.94775 | E88: 0.903157 | F88: 0.00105 | G88: 0.0022146 | H88: yes
A89: CCACVL1_22455 | B89: No apical meristem (NAM) protein | C89: 3.86474 | D89: 6.89748 | E89: 0.835697 | F89: 0.0017 | G89: 0.00347206 | H89: yes
A90: CCACVL1_06943 | B90: FBD | C90: 2.91339 | D90: 5.07919 | E90: 0.801899 | F90: 0.0038 | G90: 0.00730646 | H90: yes
A91: CCACVL1_00360 | B91: Hypothetical protein | C91: 1.96631 | D91: 3.12061 | E91: 0.666335 | F91: 0.0113 | G91: 0.0197806 | H91: yes
A92: CCACVL1_13141 | B92: Unnamed protein | C92: 39.0413 | D92: 57.8851 | E92: 0.568188 | F92: 0.007 | G92: 0.0128048 | H92: yes
A93: CCACVL1_22173 | B93: F-box domain, cyclin-like | C93: 12.7509 | D93: 18.6788 | E93: 0.550803 | F93: 0.0167 | G93: 0.028247 | H93: yes
A94: CCACVL1_19850 | B94: Hypothetical protein | C94: 23.538 | D94: 32.5957 | E94: 0.469686 | F94: 0.0241 | G94: 0.0393864 | H94: yes
A95: CCACVL1_25210 | B95: Heat shock protein 70 family | C95: 147.288 | D95: 105.178 | E95: -0.485816 | F95: 0.00815 | G95: 0.014675 | H95: yes
A96: CCACVL1_10590 | B96: Serine-threonine/tyrosine-protein kinase catalytic domain | C96: 19.5491 | D96: 12.7606 | E96: -0.615406 | F96: 0.01635 | G96: 0.0277062 | H96: yes
A97: CCACVL1_29829 | B97: Transposase, Ptta/En/Spm, plant | C97: 8.11438 | D97: 5.07695 | E97: -0.676519 | F97: 0.0042 | G97: 0.00799472 | H97: yes
A98: CCACVL1_23930 | B98: CRAL-TRIO domain | C98: 1.44865 | D98: 0.851073 | E98: -0.767359 | F98: 0.0235 | G98: 0.0384796 | H98: yes
A99: CCACVL1_18138 | B99: Zinc finger, RING-type | C99: 1.3317 | D99: 0.750218 | E99: -0.827882 | F99: 0.03055 | G99: 0.0488235 | H99: yes
A100: CCACVL1_12170 | B100: Thaumatin | C100: 14.8134 | D100: 8.22265 | E100: -0.849225 | F100: 0.00055 | G100: 0.00121389 | H100: yes
A101: CCACVL1_13607 | B101: Protein of unknown function DUF810 | C101: 4.15477 | D101: 2.27496 | E101: -0.868927 | F101: 0.0016 | G101: 0.0032822 | H101: yes
A102: CCACVL1_06399 | B102: Terpene synthase, N-terminal domain | C102: 46.5574 | D102: 25.1575 | E102: -0.888024 | F102: 0.0241 | G102: 0.0393864 | H102: yes
A103: CCACVL1_17352 | B103: Transcription factor TFIIB | C103: 15.3331 | D103: 8.12163 | E103: -0.916806 | F103: 5e-05 | G103: 0.000126572 | H103: yes
A104: CCACVL1_05894 | B104: Integrase, catalytic core | C104: 4.38328 | D104: 2.30693 | E104: -0.926037 | F104: 0.00095 | G104: 0.00202093 | H104: yes
A105: CCACVL1_04334 | B105: Transcription factor GRAS | C105: 3.84675 | D105: 1.96641 | E105: -0.968078 | F105: 0.0018 | G105: 0.00366268 | H105: yes
A106: CCACVL1_19066 | B106: Unnamed protein | C106: 0.639098 | D106: 0.316549 | E106: -1.01361 | F106: 0.0097 | G106: 0.0172102 | H106: yes
A107: CCACVL1_21633 | B107: Reverse transcriptase | C107: 5.47703 | D107: 2.66305 | E107: -1.04031 | F107: 0.0003 | G107: 0.000686711 | H107: yes
A108: CCACVL1_22605 | B108: Peptidase M10, metallopeptidase | C108: 15.6649 | D108: 7.50497 | E108: -1.06162 | F108: 5e-05 | G108: 0.000126572 | H108: yes
A109: CCACVL1_12173 | B109: Thaumatin | C109: 1.57821 | D109: 0.726371 | E109: -1.11951 | F109: 0.00645 | G109: 0.0118752 | H109: yes
A110: CCACVL1_28931 | B110: Pentatricopeptide repeat | C110: 2.91176 | D110: 1.33422 | E110: -1.12589 | F110: 0.0211 | G110: 0.0349714 | H110: yes
A111: CCACVL1_29032 | B111: Cation-transporting P-type ATPase | C111: 0.622117 | D111: 0.278877 | E111: -1.15755 | F111: 0.00105 | G111: 0.0022146 | H111: yes
A112: CCACVL1_04536 | B112: Hypothetical protein | C112: 14.4264 | D112: 6.43386 | E112: -1.16496 | F112: 0.0001 | G112: 0.000244699 | H112: yes
A113: CCACVL1_00441 | B113: Reverse transcriptase | C113: 4.40527 | D113: 1.94845 | E113: -1.1769 | F113: 5e-05 | G113: 0.000126572 | H113: yes
A114: CCACVL1_30065 | B114: Transposase, Ptta/En/Spm, plant | C114: 2.55611 | D114: 1.12523 | E114: -1.18373 | F114: 0.0102 | G114: 0.0180197 | H114: yes
A115: CCACVL1_28435 | B115: Cullin, N-terminal | C115: 13.1737 | D115: 5.74508 | E115: -1.19726 | F115: 5e-05 | G115: 0.000126572 | H115: yes
A116: CCACVL1_18780 | B116: NB-ARC | C116: 0.421743 | D116: 0.183866 | E116: -1.19771 | F116: 0.00225 | G116: 0.00450894 | H116: yes
A117: CCACVL1_20352 | B117: Heat shock protein 70 family | C117: 101.154 | D117: 43.0273 | E117: -1.23323 | F117: 5e-05 | G117: 0.000126572 | H117: yes
A118: CCACVL1_26956 | B118: ATP-citrate synthase beta chain protein 2 | C118: 0.706394 | D118: 0.294703 | E118: -1.26121 | F118: 0.01225 | G118: 0.0212748 | H118: yes
A119: CCACVL1_03050 | B119: Heat shock protein 70 family | C119: 1.57528 | D119: 0.63242 | E119: -1.31665 | F119: 0.00015 | G119: 0.00035801 | H119: yes
A120: CCACVL1_13236 | B120: Gnk2-homologous domain | C120: 0.506017 | D120: 0.199272 | E120: -1.34445 | F120: 0.00445 | G120: 0.00842517 | H120: yes
A121: CCACVL1_21901 | B121: Protein kinase, catalytic domain | C121: 1.85846 | D121: 0.730232 | E121: -1.34768 | F121: 5e-05 | G121: 0.000126572 | H121: yes
A122: CCACVL1_10069 | B122: Heat shock protein 70 family | C122: 1.39464 | D122: 0.54614 | E122: -1.35255 | F122: 0.00025 | G122: 0.000578094 | H122: yes
A123: CCACVL1_06873 | B123: nbs-lrr resistance protein | C123: 1.85591 | D123: 0.705699 | E123: -1.395 | F123: 0.0006 | G123: 0.00131613 | H123: yes
A124: CCACVL1_19938 | B124: UDP-glucuronosyl/UDP-glucosyltransferase | C124: 3.34408 | D124: 1.24981 | E124: -1.4199 | F124: 5e-05 | G124: 0.000126572 | H124: yes
A125: CCACVL1_25342 | B125: G-box binding, MFMR | C125: 17.5272 | D125: 6.46285 | E125: -1.43935 | F125: 0.00715 | G125: 0.0130628 | H125: yes
A126: CCACVL1_15610 | B126: F-box domain, cyclin-like | C126: 0.20745 | D126: 0.0764673 | E126: -1.43985 | F126: 0.00785 | G126: 0.0141771 | H126: yes
A127: CCACVL1_04032 | B127: Hypothetical protein | C127: 11.7741 | D127: 4.33951 | E127: -1.44002 | F127: 5e-05 | G127: 0.000126572 | H127: yes
A128: CCACVL1_05533 | B128: THO complex, subunitTHOC2, C-terminal | C128: 0.586567 | D128: 0.208932 | E128: -1.48926 | F128: 5e-05 | G128: 0.000126572 | H128: yes
A129: CCACVL1_12494 | B129: Domain of unknown function DUF4283 | C129: 3.64526 | D129: 1.27512 | E129: -1.51539 | F129: 5e-05 | G129: 0.000126572 | H129: yes
A130: CCACVL1_28402 | B130: retrotransposon protein | C130: 3.67247 | D130: 1.21892 | E130: -1.59114 | F130: 5e-05 | G130: 0.000126572 | H130: yes
A131: CCACVL1_16032 | B131: Unnamed protein | C131: 1.1171 | D131: 0.364565 | E131: -1.61551 | F131: 5e-05 | G131: 0.000126572 | H131: yes
A132: CCACVL1_20078 | B132: Proteinase inhibitor I3, Kunitz legume | C132: 63.8348 | D132: 19.8656 | E132: -1.68407 | F132: 5e-05 | G132: 0.000126572 | H132: yes
A133: CCACVL1_25816 | B133: Hypothetical protein | C133: 5.53432 | D133: 1.5749 | E133: -1.81315 | F133: 5e-05 | G133: 0.000126572 | H133: yes
A134: CCACVL1_12409 | B134: Kelch repeat type 1 | C134: 2.20256 | D134: 0.621755 | E134: -1.82476 | F134: 5e-05 | G134: 0.000126572 | H134: yes
A135: CCACVL1_23289 | B135: G-box binding, MFMR | C135: 46.4916 | D135: 12.6679 | E135: -1.87579 | F135: 0.00015 | G135: 0.00035801 | H135: yes
A136: CCACVL1_09121 | B136: Protein kinase, catalytic domain | C136: 21.866 | D136: 5.93925 | E136: -1.88034 | F136: 5e-05 | G136: 0.000126572 | H136: yes
A137: CCACVL1_07575 | B137: Pyridine nucleotide-disulphide oxidoreductase, NAD-binding domain | C137: 12.1026 | D137: 3.19994 | E137: -1.9192 | F137: 5e-05 | G137: 0.000126572 | H137: yes
A138: CCACVL1_16279 | B138: Armadillo | C138: 0.305577 | D138: 0.0777282 | E138: -1.97503 | F138: 0.00395 | G138: 0.00756662 | H138: yes
A139: CCACVL1_16613 | B139: Proteinase inhibitor I3, Kunitz legume | C139: 1321.65 | D139: 329.395 | E139: -2.00445 | F139: 5e-05 | G139: 0.000126572 | H139: yes
A140: CCACVL1_04283 | B140: Unnamed protein | C140: 0.388155 | D140: 0.0932656 | E140: -2.05722 | F140: 0.0048 | G140: 0.00903317 | H140: yes
A141: CCACVL1_01896 | B141: Transposon, En/Spm-like | C141: 1.15569 | D141: 0.26172 | E141: -2.14266 | F141: 5e-05 | G141: 0.000126572 | H141: yes
A142: CCACVL1_25544 | B142: Integrase, catalytic core | C142: 0.436425 | D142: 0.0987541 | E142: -2.14382 | F142: 5e-05 | G142: 0.000126572 | H142: yes
A143: CCACVL1_18713 | B143: Ankyrin repeat | C143: 3.37571 | D143: 0.748994 | E143: -2.17217 | F143: 5e-05 | G143: 0.000126572 | H143: yes
A144: CCACVL1_03557 | B144: Endonuclease/exonuclease/phosphatase | C144: 6.16299 | D144: 1.36279 | E144: -2.17706 | F144: 5e-05 | G144: 0.000126572 | H144: yes
A145: CCACVL1_10072 | B145: Heat shock protein 70 family | C145: 12.6231 | D145: 2.78468 | E145: -2.18049 | F145: 5e-05 | G145: 0.000126572 | H145: yes
A146: CCACVL1_21404 | B146: Pollen Ole e 1 allergen/extensin | C146: 0.251183 | D146: 0.0495385 | E146: -2.34211 | F146: 0.0102 | G146: 0.0180197 | H146: yes
A147: CCACVL1_25196 | B147: Root hair defective 3 GTP-binding | C147: 7.09019 | D147: 1.31629 | E147: -2.42935 | F147: 5e-05 | G147: 0.000126572 | H147: yes
A148: CCACVL1_14396 | B148: Proteinase inhibitor I13, potato inhibitor I | C148: 22.4698 | D148: 4.0697 | E148: -2.46499 | F148: 5e-05 | G148: 0.000126572 | H148: yes
A149: CCACVL1_26634 | B149: Rhamnogalacturonate lyase | C149: 0.338597 | D149: 0.0594208 | E149: -2.51053 | F149: 0.0004 | G149: 0.000900273 | H149: yes
A150: CCACVL1_22969 | B150: Homocysteine S-methyltransferase | C150: 0.63103 | D150: 0.110025 | E150: -2.51988 | F150: 0.0002 | G150: 0.000468746 | H150: yes
A151: CCACVL1_18634 | B151: Phosphatase PHOSPHO-type | C151: 3.24096 | D151: 0.481181 | E151: -2.75177 | F151: 5e-05 | G151: 0.000126572 | H151: yes
A152: CCACVL1_12244 | B152: ABC-2 type transporter | C152: 52.642 | D152: 7.71458 | E152: -2.77056 | F152: 5e-05 | G152: 0.000126572 | H152: yes
A153: CCACVL1_13330 | B153: Alcohol dehydrogenase superfamily, zinc-type | C153: 140.392 | D153: 19.3687 | E153: -2.85766 | F153: 0.00075 | G153: 0.00162185 | H153: yes
A154: CCACVL1_30528 | B154: C1-like | C154: 1.2891 | D154: 0.164553 | E154: -2.96974 | F154: 0.00035 | G154: 0.000793229 | H154: yes
A155: CCACVL1_11858 | B155: Cation-transporting P-type ATPase | C155: 122.17 | D155: 15.2627 | E155: -3.0008 | F155: 5e-05 | G155: 0.000126572 | H155: yes
A156: CCACVL1_15865 | B156: Phospholipase-like, arabidopsis | C156: 4.50101 | D156: 0.54641 | E156: -3.04219 | F156: 5e-05 | G156: 0.000126572 | H156: yes
A157: CCACVL1_12245 | B157: ABC-2 type transporter | C157: 0.420557 | D157: 0.046634 | E157: -3.17285 | F157: 5e-05 | G157: 0.000126572 | H157: yes
A158: CCACVL1_25510 | B158: Nucleic acid-binding, OB-fold | C158: 1.9528 | D158: 0.215057 | E158: -3.18276 | F158: 5e-05 | G158: 0.000126572 | H158: yes
A159: CCACVL1_25412 | B159: Hypothetical protein | C159: 138.138 | D159: 14.7699 | E159: -3.22537 | F159: 5e-05 | G159: 0.000126572 | H159: yes
A160: CCACVL1_12816 | B160: Domain of unknown function DUF4283 | C160: 3.28682 | D160: 0.342326 | E160: -3.26325 | F160: 5e-05 | G160: 0.000126572 | H160: yes
A161: CCACVL1_22269 | B161: Hypothetical protein | C161: 1.29781 | D161: 0.126995 | E161: -3.35324 | F161: 0.002 | G161: 0.00404038 | H161: yes
A162: CCACVL1_07796 | B162: Unnamed protein | C162: 7.05389 | D162: 0.685154 | E162: -3.36392 | F162: 5e-05 | G162: 0.000126572 | H162: yes
A163: CCACVL1_30901 | B163: Transposase (putative), gypsy type | C163: 5.94213 | D163: 0.566479 | E163: -3.39089 | F163: 5e-05 | G163: 0.000126572 | H163: yes
A164: CCACVL1_24685 | B164: Alpha crystallin/Hsp20 domain | C164: 1.16545 | D164: 0.0908104 | E164: -3.68189 | F164: 0.0134 | G164: 0.0230871 | H164: yes
A165: CCACVL1_02838 | B165: Retrotransposon gag protein | C165: 0.215679 | D165: 0.0160503 | E165: -3.74821 | F165: 0.0018 | G165: 0.00366268 | H165: yes
A166: CCACVL1_15468 | B166: Protein of unknown function DUF594 | C166: 0.914746 | D166: 0.0639839 | E166: -3.83759 | F166: 5e-05 | G166: 0.000126572 | H166: yes
A167: CCACVL1_18633 | B167: Phosphatase PHOSPHO-type | C167: 81.5155 | D167: 5.6977 | E167: -3.83862 | F167: 5e-05 | G167: 0.000126572 | H167: yes
A168: CCACVL1_04834 | B168: SWEET sugar transporter | C168: 1.82549 | D168: 0.120796 | E168: -3.91763 | F168: 5e-05 | G168: 0.000126572 | H168: yes
A169: CCACVL1_03574 | B169: Protein of unknown function DUF594 | C169: 0.62245 | D169: 0.0388025 | E169: -4.00373 | F169: 0.0015 | G169: 0.00309066 | H169: yes
A170: CCACVL1_14581 | B170: Hypothetical protein | C170: 2.15258 | D170: 0.129299 | E170: -4.05729 | F170: 0.00095 | G170: 0.00202093 | H170: yes
A171: CCACVL1_17436 | B171: Protein kinase, catalytic domain | C171: 0.54553 | D171: 0.0320932 | E171: -4.08732 | F171: 5e-05 | G171: 0.000126572 | H171: yes
A172: CCACVL1_24307 | B172: Hypothetical protein | C172: 7.28022 | D172: 0.379209 | E172: -4.26292 | F172: 5e-05 | G172: 0.000126572 | H172: yes
A173: CCACVL1_29137 | B173: Domain of unknown function DUF4283 | C173: 2.72035 | D173: 0.124587 | E173: -4.44857 | F173: 5e-05 | G173: 0.000126572 | H173: yes
A174: CCACVL1_06649 | B174: Hypothetical protein | C174: 11.5898 | D174: 0.484459 | E174: -4.58034 | F174: 5e-05 | G174: 0.000126572 | H174: yes
A175: CCACVL1_21760 | B175: Lipoxygenase | C175: 0.384723 | D175: 0.0123166 | E175: -4.96515 | F175: 0.0003 | G175: 0.000686711 | H175: yes
A176: CCACVL1_10366 | B176: Non-haem dioxygenase N-terminal domain | C176: 15.545 | D176: 0.432166 | E176: -5.16872 | F176: 5e-05 | G176: 0.000126572 | H176: yes
A177: CCACVL1_06110 | B177: Hypothetical protein | C177: 2.21032 | D177: 0.056702 | E177: -5.28471 | F177: 0.0198 | G177: 0.0330094 | H177: yes
A178: CCACVL1_13927 | B178: Fatty acid hydroxylase | C178: 15.702 | D178: 0.282201 | E178: -5.79808 | F178: 5e-05 | G178: 0.000126572 | H178: yes
A179: CCACVL1_24193 | B179: Transferase | C179: 1.56643 | D179: 0.0271512 | E179: -5.85032 | F179: 0.0189 | G179: 0.031652 | H179: yes
A180: CCACVL1_22270 | B180: desiccation-related protein PCC13-62-like | C180: 11.7546 | D180: 0.163895 | E180: -6.1643 | F180: 5e-05 | G180: 0.000126572 | H180: yes
A181: CCACVL1_20223 | B181: Unnamed protein | C181: 27.3511 | D181: 0.0845781 | E181: -8.3371 | F181: 5e-05 | G181: 0.000126572 | H181: yes
A182: CCACVL1_27961 | B182: Oxoglutarate/iron-dependent dioxygenase | C182: 102.905 | D182: 0.214387 | E182: -8.90687 | F182: 5e-05 | G182: 0.000126572 | H182: yes
A183: CCACVL1_03209 | B183: Glutathione S-transferase, C-terminal | C183: 133.021 | D183: 0.218115 | E183: -9.25236 | F183: 5e-05 | G183: 0.000126572 | H183: yes
A184: CCACVL1_24667 | B184: Hypothetical protein | C184: 116.448 | D184: 0.166393 | E184: -9.45087 | F184: 5e-05 | G184: 0.000126572 | H184: yes
A185: CCACVL1_13825 | B185: Quinonprotein alcohol dehydrogenase-like-superfamily | C185: 51.8499 | D185: 0.0271586 | E185: -10.8987 | F185: 0.0002 | G185: 0.000468746 | H185: yes
A186: CCACVL1_24191 | B186: Transferase | C186: 14.764 | D186: 0.00396109 | E186: -11.8639 | F186: 0.0078 | G186: 0.0140941 | H186: yes
A187: CCACVL1_03210 | B187: Glutathione S-transferase, C-terminal-like | C187: 44.4635 | D187: 0.00882215 | E187: -12.2992 | F187: 0.00745 | G187: 0.0135518 | H187: yes
A188: CCACVL1_23308 | B188: Oxoglutarate/iron-dependent dioxygenase | C188: 135.592 | D188: 0.0262748 | E188: -12.3333 | F188: 0.01295 | G188: 0.0223742 | H188: yes

Sheet Supplementary Table 25
A1: Supplementary Table 25. Statistics of (a) Anchor and (b) Colinear blocks of C. capsularis and C. olitorius linkage groups
A3: (a)
A4: Anchor statistics | B4: Species | C4: Anchors | D4: Gene coverage (%) | E4: Genome coverage (%) | F4: Length distribution
F5: <100 bp | G5: 100 bp – 1 kb | H5: 1 kb – 10 kb | I5: > 10 kb
B6: C. capsularis | C6: 14,325 | D6: 59 | E6: 33 | F6: 14 | G6: 2,040 | H6: 10,549 | I6: 1,722
B7: C. olitorius | C7: 14,325 | D7: 56 | E7: 22 | F7: 14 | G7: 2,141 | H7: 10,738 | I7: 1,432
A9: (b)
A10: Block statistics | B10: Species | C10: Anchors | D10: Genome coverage (%) | E10: Double coverage (%) | F10: Length distribution
F11: <100 kb | G11: 100 kb – 1 Mb | H11: 1Mb – 10 Mb | I11: > 10 Mb
B12: C. capsularis | C12: 160 | D12: 65 | E12: 17 | F12: 10 | G12: 103 | H12: 47 | I12: 0
B13: C. olitorius | C13: 160 | D13: 58 | E13: 14 | F13: 5 | G13: 92 | H13: 63 | I13: 0

Sheet Supplementary Table 26
A1: Supplementary Table 26. List of syntenic blocks between C. capsularis (CCA) and C. olitorius (COL) linkage groups (LG)
A3: CCA LG | B3: COL LG | C3: LG Co-ordinates (CCA) | E3: LG Co-ordinates (COL) | G3: No. of hits | H3: CCA gene cov. (%) | I3: COL gene cov. (%)
C4: start | D4: end | E4: start | F4: end
A5: 1 | B5: 1 | C5: 3,703,836 | D5: 6,721,867 | E5: 4,863,466 | F5: 7,773,043 | G5: 297 | H5: 55.9 | I5: 48.9
A6: 1 | B6: 1 | C6: 9,640,910 | D6: 15,190,348 | E6: 5,790,172 | F6: 10,551,554 | G6: 284 | H6: 28.9 | I6: 31
A7: 1 | B7: 1 | C7: 6,737,055 | D7: 8,828,401 | E7: 15,615,779 | F7: 18,732,551 | G7: 120 | H7: 38.5 | I7: 22.6
A8: 1 | B8: 1 | C8: 1,092,805 | D8: 3,046,997 | E8: 24,147,764 | F8: 28,166,379 | G8: 46 | H8: 11.2 | I8: 4.2
A9: 1 | B9: 2 | C9: 962,578 | D9: 1,062,536 | E9: 55,467,361 | F9: 55,600,612 | G9: 15 | H9: 58.8 | I9: 100
A10: 1 | B10: 2 | C10: 2,506,282 | D10: 2,899,486 | E10: 34,845,538 | F10: 35,716,172 | G10: 9 | H10: 10.9 | I10: 1.7
A11: 1 | B11: 2 | C11: 10,924,633 | D11: 11,052,860 | E11: 83,132,338 | F11: 83,324,088 | G11: 7 | H11: 33.3 | I11: 16.6
A12: 1 | B12: 4 | C12: 2,338,546 | D12: 3,302,994 | E12: 19,571,103 | F12: 20,813,924 | G12: 21 | H12: 11.8 | I12: 13.5
A13: 1 | B13: 4 | C13: 16,847,382 | D13: 17,053,703 | E13: 11,303,937 | F13: 11,589,862 | G13: 7 | H13: 20.8 | I13: 30
A14: 1 | B14: 4 | C14: 2,643,586 | D14: 2,890,072 | E14: 50,268,637 | F14: 50,503,770 | G14: 12 | H14: 15.3 | I14: 31.5
A15: 1 | B15: 4 | C15: 15,338,923 | D15: 15,832,183 | E15: 44,741,882 | F15: 45,582,998 | G15: 24 | H15: 33.3 | I15: 26.9
A16: 2 | B16: 1 | C16: 8,632,024 | D16: 9,048,275 | E16: 29,032 | F16: 424,659 | G16: 56 | H16: 65.6 | I16: 81.2
A17: 2 | B17: 1 | C17: 54,135,034 | D17: 55,738,390 | E17: 14,589,530 | F17: 15,350,672 | G17: 31 | H17: 10.5 | I17: 24.5
A18: 2 | B18: 1 | C18: 16,648,707 | D18: 16,855,730 | E18: 12,181,751 | F18: 13,161,703 | G18: 11 | H18: 40 | I18: 3.3
A19: 2 | B19: 1 | C19: 27,659,293 | D19: 28,433,736 | E19: 22,578,840 | F19: 23,523,866 | G19: 41 | H19: 27.2 | I19: 20.8
A20: 2 | B20: 2 | C20: 23,879,248 | D20: 25,877,396 | E20: 9,166,596 | F20: 11,261,493 | G20: 112 | H20: 41.2 | I20: 25.4
A21: 2 | B21: 2 | C21: 12,724,777 | D21: 14,749,993 | E21: 25,138,973 | F21: 29,953,443 | G21: 111 | H21: 36.5 | I21: 16.8
A22: 2 | B22: 2 | C22: 21,416,395 | D22: 23,195,218 | E22: 42,538,017 | F22: 44,981,969 | G22: 86 | H22: 38.7 | I22: 23.5
A23: 2 | B23: 2 | C23: 3,357,423 | D23: 5,669,193 | E23: 23,450,158 | F23: 25,128,798 | G23: 83 | H23: 23.7 | I23: 36.9
A24: 2 | B24: 2 | C24: 1,837,589 | D24: 3,334,976 | E24: 36,376,081 | F24: 37,497,754 | G24: 58 | H24: 20.5 | I24: 32.3
A25: 2 | B25: 2 | C25: 49,358,304 | D25: 51,024,976 | E25: 37,749,496 | F25: 38,585,668 | G25: 54 | H25: 7.6 | I25: 34.5
A26: 2 | B26: 2 | C26: 18,259,993 | D26: 18,966,204 | E26: 66,668,760 | F26: 67,457,805 | G26: 51 | H26: 60 | I26: 51.1
A27: 2 | B27: 2 | C27: 15,652,681 | D27: 17,190,054 | E27: 54,413,288 | F27: 56,771,183 | G27: 26 | H27: 19.6 | I27: 9
A28: 2 | B28: 2 | C28: 1,908,295 | D28: 2,036,074 | E28: 8,581,869 | F28: 8,701,358 | G28: 23 | H28: 57.1 | I28: 55
A29: 2 | B29: 2 | C29: 2,411,735 | D29: 3,112,036 | E29: 15,154,311 | F29: 15,854,111 | G29: 20 | H29: 22.3 | I29: 13.5
A30: 2 | B30: 2 | C30: 32,895,936 | D30: 33,882,320 | E30: 72,300,781 | F30: 73,516,612 | G30: 12 | H30: 9.8 | I30: 4.4
A31: 2 | B31: 2 | C31: 543,860 | D31: 888,534 | E31: 80,823,976 | F31: 81,845,343 | G31: 12 | H31: 17.1 | I31: 3
A32: 2 | B32: 2 | C32: 51,244,275 | D32: 52,606,975 | E32: 61,306,933 | F32: 64,352,210 | G32: 13 | H32: 9.6 | I32: 1
A33: 2 | B33: 2 | C33: 25,714,781 | D33: 26,060,964 | E33: 3,333,385 | F33: 3,502,245 | G33: 10 | H33: 18.7 | I33: 33.3
A34: 2 | B34: 2 | C34: 124,711 | D34: 198,798 | E34: 24,142,033 | F34: 24,234,001 | G34: 8 | H34: 83.3 | I34: 0
A35: 2 | B35: 2 | C35: 16,035,793 | D35: 16,217,361 | E35: 26,503,298 | F35: 26,609,758 | G35: 8 | H35: 42.8 | I35: 40
A36: 2 | B36: 2 | C36: 3,948,646 | D36: 5,390,443 | E36: 3,071,264 | F36: 4,875,157 | G36: 18 | H36: 10.7 | I36: 4.9
A37: 2 | B37: 2 | C37: 20,931,708 | D37: 21,101,218 | E37: 66,379,630 | F37: 66,619,523 | G37: 8 | H37: 36.3 | I37: 21.7
A38: 2 | B38: 2 | C38: 1,254,903 | D38: 1,827,604 | E38: 3,651,559 | F38: 4,218,096 | G38: 9 | H38: 9.7 | I38: 7.9
A39: 2 | B39: 2 | C39: 38,038,632 | D39: 38,341,638 | E39: 73,051,960 | F39: 73,288,746 | G39: 7 | H39: 10.3 | I39: 12.1
A40: 2 | B40: 2 | C40: 23,420,717 | D40: 23,819,266 | E40: 35,811,081 | F40: 36,242,307 | G40: 28 | H40: 42.8 | I40: 56.2
A41: 2 | B41: 2 | C41: 33,430,838 | D41: 33,593,559 | E41: 49,711,929 | F41: 50,206,718 | G41: 10 | H41: 22.7 | I41: 13.3
A42: 2 | B42: 2 | C42: 14,770,729 | D42: 14,934,021 | E42: 36,633,524 | F42: 36,894,142 | G42: 16 | H42: 42.1 | I42: 63.6
A43: 2 | B43: 2 | C43: 37,289,359 | D43: 37,972,768 | E43: 62,611,069 | F43: 63,477,172 | G43: 9 | H43: 12.7 | I43: 3.7
A44: 2 | B44: 2 | C44: 928,957 | D44: 1,055,851 | E44: 28,873,439 | F44: 29,029,435 | G44: 12 | H44: 81.8 | I44: 25
A45: 2 | B45: 2 | C45: 645,154 | D45: 740,847 | E45: 14,320,597 | F45: 14,397,820 | G45: 8 | H45: 57.1 | I45: 73.3
A46: 2 | B46: 2 | C46: 1,087,475 | D46: 1,225,846 | E46: 28,710,328 | F46: 28,843,805 | G46: 12 | H46: 58.3 | I46: 40
A47: 2 | B47: 3 | C47: 44,557,772 | D47: 45,397,994 | E47: 4,884,291 | F47: 6,749,949 | G47: 15 | H47: 11.4 | I47: 2.6
A48: 2 | B48: 3 | C48: 30,716,511 | D48: 31,084,160 | E48: 21,658,765 | F48: 22,632,913 | G48: 8 | H48: 8.3 | I48: 3.6
A49: 2 | B49: 4 | C49: 6,637,798 | D49: 7,623,986 | E49: 9,531,347 | F49: 11,151,241 | G49: 38 | H49: 30.9 | I49: 19.2
A50: 2 | B50: 4 | C50: 41,043,401 | D50: 41,530,772 | E50: 14,720,292 | F50: 15,338,441 | G50: 26 | H50: 37.9 | I50: 32
A51: 2 | B51: 4 | C51: 38,541,730 | D51: 39,809,496 | E51: 38,265,524 | F51: 39,203,988 | G51: 25 | H51: 11.1 | I51: 11
A52: 2 | B52: 4 | C52: 1,313,534 | D52: 2,797,982 | E52: 3,032,436 | F52: 4,258,746 | G52: 18 | H52: 9.7 | I52: 12.7
A53: 2 | B53: 4 | C53: 50,960,655 | D53: 53,352,368 | E53: 17,380,402 | F53: 20,609,078 | G53: 18 | H53: 6.2 | I53: 3.3
A54: 2 | B54: 4 | C54: 44,894,123 | D54: 44,985,003 | E54: 636,417 | F54: 1,003,133 | G54: 11 | H54: 88.8 | I54: 12.1
A55: 2 | B55: 4 | C55: 52,845,271 | D55: 55,019,753 | E55: 33,994,708 | F55: 35,962,105 | G55: 13 | H55: 2 | I55: 2.4
A56: 2 | B56: 4 | C56: 2,893,163 | D56: 3,017,175 | E56: 15,971 | F56: 203,781 | G56: 8 | H56: 81.8 | I56: 33.3
A57: 2 | B57: 4 | C57: 44,125,593 | D57: 44,316,050 | E57: 37,574,440 | F57: 38,200,361 | G57: 8 | H57: 32.1 | I57: 5
A58: 2 | B58: 4 | C58: 17,439,353 | D58: 18,071,085 | E58: 20,218,660 | F58: 21,295,336 | G58: 8 | H58: 10.5 | I58: 1.2
A59: 2 | B59: 4 | C59: 17,248,403 | D59: 17,273,836 | E59: 312,174 | F59: 545,395 | G59: 7 | H59: 100 | I59: 26.6
A60: 2 | B60: 4 | C60: 39,425,202 | D60: 40,361,012 | E60: 18,184,498 | F60: 19,364,894 | G60: 10 | H60: 7.5 | I60: 2.8
A61: 2 | B61: 4 | C61: 5,715,617 | D61: 8,944,409 | E61: 32,753,598 | F61: 34,441,292 | G61: 23 | H61: 2.9 | I61: 9.7
A62: 2 | B62: 4 | C62: 1,338,006 | D62: 1,721,697 | E62: 41,407,780 | F62: 43,034,849 | G62: 12 | H62: 14.2 | I62: 3.1
A63: 2 | B63: 4 | C63: 15,899,014 | D63: 18,231,436 | E63: 52,322,375 | F63: 56,635,234 | G63: 14 | H63: 4.4 | I63: 1.5
A64: 2 | B64: 4 | C64: 12,001,565 | D64: 12,700,376 | E64: 20,778,556 | F64: 21,118,307 | G64: 12 | H64: 11.3 | I64: 31.5
A65: 2 | B65: 4 | C65: 6,045,804 | D65: 6,208,059 | E65: 22,589,471 | F65: 22,788,297 | G65: 10 | H65: 57.8 | I65: 23.5
A66: 2 | B66: 4 | C66: 7,774,938 | D66: 8,605,124 | E66: 44,371,271 | F66: 46,027,858 | G66: 12 | H66: 8.2 | I66: 0
A67: 2 | B67: 4 | C67: 14,983,919 | D67: 15,100,948 | E67: 9,692,698 | F67: 9,856,021 | G67: 8 | H67: 33.3 | I67: 15
A68: 2 | B68: 5 | C68: 8,972,592 | D68: 11,227,801 | E68: 174,648 | F68: 4,202,344 | G68: 271 | H68: 57 | I68: 28.1
A69: 3 | B69: 1 | C69: 3,215,216 | D69: 3,511,326 | E69: 1,843,676 | F69: 2,162,958 | G69: 16 | H69: 80 | I69: 37.5
A70: 3 | B70: 1 | C70: 18,976,499 | D70: 19,199,864 | E70: 26,765,154 | F70: 26,921,513 | G70: 9 | H70: 25 | I70: 30.4
A71: 3 | B71: 2 | C71: 16,551,304 | D71: 17,927,555 | E71: 5,121,628 | F71: 6,245,715 | G71: 81 | H71: 47.6 | I71: 43.7
A72: 3 | B72: 2 | C72: 16,370,112 | D72: 16,543,274 | E72: 14,567,487 | F72: 14,710,211 | G72: 19 | H72: 60 | I72: 56.5
A73: 3 | B73: 2 | C73: 23,319,662 | D73: 23,526,936 | E73: 47,210,368 | F73: 47,361,197 | G73: 8 | H73: 36.3 | I73: 16.6
A74: 3 | B74: 2 | C74: 7,820,782 | D74: 8,751,359 | E74: 12,987,317 | F74: 14,347,008 | G74: 82 | H74: 45.8 | I74: 23.9
A75: 3 | B75: 2 | C75: 5,119,406 | D75: 5,708,475 | E75: 67,115,745 | F75: 67,545,720 | G75: 9 | H75: 7.1 | I75: 9.3
A76: 3 | B76: 2 | C76: 4,255,077 | D76: 4,394,310 | E76: 78,412,515 | F76: 78,550,272 | G76: 8 | H76: 40 | I76: 0
A77: 3 | B77: 3 | C77: 1,713,417 | D77: 2,161,391 | E77: 7,499,663 | F77: 7,934,952 | G77: 20 | H77: 44.4 | I77: 18.1
A78: 3 | B78: 3 | C78: 12,791,328 | D78: 14,537,843 | E78: 3,781,051 | F78: 5,328,047 | G78: 10 | H78: 1.3 | I78: 2.1
A79: 3 | B79: 3 | C79: 988,580 | D79: 2,847,098 | E79: 23,714,263 | F79: 24,733,623 | G79: 46 | H79: 25.9 | I79: 22.8
A80: 3 | B80: 3 | C80: 5,338,180 | D80: 7,132,329 | E80: 14,763,654 | F80: 15,759,446 | G80: 8 | H80: 2.4 | I80: 9.4
A81: 3 | B81: 3 | C81: 238,141 | D81: 1,664,303 | E81: 1,851,419 | F81: 3,352,710 | G81: 88 | H81: 39.7 | I81: 27
A82: 3 | B82: 3 | C82: 26,561,898 | D82: 26,900,902 | E82: 470,872 | F82: 758,236 | G82: 22 | H82: 33.3 | I82: 48.7
A83: 3 | B83: 3 | C83: 26,043,708 | D83: 26,952,546 | E83: 16,017,294 | F83: 18,217,825 | G83: 24 | H83: 18.9 | I83: 6.4
A84: 3 | B84: 4 | C84: 12,618,068 | D84: 14,630,201 | E84: 22,830,646 | F84: 25,009,288 | G84: 113 | H84: 42.9 | I84: 32.7
A85: 3 | B85: 4 | C85: 22,625,726 | D85: 22,842,275 | E85: 50,668,815 | F85: 50,798,188 | G85: 8 | H85: 50 | I85: 55.5
A86: 3 | B86: 4 | C86: 14,675,083 | D86: 14,804,558 | E86: 59,612,829 | F86: 59,789,165 | G86: 12 | H86: 50 | I86: 35.7
A87: 3 | B87: 6 | C87: 23,889,349 | D87: 24,288,495 | E87: 6,795,803 | F87: 7,408,366 | G87: 29 | H87: 47.6 | I87: 42.3
A88: 3 | B88: 6 | C88: 18,060,251 | D88: 18,943,283 | E88: 3,733,418 | F88: 4,413,358 | G88: 8 | H88: 3.1 | I88: 3.4
A89: 3 | B89: 7 | C89: 8,973,737 | D89: 9,373,459 | E89: 2,041,636 | F89: 2,365,974 | G89: 27 | H89: 45 | I89: 62.8
A90: 3 | B90: 7 | C90: 8,753,633 | D90: 8,958,473 | E90: 1,278,426 | F90: 1,520,766 | G90: 20 | H90: 51.6 | I90: 41.6
A91: 4 | B91: 1 | C91: 15,238,242 | D91: 16,058,586 | E91: 594,694 | F91: 1,402,278 | G91: 11 | H91: 9.6 | I91: 10.1
A92: 4 | B92: 1 | C92: 2,833,937 | D92: 3,411,247 | E92: 3,122,694 | F92: 3,689,782 | G92: 31 | H92: 37.5 | I92: 41.3
A93: 4 | B93: 1 | C93: 24,654,011 | D93: 25,744,068 | E93: 27,019,760 | F93: 28,679,769 | G93: 42 | H93: 13.6 | I93: 9
A94: 4 | B94: 1 | C94: 15,131,373 | D94: 15,524,877 | E94: 23,767,059 | F94: 23,997,050 | G94: 11 | H94: 0 | I94: 23
A95: 4 | B95: 2 | C95: 751,465 | D95: 948,530 | E95: 4,746,147 | F95: 4,848,694 | G95: 10 | H95: 27.7 | I95: 66.6
A96: 4 | B96: 2 | C96: 28,662,125 | D96: 28,756,719 | E96: 351,135 | F96: 452,300 | G96: 8 | H96: 33.3 | I96: 28.5
A97: 4 | B97: 2 | C97: 12,229,755 | D97: 12,670,023 | E97: 84,526,378 | F97: 84,975,810 | G97: 8 | H97: 9.8 | I97: 6
A98: 4 | B98: 2 | C98: 2,572,691 | D98: 2,960,780 | E98: 84,386,385 | F98: 85,328,105 | G98: 8 | H98: 13.7 | I98: 4.8
A99: 4 | B99: 2 | C99: 12,796,674 | D99: 12,929,505 | E99: 18,872,856 | F99: 19,083,060 | G99: 7 | H99: 27.7 | I99: 23
A100: 4 | B100: 2 | C100: 17,435,655 | D100: 17,645,606 | E100: 19,468,712 | F100: 20,366,645 | G100: 7 | H100: 20 | I100: 2.7
A101: 4 | B101: 2 | C101: 26,177,727 | D101: 26,300,583 | E101: 49,116,922 | F101: 49,348,416 | G101: 13 | H101: 55 | I101: 44.4
A102: 4 | B102: 2 | C102: 25,957,842 | D102: 26,094,420 | E102: 48,979,864 | F102: 49,107,912 | G102: 7 | H102: 37.5 | I102: 40
A103: 4 | B103: 4 | C103: 7,164,648 | D103: 11,612,356 | E103: 28,413,249 | F103: 32,862,735 | G103: 358 | H103: 46.2 | I103: 50.9
A104: 4 | B104: 4 | C104: 29,514,795 | D104: 29,545,730 | E104: 17,592,105 | F104: 17,623,907 | G104: 7 | H104: 100 | I104: 66.6
A105: 4 | B105: 4 | C105: 26,110,882 | D105: 29,461,247 | E105: 49,155,669 | F105: 53,517,193 | G105: 21 | H105: 4.3 | I105: 2
A106: 4 | B106: 4 | C106: 12,580,306 | D106: 14,390,908 | E106: 8,375,130 | F106: 11,922,569 | G106: 27 | H106: 8.1 | I106: 5.3
A107: 4 | B107: 4 | C107: 2,028,029 | D107: 2,572,603 | E107: 7,677,521 | F107: 9,320,229 | G107: 22 | H107: 36.9 | I107: 5.1
A108: 4 | B108: 4 | C108: 18,295,404 | D108: 18,952,966 | E108: 14,122,796 | F108: 15,787,917 | G108: 26 | H108: 30.2 | I108: 10.2
A109: 4 | B109: 4 | C109: 11,770,411 | D109: 11,944,172 | E109: 61,296,806 | F109: 61,416,920 | G109: 12 | H109: 25 | I109: 41.6
A110: 4 | B110: 4 | C110: 12,094,042 | D110: 12,193,090 | E110: 65,471,174 | F110: 65,593,785 | G110: 9 | H110: 66.6 | I110: 25
A111: 4 | B111: 5 | C111: 22,324,928 | D111: 22,485,701 | E111: 25,571 | F111: 148,409 | G111: 19 | H111: 78.5 | I111: 68.4
A112: 4 | B112: 6 | C112: 18,966,460 | D112: 22,740,558 | E112: 3,104,203 | F112: 6,385,113 | G112: 226 | H112: 26.9 | I112: 38.7
A113: 4 | B113: 6 | C113: 18,173,678 | D113: 20,150,802 | E113: 12,440 | F113: 995,379 | G113: 121 | H113: 36.1 | I113: 53.3
A114: 4 | B114: 6 | C114: 6,281,500 | D114: 6,601,679 | E114: 9,063,516 | F114: 9,576,821 | G114: 33 | H114: 50 | I114: 38.4
A115: 5 | B115: 1 | C115: 17,375,991 | D115: 19,268,815 | E115: 19,301,687 | F115: 21,454,259 | G115: 169 | H115: 55.4 | I115: 40.4
A116: 5 | B116: 1 | C116: 736,438 | D116: 1,612,042 | E116: 11,142,972 | F116: 12,038,720 | G116: 59 | H116: 37.5 | I116: 42
A117: 5 | B117: 1 | C117: 1,619 | D117: 555,272 | E117: 25,992,134 | F117: 27,241,923 | G117: 14 | H117: 19.2 | I117: 6.5
A118: 5 | B118: 1 | C118: 10,382,529 | D118: 11,150,002 | E118: 12,050,533 | F118: 13,693,208 | G118: 96 | H118: 50.9 | I118: 28.4
A119: 5 | B119: 1 | C119: 13,330,566 | D119: 13,621,733 | E119: 14,510,541 | F119: 15,652,383 | G119: 9 | H119: 11.6 | I119: 4.4
A120: 5 | B120: 1 | C120: 15,104,625 | D120: 15,890,615 | E120: 24,438,292 | F120: 27,667,510 | G120: 26 | H120: 12.2 | I120: 2.4
A121: 5 | B121: 2 | C121: 25,878,428 | D121: 26,565,743 | E121: 11,906,002 | F121: 12,926,287 | G121: 42 | H121: 26.3 | I121: 17.5
A122: 5 | B122: 2 | C122: 15,897,459 | D122: 16,254,531 | E122: 50,458,693 | F122: 50,888,432 | G122: 33 | H122: 48 | I122: 41.3
A123: 5 | B123: 2 | C123: 4,629,552 | D123: 4,974,969 | E123: 17,531,742 | F123: 17,867,752 | G123: 28 | H123: 69.5 | I123: 45
A124: 5 | B124: 2 | C124: 1,970,928 | D124: 2,308,433 | E124: 42,233,022 | F124: 42,651,688 | G124: 17 | H124: 44.4 | I124: 31
A125: 5 | B125: 2 | C125: 13,814,792 | D125: 13,898,541 | E125: 496,316 | F125: 573,724 | G125: 9 | H125: 62.5 | I125: 66.6
A126: 5 | B126: 2 | C126: 7,441,503 | D126: 8,132,368 | E126: 46,625,197 | F126: 48,876,260 | G126: 10 | H126: 8.6 | I126: 3.6
A127: 5 | B127: 2 | C127: 8,342,933 | D127: 10,264,184 | E127: 62,942,702 | F127: 65,477,349 | G127: 15 | H127: 3.3 | I127: 4.3
A128: 5 | B128: 2 | C128: 14,901,322 | D128: 15,144,127 | E128: 91,276,469 | F128: 91,501,754 | G128: 11 | H128: 16.6 | I128: 17.6
A129: 5 | B129: 2 | C129: 22,696,527 | D129: 23,088,319 | E129: 19,977,408 | F129: 20,934,075 | G129: 7 | H129: 5.8 | I129: 1.2
A130: 5 | B130: 2 | C130: 15,394,953 | D130: 15,728,666 | E130: 79,553,703 | F130: 79,919,286 | G130: 23 | H130: 22.9 | I130: 25.8
A131: 5 | B131: 2 | C131: 17,132,252 | D131: 17,376,025 | E131: 6,271,195 | F131: 6,489,221 | G131: 30 | H131: 61.5 | I131: 53.1
A132: 5 | B132: 2 | C132: 11,971,650 | D132: 12,133,051 | E132: 47,920,884 | F132: 48,094,976 | G132: 15 | H132: 58.3 | I132: 40
A133: 5 | B133: 3 | C133: 5,018,516 | D133: 5,796,746 | E133: 11,965,977 | F133: 12,740,214 | G133: 66 | H133: 65.2 | I133: 58.1
A134: 5 | B134: 3 | C134: 19,984,227 | D134: 22,323,354 | E134: 23,692,859 | F134: 25,744,103 | G134: 7 | H134: 2.7 | I134: 1.1
A135: 5 | B135: 3 | C135: 11,698,276 | D135: 11,951,938 | E135: 13,685,679 | F135: 14,214,076 | G135: 8 | H135: 18.5 | I135: 9
A136: 5 | B136: 4 | C136: 13,073,472 | D136: 17,099,279 | E136: 61,756,108 | F136: 64,163,793 | G136: 62 | H136: 7.5 | I136: 16.9
A137: 5 | B137: 4 | C137: 6,889,518 | D137: 8,920,610 | E137: 39,561,718 | F137: 42,489,292 | G137: 37 | H137: 8.8 | I137: 4.9
A138: 5 | B138: 4 | C138: 109,303 | D138: 425,717 | E138: 49,513,015 | F138: 50,920,116 | G138: 11 | H138: 14.7 | I138: 1.5
A139: 5 | B139: 4 | C139: 11,429,562 | D139: 11,546,211 | E139: 40,285,464 | F139: 40,453,710 | G139: 10 | H139: 23.5 | I139: 26.6
A140: 5 | B140: 5 | C140: 2,507,882 | D140: 5,301,810 | E140: 924,301 | F140: 3,163,406 | G140: 248 | H140: 47.2 | I140: 53
A141: 5 | B141: 5 | C141: 21,773,062 | D141: 22,684,625 | E141: 12,595,428 | F141: 13,440,591 | G141: 116 | H141: 56.7 | I141: 57.8
A142: 5 | B142: 5 | C142: 23,154,252 | D142: 23,615,819 | E142: 4,375,582 | F142: 4,883,209 | G142: 86 | H142: 61.2 | I142: 60
A143: 5 | B143: 5 | C143: 18,996,952 | D143: 26,297,491 | E143: 6,027,490 | F143: 11,779,846 | G143: 450 | H143: 30.1 | I143: 36.8
A144: 5 | B144: 7 | C144: 1,627,467 | D144: 1,869,213 | E144: 1,807,809 | F144: 2,035,190 | G144: 27 | H144: 48.4 | I144: 58
A145: 5 | B145: 7 | C145: 9,105,544 | D145: 9,232,945 | E145: 4,134,948 | F145: 4,222,795 | G145: 14 | H145: 52.1 | I145: 38.4
A146: 6 | B146: 1 | C146: 14,763,581 | D146: 15,574,358 | E146: 2,213,029 | F146: 3,081,522 | G146: 62 | H146: 22.3 | I146: 29.4
A147: 6 | B147: 1 | C147: 19,718,323 | D147: 19,924,227 | E147: 1,560,477 | F147: 1,758,825 | G147: 43 | H147: 63.8 | I147: 69.4
A148: 6 | B148: 1 | C148: 7,615,332 | D148: 8,001,797 | E148: 3,825,107 | F148: 4,403,161 | G148: 25 | H148: 36.8 | I148: 13.3
A149: 6 | B149: 1 | C149: 5,831,547 | D149: 8,157,998 | E149: 1,036,007 | F149: 2,319,571 | G149: 11 | H149: 4.5 | I149: 3.6
A150: 6 | B150: 2 | C150: 2,929,712 | D150: 3,429,969 | E150: 41,146,979 | F150: 41,930,936 | G150: 50 | H150: 73.3 | I150: 32.4
A151: 6 | B151: 2 | C151: 9,000,181 | D151: 9,572,294 | E151: 69,010,619 | F151: 70,668,881 | G151: 17 | H151: 14.8 | I151: 4.5
A152: 6 | B152: 2 | C152: 3,436,470 | D152: 3,611,684 | E152: 1,524,131 | F152: 1,716,165 | G152: 16 | H152: 61.5 | I152: 45.4
A153: 6 | B153: 2 | C153: 17,750,930 | D153: 18,157,754 | E153: 87,947,896 | F153: 89,076,421 | G153: 12 | H153: 13.8 | I153: 4.3
A154: 6 | B154: 3 | C154: 5,344,354 | D154: 5,520,509 | E154: 16,091,317 | F154: 16,284,432 | G154: 15 | H154: 50 | I154: 43.7
A155: 6 | B155: 4 | C155: 6,320,857 | D155: 9,804,145 | E155: 33,056,480 | F155: 42,840,432 | G155: 29 | H155: 5.6 | I155: 1.6
A156: 6 | B156: 4 | C156: 1,635,754 | D156: 3,716,584 | E156: 15,816,478 | F156: 16,652,163 | G156: 12 | H156: 4.4 | I156: 13.7
A157: 6 | B157: 4 | C157: 14,219,978 | D157: 14,305,730 | E157: 37,284,774 | F157: 37,431,794 | G157: 8 | H157: 33.3 | I157: 22.7
A158: 6 | B158: 5 | C158: 256,522 | D158: 1,974,346 | E158: 4,903,865 | F158: 6,015,457 | G158: 186 | H158: 36 | I158: 64.7
A159: 6 | B159: 6 | C159: 3,737,714 | D159: 6,425,084 | E159: 287,368 | F159: 3,095,248 | G159: 223 | H159: 37.7 | I159: 30.1
A160: 6 | B160: 6 | C160: 11,702,262 | D160: 12,805,245 | E160: 9,307,264 | F160: 10,475,979 | G160: 132 | H160: 53.3 | I160: 55.2
A161: 6 | B161: 7 | C161: 2,801,685 | D161: 2,914,528 | E161: 4,006,832 | F161: 4,148,099 | G161: 14 | H161: 71.4 | I161: 42.8
A162: 7 | B162: 7 | C162: 2,174,461 | D162: 2,640,786 | E162: 7,737 | F162: 476,827 | G162: 58 | H162: 51.3 | I162: 68
A163: 7 | B163: 7 | C163: 32,126 | D163: 1,742,809 | E163: 5,700,705 | F163: 7,502,886 | G163: 246 | H163: 58.2 | I163: 54.6
A164: 7 | B164: 7 | C164: 1,782,981 | D164: 2,137,489 | E164: 3,622,786 | F164: 3,972,974 | G164: 56 | H164: 65.9 | I164: 65.3

Sheet Supplementary Table 27
A1: Supplementary Table 27. Tandem duplication statistics for C. olitorius and C. capsularis
A3: Genome | B3: Total genes | C3: Total paralogous genes | D3: No. of tandem clusters | E3: No. of tandem duplicate genes | F3: % tandem duplicate genes
A4: C. olitorius | B4: 37,031 | C4: 16,716 | D4: 660 | E4: 2,660 | F4: 7.2
A5: C. capsularis | B5: 30,096 | C5: 12,909 | D5: 520 | E5: 1,775 | F5: 5.9

Sheet Supplementary Table 28
B1: Supplementary Table 28. (a) RNA-seq data generated from fiber cells and seedlings. (b) RNA-seq data generated from seedlings before bolting and young stem.
B2: (a) | H2: (b)
B3: Sample | C3: Colchorus olitorius | E3: Corchorus capsularis | H3: Sample | I3: Colchorus olitorius | K3: Corchorus capsularis
C4: Total reads | D4: Total bases | E4: Total reads | F4: Total bases | I4: Total reads | J4: Total bases | K4: Total reads | L4: Total bases
B5: Fiber cell_L1_R1.fastq | C5: 2 x 83369229 | D5: 21,009,045,708 | E5: 2 x 103453636 | F5: 26,070,316,272 | H5: Seedlings before bolting _L1_R1.fastq | I5: 2 X 30,658,157 | J5: 8,015,872,928 | K5: 2 X 33,868,591 | L5: 9,004,541,018
B6: Fiber cell_L2_R2.fastq | C6: 2 x 111063740 | D6: 27,988,062,480 | E6: 2 x 108693843 | F6: 27,390,848,436 | H6: Seedlings before bolting _L2_R2.fastq | I6: 2 X 36,013,627 | J6: 9,426,858,088 | K6: 2 X 34,903,868 | L6: 9,081,817,938
B7: Fiber cell_L3_R3.fastq | C7: 2 x 88322967 | D7: 22,257,387,684 | E7: 2 x 99969648 | F7: 25,192,351,296 | H7: Seedlings before bolting_L3_R3.fastq | I7: 2 X 36,453,493 | J7: 9,544,201,706 | K7: 2 X 31,851,261 | L7: 8,428,506,414
B8: Total | D8: =SUM(D5:D7) -> 71,254,495,872 | F8: =SUM(F5:F7) -> 78,653,516,004 | H8: Total | J8: =SUM(J5:J7) -> 26,986,932,722 | L8: =SUM(L5:L7) -> 26,514,865,370
B9: Seedlings _L4_R1.fastq | C9: 2 x 117145486 | D9: 29,520,662,472 | E9: 2 x 93712477 | F9: 23,615,544,204 | H9: Young stem_L4_R1.fastq | I9: 2 X 31,730,052 | J9: 8,291,725,434 | K9: 2 X 34,593,127 | L9: 9,074,823,322
B10: Seedlings _L5_R2.fastq | C10: 2 x 116674944 | D10: 29,402,085,888 | E10: 2 x 121275520 | F10: 30,561,431,040 | H10: Young stem_L5_R2.fastq | I10: 2 X 32,276,920 | J10: 8,312,506,302 | K10: 2 X 31,176,446 | L10: 8,147,326,180
B11: Seedlings _L6_R3.fastq | C11: 2 x 118286082 | D11: 29,808,092,664 | E11: 2 x 95218912 | F11: 23,995,165,824 | H11: Young stem_L6_R3.fastq | I11: 2 X 27,897,152 | J11: 7,266,264,542 | K11: 2 X 31,907,990 | L11: 8,369,189,856
B12: Total | D12: =SUM(D9:D11) -> 88,730,841,024 | F12: =SUM(F9:F11) -> 78,172,141,068 | H12: Total | J12: =SUM(J9:J11) -> 23,870,496,278 | L12: =SUM(L9:L11) -> 25,591,339,358

Sheet Supplementary Table 29
A1: Supplementary Table 29. (a) Mapping of RNA-seq data from fiber cells and seedlings (b) Mapping of RNA-seq data from seedlings before bolting and young stem
A2: (a)
A3: Sample | B3: Corchorus olitorius | E3: Corchorus capsularis
B4: Total filtered pair-end reads | C4: Total mapped reads | D4: % mapped | E4: Total filtered pair-end reads | F4: Total mapped reads | G4: % mapped
A5: Fiber cell_L1_R1.fastq | B5: 2 x 82662152 | C5: 148,798,394 | D5: 90.00 | E5: 2 x 102495789 | F5: 193,665,934 | G5: 94.48
A6: Fiber cell_L2_R2.fastq | B6: 2 x 109778886 | C6: 200,108,906 | D6: 91.14 | E6: 2 x 107494629 | F6: 203,427,612 | G6: 94.62
A7: Fiber cell_L3_R3.fastq | B7: 2 x 87487212 | C7: 158,754,344 | D7: 90.73 | E7: 2 x 99142060 | F7: 189,884,952 | G7: 95.76
A8: Mean | D8: =AVERAGE(D5:D7) -> 90.62 | G8: =AVERAGE(G5:G7) -> 94.95
A9: Seedlings _L4_R1.fastq | B9: 2 x 116249113 | C9: 216,182,374 | D9: 92.98 | E9: 2 x 92919199 | F9: 179,548,632 | G9: 96.62
A10: Seedlings _L5_R2.fastq | B10: 2 x 115582251 | C10: 215,845,254 | D10: 93.37 | E10: 2 x 119869421 | F10: 230,644,044 | G10: 96.21
A11: Seedlings _L6_R3.fastq | B11: 2 x 117115670 | C11: 214,839,234 | D11: 91.72 | E11: 2 x 94405193 | F11: 182,064,674 | G11: 96.43
A12: Mean | D12: =AVERAGE(D9:D11) -> 92.69 | G12: =AVERAGE(G9:G11) -> 96.42
A14: (b)
A15: Sample | B15: Corchorus olitorius | E15: Corchorus capsularis
B16: Total filtered pair-end reads | C16: Total mapped reads | D16: % mapped | E16: Total filtered pair-end reads | F16: Total mapped reads | G16: % mapped
A17: Seedlings before bolting _L1_R1.fastq | B17: 2 X 28,075,792 | C17: 25,280,712 | D17: 89.70 | E17: 2 X 31,139,137 | F17: 29,915,339 | G17: 95.80
A18: Seedlings before bolting _L2_R2.fastq | B18: 2 X 32,965,164 | C18: 29,745,423 | D18: 89.80 | E18: 2 X 31,467,191 | F18: 30,251,891 | G18: 95.80
A19: Seedlings before bolting_L3_R3.fastq | B19: 2 X 33,128,150 | C19: 29,878,376 | D19: 89.40 | E19: 2 X 29,274,341 | F19: 28,438,728 | G19: 95.00
A20: Mean | D20: =AVERAGE(D17:D19) -> 89.63 | G20: =AVERAGE(G17:G19) -> 95.53
A21: Young stem_L4_R1.fastq | B21: 2 X 28,926,178 | C21: 26,108,202 | D21: 89.60 | E21: 2 X 31,243,551 | F21: 29,863,235 | G21: 95.30
A22: Young stem_L5_R2.fastq | B22: 2 X 28,898,789 | D22: 89.20 | E22: 2 X 28,097,792 | F22: 26,889,022 | G22: 95.30
A23: Young stem_L6_R3.fastq | B23: 2 X 25,100,964 | C23: 22,643,691 | D23: 89.80 | E23: 2 X 28,988,163 | F23: 27,715,455 | G23: 94.80
A24: Mean | D24: =AVERAGE(D21:D23) -> 89.53 | G24: =AVERAGE(G21:G23) -> 95.13

Sheet Supplementary Table 30
A1: Supplementay Table 30. List of differentially expressed genes in fiber cells and seedlings of Corchorus olitorius (FDR: False Discovery Rate, FDR < 0.05). (A) Up-regulated genes (B) Down-regulated genes
A3: (A) Up-regulated genes
A4: Gene model | B4: Transcript ID | C4: Annotation | D4: sample_1 | E4: sample_2 | F4: status | G4: FPKM value for seedlings | H4: FPKM value for fiber cells | I4: log2 fold change | J4: test_stat | K4: p_value | L4: q_value | M4: significant
A5: COLO4_00014 | B5: XLOC_000018 | C5: Disease resistance protein,hypothetical protein | D5: Seedling | E5: Fiber | F5: OK | G5: 0.13188 | H5: 0.794063 | I5: 2.59003 | J5: 1.35578 | K5: 0.0057 | L5: 0.0131777 | M5: yes
A6: COLO4_00050 | B6: XLOC_000063 | C6: Ribosomal protein L39e | D6: Seedling | E6: Fiber | F6: OK | G6: 12.9911 | H6: 83.7782 | I6: 2.68905 | J6: 1.0556 | K6: 0.0013 | L6: 0.00347917 | M6: yes
A7: - | B7: XLOC_000070 | C7: Hypothetical protein | D7: Seedling | E7: Fiber | F7: OK | G7: 0 | H7: 1.79198 | I7: Inf | J7: NA | K7: 0.0003 | L7: 0.000932184 | M7: yes
A8: - | B8: XLOC_000072 | C8: Hypothetical protein | D8: Seedling | E8: Fiber | F8: OK | G8: 1.23128 | H8: 4.64147 | I8: 1.91443 | J8: 2.96664 | K8: 5e-05 | L8: 0.000179896 | M8: yes
A9: COLO4_00060 | B9: XLOC_000077 | C9: hypothetical protein | D9: Seedling | E9: Fiber | F9: OK | G9: 9.7233 | H9: 33.2079 | I9: 1.77201 | J9: 2.31174 | K9: 5e-05 | L9: 0.000179896 | M9: yes
A10: - | B10: XLOC_000078 | C10: Hypothetical protein | D10: Seedling | E10: Fiber | F10: OK | G10: 0 | H10: 1.10034 | I10: Inf | J10: NA | K10: 5e-05 | L10: 0.000179896 | M10: yes
A11: COLO4_00065 | B11: XLOC_000083 | C11: Small GTPase superfamily | D11: Seedling | E11: Fiber | F11: OK | G11: 7.91829 | H11: 69.2416 | I11: 3.12838 | J11: 6.25957 | K11: 5e-05 | L11: 0.000179896 | M11: yes
A12: - | B12: XLOC_000089 | C12: Hypothetical protein | D12: Seedling | E12: Fiber | F12: OK | G12: 5.18354 | H12: 8.35291 | I12: 0.688343 | J12: 1.60823 | K12: 0.0052 | L12: 0.0121258 | M12: yes
A13: COLO4_00074 | B13: XLOC_000095 | C13: hypothetical protein | D13: Seedling | E13: Fiber | F13: OK | G13: 400.305 | H13: 860.856 | I13: 1.10467 | J13: 2.24585 | K13: 0.0004 | L13: 0.00119976 | M13: yes
A14: - | B14: XLOC_000103 | C14: Hypothetical protein | D14: Seedling | E14: Fiber | F14: OK | G14: 3.69262 | H14: 9.65341 | I14: 1.38639 | J14: 1.42469 | K14: 0.01295 | L14: 0.0273967 | M14: yes
A15: COLO4_00085 | B15: XLOC_000108 | C15: hypothetical protein | D15: Seedling | E15: Fiber | F15: OK | G15: 0 | H15: 0.302958 | I15: Inf | J15: NA | K15: 0.0007 | L15: 0.00199465 | M15: yes
A16: - | B16: XLOC_000113 | C16: Hypothetical protein | D16: Seedling | E16: Fiber | F16: OK | G16: 0 | H16: 0.882158 | I16: Inf | J16: NA | K16: 0.0001 | L16: 0.000343627 | M16: yes
A17: - | B17: XLOC_000121 | C17: Hypothetical protein | D17: Seedling | E17: Fiber | F17: OK | G17: 61.4946 | H17: 104.334 | I17: 0.762675 | J17: 1.93366 | K17: 0.0005 | L17: 0.00147317 | M17: yes
A18: - | B18: XLOC_000126 | C18: Hypothetical protein | D18: Seedling | E18: Fiber | F18: OK | G18: 2.34808 | H18: 88.5625 | I18: 5.23714 | J18: 6.24579 | K18: 5e-05 | L18: 0.000179896 | M18: yes
A19: COLO4_00107 | B19: XLOC_000138 | C19: hypothetical protein | D19: Seedling | E19: Fiber | F19: OK | G19: 1.16213 | H19: 3.7906 | I19: 1.70566 | J19: 2.4638 | K19: 0.0003 | L19: 0.000932184 | M19: yes
A20: COLO4_00109 | B20: XLOC_000140 | C20: Geminivirus AL1, replication-associated protein | D20: Seedling | E20: Fiber | F20: OK | G20: 3.81581 | H20: 18.8127 | I20: 2.30165 | J20: 4.72507 | K20: 5e-05 | L20: 0.000179896 | M20: yes
A21: COLO4_00112 | B21: XLOC_000143 | C21: Proton-dependent oligopeptide transporter family | D21: Seedling | E21: Fiber | F21: OK | G21: 43.7403 | H21: 64.4853 | I21: 0.560008 | J21: 1.46297 | K21: 0.01085 | L21: 0.0234218 | M21: yes
A22: - | B22: XLOC_000152 | C22: Hypothetical protein | D22: Seedling | E22: Fiber | F22: OK | G22: 9.16321 | H22: 20.9288 | I22: 1.19157 | J22: 1.95196 | K22: 0.00135 | L22: 0.00359929 | M22: yes
A23: COLO4_00120 | B23: XLOC_000154 | C23: hypothetical protein | D23: Seedling | E23: Fiber | F23: OK | G23: 0 | H23: 0.88117 | I23: Inf | J23: NA | K23: 0.0003 | L23: 0.000932184 | M23: yes
A24: COLO4_00135 | B24: XLOC_000171 | C24: hypothetical protein | D24: Seedling | E24: Fiber | F24: OK | G24: 3.41723 | H24: 9.13285 | I24: 1.41824 | J24: 2.04446 | K24: 0.00055 | L24: 0.00160111 | M24: yes
A25: COLO4_00137 | B25: XLOC_000174 | C25: hypothetical protein | D25: Seedling | E25: Fiber | F25: OK | G25: 4.81236 | H25: 24.5701 | I25: 2.35209 | J25: 2.89582 | K25: 5e-05 | L25: 0.000179896 | M25: yes
A26: - | B26: XLOC_000177 | C26: Hypothetical protein | D26: Seedling | E26: Fiber | F26: OK | G26: 0 | H26: 9.19478 | I26: Inf | J26: NA | K26: 0.0003 | L26: 0.000932184 | M26: yes
A27: - | B27: XLOC_000193 | C27: Hypothetical protein | D27: Seedling | E27: Fiber | F27: OK | G27: 0 | H27: 1.83263 | I27: Inf | J27: NA | K27: 0.00015 | L27: 0.000499572 | M27: yes
A28: - | B28: XLOC_000202 | C28: Hypothetical protein | D28: Seedling | E28: Fiber | F28: OK | G28: 0.0548782 | H28: 2.20986 | I28: 5.33157 | J28: 3.21971 | K28: 0.0177 | L28: 0.0362286 | M28: yes
A29: - | B29: XLOC_000234 | C29: Hypothetical protein | D29: Seedling | E29: Fiber | F29: OK | G29: 7.48736 | H29: 199.682 | I29: 4.73711 | J29: 6.35603 | K29: 5e-05 | L29: 0.000179896 | M29: yes
A30: - | B30: XLOC_000252 | C30: Hypothetical protein | D30: Seedling | E30: Fiber | F30: OK | G30: 5.0181 | H30: 11.703 | I30: 1.22166 | J30: 2.01125 | K30: 0.0013 | L30: 0.00347917 | M30: yes
A31: COLO4_00194 | B31: XLOC_000263 | C31: hypothetical protein | D31: Seedling | E31: Fiber | F31: OK | G31: 74.4998 | H31: 136.38 | I31: 0.872326 | J31: 2.20138 | K31: 0.00015 | L31: 0.000499572 | M31: yes
A32: COLO4_00217 | B32: XLOC_000291 | C32: Zinc finger, RING-type | D32: Seedling | E32: Fiber | F32: OK | G32: 36.1883 | H32: 59.0187 | I32: 0.705648 | J32: 1.69706 | K32: 0.00295 | L32: 0.00724549 | M32: yes
A33: - | B33: XLOC_000293 | C33: Hypothetical protein | D33: Seedling | E33: Fiber | F33: OK | G33: 0.192193 | H33: 8.08066 | I33: 5.39384 | J33: 3.38611 | K33: 0.0025 | L33: 0.00623891 | M33: yes
A34: - | B34: XLOC_000295 | C34: Hypothetical protein | D34: Seedling | E34: Fiber | F34: OK | G34: 0 | H34: 2.07809 | I34: Inf | J34: NA | K34: 0.00055 | L34: 0.00160111 | M34: yes
A35: - | B35: XLOC_000302 | C35: Hypothetical protein | D35: Seedling | E35: Fiber | F35: OK | G35: 7.64311 | H35: 15.3091 | I35: 1.00216 | J35: 1.37224 | K35: 0.0184 | L35: 0.0375097 | M35: yes
A36: - | B36: XLOC_000314 | C36: Hypothetical protein | D36: Seedling | E36: Fiber | F36: OK | G36: 0.929724 | H36: 3.29648 | I36: 1.82605 | J36: 1.99472 | K36: 0.0012 | L36: 0.0032417 | M36: yes
A37: - | B37: XLOC_000317 | C37: Hypothetical protein | D37: Seedling | E37: Fiber | F37: OK | G37: 0.155392 | H37: 1.45233 | I37: 3.22439 | J37: 2.38117 | K37: 0.00125 | L37: 0.00336278 | M37: yes
A38: - | B38: XLOC_000321 | C38: Hypothetical protein | D38: Seedling | E38: Fiber | F38: OK | G38: 1.20442 | H38: 18.2724 | I38: 3.92326 | J38: 4.69316 | K38: 5e-05 | L38: 0.000179896 | M38: yes
A39: - | B39: XLOC_000326 | C39: Hypothetical protein | D39: Seedling | E39: Fiber | F39: OK | G39: 0.246846 | H39: 2.72273 | I39: 3.46337 | J39: 2.05723 | K39: 0.01495 | L39: 0.0311926 | M39: yes
A40: - | B40: XLOC_000331 | C40: Hypothetical protein | D40: Seedling | E40: Fiber | F40: OK | G40: 0 | H40: 0.60167 | I40: Inf | J40: NA | K40: 0.00045 | L40: 0.0013369 | M40: yes
A41: - | B41: XLOC_000338 | C41: Hypothetical protein | D41: Seedling | E41: Fiber | F41: OK | G41: 0 | H41: 2.93601 | I41: Inf | J41: NA | K41: 5e-05 | L41: 0.000179896 | M41: yes
A42: COLO4_00253 | B42: XLOC_000348 | C42: Glucosamine/galactosamine-6-phosphate isomerase | D42: Seedling | E42: Fiber | F42: OK | G42: 0.064673 | H42: 0.481121 | I42: 2.89516 | J42: 1.13115 | K42: 0.00965 | L42: 0.0211086 | M42: yes
A43: - | B43: XLOC_000356 | C43: Hypothetical protein | D43: Seedling | E43: Fiber | F43: OK | G43: 1.78271 | H43: 17.922 | I43: 3.32959 | J43: 4.30176 | K43: 5e-05 | L43: 0.000179896 | M43: yes
A44: - | B44: XLOC_000361 | C44: Hypothetical protein | D44: Seedling | E44: Fiber | F44: OK | G44: 0 | H44: 1.381 | I44: Inf | J44: NA | K44: 0.00025 | L44: 0.000793275 | M44: yes
A45: - | B45: XLOC_000365 | C45: Hypothetical protein | D45: Seedling | E45: Fiber | F45: OK | G45: 0.356145 | H45: 1.97327 | I45: 2.47005 | J45: 2.11895 | K45: 0.00435 | L45: 0.0103138 | M45: yes
A46: - | B46: XLOC_000383 | C46: Hypothetical protein | D46: Seedling | E46: Fiber | F46: OK | G46: 2.05247 | H46: 12.302 | I46: 2.58346 | J46: 2.4797 | K46: 0.00035 | L46: 0.00107397 | M46: yes
A47: - | B47: XLOC_000385 | C47: Hypothetical protein | D47: Seedling | E47: Fiber | F47: OK | G47: 130.276 | H47: 485.904 | I47: 1.8991 | J47: 4.75567 | K47: 5e-05 | L47: 0.000179896 | M47: yes
A48: - | B48: XLOC_000387 | C48: Hypothetical protein | D48: Seedling | E48: Fiber | F48: OK | G48: 1.30418 | H48: 3.72925 | I48: 1.51574 | J48: 1.42202 | K48: 0.02295 | L48: 0.0456063 | M48: yes
A49: COLO4_00289 | B49: XLOC_000396 | C49: Kelch repeat type 1 | D49: Seedling | E49: Fiber | F49: OK | G49: 0 | H49: 0.226151 | I49: Inf | J49: NA | K49: 0.00025 | L49: 0.000793275 | M49: yes
A50: COLO4_00290 | B50: XLOC_000397 | C50: hypothetical protein | D50: Seedling | E50: Fiber | F50: OK | G50: 0.823716 | H50: 270.786 | I50: 8.36079 | J50: 9.81204 | K50: 5e-05 | L50: 0.000179896 | M50: yes
A51: COLO4_00300 | B51: XLOC_000413 | C51: hypothetical protein | D51: Seedling | E51: Fiber | F51: OK | G51: 26.0298 | H51: 130.608 | I51: 2.32701 | J51: 5.07562 | K51: 5e-05 | L51: 0.000179896 | M51: yes
A52: COLO4_00301 | B52: XLOC_000414 | C52: hypothetical protein | D52: Seedling | E52: Fiber | F52: OK | G52: 5.93735 | H52: 70.935 | I52: 3.57861 | J52: 6.08923 | K52: 5e-05 | L52: 0.000179896 | M52: yes
A53: COLO4_00307 | B53: XLOC_000423 | C53: Zinc finger, Dof-type | D53: Seedling | E53: Fiber | F53: OK | G53: 13.0278 | H53: 51.1742 | I53: 1.97382 | J53: 4.49754 | K53: 5e-05 | L53: 0.000179896 | M53: yes
A54: - | B54: XLOC_000433 | C54: Hypothetical protein | D54: Seedling | E54: Fiber | F54: OK | G54: 0.295023 | H54: 2.85776 | I54: 3.27598 | J54: 2.00421 | K54: 0.01975 | L54: 0.0399274 | M54: yes
A55: - | B55: XLOC_000437 | C55: Hypothetical protein | D55: Seedling | E55: Fiber | F55: OK | G55: 1.16299 | H55: 54.2796 | I55: 5.5445 | J55: 5.96557 | K55: 5e-05 | L55: 0.000179896 | M55: yes
A56: - | B56: XLOC_000440 | C56: Hypothetical protein | D56: Seedling | E56: Fiber | F56: OK | G56: 0 | H56: 2.6717 | I56: Inf | J56: NA | K56: 0.00015 | L56: 0.000499572 | M56: yes
A57: COLO4_00321 | B57: XLOC_000443 | C57: Calcium-binding EF-hand | D57: Seedling | E57: Fiber | F57: OK | G57: 78.1151 | H57: 202.419 | I57: 1.37367 | J57: 3.27438 | K57: 5e-05 | L57: 0.000179896 | M57: yes
A58: COLO4_00332 | B58: XLOC_000454 | C58: hypothetical protein | D58: Seedling | E58: Fiber | F58: OK | G58: 1.54894 | H58: 3.80168 | I58: 1.29535 | J58: 1.66063 | K58: 0.0047 | L58: 0.0110484 | M58: yes
A59: COLO4_00343 | B59: XLOC_000469 | C59: Autophagy protein Atg8 ubiquitin-like protein | D59: Seedling | E59: Fiber | F59: OK | G59: 72.6612 | H59: 376.339 | I59: 2.37277 | J59: 4.83063 | K59: 5e-05 | L59: 0.000179896 | M59: yes
A60: - | B60: XLOC_000475 | C60: Hypothetical protein | D60: Seedling | E60: Fiber | F60: OK | G60: 0 | H60: 1.68277 | I60: Inf | J60: NA | K60: 0.0001 | L60: 0.000343627 | M60: yes
A61: - | B61: XLOC_000498 | C61: Hypothetical protein | D61: Seedling | E61: Fiber | F61: OK | G61: 3.32414 | H61: 11.9482 | I61: 1.84575 | J61: 2.67681 | K61: 5e-05 | L61: 0.000179896 | M61: yes
A62: COLO4_00385 | B62: XLOC_000517 | C62: dTDP-4-dehydrorhamnose reductase | D62: Seedling | E62: Fiber | F62: OK | G62: 193.26 | H62: 432.612 | I62: 1.16253 | J62: 2.84478 | K62: 5e-05 | L62: 0.000179896 | M62: yes
A63: - | B63: XLOC_000518 | C63: Hypothetical protein | D63: Seedling | E63: Fiber | F63: OK | G63: 0 | H63: 11.5231 | I63: Inf | J63: NA | K63: 0.0004 | L63: 0.00119976 | M63: yes
A64: - | B64: XLOC_000519 | C64: Hypothetical protein | D64: Seedling | E64: Fiber | F64: OK | G64: 0 | H64: 9.63486 | I64: Inf | J64: NA | K64: 0.0003 | L64: 0.000932184 | M64: yes
A65: - | B65: XLOC_000524 | C65: Hypothetical protein | D65: Seedling | E65: Fiber | F65: OK | G65: 10.4748 | H65: 18.3029 | I65: 0.805158 | J65: 1.5396 | K65: 0.00785 | L65: 0.0175442 | M65: yes
A66: - | B66: XLOC_000525 | C66: Hypothetical protein | D66: Seedling | E66: Fiber | F66: OK | G66: 0 | H66: 0.785205 | I66: Inf | J66: NA | K66: 5e-05 | L66: 0.000179896 | M66: yes
A67: - | B67: XLOC_000528 | C67: Hypothetical protein | D67: Seedling | E67: Fiber | F67: OK | G67: 0.204976 | H67: 3.62877 | I67: 4.14596 | J67: 2.48892 | K67: 0.01245 | L67: 0.0264472 | M67: yes
A68: COLO4_00396 | B68: XLOC_000533 | C68: Thioredoxin-like protein | D68: Seedling | E68: Fiber | F68: OK | G68: 14.0892 | H68: 102.786 | I68: 2.86699 | J68: 5.73552 | K68: 5e-05 | L68: 0.000179896 | M68: yes
A69: - | B69: XLOC_000561 | C69: Hypothetical protein | D69: Seedling | E69: Fiber | F69: OK | G69: 7.78221 | H69: 18.133 | I69: 1.22037 | J69: 2.13346 | K69: 0.0004 | L69: 0.00119976 | M69: yes
A70: - | B70: XLOC_000592 | C70: Hypothetical protein | D70: Seedling | E70: Fiber | F70: OK | G70: 0 | H70: 0.744559 | I70: Inf | J70: NA | K70: 0.00035 | L70: 0.00107397 | M70: yes
A71: - | B71: XLOC_000614 | C71: Hypothetical protein | D71: Seedling | E71: Fiber | F71: OK | G71: 0 | H71: 1.46575 | I71: Inf | J71: NA | K71: 5e-05 | L71: 0.000179896 | M71: yes
A72: - | B72: XLOC_000624 | C72: Hypothetical protein | D72: Seedling | E72: Fiber | F72: OK | G72: 0 | H72: 1.81106 | I72: Inf | J72: NA | K72: 0.0004 | L72: 0.00119976 | M72: yes
A73: - | B73: XLOC_000642 | C73: Hypothetical protein | D73: Seedling | E73: Fiber | F73: OK | G73: 66.5861 | H73: 400.996 | I73: 2.5903 | J73: 5.89005 | K73: 5e-05 | L73: 0.000179896 | M73: yes
A74: COLO4_00506 | B74: XLOC_000648 | C74: hypothetical protein | D74: Seedling | E74: Fiber | F74: OK | G74: 0.729774 | H74: 2.66539 | I74: 1.86883 | J74: 1.99781 | K74: 0.00095 | L74: 0.00262489 | M74: yes
A75: - | B75: XLOC_000663 | C75: Hypothetical protein | D75: Seedling | E75: Fiber | F75: OK | G75: 0.0981233 | H75: 0.68502 | I75: 2.80348 | J75: 2.06903 | K75: 0.0024 | L75: 0.00601306 | M75: yes
A76: - | B76: XLOC_000745 | C76: Hypothetical protein | D76: Seedling | E76: Fiber | F76: OK | G76: 1.61679 | H76: 3.11485 | I76: 0.946034 | J76: 1.2921 | K76: 0.02425 | L76: 0.0479189 | M76: yes
A77: - | B77: XLOC_000794 | C77: Hypothetical protein | D77: Seedling | E77: Fiber | F77: OK | G77: 2.52437 | H77: 19.728 | I77: 2.96625 | J77: 4.76569 | K77: 5e-05 | L77: 0.000179896 | M77: yes
A78: - | B78: XLOC_000866 | C78: Hypothetical protein | D78: Seedling | E78: Fiber | F78: OK | G78: 0.168344 | H78: 90.5505 | I78: 9.07117 | J78: 8.06141 | K78: 5e-05 | L78: 0.000179896 | M78: yes
A79: - | B79: XLOC_000868 | C79: Hypothetical protein | D79: Seedling | E79: Fiber | F79: OK | G79: 0 | H79: 62.6333 | I79: Inf | J79: NA | K79: 0.00045 | L79: 0.0013369 | M79: yes
A80: - | B80: XLOC_000939 | C80: Hypothetical protein | D80: Seedling | E80: Fiber | F80: OK | G80: 18.119 | H80: 611.695 | I80: 5.07724 | J80: 10.8597 | K80: 5e-05 | L80: 0.000179896 | M80: yes
A81: COLO4_00809 | B81: XLOC_000952 | C81: hypothetical protein | D81: Seedling | E81: Fiber | F81: OK | G81: 180.82 | H81: 575.771 | I81: 1.67094 | J81: 4.3137 | K81: 5e-05 | L81: 0.000179896 | M81: yes
A82: COLO4_00933 | B82: XLOC_001078 | C82: hypothetical protein | D82: Seedling | E82: Fiber | F82: OK | G82: 1.96967 | H82: 6.02123 | I82: 1.6121 | J82: 2.49944 | K82: 0.0001 | L82: 0.000343627 | M82: yes
A83: - | B83: XLOC_001129 | C83: Hypothetical protein | D83: Seedling | E83: Fiber | F83: OK | G83: 0.0804656 | H83: 29.9449 | I83: 8.53972 | J83: 4.54056 | K83: 0.0022 | L83: 0.00556596 | M83: yes
A84: - | B84: XLOC_001145 | C84: Hypothetical protein | D84: Seedling | E84: Fiber | F84: OK | G84: 0.413496 | H84: 1.66571 | I84: 2.01019 | J84: 2.00769 | K84: 0.00315 | L84: 0.00767343 | M84: yes
A85: - | B85: XLOC_001186 | C85: Hypothetical protein | D85: Seedling | E85: Fiber | F85: OK | G85: 0.735698 | H85: 153.519 | I85: 7.70508 | J85: 9.47736 | K85: 5e-05 | L85: 0.000179896 | M85: yes
A86: - | B86: XLOC_001251 | C86: Hypothetical protein | D86: Seedling | E86: Fiber | F86: OK | G86: 0 | H86: 4.21254 | I86: Inf | J86: NA | K86: 0.0001 | L86: 0.000343627 | M86: yes
A87: - | B87: XLOC_001357 | C87: Hypothetical protein | D87: Seedling | E87: Fiber | F87: OK | G87: 0 | H87: 26.5491 | I87: Inf | J87: NA | K87: 0.00025 | L87: 0.000793275 | M87: yes
A88: COLO4_01314 | B88: XLOC_001458 | C88: hypothetical protein | D88: Seedling | E88: Fiber | F88: OK | G88: 1.60848 | H88: 5.78754 | I88: 1.84726 | J88: 2.06153 | K88: 0.0021 | L88: 0.0053434 | M88: yes
A89: - | B89: XLOC_001514 | C89: Hypothetical protein | D89: Seedling | E89: Fiber | F89: OK | G89: 0 | H89: 0.590124 | I89: Inf | J89: NA | K89: 5e-05 | L89: 0.000179896 | M89: yes
A90: COLO4_01701 | B90: XLOC_001838 | C90: F-box protein | D90: Seedling | E90: Fiber | F90: OK | G90: 3.13858 | H90: 19.1668 | I90: 2.61043 | J90: 2.92082 | K90: 0.00015 | L90: 0.000499572 | M90: yes
A91: - | B91: XLOC_001931 | C91: Hypothetical protein | D91: Seedling | E91: Fiber | F91: OK | G91: 0 | H91: 5.02779 | I91: Inf | J91: NA | K91: 0.0004 | L91: 0.00119976 | M91: yes
A92: - | B92: XLOC_002136 | C92: Hypothetical protein | D92: Seedling | E92: Fiber | F92: OK | G92: 0 | H92: 4.02742 | I92: Inf | J92: NA | K92: 0.00025 | L92: 0.000793275 | M92: yes
A93: COLO4_02099 | B93: XLOC_002231 | C93: Photosystem I PsaA/PsaB | D93: Seedling | E93: Fiber | F93: OK | G93: 1.62021 | H93: 6.22731 | I93: 1.94243 | J93: 1.86865 | K93: 0.00375 | L93: 0.00900164 | M93: yes
A94: COLO4_02154 | B94: XLOC_002286 | C94: hypothetical protein | D94: Seedling | E94: Fiber | F94: OK | G94: 8.46847 | H94: 53.7548 | I94: 2.66622 | J94: 4.35327 | K94: 5e-05 | L94: 0.000179896 | M94: yes
A95: - | B95: XLOC_002333 | C95: Hypothetical protein | D95: Seedling | E95: Fiber | F95: OK | G95: 0 | H95: 1.37403 | I95: Inf | J95: NA | K95: 0.0003 | L95: 0.000932184 | M95: yes
A96: - | B96: XLOC_002658 | C96: Hypothetical protein | D96: Seedling | E96: Fiber | F96: OK | G96: 0.520966 | H96: 13.5164 | I96: 4.69737 | J96: 5.59491 | K96: 5e-05 | L96: 0.000179896 | M96: yes
A97: COLO4_02576 | B97: XLOC_002709 | C97: hypothetical protein | D97: Seedling | E97: Fiber | F97: OK | G97: 0.742346 | H97: 1.82473 | I97: 1.29752 | J97: 1.38165 | K97: 0.01935 | L97: 0.0392221 | M97: yes
A98: - | B98: XLOC_002751 | C98: Hypothetical protein | D98: Seedling | E98: Fiber | F98: OK | G98: 18.4257 | H98: 34.2984 | I98: 0.896425 | J98: 1.8611 | K98: 0.00165 | L98: 0.00430483 | M98: yes
A99: COLO4_02670 | B99: XLOC_002808 | C99: Cytochrome c oxidase, subunit I | D99: Seedling | E99: Fiber | F99: OK | G99: 0.902268 | H99: 4.74882 | I99: 2.39594 | J99: 3.11409 | K99: 5e-05 | L99: 0.000179896 | M99: yes
A100: - | B100: XLOC_002863 | C100: Hypothetical protein | D100: Seedling | E100: Fiber | F100: OK | G100: 7.06921 | H100: 12.0687 | I100: 0.771647 | J100: 1.34735 | K100: 0.0207 | L100: 0.0416021 | M100: yes
A101: - | B101: XLOC_002869 | C101: Hypothetical protein | D101: Seedling | E101: Fiber | F101: OK | G101: 1.9482 | H101: 5.26098 | I101: 1.43319 | J101: 2.26493 | K101: 5e-05 | L101: 0.000179896 | M101: yes
A102: - | B102: XLOC_002873 | C102: Hypothetical protein | D102: Seedling | E102: Fiber | F102: OK | G102: 4.87916 | H102: 11.0215 | I102: 1.17562 | J102: 1.33282 | K102: 0.0126 | L102: 0.0267255 | M102: yes
A103: - | B103: XLOC_002874 | C103: Hypothetical protein | D103: Seedling | E103: Fiber | F103: OK | G103: 0 | H103: 2.56673 | I103: Inf | J103: NA | K103: 0.0003 | L103: 0.000932184 | M103: yes
A104: - | B104: XLOC_002885 | C104: Hypothetical protein | D104: Seedling | E104: Fiber | F104: OK | G104: 0.792559 | H104: 2.59262 | I104: 1.70982 | J104: 1.53451 | K104: 0.00865 | L104: 0.0191294 | M104: yes
A105: COLO4_02733 | B105: XLOC_002892 | C105: Plant peroxidase | D105: Seedling | E105: Fiber | F105: OK | G105: 0.347151 | H105: 1.12951 | I105: 1.70206 | J105: 1.42048 | K105: 0.0155 | L105: 0.0321994 | M105: yes
A106: COLO4_02734 | B106: XLOC_002894 | C106: calcium-dependent protein kinase 29-like protein | D106: Seedling | E106: Fiber | F106: OK | G106: 1.27341 | H106: 13.6185 | I106: 3.4188 | J106: 2.61682 | K106: 0.0009 | L106: 0.00250313 | M106: yes
A107: - | B107: XLOC_002896 | C107: Hypothetical protein | D107: Seedling | E107: Fiber | F107: OK | G107: 0.215647 | H107: 3.56165 | I107: 4.0458 | J107: 2.29096 | K107: 0.02355 | L107: 0.0466376 | M107: yes
A108: - | B108: XLOC_002899 | C108: Hypothetical protein | D108: Seedling | E108: Fiber | F108: OK | G108: 0 | H108: 5.33303 | I108: Inf | J108: NA | K108: 5e-05 | L108: 0.000179896 | M108: yes
A109: COLO4_02741 | B109: XLOC_002903 | C109: hypothetical protein | D109: Seedling | E109: Fiber | F109: OK | G109: 14.0981 | H109: 29.6849 | I109: 1.07423 | J109: 2.57779 | K109: 5e-05 | L109: 0.000179896 | M109: yes
A110: - | B110: XLOC_002930 | C110: Hypothetical protein | D110: Seedling | E110: Fiber | F110: OK | G110: 9.13558 | H110: 73.9587 | I110: 3.01715 | J110: 5.47507 | K110: 5e-05 | L110: 0.000179896 | M110: yes
A111: COLO4_02766 | B111: XLOC_002937 | C111: hypothetical protein | D111: Seedling | E111: Fiber | F111: OK | G111: 1.1514 | H111: 55.4233 | I111: 5.58903 | J111: 6.15334 | K111: 5e-05 | L111: 0.000179896 | M111: yes
A112: - | B112: XLOC_002939 | C112: Hypothetical protein | D112: Seedling | E112: Fiber | F112: OK | G112: 0.638622 | H112: 4.34867 | I112: 2.76754 | J112: 2.26861 | K112: 0.0021 | L112: 0.0053434 | M112: yes
A113: - | B113: XLOC_002953 | C113: Hypothetical protein | D113: Seedling | E113: Fiber | F113: OK | G113: 1.64172 | H113: 30.782 | I113: 4.22881 | J113: 4.20728 | K113: 5e-05 | L113: 0.000179896 | M113: yes
A114: COLO4_02797 | B114: XLOC_002981 | C114: C2 calcium-dependent membrane targeting | D114: Seedling | E114: Fiber | F114: OK | G114: 0.715813 | H114: 12.3206 | I114: 4.10535 | J114: 4.73154 | K114: 5e-05 | L114: 0.000179896 | M114: yes
A115: - | B115: XLOC_002982 | C115: Hypothetical protein | D115: Seedling | E115: Fiber | F115: OK | G115: 0.160321 | H115: 15.1981 | I115: 6.56679 | J115: 4.24325 | K115: 0.0026 | L115: 0.00646362 | M115: yes
A116: - | B116: XLOC_002987 | C116: Hypothetical protein | D116: Seedling | E116: Fiber | F116: OK | G116: 0 | H116: 1.67982 | I116: Inf | J116: NA | K116: 5e-05 | L116: 0.000179896 | M116: yes
A117: COLO4_02801 | B117: XLOC_002988 | C117: hypothetical protein | D117: Seedling | E117: Fiber | F117: OK | G117: 13.5355 | H117: 23.0839 | I117: 0.770142 | J117: 1.37907 | K117: 0.0168 | L117: 0.0345738 | M117: yes
A118: - | B118: XLOC_003002 | C118: Hypothetical protein | D118: Seedling | E118: Fiber | F118: OK | G118: 1.2579 | H118: 11.5183 | I118: 3.19484 | J118: 2.75002 | K118: 0.0012 | L118: 0.0032417 | M118: yes
A119: - | B119: XLOC_003011 | C119: Hypothetical protein | D119: Seedling | E119: Fiber | F119: OK | G119: 7.1889 | H119: 16.1231 | I119: 1.16528 | J119: 2.04018 | K119: 0.00035 | L119: 0.00107397 | M119: yes
A120: - | B120: XLOC_003019 | C120: Hypothetical protein | D120: Seedling | E120: Fiber | F120: OK | G120: 0.72144 | H120: 2.69587 | I120: 1.9018 | J120: 2.03395 | K120: 0.0022 | L120: 0.00556596 | M120: yes
A121: COLO4_02826 | B121: XLOC_003026 | C121: Mitochondrial substrate/solute carrier | D121: Seedling | E121: Fiber | F121: OK | G121: 2.3221 | H121: 10.4886 | I121: 2.17532 | J121: 1.73028 | K121: 0.00395 | L121: 0.00943965 | M121: yes
A122: - | B122: XLOC_003029 | C122: Hypothetical protein | D122: Seedling | E122: Fiber | F122: OK | G122: 0 | H122: 2.42114 | I122: Inf | J122: NA | K122: 5e-05 | L122: 0.000179896 | M122: yes
A123: - | B123: XLOC_003033 | C123: Hypothetical protein | D123: Seedling | E123: Fiber | F123: OK | G123: 272.492 | H123: 671.935 | I123: 1.3021 | J123: 3.04881 | K123: 5e-05 | L123: 0.000179896 | M123: yes
A124: - | B124: XLOC_003049 | C124: Hypothetical protein | D124: Seedling | E124: Fiber | F124: OK | G124: 0 | H124: 0.499986 | I124: Inf | J124: NA | K124: 0.00055 | L124: 0.00160111 | M124: yes
A125: - | B125: XLOC_003051 | C125: Hypothetical protein | D125: Seedling | E125: Fiber | F125: OK | G125: 24.6355 | H125: 146.15 | I125: 2.56864 | J125: 4.63919 | K125: 5e-05 | L125: 0.000179896 | M125: yes
A126: - | B126: XLOC_003068 | C126: Hypothetical protein | D126: Seedling | E126: Fiber | F126: OK | G126: 0 | H126: 0.518791 | I126: Inf | J126: NA | K126: 0.00015 | L126: 0.000499572 | M126: yes
A127: - | B127: XLOC_003085 | C127: Hypothetical protein | D127: Seedling | E127: Fiber | F127: OK | G127: 0.385621 | H127: 3.60168 | I127: 3.22342 | J127: 3.16111 | K127: 5e-05 | L127: 0.000179896 | M127: yes
A128: - | B128: XLOC_003093 | C128: Hypothetical protein | D128: Seedling | E128: Fiber | F128: OK | G128: 0.0829748 | H128: 1.01272 | I128: 3.60942 | J128: 2.24436 | K128: 0.0093 | L128: 0.0204189 | M128: yes
A129: - | B129: XLOC_003103 | C129: Hypothetical protein | D129: Seedling | E129: Fiber | F129: OK | G129: 3.87809 | H129: 17.528 | I129: 2.17624 | J129: 2.58137 | K129: 0.0002 | L129: 0.000649769 | M129: yes
A130: - | B130: XLOC_003116 | C130: Hypothetical protein | D130: Seedling | E130: Fiber | F130: OK | G130: 1.00716 | H130: 5.70911 | I130: 2.50297 | J130: 2.48837 | K130: 0.0008 | L130: 0.00225197 | M130: yes
A131: - | B131: XLOC_003126 | C131: Hypothetical protein | D131: Seedling | E131: Fiber | F131: OK | G131: 5.96525 | H131: 11.8654 | I131: 0.992107 | J131: 1.44828 | K131: 0.0121 | L131: 0.0257816 | M131: yes
A132: - | B132: XLOC_003127 | C132: Hypothetical protein | D132: Seedling | E132: Fiber | F132: OK | G132: 7.42836 | H132: 19.2782 | I132: 1.37586 | J132: 2.6465 | K132: 5e-05 | L132: 0.000179896 | M132: yes
A133: - | B133: XLOC_003128 | C133: Hypothetical protein | D133: Seedling | E133: Fiber | F133: OK | G133: 0 | H133: 1.56758 | I133: Inf | J133: NA | K133: 0.0004 | L133: 0.00119976 | M133: yes
A134: COLO4_02890 | B134: XLOC_003130 | C134: hypothetical protein | D134: Seedling | E134: Fiber | F134: OK | G134: 0.0418265 | H134: 3.46641 | I134: 6.37288 | J134: 4.06087 | K134: 0.0005 | L134: 0.00147317 | M134: yes
A135: - | B135: XLOC_003145 | C135: Hypothetical protein | D135: Seedling | E135: Fiber | F135: OK | G135: 40.9641 | H135: 128.786 | I135: 1.65255 | J135: 2.02303 | K135: 0.0066 | L135: 0.015044 | M135: yes
A136: - | B136: XLOC_003150 | C136: Hypothetical protein | D136: Seedling | E136: Fiber | F136: OK | G136: 0 | H136: 1.72106 | I136: Inf | J136: NA | K136: 5e-05 | L136: 0.000179896 | M136: yes
A137: - | B137: XLOC_003153 | C137: Hypothetical protein | D137: Seedling | E137: Fiber | F137: OK | G137: 0 | H137: 17.2935 | I137: Inf | J137: NA | K137: 0.0002 | L137: 0.000649769 | M137: yes
A138: COLO4_02900 | B138: XLOC_003156 | C138: hypothetical protein | D138: Seedling | E138: Fiber | F138: OK | G138: 90.0248 | H138: 130.648 | I138: 0.537288 | J138: 1.30274 | K138: 0.0207 | L138: 0.0416021 | M138: yes
A139: COLO4_02903 | B139: XLOC_003159 | C139: hypothetical protein | D139: Seedling | E139: Fiber | F139: OK | G139: 65.3979 | H139: 94.9506 | I139: 0.537932 | J139: 1.25527 | K139: 0.02355 | L139: 0.0466376 | M139: yes
A140: - | B140: XLOC_003165 | C140: Hypothetical protein | D140: Seedling | E140: Fiber | F140: OK | G140: 0.66816 | H140: 11.7648 | I140: 4.13814 | J140: 3.28884 | K140: 0.00015 | L140: 0.000499572 | M140: yes
A141: - | B141: XLOC_003167 | C141: Hypothetical protein | D141: Seedling | E141: Fiber | F141: OK | G141: 3.18054 | H141: 16.7397 | I141: 2.39593 | J141: 5.30072 | K141: 5e-05 | L141: 0.000179896 | M141: yes
A142: - | B142: XLOC_003169 | C142: Hypothetical protein | D142: Seedling | E142: Fiber | F142: OK | G142: 0.580075 | H142: 2.14439 | I142: 1.88625 | J142: 1.82967 | K142: 0.0051 | L142: 0.011908 | M142: yes
A143: - | B143: XLOC_003171 | C143: Hypothetical protein | D143: Seedling | E143: Fiber | F143: OK | G143: 0.246063 | H143: 3.60905 | I143: 3.87452 | J143: 2.37384 | K143: 0.0071 | L143: 0.0160565 | M143: yes
A144: - | B144: XLOC_003176 | C144: Hypothetical protein | D144: Seedling | E144: Fiber | F144: OK | G144: 0.779364 | H144: 2.7672 | I144: 1.82806 | J144: 2.22558 | K144: 0.00065 | L144: 0.00186245 | M144: yes
A145: COLO4_02927 | B145: XLOC_003196 | C145: hypothetical protein | D145: Seedling | E145: Fiber | F145: OK | G145: 1.89003 | H145: 47.5342 | I145: 4.65248 | J145: 7.88533 | K145: 5e-05 | L145: 0.000179896 | M145: yes
A146: COLO4_02936 | B146: XLOC_003207 | C146: Leucoanthocyanidin dioxygenase, putative | D146: Seedling | E146: Fiber | F146: OK | G146: 0 | H146: 4.38519 | I146: Inf | J146: NA | K146: 0.0002 | L146: 0.000649769 | M146: yes
A147: COLO4_02939 | B147: XLOC_003210 | C147: hypothetical protein | D147: Seedling | E147: Fiber | F147: OK | G147: 0.0174909 | H147: 2.62213 | I147: 7.22799 | J147: 2.22538 | K147: 0.00025 | L147: 0.000793275 | M147: yes
A148: - | B148: XLOC_003211 | C148: Hypothetical protein | D148: Seedling | E148: Fiber | F148: OK | G148: 0 | H148: 0.407212 | I148: Inf | J148: NA | K148: 0.0009 | L148: 0.00250313 | M148: yes
A149: COLO4_02953 | B149: XLOC_003232 | C149: E3 ubiquitin-protein ligase TRAF7 | D149: Seedling | E149: Fiber | F149: OK | G149: 0 | H149: 0.514052 | I149: Inf | J149: NA | K149: 0.0012 | L149: 0.0032417 | M149: yes
A150: - | B150: XLOC_003233 | C150: Hypothetical protein | D150: Seedling | E150: Fiber | F150: OK | G150: 1.41518 | H150: 8.66904 | I150: 2.61488 | J150: 3.66145 | K150: 5e-05 | L150: 0.000179896 | M150: yes
A151: - | B151: XLOC_003234 | C151: Hypothetical protein | D151: Seedling | E151: Fiber | F151: OK | G151: 0 | H151: 0.373079 | I151: Inf | J151: NA | K151: 0.0003 | L151: 0.000932184 | M151: yes
A152: COLO4_02959 | B152: XLOC_003240 | C152: hypothetical protein | D152: Seedling | E152: Fiber | F152: OK | G152: 0.63551 | H152: 1.61339 | I152: 1.34411 | J152: 1.75309 | K152: 0.00705 | L152: 0.015952 | M152: yes
A153: - | B153: XLOC_003259 | C153: Hypothetical protein | D153: Seedling | E153: Fiber | F153: OK | G153: 0.134962 | H153: 1.512 | I153: 3.48583 | J153: 2.01831 | K153: 0.0188 | L153: 0.0382083 | M153: yes
A154: - | B154: XLOC_003292 | C154: Hypothetical protein | D154: Seedling | E154: Fiber | F154: OK | G154: 0.257572 | H154: 2.49885 | I154: 3.27822 | J154: 2.11013 | K154: 0.0152 | L154: 0.0316672 | M154: yes
A155: - | B155: XLOC_003329 | C155: Hypothetical protein | D155: Seedling | E155: Fiber | F155: OK | G155: 0.47231 | H155: 4.33757 | I155: 3.19908 | J155: 3.10584 | K155: 5e-05 | L155: 0.000179896 | M155: yes
A156: - | B156: XLOC_003351 | C156: Hypothetical protein | D156: Seedling | E156: Fiber | F156: OK | G156: 1.22861 | H156: 4.27948 | I156: 1.8004 | J156: 2.45809 | K156: 0.0001 | L156: 0.000343627 | M156: yes
A157: - | B157: XLOC_003379 | C157: Hypothetical protein | D157: Seedling | E157: Fiber | F157: OK | G157: 0 | H157: 1.55659 | I157: Inf | J157: NA | K157: 0.00025 | L157: 0.000793275 | M157: yes
A158: - | B158: XLOC_003434 | C158: Hypothetical protein | D158: Seedling | E158: Fiber | F158: OK | G158: 0.206355 | H158: 0.834464 | I158: 2.01572 | J158: 1.85394 | K158: 0.00255 | L158: 0.00635242 | M158: yes
A159: - | B159: XLOC_003455 | C159: Hypothetical protein | D159: Seedling | E159: Fiber | F159: OK | G159: 0 | H159: 4.46784 | I159: Inf | J159: NA | K159: 0.00055 | L159: 0.00160111 | M159: yes
A160: - | B160: XLOC_003531 | C160: Hypothetical protein | D160: Seedling | E160: Fiber | F160: OK | G160: 0.463883 | H160: 32.2458 | I160: 6.1192 | J160: 6.41713 | K160: 5e-05 | L160: 0.000179896 | M160: yes
A161: COLO4_03288 | B161: XLOC_003592 | C161: hypothetical protein | D161: Seedling | E161: Fiber | F161: OK | G161: 4.0982 | H161: 6.94268 | I161: 0.760503 | J161: 1.59586 | K161: 0.0077 | L161: 0.0172485 | M161: yes
A162: COLO4_03295 | B162: XLOC_003599 | C162: HAUS augmin-like complex subunit 3 | D162: Seedling | E162: Fiber | F162: OK | G162: 27.7729 | H162: 68.7182 | I162: 1.30702 | J162: 3.16804 | K162: 5e-05 | L162: 0.000179896 | M162: yes
A163: COLO4_03308 | B163: XLOC_003614 | C163: hypothetical protein | D163: Seedling | E163: Fiber | F163: OK | G163: 31.4072 | H163: 72.6244 | I163: 1.20936 | J163: 1.66665 | K163: 0.0036 | L163: 0.00867365 | M163: yes
A164: - | B164: XLOC_003624 | C164: Hypothetical protein | D164: Seedling | E164: Fiber | F164: OK | G164: 5.83406 | H164: 15.9964 | I164: 1.45517 | J164: 2.70308 | K164: 5e-05 | L164: 0.000179896 | M164: yes
A165: COLO4_03326 | B165: XLOC_003636 | C165: Oxoglutarate/iron-dependent dioxygenase | D165: Seedling | E165: Fiber | F165: OK | G165: 0.0715794 | H165: 0.664859 | I165: 3.21543 | J165: 1.82831 | K165: 0.02525 | L165: 0.0496508 | M165: yes
A166: COLO4_03335 | B166: XLOC_003649 | C166: hypothetical protein | D166: Seedling | E166: Fiber | F166: OK | G166: 4.63343 | H166: 27.6378 | I166: 2.57649 | J166: 1.7479 | K166: 0.0129 | L166: 0.0273001 | M166: yes
A167: COLO4_03335 | B167: XLOC_003650 | C167: hypothetical protein | D167: Seedling | E167: Fiber | F167: OK | G167: 76.56 | H167: 148.97 | I167: 0.960354 | J167: 1.70689 | K167: 0.0036 | L167: 0.00867365 | M167: yes
A168: COLO4_03336 | B168: XLOC_003651 | C168: Cytochrome P450 | D168: Seedling | E168: Fiber | F168: OK | G168: 7.19391 | H168: 35.8784 | I168: 2.31827 | J168: 4.29885 | K168: 5e-05 | L168: 0.000179896 | M168: yes
A169: COLO4_03338 | B169: XLOC_003653 | C169: hypothetical protein | D169: Seedling | E169: Fiber | F169: OK | G169: 0.116981 | H169: 0.546027 | I169: 2.2227 | J169: 1.61945 | K169: 0.0096 | L169: 0.0210156 | M169: yes
A170: - | B170: XLOC_003654 | C170: Hypothetical protein | D170: Seedling | E170: Fiber | F170: OK | G170: 0.14561 | H170: 0.572044 | I170: 1.97402 | J170: 1.38743 | K170: 0.01745 | L170: 0.0357632 | M170: yes
A171: - | B171: XLOC_003658 | C171: Hypothetical protein | D171: Seedling | E171: Fiber | F171: OK | G171: 4.79928 | H171: 14.2755 | I171: 1.57265 | J171: 2.98372 | K171: 5e-05 | L171: 0.000179896 | M171: yes
A172: COLO4_03350 | B172: XLOC_003669 | C172: Protein-L-isoaspartate(D-aspartate) O-methyltransferase | D172: Seedling | E172: Fiber | F172: OK | G172: 26.4626 | H172: 176.905 | I172: 2.74095 | J172: 5.78854 | K172: 5e-05 | L172: 0.000179896 | M172: yes
A173: COLO4_03363 | B173: XLOC_003680 | C173: hypothetical protein | D173: Seedling | E173: Fiber | F173: OK | G173: 0.606973 | H173: 2.44043 | I173: 2.00743 | J173: 2.95251 | K173: 5e-05 | L173: 0.000179896 | M173: yes
A174: COLO4_03364 | B174: XLOC_003682 | C174: hypothetical protein | D174: Seedling | E174: Fiber | F174: OK | G174: 74.3013 | H174: 157.838 | I174: 1.08698 | J174: 2.14322 | K174: 0.0002 | L174: 0.000649769 | M174: yes
A175: COLO4_03383 | B175: XLOC_003704 | C175: hypothetical protein | D175: Seedling | E175: Fiber | F175: OK | G175: 96.6646 | H175: 137.866 | I175: 0.512209 | J175: 1.33481 | K175: 0.01995 | L175: 0.0402899 | M175: yes
A176: COLO4_03386 | B176: XLOC_003707 | C176: hypothetical protein | D176: Seedling | E176: Fiber | F176: OK | G176: 6.28225 | H176: 17.1381 | I176: 1.44785 | J176: 3.0389 | K176: 5e-05 | L176: 0.000179896 | M176: yes
A177: COLO4_03389 | B177: XLOC_003710 | C177: Oxoglutarate/iron-dependent dioxygenase | D177: Seedling | E177: Fiber | F177: OK | G177: 0.925608 | H177: 7.80876 | I177: 3.07662 | J177: 3.87853 | K177: 5e-05 | L177: 0.000179896 | M177: yes
A178: COLO4_03408 | B178: XLOC_003729 | C178: hypothetical protein | D178: Seedling | E178: Fiber | F178: OK | G178: 88.6223 | H178: 309.754 | I178: 1.80538 | J178: 4.50111 | K178: 5e-05 | L178: 0.000179896 | M178: yes
A179: - | B179: XLOC_003731 | C179: nuclear receptor coactivator 7 isoform 5 | D179: Seedling | E179: Fiber | F179: OK | G179: 0.358421 | H179: 1.8966 | I179: 2.40369 | J179: 2.23674 | K179: 0.00055 | L179: 0.00160111 | M179: yes
A180: - | B180: XLOC_003736 | C180: Hypothetical protein | D180: Seedling | E180: Fiber | F180: OK | G180: 0.416665 | H180: 1.77303 | I180: 2.08926 | J180: 2.05663 | K180: 0.00065 | L180: 0.00186245 | M180: yes
A181: - | B181: XLOC_003738 | C181: Hypothetical protein | D181: Seedling | E181: Fiber | F181: OK | G181: 19.4862 | H181: 46.332 | I181: 1.24955 | J181: 2.95531 | K181: 5e-05 | L181: 0.000179896 | M181: yes
A182: - | B182: XLOC_003767 | C182: Hypothetical protein | D182: Seedling | E182: Fiber | F182: OK | G182: 0 | H182: 16.9198 | I182: Inf | J182: NA | K182: 0.00025 | L182: 0.000793275 | M182: yes
A183: - | B183: XLOC_003784 | C183: Hypothetical protein | D183: Seedling | E183: Fiber | F183: OK | G183: 0 | H183: 0.503486 | I183: Inf | J183: NA | K183: 0.0005 | L183: 0.00147317 | M183: yes
A184: COLO4_03452 | B184: XLOC_003788 | C184: hypothetical protein | D184: Seedling | E184: Fiber | F184: OK | G184: 3.1403 | H184: 19.9877 | I184: 2.67014 | J184: 5.25222 | K184: 5e-05 | L184: 0.000179896 | M184: yes
A185: - | B185: XLOC_003792 | C185: Hypothetical protein | D185: Seedling | E185: Fiber | F185: OK | G185: 3.42274 | H185: 22.3757 | I185: 2.70871 | J185: 2.99926 | K185: 5e-05 | L185: 0.000179896 | M185: yes
A186: COLO4_03466 | B186: XLOC_003803 | C186: hypothetical protein | D186: Seedling | E186: Fiber | F186: OK | G186: 45.9398 | H186: 82.6705 | I186: 0.847626 | J186: 1.75474 | K186: 0.003 | L186: 0.00734833 | M186: yes
A187: COLO4_03467 | B187: XLOC_003804 | C187: hypothetical protein | D187: Seedling | E187: Fiber | F187: OK | G187: 27.7422 | H187: 56.741 | I187: 1.03231 | J187: 1.98799 | K187: 0.00075 | L187: 0.00212327 | M187: yes
A188: COLO4_03471 | B188: XLOC_003808 | C188: hypothetical protein | D188: Seedling | E188: Fiber | F188: OK | G188: 3.7657 | H188: 6.20007 | I188: 0.719369 | J188: 1.37115 | K188: 0.01735 | L188: 0.0355784 | M188: yes
A189: - | B189: XLOC_003816 | C189: Hypothetical protein | D189: Seedling | E189: Fiber | F189: OK | G189: 5.52991 | H189: 12.8269 | I189: 1.21384 | J189: 1.79218 | K189: 0.0019 | L189: 0.00487913 | M189: yes
A190: COLO4_03478 | B190: XLOC_003817 | C190: hypothetical protein | D190: Seedling | E190: Fiber | F190: OK | G190: 15.2511 | H190: 89.6633 | I190: 2.5556 | J190: 4.09537 | K190: 5e-05 | L190: 0.000179896 | M190: yes
A191: - | B191: XLOC_003823 | C191: Hypothetical protein | D191: Seedling | E191: Fiber | F191: OK | G191: 0.36509 | H191: 1.44973 | I191: 1.98946 | J191: 1.48726 | K191: 0.0135 | L191: 0.0284415 | M191: yes
A192: - | B192: XLOC_003824 | C192: Hypothetical protein | D192: Seedling | E192: Fiber | F192: OK | G192: 32.4507 | H192: 85.7128 | I192: 1.40126 | J192: 3.47218 | K192: 5e-05 | L192: 0.000179896 | M192: yes
A193: COLO4_03486 | B193: XLOC_003827 | C193: SNARE associated Golgi protein | D193: Seedling | E193: Fiber | F193: OK | G193: 48.4804 | H193: 90.0274 | I193: 0.892965 | J193: 2.05525 | K193: 0.0003 | L193: 0.000932184 | M193: yes
A194: - | B194: XLOC_003838 | C194: Hypothetical protein | D194: Seedling | E194: Fiber | F194: OK | G194: 0.151693 | H194: 1.59872 | I194: 3.39769 | J194: 2.04358 | K194: 0.0176 | L194: 0.0360472 | M194: yes
A195: - | B195: XLOC_003840 | C195: Hypothetical protein | D195: Seedling | E195: Fiber | F195: OK | G195: 0.842871 | H195: 20.3821 | I195: 4.59585 | J195: 3.7726 | K195: 5e-05 | L195: 0.000179896 | M195: yes
A196: COLO4_03501 | B196: XLOC_003848 | C196: hypothetical protein | D196: Seedling | E196: Fiber | F196: OK | G196: 0.29117 | H196: 0.830711 | I196: 1.51249 | J196: 1.39712 | K196: 0.01755 | L196: 0.0359507 | M196: yes
A197: - | B197: XLOC_003872 | C197: Hypothetical protein | D197: Seedling | E197: Fiber | F197: OK | G197: 34.0592 | H197: 213.692 | I197: 2.64941 | J197: 3.99426 | K197: 5e-05 | L197: 0.000179896 | M197: yes
A198: - | B198: XLOC_003879 | C198: Hypothetical protein | D198: Seedling | E198: Fiber | F198: OK | G198: 1.62106 | H198: 6.59853 | I198: 2.0252 | J198: 1.87044 | K198: 0.002 | L198: 0.00511414 | M198: yes
A199: - | B199: XLOC_003881 | C199: Hypothetical protein | D199: Seedling | E199: Fiber | F199: OK | G199: 33.6016 | H199: 58.1448 | I199: 0.79112 | J199: 1.73187 | K199: 0.00315 | L199: 0.00767343 | M199: yes
A200: COLO4_03538 | B200: XLOC_003894 | C200: Zinc finger, RING-type | D200: Seedling | E200: Fiber | F200: OK | G200: 5.79356 | H200: 18.229 | I200: 1.65371 | J200: 2.44944 | K200: 0.0001 | L200: 0.000343627 | M200: yes
A201: COLO4_03540 | B201: XLOC_003895 | C201: hypothetical protein | D201: Seedling | E201: Fiber | F201: OK | G201: 7.27372 | H201: 117.642 | I201: 4.01557 | J201: 2.85572 | K201: 5e-05 | L201: 0.000179896 | M201: yes
... 4299 more rows

Sheet Supplementary Table 31
A1: Supplementay Table 31. List of differentially expressed genes in fiber cells and seedlings of Corchorus capsularis (FDR: False Discovery Rate, FDR < 0.05). (A) Up-regulated genes (B) Down-regulated genes
A3: (A) Up-regulated genes
A4: Gene model | B4: Transcript ID | C4: Annotation | D4: sample_1 | E4: sample_2 | F4: status | G4: FPKM value for seedlings | H4: FPKM value for fiber cells | I4: log2 fold change | J4: test_stat | K4: p_value | L4: q_value | M4: significant
A5: - | B5: XLOC_000015 | C5: Hypothetical protein | D5: Seedling | E5: Fiber | F5: OK | G5: 0.880285 | H5: 2.6486 | I5: 1.58918 | J5: 1.94527 | K5: 0.00365 | L5: 0.00704711 | M5: yes
A6: CCACVL1_00021 | B6: XLOC_000023 | C6: Transcription factor, MADS-box | D6: Seedling | E6: Fiber | F6: OK | G6: 1.70025 | H6: 6.30754 | I6: 1.89133 | J6: 1.89317 | K6: 0.00865 | L6: 0.0154862 | M6: yes
A7: - | B7: XLOC_000031 | C7: Hypothetical protein | D7: Seedling | E7: Fiber | F7: OK | G7: 1.42645 | H7: 3.57382 | I7: 1.32504 | J7: 2.55689 | K7: 5e-05 | L7: 0.000126572 | M7: yes
A8: - | B8: XLOC_000053 | C8: Hypothetical protein | D8: Seedling | E8: Fiber | F8: OK | G8: 0.0568276 | H8: 0.198191 | I8: 1.80222 | J8: 1.60743 | K8: 0.01155 | L8: 0.0201625 | M8: yes
A9: - | B9: XLOC_000072 | C9: Hypothetical protein | D9: Seedling | E9: Fiber | F9: OK | G9: 0.375694 | H9: 1.75762 | I9: 2.226 | J9: 2.02818 | K9: 0.00145 | L9: 0.00299562 | M9: yes
A10: CCACVL1_00065 | B10: XLOC_000079 | C10: hypothetical protein | D10: Seedling | E10: Fiber | F10: OK | G10: 18.2924 | H10: 28.1395 | I10: 0.621348 | J10: 1.75005 | K10: 0.002 | L10: 0.00404038 | M10: yes
A11: - | B11: XLOC_000082 | C11: Hypothetical protein | D11: Seedling | E11: Fiber | F11: OK | G11: 0.818104 | H11: 4.44282 | I11: 2.44112 | J11: 3.87429 | K11: 5e-05 | L11: 0.000126572 | M11: yes
A12: CCACVL1_00069 | B12: XLOC_000084 | C12: Band 7 protein | D12: Seedling | E12: Fiber | F12: OK | G12: 151.905 | H12: 375.808 | I12: 1.30683 | J12: 2.13563 | K12: 0.0002 | L12: 0.000468746 | M12: yes
A13: CCACVL1_00070 | B13: XLOC_000086 | C13: hypothetical protein | D13: Seedling | E13: Fiber | F13: OK | G13: 233.709 | H13: 422.931 | I13: 0.855708 | J13: 1.6464 | K13: 0.00435 | L13: 0.00825038 | M13: yes
A14: CCACVL1_00073 | B14: XLOC_000088 | C14: hypothetical protein | D14: Seedling | E14: Fiber | F14: OK | G14: 0 | H14: 0.307003 | I14: Inf | J14: NA | K14: 5e-05 | L14: 0.000126572 | M14: yes
A15: CCACVL1_00077 | B15: XLOC_000094 | C15: hypothetical protein | D15: Seedling | E15: Fiber | F15: OK | G15: 51.9192 | H15: 150.588 | I15: 1.53627 | J15: 4.00867 | K15: 5e-05 | L15: 0.000126572 | M15: yes
A16: CCACVL1_00082 | B16: XLOC_000099 | C16: hypothetical protein | D16: Seedling | E16: Fiber | F16: OK | G16: 52.8028 | H16: 1729.76 | I16: 5.03381 | J16: 5.88636 | K16: 5e-05 | L16: 0.000126572 | M16: yes
A17: - | B17: XLOC_000100 | C17: Hypothetical protein | D17: Seedling | E17: Fiber | F17: OK | G17: 103.003 | H17: 341.648 | I17: 1.72983 | J17: 5.14058 | K17: 5e-05 | L17: 0.000126572 | M17: yes
A18: - | B18: XLOC_000118 | C18: Hypothetical protein | D18: Seedling | E18: Fiber | F18: OK | G18: 0.343919 | H18: 1.43365 | I18: 2.05955 | J18: 2.71918 | K18: 5e-05 | L18: 0.000126572 | M18: yes
A19: CCACVL1_00114 | B19: XLOC_000135 | C19: hypothetical protein | D19: Seedling | E19: Fiber | F19: OK | G19: 1.89323 | H19: 22.1033 | I19: 3.54533 | J19: 0.890979 | K19: 0.0154 | L19: 0.0262313 | M19: yes
A20: CCACVL1_00116 | B20: XLOC_000136 | C20: hypothetical protein | D20: Seedling | E20: Fiber | F20: OK | G20: 58.1521 | H20: 165.507 | I20: 1.50899 | J20: 4.60603 | K20: 5e-05 | L20: 0.000126572 | M20: yes
A21: CCACVL1_00121 | B21: XLOC_000140 | C21: hypothetical protein | D21: Seedling | E21: Fiber | F21: OK | G21: 2.56612 | H21: 4.55328 | I21: 0.827318 | J21: 1.70714 | K21: 0.0033 | L21: 0.0064357 | M21: yes
A22: CCACVL1_00133 | B22: XLOC_000153 | C22: hypothetical protein | D22: Seedling | E22: Fiber | F22: OK | G22: 1.86216 | H22: 4.03235 | I22: 1.11464 | J22: 2.09475 | K22: 0.0006 | L22: 0.00131613 | M22: yes
A23: - | B23: XLOC_000155 | C23: Hypothetical protein | D23: Seedling | E23: Fiber | F23: OK | G23: 0.142972 | H23: 3.31658 | I23: 4.53589 | J23: 4.51339 | K23: 5e-05 | L23: 0.000126572 | M23: yes
A24: CCACVL1_00137 | B24: XLOC_000158 | C24: hypothetical protein | D24: Seedling | E24: Fiber | F24: OK | G24: 4.04159 | H24: 6.9096 | I24: 0.773679 | J24: 1.37135 | K24: 0.019 | L24: 0.0317936 | M24: yes
A25: CCACVL1_00135 | B25: XLOC_000160 | C25: hypothetical protein | D25: Seedling | E25: Fiber | F25: OK | G25: 0.376126 | H25: 1.2031 | I25: 1.67747 | J25: 2.99192 | K25: 5e-05 | L25: 0.000126572 | M25: yes
A26: CCACVL1_00152 | B26: XLOC_000176 | C26: ATPase, F1 complex, gamma subunit | D26: Seedling | E26: Fiber | F26: OK | G26: 2.38272 | H26: 4.6714 | I26: 0.971244 | J26: 1.83853 | K26: 0.0016 | L26: 0.0032822 | M26: yes
A27: CCACVL1_00156 | B27: XLOC_000180 | C27: RNA-processing protein, HAT helix | D27: Seedling | E27: Fiber | F27: OK | G27: 4.68 | H27: 6.67831 | I27: 0.512976 | J27: 1.277 | K27: 0.0269 | L27: 0.0434936 | M27: yes
A28: CCACVL1_00164 | B28: XLOC_000187 | C28: hypothetical protein | D28: Seedling | E28: Fiber | F28: OK | G28: 37.916 | H28: 74.2534 | I28: 0.96965 | J28: 2.50585 | K28: 5e-05 | L28: 0.000126572 | M28: yes
A29: - | B29: XLOC_000192 | C29: Hypothetical protein | D29: Seedling | E29: Fiber | F29: OK | G29: 0 | H29: 1.45415 | I29: Inf | J29: NA | K29: 5e-05 | L29: 0.000126572 | M29: yes
A30: - | B30: XLOC_000206 | C30: Hypothetical protein | D30: Seedling | E30: Fiber | F30: OK | G30: 0.0646039 | H30: 0.655712 | I30: 3.34337 | J30: 2.23917 | K30: 0.01525 | L30: 0.0259937 | M30: yes
A31: CCACVL1_00186 | B31: XLOC_000218 | C31: hypothetical protein | D31: Seedling | E31: Fiber | F31: OK | G31: 15.5793 | H31: 25.4823 | I31: 0.709865 | J31: 1.62449 | K31: 0.0044 | L31: 0.00833817 | M31: yes
A32: CCACVL1_00189 | B32: XLOC_000221 | C32: hypothetical protein | D32: Seedling | E32: Fiber | F32: OK | G32: 9.94137 | H32: 36.62 | I32: 1.88112 | J32: 3.84003 | K32: 5e-05 | L32: 0.000126572 | M32: yes
A33: CCACVL1_00195 | B33: XLOC_000229 | C33: hypothetical protein | D33: Seedling | E33: Fiber | F33: OK | G33: 0.104791 | H33: 0.549989 | I33: 2.39189 | J33: 1.39392 | K33: 0.0078 | L33: 0.0140941 | M33: yes
A34: CCACVL1_00197 | B34: XLOC_000231 | C34: hypothetical protein | D34: Seedling | E34: Fiber | F34: OK | G34: 12.3544 | H34: 26.5474 | I34: 1.10355 | J34: 2.63486 | K34: 5e-05 | L34: 0.000126572 | M34: yes
A35: - | B35: XLOC_000244 | C35: Hypothetical protein | D35: Seedling | E35: Fiber | F35: OK | G35: 0.152789 | H35: 1.25722 | I35: 3.04063 | J35: 2.6136 | K35: 0.00205 | L35: 0.00413395 | M35: yes
A36: CCACVL1_00214 | B36: XLOC_000250 | C36: Ribosomal protein S15 | D36: Seedling | E36: Fiber | F36: OK | G36: 14.0994 | H36: 37.3513 | I36: 1.40553 | J36: 3.28395 | K36: 5e-05 | L36: 0.000126572 | M36: yes
A37: - | B37: XLOC_000263 | C37: Hypothetical protein | D37: Seedling | E37: Fiber | F37: OK | G37: 0 | H37: 0.626666 | I37: Inf | J37: NA | K37: 0.0001 | L37: 0.000244699 | M37: yes
A38: CCACVL1_00232 | B38: XLOC_000275 | C38: Armadillo-like helical | D38: Seedling | E38: Fiber | F38: OK | G38: 17.784 | H38: 27.3193 | I38: 0.619341 | J38: 1.74946 | K38: 0.00285 | L38: 0.00561571 | M38: yes
A39: - | B39: XLOC_000276 | C39: Hypothetical protein | D39: Seedling | E39: Fiber | F39: OK | G39: 0.0287034 | H39: 1.88091 | I39: 6.03406 | J39: 4.21868 | K39: 0.002 | L39: 0.00404038 | M39: yes
A40: CCACVL1_00233 | B40: XLOC_000277 | C40: Disease resistance protein | D40: Seedling | E40: Fiber | F40: OK | G40: 0.730839 | H40: 1.8601 | I40: 1.34776 | J40: 3.07102 | K40: 5e-05 | L40: 0.000126572 | M40: yes
A41: - | B41: XLOC_000298 | C41: Hypothetical protein | D41: Seedling | E41: Fiber | F41: OK | G41: 1.81852 | H41: 2.8265 | I41: 0.636253 | J41: 1.39767 | K41: 0.01505 | L41: 0.0256793 | M41: yes
A42: CCACVL1_00257 | B42: XLOC_000306 | C42: hypothetical protein | D42: Seedling | E42: Fiber | F42: OK | G42: 58.1079 | H42: 163.135 | I42: 1.48926 | J42: 2.28604 | K42: 5e-05 | L42: 0.000126572 | M42: yes
A43: CCACVL1_00268 | B43: XLOC_000317 | C43: Endonuclease/exonuclease/phosphatase,tRNA/rRNA methyltransferase, SpoU | D43: Seedling | E43: Fiber | F43: OK | G43: 4.98057 | H43: 13.3263 | I43: 1.4199 | J43: 2.49222 | K43: 5e-05 | L43: 0.000126572 | M43: yes
A44: - | B44: XLOC_000322 | C44: Hypothetical protein | D44: Seedling | E44: Fiber | F44: OK | G44: 12.3516 | H44: 24.35 | I44: 0.979219 | J44: 2.38606 | K44: 5e-05 | L44: 0.000126572 | M44: yes
A45: CCACVL1_00283 | B45: XLOC_000334 | C45: hypothetical protein | D45: Seedling | E45: Fiber | F45: OK | G45: 0.0439213 | H45: 0.457506 | I45: 3.3808 | J45: 1.64168 | K45: 0.01225 | L45: 0.0212748 | M45: yes
A46: CCACVL1_00286 | B46: XLOC_000337 | C46: Malic oxidoreductase | D46: Seedling | E46: Fiber | F46: OK | G46: 64.23 | H46: 92.2483 | I46: 0.522275 | J46: 1.56794 | K46: 0.00575 | L46: 0.0106899 | M46: yes
A47: - | B47: XLOC_000339 | C47: Hypothetical protein | D47: Seedling | E47: Fiber | F47: OK | G47: 0.7233 | H47: 11.5786 | I47: 4.00072 | J47: 4.37426 | K47: 5e-05 | L47: 0.000126572 | M47: yes
A48: CCACVL1_00288 | B48: XLOC_000342 | C48: hypothetical protein | D48: Seedling | E48: Fiber | F48: OK | G48: 13.101 | H48: 30.7001 | I48: 1.22856 | J48: 2.67862 | K48: 5e-05 | L48: 0.000126572 | M48: yes
A49: CCACVL1_00290 | B49: XLOC_000343 | C49: Beta-lactamase-like protein,Calreticulin/calnexin | D49: Seedling | E49: Fiber | F49: OK | G49: 76.6397 | H49: 113.218 | I49: 0.562942 | J49: 1.3384 | K49: 0.0198 | L49: 0.0330094 | M49: yes
A50: CCACVL1_00293 | B50: XLOC_000346 | C50: Proton-dependent oligopeptide transporter family,hypothetical protein | D50: Seedling | E50: Fiber | F50: OK | G50: 19.4619 | H50: 37.1433 | I50: 0.932449 | J50: 1.02888 | K50: 0.023 | L50: 0.0377635 | M50: yes
A51: CCACVL1_00298 | B51: XLOC_000352 | C51: hypothetical protein | D51: Seedling | E51: Fiber | F51: OK | G51: 58.0191 | H51: 87.182 | I51: 0.587502 | J51: 1.6281 | K51: 0.0043 | L51: 0.00816118 | M51: yes
A52: CCACVL1_00299 | B52: XLOC_000353 | C52: Calmodulin binding protein-like protein | D52: Seedling | E52: Fiber | F52: OK | G52: 21.2394 | H52: 39.8555 | I52: 0.908033 | J52: 2.62313 | K52: 5e-05 | L52: 0.000126572 | M52: yes
A53: - | B53: XLOC_000363 | C53: Hypothetical protein | D53: Seedling | E53: Fiber | F53: OK | G53: 0.163373 | H53: 0.776902 | I53: 2.24956 | J53: 1.98979 | K53: 0.00295 | L53: 0.00579566 | M53: yes
A54: - | B54: XLOC_000370 | C54: Hypothetical protein | D54: Seedling | E54: Fiber | F54: OK | G54: 2.02316 | H54: 28.3382 | I54: 3.80807 | J54: 5.45802 | K54: 5e-05 | L54: 0.000126572 | M54: yes
A55: CCACVL1_00313 | B55: XLOC_000371 | C55: hypothetical protein | D55: Seedling | E55: Fiber | F55: OK | G55: 5.79957 | H55: 8.95514 | I55: 0.626771 | J55: 1.66105 | K55: 0.0042 | L55: 0.00799472 | M55: yes
A56: CCACVL1_00318 | B56: XLOC_000377 | C56: hypothetical protein | D56: Seedling | E56: Fiber | F56: OK | G56: 0.103975 | H56: 6.49715 | I56: 5.9655 | J56: 6.08784 | K56: 5e-05 | L56: 0.000126572 | M56: yes
A57: CCACVL1_00335 | B57: XLOC_000397 | C57: hypothetical protein | D57: Seedling | E57: Fiber | F57: OK | G57: 6.65305 | H57: 30.6275 | I57: 2.20274 | J57: 5.74999 | K57: 5e-05 | L57: 0.000126572 | M57: yes
A58: - | B58: XLOC_000425 | C58: Hypothetical protein | D58: Seedling | E58: Fiber | F58: OK | G58: 0.0141249 | H58: 0.315044 | I58: 4.47924 | J58: 1.86536 | K58: 0.0231 | L58: 0.0378874 | M58: yes
A59: CCACVL1_00360 | B59: XLOC_000426 | C59: hypothetical protein | D59: Seedling | E59: Fiber | F59: OK | G59: 1.96631 | H59: 3.12061 | I59: 0.666335 | J59: 1.4487 | K59: 0.0113 | L59: 0.0197806 | M59: yes
A60: CCACVL1_00365 | B60: XLOC_000434 | C60: Glutaredoxin | D60: Seedling | E60: Fiber | F60: OK | G60: 35.18 | H60: 220.465 | I60: 2.64772 | J60: 6.50656 | K60: 5e-05 | L60: 0.000126572 | M60: yes
A61: CCACVL1_00366 | B61: XLOC_000435 | C61: hypothetical protein | D61: Seedling | E61: Fiber | F61: OK | G61: 0.402638 | H61: 1.69239 | I61: 2.07151 | J61: 1.59381 | K61: 0.00925 | L61: 0.0164685 | M61: yes
A62: CCACVL1_00372 | B62: XLOC_000443 | C62: hypothetical protein | D62: Seedling | E62: Fiber | F62: OK | G62: 1.07155 | H62: 5.4531 | I62: 2.34738 | J62: 4.19917 | K62: 5e-05 | L62: 0.000126572 | M62: yes
A63: CCACVL1_00379 | B63: XLOC_000451 | C63: transcription factor TT2-like protein | D63: Seedling | E63: Fiber | F63: OK | G63: 0.0413441 | H63: 0.31943 | I63: 2.94975 | J63: 1.48136 | K63: 0.02815 | L63: 0.045325 | M63: yes
A64: CCACVL1_00386 | B64: XLOC_000458 | C64: hypothetical protein | D64: Seedling | E64: Fiber | F64: OK | G64: 5.13477 | H64: 8.19756 | I64: 0.674895 | J64: 1.62995 | K64: 0.00525 | L64: 0.00982095 | M64: yes
A65: - | B65: XLOC_000460 | C65: Hypothetical protein | D65: Seedling | E65: Fiber | F65: OK | G65: 2.91476 | H65: 6.64349 | I65: 1.18856 | J65: 2.59628 | K65: 5e-05 | L65: 0.000126572 | M65: yes
A66: CCACVL1_00409 | B66: XLOC_000482 | C66: Calcium/proton exchanger | D66: Seedling | E66: Fiber | F66: OK | G66: 9.6862 | H66: 14.4079 | I66: 0.572861 | J66: 1.60612 | K66: 0.0058 | L66: 0.0107748 | M66: yes
A67: - | B67: XLOC_000484 | C67: Hypothetical protein | D67: Seedling | E67: Fiber | F67: OK | G67: 0.991351 | H67: 5.7244 | I67: 2.52966 | J67: 4.81782 | K67: 5e-05 | L67: 0.000126572 | M67: yes
A68: - | B68: XLOC_000485 | C68: Hypothetical protein | D68: Seedling | E68: Fiber | F68: OK | G68: 1.28672 | H68: 3.25857 | I68: 1.34054 | J68: 2.57014 | K68: 0.0001 | L68: 0.000244699 | M68: yes
A69: CCACVL1_00414 | B69: XLOC_000491 | C69: No apical meristem (NAM) protein | D69: Seedling | E69: Fiber | F69: OK | G69: 3.73826 | H69: 7.08107 | I69: 0.9216 | J69: 2.03261 | K69: 0.00045 | L69: 0.00100694 | M69: yes
A70: - | B70: XLOC_000504 | C70: Hypothetical protein | D70: Seedling | E70: Fiber | F70: OK | G70: 0.606622 | H70: 1.73172 | I70: 1.51333 | J70: 2.30444 | K70: 0.00025 | L70: 0.000578094 | M70: yes
A71: CCACVL1_00427 | B71: XLOC_000506 | C71: Ovarian tumour, otubain | D71: Seedling | E71: Fiber | F71: OK | G71: 21.8495 | H71: 59.0918 | I71: 1.43536 | J71: 3.38354 | K71: 5e-05 | L71: 0.000126572 | M71: yes
A72: CCACVL1_00435 | B72: XLOC_000516 | C72: Homocysteine S-methyltransferase,hypothetical protein | D72: Seedling | E72: Fiber | F72: OK | G72: 18.1844 | H72: 48.2331 | I72: 1.40732 | J72: 3.76252 | K72: 5e-05 | L72: 0.000126572 | M72: yes
A73: CCACVL1_00436 | B73: XLOC_000518 | C73: Auxin responsive SAUR protein | D73: Seedling | E73: Fiber | F73: OK | G73: 7.93131 | H73: 18.2123 | I73: 1.19928 | J73: 2.45603 | K73: 5e-05 | L73: 0.000126572 | M73: yes
A74: CCACVL1_00447 | B74: XLOC_000534 | C74: hypothetical protein | D74: Seedling | E74: Fiber | F74: OK | G74: 0.412596 | H74: 1.46236 | I74: 1.8255 | J74: 2.61133 | K74: 5e-05 | L74: 0.000126572 | M74: yes
A75: CCACVL1_00454 | B75: XLOC_000542 | C75: hypothetical protein | D75: Seedling | E75: Fiber | F75: OK | G75: 15.7266 | H75: 30.385 | I75: 0.950151 | J75: 2.30898 | K75: 0.0001 | L75: 0.000244699 | M75: yes
A76: CCACVL1_00455 | B76: XLOC_000543 | C76: hypothetical protein | D76: Seedling | E76: Fiber | F76: OK | G76: 0.141789 | H76: 0.941682 | I76: 2.73149 | J76: 1.47707 | K76: 0.0019 | L76: 0.00385126 | M76: yes
A77: CCACVL1_00457 | B77: XLOC_000546 | C77: Nicotinamide N-methyltransferase-like protein | D77: Seedling | E77: Fiber | F77: OK | G77: 6.75853 | H77: 22.6073 | I77: 1.74201 | J77: 3.52996 | K77: 5e-05 | L77: 0.000126572 | M77: yes
A78: - | B78: XLOC_000549 | C78: Hypothetical protein | D78: Seedling | E78: Fiber | F78: OK | G78: 0.114358 | H78: 1.11635 | I78: 3.28715 | J78: 2.65051 | K78: 0.002 | L78: 0.00404038 | M78: yes
A79: - | B79: XLOC_000561 | C79: Hypothetical protein | D79: Seedling | E79: Fiber | F79: OK | G79: 0 | H79: 0.463232 | I79: Inf | J79: NA | K79: 5e-05 | L79: 0.000126572 | M79: yes
A80: CCACVL1_00471 | B80: XLOC_000562 | C80: 3-beta hydroxysteroid dehydrogenase/isomerase | D80: Seedling | E80: Fiber | F80: OK | G80: 9.46018 | H80: 14.7147 | I80: 0.637317 | J80: 1.60115 | K80: 0.0052 | L80: 0.00973552 | M80: yes
A81: CCACVL1_00472 | B81: XLOC_000563 | C81: hypothetical protein | D81: Seedling | E81: Fiber | F81: OK | G81: 0.719237 | H81: 2.10452 | I81: 1.54895 | J81: 2.37793 | K81: 0.00035 | L81: 0.000793229 | M81: yes
A82: - | B82: XLOC_000565 | C82: Hypothetical protein | D82: Seedling | E82: Fiber | F82: OK | G82: 0 | H82: 0.572065 | I82: Inf | J82: NA | K82: 0.00345 | L82: 0.00668918 | M82: yes
A83: - | B83: XLOC_000567 | C83: Hypothetical protein | D83: Seedling | E83: Fiber | F83: OK | G83: 0.233118 | H83: 0.813641 | I83: 1.80333 | J83: 2.24147 | K83: 0.00045 | L83: 0.00100694 | M83: yes
A84: CCACVL1_00474 | B84: XLOC_000568 | C84: Ribosomal protein S19e | D84: Seedling | E84: Fiber | F84: OK | G84: 137.808 | H84: 380.642 | I84: 1.46577 | J84: 4.37909 | K84: 5e-05 | L84: 0.000126572 | M84: yes
A85: CCACVL1_00475 | B85: XLOC_000569 | C85: hypothetical protein | D85: Seedling | E85: Fiber | F85: OK | G85: 1.55603 | H85: 2.62858 | I85: 0.756411 | J85: 1.41575 | K85: 0.00925 | L85: 0.0164685 | M85: yes
A86: CCACVL1_00476 | B86: XLOC_000570 | C86: Calcium-binding EF-hand | D86: Seedling | E86: Fiber | F86: OK | G86: 97.9286 | H86: 699.957 | I86: 2.83746 | J86: 6.52385 | K86: 5e-05 | L86: 0.000126572 | M86: yes
A87: CCACVL1_00477 | B87: XLOC_000571 | C87: hypothetical protein | D87: Seedling | E87: Fiber | F87: OK | G87: 0.0626369 | H87: 0.446411 | I87: 2.83329 | J87: 0.580149 | K87: 0.0134 | L87: 0.0230871 | M87: yes
A88: CCACVL1_00479 | B88: XLOC_000573 | C88: hypothetical protein | D88: Seedling | E88: Fiber | F88: OK | G88: 36.4984 | H88: 55.9769 | I88: 0.617 | J88: 1.83342 | K88: 0.0016 | L88: 0.0032822 | M88: yes
A89: CCACVL1_00487 | B89: XLOC_000580 | C89: hypothetical protein | D89: Seedling | E89: Fiber | F89: OK | G89: 270.777 | H89: 500.123 | I89: 0.885177 | J89: 2.02388 | K89: 0.001 | L89: 0.00211781 | M89: yes
A90: CCACVL1_00489 | B90: XLOC_000582 | C90: hypothetical protein | D90: Seedling | E90: Fiber | F90: OK | G90: 667.013 | H90: 2728.13 | I90: 2.03212 | J90: 6.20452 | K90: 5e-05 | L90: 0.000126572 | M90: yes
A91: - | B91: XLOC_000585 | C91: Hypothetical protein | D91: Seedling | E91: Fiber | F91: OK | G91: 0.0477657 | H91: 2.48274 | I91: 5.69982 | J91: 5.03377 | K91: 0.0002 | L91: 0.000468746 | M91: yes
A92: CCACVL1_00492 | B92: XLOC_000586 | C92: hypothetical protein | D92: Seedling | E92: Fiber | F92: OK | G92: 58.3792 | H92: 186.964 | I92: 1.67923 | J92: 5.0391 | K92: 5e-05 | L92: 0.000126572 | M92: yes
A93: - | B93: XLOC_000590 | C93: Hypothetical protein | D93: Seedling | E93: Fiber | F93: OK | G93: 0.191065 | H93: 0.543503 | I93: 1.50822 | J93: 1.65708 | K93: 0.0102 | L93: 0.0180197 | M93: yes
A94: CCACVL1_00497 | B94: XLOC_000593 | C94: hypothetical protein | D94: Seedling | E94: Fiber | F94: OK | G94: 0.163749 | H94: 0.50962 | I94: 1.63793 | J94: 1.54154 | K94: 0.01905 | L94: 0.0318686 | M94: yes
A95: - | B95: XLOC_000598 | C95: Hypothetical protein | D95: Seedling | E95: Fiber | F95: OK | G95: 6.06916 | H95: 12.4177 | I95: 1.03282 | J95: 2.53355 | K95: 5e-05 | L95: 0.000126572 | M95: yes
A96: CCACVL1_00504 | B96: XLOC_000604 | C96: Lipase, class 3 | D96: Seedling | E96: Fiber | F96: OK | G96: 20.6005 | H96: 38.6625 | I96: 0.908258 | J96: 2.61197 | K96: 5e-05 | L96: 0.000126572 | M96: yes
A97: - | B97: XLOC_000609 | C97: Hypothetical protein | D97: Seedling | E97: Fiber | F97: OK | G97: 2.16669 | H97: 4.2296 | I97: 0.965025 | J97: 2.09696 | K97: 0.00045 | L97: 0.00100694 | M97: yes
A98: CCACVL1_00508 | B98: XLOC_000610 | C98: Short-chain dehydrogenase/reductase SDR | D98: Seedling | E98: Fiber | F98: OK | G98: 23.7542 | H98: 41.6893 | I98: 0.811496 | J98: 2.21683 | K98: 0.00015 | L98: 0.00035801 | M98: yes
A99: CCACVL1_00509 | B99: XLOC_000611 | C99: hypothetical protein | D99: Seedling | E99: Fiber | F99: OK | G99: 158.771 | H99: 582.564 | I99: 1.87547 | J99: 3.69162 | K99: 5e-05 | L99: 0.000126572 | M99: yes
A100: CCACVL1_00512 | B100: XLOC_000616 | C100: hypothetical protein | D100: Seedling | E100: Fiber | F100: OK | G100: 76.6969 | H100: 258.635 | I100: 1.75367 | J100: 4.65304 | K100: 5e-05 | L100: 0.000126572 | M100: yes
A101: CCACVL1_00516 | B101: XLOC_000620 | C101: hypothetical protein | D101: Seedling | E101: Fiber | F101: OK | G101: 43.4411 | H101: 73.8769 | I101: 0.766063 | J101: 1.69469 | K101: 0.00315 | L101: 0.00616311 | M101: yes
A102: CCACVL1_00530 | B102: XLOC_000637 | C102: Retrotransposon gag protein | D102: Seedling | E102: Fiber | F102: OK | G102: 3.09542 | H102: 18.3734 | I102: 2.56941 | J102: 5.40114 | K102: 5e-05 | L102: 0.000126572 | M102: yes
A103: CCACVL1_00536 | B103: XLOC_000645 | C103: hypothetical protein | D103: Seedling | E103: Fiber | F103: OK | G103: 48.7553 | H103: 356.65 | I103: 2.87088 | J103: 7.91367 | K103: 5e-05 | L103: 0.000126572 | M103: yes
A104: CCACVL1_00537 | B104: XLOC_000646 | C104: hypothetical protein | D104: Seedling | E104: Fiber | F104: OK | G104: 0.30842 | H104: 10.6351 | I104: 5.1078 | J104: 7.12419 | K104: 5e-05 | L104: 0.000126572 | M104: yes
A105: CCACVL1_00542 | B105: XLOC_000654 | C105: hypothetical protein | D105: Seedling | E105: Fiber | F105: OK | G105: 11.943 | H105: 35.0366 | I105: 1.5527 | J105: 4.15931 | K105: 5e-05 | L105: 0.000126572 | M105: yes
A106: - | B106: XLOC_000656 | C106: Hypothetical protein | D106: Seedling | E106: Fiber | F106: OK | G106: 0.877484 | H106: 2.81577 | I106: 1.68208 | J106: 1.81544 | K106: 0.0059 | L106: 0.0109449 | M106: yes
A107: CCACVL1_00558 | B107: XLOC_000672 | C107: hypothetical protein | D107: Seedling | E107: Fiber | F107: OK | G107: 42.1104 | H107: 158.668 | I107: 1.91376 | J107: 4.88109 | K107: 5e-05 | L107: 0.000126572 | M107: yes
A108: - | B108: XLOC_000673 | C108: Hypothetical protein | D108: Seedling | E108: Fiber | F108: OK | G108: 0.286577 | H108: 3.14557 | I108: 3.45633 | J108: 4.66924 | K108: 5e-05 | L108: 0.000126572 | M108: yes
A109: CCACVL1_00563 | B109: XLOC_000677 | C109: hypothetical protein | D109: Seedling | E109: Fiber | F109: OK | G109: 0.73635 | H109: 1.79747 | I109: 1.2875 | J109: 2.01664 | K109: 0.00085 | L109: 0.00182247 | M109: yes
A110: - | B110: XLOC_000680 | C110: Hypothetical protein | D110: Seedling | E110: Fiber | F110: OK | G110: 0.102126 | H110: 1.87435 | I110: 4.19797 | J110: 3.72478 | K110: 0.0003 | L110: 0.000686711 | M110: yes
A111: CCACVL1_00570 | B111: XLOC_000688 | C111: Amino acid transporter, transmembrane,Ribosomal protein L11,hypothetical protein | D111: Seedling | E111: Fiber | F111: OK | G111: 97.5048 | H111: 213.715 | I111: 1.13214 | J111: 2.15993 | K111: 0.0003 | L111: 0.000686711 | M111: yes
A112: CCACVL1_00571 | B112: XLOC_000689 | C112: hypothetical protein | D112: Seedling | E112: Fiber | F112: OK | G112: 25.5733 | H112: 39.5911 | I112: 0.630535 | J112: 1.61598 | K112: 0.00525 | L112: 0.00982095 | M112: yes
A113: CCACVL1_00572 | B113: XLOC_000691 | C113: Transcription factor, SBP-box | D113: Seedling | E113: Fiber | F113: OK | G113: 0.695568 | H113: 7.74126 | I113: 3.47631 | J113: 4.08074 | K113: 5e-05 | L113: 0.000126572 | M113: yes
A114: CCACVL1_00576 | B114: XLOC_000697 | C114: Histidine phosphatase superfamily, clade-1 | D114: Seedling | E114: Fiber | F114: OK | G114: 0.0550623 | H114: 4.15974 | I114: 6.23928 | J114: 5.17408 | K114: 0.0005 | L114: 0.00111068 | M114: yes
A115: - | B115: XLOC_000699 | C115: Hypothetical protein | D115: Seedling | E115: Fiber | F115: OK | G115: 9.09382 | H115: 18.4799 | I115: 1.023 | J115: 2.21467 | K115: 0.0003 | L115: 0.000686711 | M115: yes
A116: - | B116: XLOC_000702 | C116: Hypothetical protein | D116: Seedling | E116: Fiber | F116: OK | G116: 6.31502 | H116: 16.043 | I116: 1.34508 | J116: 3.69994 | K116: 5e-05 | L116: 0.000126572 | M116: yes
A117: CCACVL1_00580 | B117: XLOC_000704 | C117: hypothetical protein | D117: Seedling | E117: Fiber | F117: OK | G117: 0 | H117: 139.16 | I117: Inf | J117: NA | K117: 0.0085 | L117: 0.0152497 | M117: yes
A118: CCACVL1_00582 | B118: XLOC_000707 | C118: Major facilitator superfamily | D118: Seedling | E118: Fiber | F118: OK | G118: 3.34805 | H118: 6.47627 | I118: 0.951843 | J118: 2.17737 | K118: 0.0004 | L118: 0.000900273 | M118: yes
A119: CCACVL1_00585 | B119: XLOC_000709 | C119: Peptide transporter PTR5 | D119: Seedling | E119: Fiber | F119: OK | G119: 24.5025 | H119: 178.994 | I119: 2.86891 | J119: 0.662788 | K119: 0.0005 | L119: 0.00111068 | M119: yes
A120: - | B120: XLOC_000712 | C120: Hypothetical protein | D120: Seedling | E120: Fiber | F120: OK | G120: 4.12164 | H120: 19.289 | I120: 2.22649 | J120: 5.45034 | K120: 5e-05 | L120: 0.000126572 | M120: yes
A121: CCACVL1_00599 | B121: XLOC_000723 | C121: hypothetical protein | D121: Seedling | E121: Fiber | F121: OK | G121: 25.145 | H121: 336.921 | I121: 3.74407 | J121: 8.7995 | K121: 5e-05 | L121: 0.000126572 | M121: yes
A122: CCACVL1_00602 | B122: XLOC_000727 | C122: hypothetical protein | D122: Seedling | E122: Fiber | F122: OK | G122: 1.49367 | H122: 37.9014 | I122: 4.66532 | J122: 6.22947 | K122: 5e-05 | L122: 0.000126572 | M122: yes
A123: CCACVL1_00606 | B123: XLOC_000731 | C123: Ubiquitin-conjugating enzyme, E2 | D123: Seedling | E123: Fiber | F123: OK | G123: 18.5264 | H123: 52.9599 | I123: 1.51531 | J123: 2.051 | K123: 0.0007 | L123: 0.00152051 | M123: yes
A124: CCACVL1_00612 | B124: XLOC_000737 | C124: Transport protein particle (TRAPP) component | D124: Seedling | E124: Fiber | F124: OK | G124: 42.8661 | H124: 86.6656 | I124: 1.01562 | J124: 1.65969 | K124: 0.0041 | L124: 0.00783211 | M124: yes
A125: - | B125: XLOC_000741 | C125: Hypothetical protein | D125: Seedling | E125: Fiber | F125: OK | G125: 0 | H125: 0.188982 | I125: Inf | J125: NA | K125: 0.0029 | L125: 0.00570468 | M125: yes
A126: CCACVL1_00629 | B126: XLOC_000755 | C126: Very-long-chain 3-ketoacyl-CoA synthase | D126: Seedling | E126: Fiber | F126: OK | G126: 2.83298 | H126: 25.4765 | I126: 3.16877 | J126: 7.43569 | K126: 5e-05 | L126: 0.000126572 | M126: yes
A127: - | B127: XLOC_000772 | C127: Hypothetical protein | D127: Seedling | E127: Fiber | F127: OK | G127: 0.699596 | H127: 16.2284 | I127: 4.53585 | J127: 4.35433 | K127: 5e-05 | L127: 0.000126572 | M127: yes
A128: - | B128: XLOC_000774 | C128: Hypothetical protein | D128: Seedling | E128: Fiber | F128: OK | G128: 9.35301 | H128: 32.394 | I128: 1.79222 | J128: 4.21952 | K128: 5e-05 | L128: 0.000126572 | M128: yes
A129: CCACVL1_00657 | B129: XLOC_000785 | C129: putative plastid developmental protein DAG | D129: Seedling | E129: Fiber | F129: OK | G129: 63.5424 | H129: 276.221 | I129: 2.12003 | J129: 6.32222 | K129: 5e-05 | L129: 0.000126572 | M129: yes
A130: CCACVL1_00671 | B130: XLOC_000798 | C130: hypothetical protein | D130: Seedling | E130: Fiber | F130: OK | G130: 0.0835626 | H130: 0.481803 | I130: 2.52752 | J130: 1.78277 | K130: 0.0223 | L130: 0.0367361 | M130: yes
A131: CCACVL1_00681 | B131: XLOC_000807 | C131: hypothetical protein | D131: Seedling | E131: Fiber | F131: OK | G131: 2.34836 | H131: 6.92368 | I131: 1.55989 | J131: 2.53667 | K131: 5e-05 | L131: 0.000126572 | M131: yes
A132: - | B132: XLOC_000814 | C132: Hypothetical protein | D132: Seedling | E132: Fiber | F132: OK | G132: 0.565229 | H132: 1.34222 | I132: 1.24771 | J132: 1.41199 | K132: 0.02165 | L132: 0.0357774 | M132: yes
A133: CCACVL1_00695 | B133: XLOC_000826 | C133: Proteasome, subunit alpha/beta | D133: Seedling | E133: Fiber | F133: OK | G133: 20.3282 | H133: 29.4832 | I133: 0.536413 | J133: 1.3985 | K133: 0.0163 | L133: 0.0276272 | M133: yes
A134: - | B134: XLOC_000860 | C134: Hypothetical protein | D134: Seedling | E134: Fiber | F134: OK | G134: 2.17576 | H134: 3.67012 | I134: 0.754305 | J134: 1.53332 | K134: 0.0085 | L134: 0.0152497 | M134: yes
A135: CCACVL1_00727 | B135: XLOC_000864 | C135: hypothetical protein | D135: Seedling | E135: Fiber | F135: OK | G135: 5.05761 | H135: 13.1088 | I135: 1.374 | J135: 3.30852 | K135: 5e-05 | L135: 0.000126572 | M135: yes
A136: CCACVL1_00729 | B136: XLOC_000866 | C136: hypothetical protein | D136: Seedling | E136: Fiber | F136: OK | G136: 0.323669 | H136: 0.938563 | I136: 1.53594 | J136: 1.78446 | K136: 0.0076 | L136: 0.0138043 | M136: yes
A137: CCACVL1_00738 | B137: XLOC_000878 | C137: Transcription factor, TCP | D137: Seedling | E137: Fiber | F137: OK | G137: 0.0452012 | H137: 6.55867 | I137: 7.1809 | J137: 6.81504 | K137: 5e-05 | L137: 0.000126572 | M137: yes
A138: CCACVL1_00759 | B138: XLOC_000907 | C138: hypothetical protein | D138: Seedling | E138: Fiber | F138: OK | G138: 6.72337 | H138: 229.882 | I138: 5.09556 | J138: 13.4543 | K138: 5e-05 | L138: 0.000126572 | M138: yes
A139: CCACVL1_00762 | B139: XLOC_000908 | C139: hypothetical protein | D139: Seedling | E139: Fiber | F139: OK | G139: 2.7194 | H139: 8.91423 | I139: 1.71282 | J139: 3.04868 | K139: 5e-05 | L139: 0.000126572 | M139: yes
A140: CCACVL1_00769 | B140: XLOC_000917 | C140: hypothetical protein | D140: Seedling | E140: Fiber | F140: OK | G140: 0.528114 | H140: 141.236 | I140: 8.06305 | J140: 5.94084 | K140: 0.00515 | L140: 0.00964703 | M140: yes
A141: CCACVL1_00770 | B141: XLOC_000918 | C141: Auxin responsive SAUR protein | D141: Seedling | E141: Fiber | F141: OK | G141: 51.2684 | H141: 82.4422 | I141: 0.685313 | J141: 1.65839 | K141: 0.00515 | L141: 0.00964703 | M141: yes
A142: CCACVL1_00773 | B142: XLOC_000922 | C142: Ribosomal protein L13, eukaryotic/archaeal | D142: Seedling | E142: Fiber | F142: OK | G142: 71.4533 | H142: 243.87 | I142: 1.77104 | J142: 5.14913 | K142: 5e-05 | L142: 0.000126572 | M142: yes
A143: CCACVL1_00780 | B143: XLOC_000930 | C143: Zinc finger, RanBP2-type | D143: Seedling | E143: Fiber | F143: OK | G143: 9.02032 | H143: 27.1616 | I143: 1.59032 | J143: 3.44468 | K143: 5e-05 | L143: 0.000126572 | M143: yes
A144: - | B144: XLOC_000946 | C144: Hypothetical protein | D144: Seedling | E144: Fiber | F144: OK | G144: 0.0616437 | H144: 0.668522 | I144: 3.43895 | J144: 3.58745 | K144: 0.0001 | L144: 0.000244699 | M144: yes
A145: - | B145: XLOC_000950 | C145: Hypothetical protein | D145: Seedling | E145: Fiber | F145: OK | G145: 0 | H145: 9.7112 | I145: Inf | J145: NA | K145: 0.00155 | L145: 0.00318757 | M145: yes
A146: - | B146: XLOC_000957 | C146: Hypothetical protein | D146: Seedling | E146: Fiber | F146: OK | G146: 1.19243 | H146: 7.46237 | I146: 2.64572 | J146: 3.08919 | K146: 5e-05 | L146: 0.000126572 | M146: yes
A147: - | B147: XLOC_000974 | C147: Hypothetical protein | D147: Seedling | E147: Fiber | F147: OK | G147: 1.28184 | H147: 6.01514 | I147: 2.23039 | J147: 4.09031 | K147: 5e-05 | L147: 0.000126572 | M147: yes
A148: - | B148: XLOC_000988 | C148: Hypothetical protein | D148: Seedling | E148: Fiber | F148: OK | G148: 0.236411 | H148: 1.25809 | I148: 2.41186 | J148: 2.9851 | K148: 5e-05 | L148: 0.000126572 | M148: yes
A149: - | B149: XLOC_000998 | C149: Hypothetical protein | D149: Seedling | E149: Fiber | F149: OK | G149: 6.79684 | H149: 74.2689 | I149: 3.44982 | J149: 8.24598 | K149: 5e-05 | L149: 0.000126572 | M149: yes
A150: CCACVL1_00848 | B150: XLOC_001008 | C150: hypothetical protein | D150: Seedling | E150: Fiber | F150: OK | G150: 0.980497 | H150: 1.68194 | I150: 0.778544 | J150: 1.35424 | K150: 0.0162 | L150: 0.0274633 | M150: yes
A151: CCACVL1_00866 | B151: XLOC_001029 | C151: hypothetical protein | D151: Seedling | E151: Fiber | F151: OK | G151: 4.56012 | H151: 15.3975 | I151: 1.75555 | J151: 3.63453 | K151: 5e-05 | L151: 0.000126572 | M151: yes
A152: - | B152: XLOC_001063 | C152: Hypothetical protein | D152: Seedling | E152: Fiber | F152: OK | G152: 2.06398 | H152: 6.75742 | I152: 1.71104 | J152: 2.90597 | K152: 5e-05 | L152: 0.000126572 | M152: yes
A153: CCACVL1_00914 | B153: XLOC_001080 | C153: hypothetical protein | D153: Seedling | E153: Fiber | F153: OK | G153: 3.04631 | H153: 5.26305 | I153: 0.788838 | J153: 1.32321 | K153: 0.01965 | L153: 0.0327814 | M153: yes
A154: - | B154: XLOC_001119 | C154: Hypothetical protein | D154: Seedling | E154: Fiber | F154: OK | G154: 0.824392 | H154: 2.12939 | I154: 1.36904 | J154: 2.14923 | K154: 0.00055 | L154: 0.00121389 | M154: yes
A155: - | B155: XLOC_001132 | C155: Hypothetical protein | D155: Seedling | E155: Fiber | F155: OK | G155: 0.121468 | H155: 0.672427 | I155: 2.4688 | J155: 2.38517 | K155: 0.0013 | L155: 0.00270472 | M155: yes
A156: - | B156: XLOC_001170 | C156: Hypothetical protein | D156: Seedling | E156: Fiber | F156: OK | G156: 0.241896 | H156: 2.35404 | I156: 3.28268 | J156: 3.38704 | K156: 5e-05 | L156: 0.000126572 | M156: yes
A157: CCACVL1_01003 | B157: XLOC_001172 | C157: hypothetical protein | D157: Seedling | E157: Fiber | F157: OK | G157: 0 | H157: 1.33582 | I157: Inf | J157: NA | K157: 0.0125 | L157: 0.0216649 | M157: yes
A158: CCACVL1_01009 | B158: XLOC_001179 | C158: JAB1/Mov34/MPN/PAD-1 | D158: Seedling | E158: Fiber | F158: OK | G158: 86.6866 | H158: 116.102 | I158: 0.421512 | J158: 1.25835 | K158: 0.02775 | L158: 0.0447275 | M158: yes
A159: - | B159: XLOC_001189 | C159: Hypothetical protein | D159: Seedling | E159: Fiber | F159: OK | G159: 0.0479905 | H159: 0.481698 | I159: 3.32731 | J159: 2.70293 | K159: 0.0011 | L159: 0.00231334 | M159: yes
A160: CCACVL1_01024 | B160: XLOC_001199 | C160: hypothetical protein | D160: Seedling | E160: Fiber | F160: OK | G160: 34.9581 | H160: 70.9269 | I160: 1.02071 | J160: 2.45331 | K160: 5e-05 | L160: 0.000126572 | M160: yes
A161: - | B161: XLOC_001200 | C161: Hypothetical protein | D161: Seedling | E161: Fiber | F161: OK | G161: 1.90003 | H161: 6.34085 | I161: 1.73865 | J161: 3.46594 | K161: 5e-05 | L161: 0.000126572 | M161: yes
A162: CCACVL1_01037 | B162: XLOC_001214 | C162: hypothetical protein | D162: Seedling | E162: Fiber | F162: OK | G162: 23.9109 | H162: 102.338 | I162: 2.0976 | J162: 4.81709 | K162: 5e-05 | L162: 0.000126572 | M162: yes
A163: CCACVL1_01039 | B163: XLOC_001216 | C163: hypothetical protein | D163: Seedling | E163: Fiber | F163: OK | G163: 0 | H163: 38.4138 | I163: Inf | J163: NA | K163: 0.015 | L163: 0.0256029 | M163: yes
A164: CCACVL1_01054 | B164: XLOC_001232 | C164: hypothetical protein | D164: Seedling | E164: Fiber | F164: OK | G164: 2.93616 | H164: 32.4784 | I164: 3.46748 | J164: 2.90151 | K164: 0.00095 | L164: 0.00202093 | M164: yes
A165: CCACVL1_01059 | B165: XLOC_001240 | C165: Protein arginine N-methyltransferase | D165: Seedling | E165: Fiber | F165: OK | G165: 3.60696 | H165: 9.19266 | I165: 1.3497 | J165: 3.30277 | K165: 5e-05 | L165: 0.000126572 | M165: yes
A166: - | B166: XLOC_001249 | C166: Hypothetical protein | D166: Seedling | E166: Fiber | F166: OK | G166: 0 | H166: 0.273237 | I166: Inf | J166: NA | K166: 5e-05 | L166: 0.000126572 | M166: yes
A167: - | B167: XLOC_001271 | C167: Hypothetical protein | D167: Seedling | E167: Fiber | F167: OK | G167: 0.131165 | H167: 0.40416 | I167: 1.62355 | J167: 1.76864 | K167: 0.0062 | L167: 0.011449 | M167: yes
A168: - | B168: XLOC_001277 | C168: Hypothetical protein | D168: Seedling | E168: Fiber | F168: OK | G168: 12.1193 | H168: 26.34 | I168: 1.11995 | J168: 3.14639 | K168: 5e-05 | L168: 0.000126572 | M168: yes
A169: CCACVL1_01086 | B169: XLOC_001283 | C169: hypothetical protein | D169: Seedling | E169: Fiber | F169: OK | G169: 2.10664 | H169: 5.45312 | I169: 1.37214 | J169: 2.67584 | K169: 5e-05 | L169: 0.000126572 | M169: yes
A170: CCACVL1_01099 | B170: XLOC_001300 | C170: Dimeric alpha-beta barrel | D170: Seedling | E170: Fiber | F170: OK | G170: 196.959 | H170: 500.432 | I170: 1.34528 | J170: 3.50283 | K170: 5e-05 | L170: 0.000126572 | M170: yes
A171: CCACVL1_01106 | B171: XLOC_001307 | C171: SAM dependent carboxyl methyltransferase | D171: Seedling | E171: Fiber | F171: OK | G171: 0.198583 | H171: 1.25307 | I171: 2.65765 | J171: 2.58135 | K171: 5e-05 | L171: 0.000126572 | M171: yes
A172: - | B172: XLOC_001318 | C172: Hypothetical protein | D172: Seedling | E172: Fiber | F172: OK | G172: 1.10319 | H172: 2.94246 | I172: 1.41535 | J172: 2.63285 | K172: 5e-05 | L172: 0.000126572 | M172: yes
A173: - | B173: XLOC_001320 | C173: Hypothetical protein | D173: Seedling | E173: Fiber | F173: OK | G173: 14.8081 | H173: 49.5951 | I173: 1.74381 | J173: 4.66685 | K173: 5e-05 | L173: 0.000126572 | M173: yes
A174: CCACVL1_01123 | B174: XLOC_001337 | C174: Armadillo | D174: Seedling | E174: Fiber | F174: OK | G174: 2.86245 | H174: 5.69122 | I174: 0.991486 | J174: 2.33672 | K174: 5e-05 | L174: 0.000126572 | M174: yes
A175: CCACVL1_01127 | B175: XLOC_001339 | C175: hypothetical protein | D175: Seedling | E175: Fiber | F175: OK | G175: 5.67368 | H175: 9.999 | I175: 0.817498 | J175: 1.85943 | K175: 0.0016 | L175: 0.0032822 | M175: yes
A176: CCACVL1_01128 | B176: XLOC_001340 | C176: Myristoyl-CoA:protein N-myristoyltransferase | D176: Seedling | E176: Fiber | F176: OK | G176: 22.6444 | H176: 44.4771 | I176: 0.973912 | J176: 2.89208 | K176: 5e-05 | L176: 0.000126572 | M176: yes
A177: - | B177: XLOC_001341 | C177: Hypothetical protein | D177: Seedling | E177: Fiber | F177: OK | G177: 180.4 | H177: 531.239 | I177: 1.55816 | J177: 4.68966 | K177: 5e-05 | L177: 0.000126572 | M177: yes
A178: CCACVL1_01130 | B178: XLOC_001344 | C178: hypothetical protein | D178: Seedling | E178: Fiber | F178: OK | G178: 0 | H178: 0.527544 | I178: Inf | J178: NA | K178: 5e-05 | L178: 0.000126572 | M178: yes
A179: - | B179: XLOC_001345 | C179: Hypothetical protein | D179: Seedling | E179: Fiber | F179: OK | G179: 0.07871 | H179: 0.964098 | I179: 3.61456 | J179: 2.71207 | K179: 0.0036 | L179: 0.00695872 | M179: yes
A180: CCACVL1_01137 | B180: XLOC_001353 | C180: hypothetical protein | D180: Seedling | E180: Fiber | F180: OK | G180: 4.24718 | H180: 7.08838 | I180: 0.738951 | J180: 1.96591 | K180: 0.00095 | L180: 0.00202093 | M180: yes
A181: CCACVL1_01139 | B181: XLOC_001356 | C181: Photosynthetic reaction centre, L/M | D181: Seedling | E181: Fiber | F181: OK | G181: 1.17063 | H181: 15.1741 | I181: 3.69625 | J181: 7.35066 | K181: 5e-05 | L181: 0.000126572 | M181: yes
A182: CCACVL1_01152 | B182: XLOC_001370 | C182: Cytochrome b561, eukaryote,hypothetical protein | D182: Seedling | E182: Fiber | F182: OK | G182: 14.9527 | H182: 24.7162 | I182: 0.72505 | J182: 1.73755 | K182: 0.0032 | L182: 0.00625499 | M182: yes
A183: - | B183: XLOC_001373 | C183: Hypothetical protein | D183: Seedling | E183: Fiber | F183: OK | G183: 0 | H183: 0.699908 | I183: Inf | J183: NA | K183: 5e-05 | L183: 0.000126572 | M183: yes
A184: CCACVL1_01161 | B184: XLOC_001387 | C184: hypothetical protein | D184: Seedling | E184: Fiber | F184: OK | G184: 0.187264 | H184: 1.01305 | I184: 2.43556 | J184: 3.44233 | K184: 5e-05 | L184: 0.000126572 | M184: yes
A185: CCACVL1_01162 | B185: XLOC_001388 | C185: hypothetical protein | D185: Seedling | E185: Fiber | F185: OK | G185: 0.0353287 | H185: 0.215312 | I185: 2.60752 | J185: 1.7795 | K185: 0.0132 | L185: 0.0227759 | M185: yes
A186: CCACVL1_01167 | B186: XLOC_001392 | C186: hypothetical protein | D186: Seedling | E186: Fiber | F186: OK | G186: 4.51952 | H186: 8.63816 | I186: 0.934554 | J186: 2.16477 | K186: 0.0002 | L186: 0.000468746 | M186: yes
A187: CCACVL1_01168 | B187: XLOC_001395 | C187: Plant lipid transfer protein/Par allergen | D187: Seedling | E187: Fiber | F187: OK | G187: 176.867 | H187: 390.714 | I187: 1.14345 | J187: 2.53601 | K187: 0.0001 | L187: 0.000244699 | M187: yes
A188: CCACVL1_01169 | B188: XLOC_001396 | C188: hypothetical protein | D188: Seedling | E188: Fiber | F188: OK | G188: 7.77177 | H188: 40.5457 | I188: 2.38324 | J188: 2.59472 | K188: 0.0002 | L188: 0.000468746 | M188: yes
A189: CCACVL1_01168 | B189: XLOC_001397 | C189: Plant lipid transfer protein/Par allergen | D189: Seedling | E189: Fiber | F189: OK | G189: 20.2333 | H189: 86.0978 | I189: 2.08924 | J189: 3.46727 | K189: 5e-05 | L189: 0.000126572 | M189: yes
A190: CCACVL1_01185 | B190: XLOC_001413 | C190: hypothetical protein | D190: Seedling | E190: Fiber | F190: OK | G190: 15.6584 | H190: 63.7988 | I190: 2.02659 | J190: 5.13125 | K190: 5e-05 | L190: 0.000126572 | M190: yes
A191: CCACVL1_01188 | B191: XLOC_001416 | C191: serine/threonine-protein kinase SMG1-like protein | D191: Seedling | E191: Fiber | F191: OK | G191: 0.714877 | H191: 19.111 | I191: 4.74057 | J191: 5.08866 | K191: 5e-05 | L191: 0.000126572 | M191: yes
A192: CCACVL1_01191 | B192: XLOC_001419 | C192: Peptidase A1 | D192: Seedling | E192: Fiber | F192: OK | G192: 34.3807 | H192: 85.1853 | I192: 1.30901 | J192: 3.89886 | K192: 5e-05 | L192: 0.000126572 | M192: yes
A193: CCACVL1_01212 | B193: XLOC_001438 | C193: hypothetical protein,pentatricopeptide repeat-containing protein | D193: Seedling | E193: Fiber | F193: OK | G193: 1.7888 | H193: 8.2378 | I193: 2.20327 | J193: 1.30487 | K193: 0.0077 | L193: 0.0139726 | M193: yes
A194: - | B194: XLOC_001462 | C194: Hypothetical protein | D194: Seedling | E194: Fiber | F194: OK | G194: 1.27408 | H194: 6.35732 | I194: 2.31896 | J194: 3.56603 | K194: 5e-05 | L194: 0.000126572 | M194: yes
A195: - | B195: XLOC_001476 | C195: Hypothetical protein | D195: Seedling | E195: Fiber | F195: OK | G195: 0.241799 | H195: 1.4215 | I195: 2.55554 | J195: 3.26301 | K195: 5e-05 | L195: 0.000126572 | M195: yes
A196: CCACVL1_01254 | B196: XLOC_001486 | C196: hypothetical protein | D196: Seedling | E196: Fiber | F196: OK | G196: 0.941581 | H196: 1.93922 | I196: 1.04232 | J196: 1.66968 | K196: 0.0015 | L196: 0.00309066 | M196: yes
A197: CCACVL1_01264 | B197: XLOC_001495 | C197: Autophagy protein Atg8 ubiquitin-like protein | D197: Seedling | E197: Fiber | F197: OK | G197: 85.642 | H197: 485.701 | I197: 2.50368 | J197: 7.19269 | K197: 5e-05 | L197: 0.000126572 | M197: yes
A198: CCACVL1_01275 | B198: XLOC_001506 | C198: hypothetical protein | D198: Seedling | E198: Fiber | F198: OK | G198: 0 | H198: 0.644558 | I198: Inf | J198: NA | K198: 0.01715 | L198: 0.0289448 | M198: yes
A199: CCACVL1_01277 | B199: XLOC_001508 | C199: Peptidase S26A, signal peptidase I | D199: Seedling | E199: Fiber | F199: OK | G199: 22.3235 | H199: 87.5237 | I199: 1.97111 | J199: 5.63045 | K199: 5e-05 | L199: 0.000126572 | M199: yes
A200: CCACVL1_01309 | B200: XLOC_001540 | C200: hypothetical protein | D200: Seedling | E200: Fiber | F200: OK | G200: 0.350993 | H200: 0.693875 | I200: 0.983231 | J200: 1.10621 | K200: 0.0278 | L200: 0.0447906 | M200: yes
A201: CCACVL1_01313 | B201: XLOC_001545 | C201: hypothetical protein | D201: Seedling | E201: Fiber | F201: OK | G201: 0 | H201: 0.609555 | I201: Inf | J201: NA | K201: 0.007 | L201: 0.0128048 | M201: yes
... 4299 more rows

Sheet Supplementary Table 32
B1: Supplementary Table 32. Genes predicted to be involved in jute fiber formation
B3: Group | C3: Gene Name | D3: Corchorus olitorius | I3: Corchorus capsularis
D4: Gene Id | E4: FPKM (Seed) | F4: FPKM (Fiber) | G4: Log2 Fold Change | H4: Significance | I4: Gene Id | J4: FPKM (Seed) | K4: FPKM (Fiber) | L4: Log2 Fold Change | M4: Significance
B5: Fiber initiation and elongation | C5: PIN1 | D5: COLO4_03481 | E5: 11.0570 | F5: 15.7509 | G5: 0.5105 | H5: no | I5: CCACVL1_27709 | J5: 10.2817 | K5: 16.9575 | L5: 0.7218 | M5: yes
I6: CCACVL1_29101 | J6: 82.3489 | K6: 51.9849 | L6: -0.6637 | M6: yes
C7: KANADI | D7: COLO4_16948 | E7: 18.8894 | F7: 16.2981 | G7: -0.2129 | H7: no | I7: CCACVL1_15043 | J7: 18.3065 | K7: 15.0382 | L7: -0.2837 | M7: no
D8: COLO4_19782 | E8: 3.1289 | F8: 1.1928 | G8: -1.3913 | H8: yes | I8: CCACVL1_24544 | J8: 2.2757 | K8: 2.9814 | L8: 0.3897 | M8: no
D9: COLO4_20581 | E9: 0.0036 | F9: 0.0000 | G9: -inf | H9: no | I9: CCACVL1_27363 | J9: 0.3734 | K9: 4.3833 | L9: 3.5533 | M9: yes
C10: MP | D10: COLO4_26172 | E10: 10.4159 | F10: 12.4193 | G10: 0.2538 | H10: no | I10: CCACVL1_09034 | J10: 5.1900 | K10: 11.3376 | L10: 1.1273 | M10: yes
C11: HB8 | D11: COLO4_20981 | E11: 22.9463 | F11: 10.4236 | G11: -1.1384 | H11: yes | I11: CCACVL1_05033 | J11: 18.2748 | K11: 11.5548 | L11: -0.6614 | M11: yes
C12: TDIF | D12: COLO4_20255 | E12: 6.9580 | F12: 387.0390 | G12: 5.7977 | H12: yes | I12: CCACVL1_06653 | J12: 3.5076 | K12: 78.4013 | L12: 4.4823 | M12: yes
C13: TDIF-TRD | D13: COLO4_14099 | E13: 4.3884 | F13: 1.9705 | G13: -1.1552 | H13: yes | I13: CCACVL1_04320 | J13: 8.0236 | K13: 3.6558 | L13: -1.1341 | M13: yes
D14: COLO4_18730 | E14: 4.1007 | F14: 30.5674 | G14: 2.8981 | H14: yes | I14: CCACVL1_05734 | J14: 4.1610 | K14: 5.5320 | L14: 0.4109 | M14: no
I15: CCACVL1_10788 | J15: 6.8241 | K15: 0.0187 | L15: -8.5108 | M15: no
I16: CCACVL1_19765 | J16: 5.9939 | K16: 5.1276 | L16: -0.2252 | M16: no
C17: WOX4 | D17: COLO4_26553 | E17: 4.3702 | F17: 120.3420 | G17: 4.7833 | H17: yes | I17: CCACVL1_14036 | J17: 7.4210 | K17: 55.2457 | L17: 2.8962 | M17: yes
C18: APL | D18: COLO4_19998 | E18: 6.1823 | F18: 0.9070 | G18: -2.7690 | H18: yes | I18: CCACVL1_19669 | J18: 1.0892 | K18: 1.0118 | L18: -0.1062 | M18: no
D19: COLO4_24976 | E19: 8.7961 | F19: 131.8560 | G19: 3.9060 | H19: yes | I19: CCACVL1_08737 | J19: 0.7149 | K19: 6.4983 | L19: 3.1843 | M19: yes
I20: CCACVL1_03446 | J20: 45.8230 | K20: 107.4690 | L20: 1.2298 | M20: yes
C21: LBD1 | D21: COLO4_03328 | E21: 6.5118 | F21: 1.4208 | G21: -2.1964 | H21: yes | I21: CCACVL1_18126 | J21: 3.0142 | K21: 1.8384 | L21: -0.7133 | M21: no
D22: COLO4_25252 | E22: 4.3473 | F22: 111.6580 | G22: 4.6828 | H22: yes | I22: CCACVL1_18369 | J22: 6.1155 | K22: 10.8470 | L22: 0.8267 | M22: yes
C23: HCA2 | D23: COLO4_30041 | E23: 8.1385 | F23: 6.0557 | G23: -0.4265 | H23: no | I23: CCACVL1_06918 | J23: 11.2321 | K23: 10.2275 | L23: -0.1352 | M23: no
C24: HAT22 | D24: COLO4_35373 | E24: 36.4944 | F24: 92.8178 | G24: 1.3467 | H24: yes | I24: CCACVL1_30171 | J24: 20.9207 | K24: 82.5517 | L24: 1.9804 | M24: yes
B25: Sitosterol biosynthesis | C25: Cycloartenol synthase | D25: COLO4_07471 | E25: 19.9629 | F25: 6.2326 | G25: -1.6794 | H25: yes | I25: CCACVL1_17833 | J25: 4.8307 | K25: 2.1937 | L25: -1.1389 | M25: yes
D26: COLO4_20605 | E26: 10.8462 | F26: 7.3529 | G26: -0.5608 | H26: no
C27: 24-sterol C-methyltransferases | D27: COLO4_04874 | E27: 252.1740 | F27: 136.9170 | G27: -0.8811 | H27: yes | I27: CCACVL1_18296 | J27: 0.2348 | K27: 0.0518 | L27: -2.1790 | M27: no
D28: COLO4_28253 | E28: 3.6437 | F28: 2.8886 | G28: -0.3351 | H28: no | I28: CCACVL1_18299 | J28: 3.7103 | K28: 3.2544 | L28: -0.1891 | M28: no
D29: COLO4_28257 | E29: 0.0637 | F29: 0.0377 | G29: -0.7559 | H29: no | I29: CCACVL1_19300 | J29: 94.0732 | K29: 168.5600 | L29: 0.8414 | M29: yes
C30: Methylsterol monooxygenase | D30: COLO4_12545 | E30: 0.2068 | F30: 0.0000 | G30: -inf | H30: yes | I30: CCACVL1_04573 | J30: 35.6675 | K30: 17.4706 | L30: -1.0297 | M30: yes
D31: COLO4_12546 | E31: 0.1096 | F31: 0.1318 | G31: 0.2666 | H31: no | I31: CCACVL1_12726 | J31: 0.4456 | K31: 0.0065 | L31: -6.1079 | M31: yes
D32: COLO4_23857 | E32: 38.5677 | F32: 47.7697 | G32: 0.3087 | H32: no | I32: CCACVL1_14287 | J32: 0.0261 | K32: 0.4403 | L32: 4.0756 | M32: yes
C33: Cycloeucalenol cycloisomerase | D33: COLO4_28085 | E33: 10.8633 | F33: 17.8885 | G33: 0.7196 | H33: yes
I34: CCACVL1_00000 | J34: 8.8633 | K34: 12.8885 | L34: 0.5126 | M34: yes
C35: CYP51 | D35: COLO4_37598 | E35: 71.2725 | F35: 149.8060 | G35: 1.0717 | H35: yes | I35: CCACVL1_08792 | J35: 143.1840 | K35: 62.7822 | L35: -1.1895 | M35: yes
C36: C-14 sterol reductase | D36: COLO4_29821 | E36: 8.8367 | F36: 24.0752 | G36: 1.4460 | H36: yes | I36: CCACVL1_12093 | J36: 10.6147 | K36: 15.4494 | L36: 0.5415 | M36: yes
C37: Cholestenol D-isomerase | D37: COLO4_06519 | E37: 44.3882 | F37: 76.6972 | G37: 0.7890 | H37: yes | I37: CCACVL1_08116 | J37: 3.2713 | K37: 0.2224 | L37: -3.8785 | M37: yes
I38: CCACVL1_21756 | J38: 62.9635 | K38: 58.0752 | L38: -0.1166 | M38: no
C39: Glucuronokinase | D39: COLO4_29172 | E39: 35.9740 | F39: 25.4256 | G39: -0.5007 | H39: no | I39: CCACVL1_24922 | J39: 6.9995 | K39: 8.9166 | L39: 0.3492 | M39: no
C40: C24-SMT2 | D40: COLO4_26081 | E40: 96.4707 | F40: 147.9730 | G40: 0.6172 | H40: yes | I40: CCACVL1_00038 | J40: 143.5330 | K40: 92.7963 | L40: -0.6292 | M40: yes
C41: Sterol glucosyltransferase | D41: COLO4_04694 | E41: 23.2347 | F41: 11.7420 | G41: -0.9846 | H41: yes | I41: CCACVL1_06061 | J41: 16.3783 | K41: 7.2124 | L41: -1.1832 | M41: yes
D42: COLO4_27423 | E42: 7.0036 | F42: 4.7131 | G42: -0.5714 | H42: no | I42: CCACVL1_02241 | J42: 23.3613 | K42: 12.1202 | L42: -0.9467 | M42: yes
D43: COLO4_29848 | E43: 23.8391 | F43: 10.4006 | G43: -1.1967 | H43: yes | I43: CCACVL1_00611 | J43: 10.3286 | K43: 5.5308 | L43: -0.9011 | M43: no
C44: Lathosterol oxidase | D44: COLO4_09354 | E44: 30.9545 | F44: 18.9882 | G44: -0.7050 | H44: no | I44: CCACVL1_13101 | J44: 42.7471 | K44: 28.7985 | L44: -0.5698 | M44: yes
C45: 7-dehydrocholesterol reductase | D45: COLO4_31163 | E45: 27.6783 | F45: 44.8296 | G45: 0.6957 | H45: no | I45: CCACVL1_15929 | J45: 29.0928 | K45: 31.9375 | L45: 0.1346 | M45: no
D46: COLO4_31578 | E46: 0.3710 | F46: 0.1805 | G46: -1.0395 | H46: no
B47: UDP-Glucose biosynthesis | C47: Glucose-6-phosphate 1-epimerase | D47: COLO4_06339 | E47: 28.3150 | F47: 9.6165 | G47: -1.5580 | H47: yes | I47: CCACVL1_21830 | J47: 22.5053 | K47: 15.7361 | L47: -0.5162 | M47: yes
D48: COLO4_21732 | E48: 38.4621 | F48: 37.7064 | G48: -0.0286 | H48: no | I48: CCACVL1_26154 | J48: 19.6092 | K48: 14.1144 | L48: -0.4744 | M48: no
D49: COLO4_30897 | E49: 51.2191 | F49: 83.6337 | G49: 0.7074 | H49: yes | I49: CCACVL1_13502 | J49: 16.2366 | K49: 21.2789 | L49: 0.3902 | M49: no
D50: COLO4_22052 | E50: 12.2981 | F50: 13.7005 | G50: 0.1558 | H50: no
D51: COLO4_24421 | E51: 0.9614 | F51: 0.0573 | G51: -4.0694 | H51: no
D52: COLO4_29155 | E52: 36.4428 | F52: 87.4234 | G52: 1.2624 | H52: yes
I53: CCACVL1_04839 | J53: 25.3252 | K53: 37.0073 | L53: 0.5472 | M53: yes
I54: CCACVL1_24930 | J54: 22.9889 | K54: 104.236 | L54: 2.18084 | M54: yes
C55: Phosphoglucomutase | D55: COLO4_13094 | E55: 106.0960 | F55: 128.3190 | G55: 0.2744 | H55: no | I55: CCACVL1_09906 | J55: 41.3773 | K55: 13.9948 | L55: -1.5640 | M55: yes
D56: COLO4_14224 | E56: 16.1988 | F56: 14.8306 | G56: -0.1273 | H56: no | I56: CCACVL1_23974 | J56: 107.4700 | K56: 85.6207 | L56: -0.3279 | M56: no
D57: COLO4_14225 | E57: 16.1988 | F57: 14.8306 | G57: -0.1273 | H57: no | I57: CCACVL1_09905 | J57: 23.8478 | K57: 0.7866 | L57: -4.9220 | M57: yes
C58: UTP--glucose-1-phosphate uridylyltransferase | D58: COLO4_19771 | E58: 119.9380 | F58: 142.6350 | G58: 0.2500 | H58: no | I58: CCACVL1_24555 | J58: 68.9322 | K58: 90.8885 | L58: 0.3989 | M58: no
D59: COLO4_17634 | E59: 40.2645 | F59: 97.1534 | G59: 1.2708 | H59: yes | I59: CCACVL1_16390 | J59: 49.5490 | K59: 72.7803 | L59: 0.5547 | M59: yes
D60: COLO4_21825 | E60: 25.2162 | F60: 17.3583 | G60: -0.5387 | H60: yes | I60: CCACVL1_06153 | J60: 14.4927 | K60: 11.1246 | L60: -0.3816 | M60: no
I61: CCACVL1_07192 | J61: 24.0880 | K61: 2.5988 | L61: -3.2124 | M61: yes
B62: Cellulose biosynthesis | C62: Cellulose synthase | D62: COLO4_04855 | E62: 110.5540 | F62: 78.5253 | G62: -0.4935 | H62: no | I62: CCACVL1_18312 | J62: 38.3262 | K62: 6.4824 | L62: -2.5637 | M62: yes
D63: COLO4_10590 | E63: 0.0000 | F63: 163.5680 | G63: inf | H63: no | I63: CCACVL1_07812 | J63: 3.2556 | K63: 155.1860 | L63: 5.5749 | M63: yes
D64: COLO4_16221 | E64: 0.2848 | F64: 1.6222 | G64: 2.5100 | H64: yes | I64: CCACVL1_27513 | J64: 89.6518 | K64: 23.3825 | L64: -1.9389 | M64: yes
D65: COLO4_22376 | E65: 172.9820 | F65: 114.2450 | G65: -0.5985 | H65: yes | I65: CCACVL1_13180 | J65: 0.1586 | K65: 0.3517 | L65: 1.1487 | M65: yes
D66: COLO4_23957 | E66: 7.7419 | F66: 58.0400 | G66: 2.9063 | H66: yes | I66: CCACVL1_03048 | J66: 10.3302 | K66: 411.6980 | L66: 5.3166 | M66: yes
D67: COLO4_23969 | E67: 176.3570 | F67: 75.4098 | G67: -1.2257 | H67: yes | I67: CCACVL1_03167 | J67: 185.7930 | K67: 117.1150 | L67: -0.6658 | M67: yes
D68: COLO4_28227 | E68: 66.5566 | F68: 27.5054 | G68: -1.2749 | H68: yes | I68: CCACVL1_19287 | J68: 166.6900 | K68: 121.4820 | L68: -0.4564 | M68: yes
D69: COLO4_29876 | E69: 122.4040 | F69: 26.2415 | G69: -2.2217 | H69: yes | I69: CCACVL1_26919 | J69: 117.1870 | K69: 81.8092 | L69: -0.5185 | M69: yes
D70: COLO4_31254 | E70: 2.5871 | F70: 76.7247 | G70: 4.8903 | H70: no | I70: CCACVL1_15850 | J70: 8.2029 | K70: 163.4760 | L70: 4.3168 | M70: yes
D71: COLO4_32934 | E71: 8.0378 | F71: 19.7429 | G71: 1.2965 | H71: yes | I71: CCACVL1_30842 | J71: 12.3753 | K71: 264.7780 | L71: 4.4193 | M71: yes
C72: Cellulose Synthese Like | D72: COLO4_06060 | E72: 0.1314 | F72: 0.0000 | G72: -inf | H72: yes | I72: CCACVL1_06863 | J72: 1.9921 | K72: 0.0529 | L72: -5.2340 | M72: no
D73: COLO4_06063 | E73: 76.9578 | F73: 83.9440 | G73: 0.1254 | H73: no | I73: CCACVL1_07498 | J73: 82.7791 | K73: 41.9492 | L73: -0.9806 | M73: yes
D74: COLO4_20295 | E74: 0.0594 | F74: 0.0872 | G74: 0.5546 | H74: no | I74: CCACVL1_03576 | J74: 0.0136 | K74: 0.0000 | L74: -inf | M74: no
D75: COLO4_08581 | E75: 0.0362 | F75: 0.0116 | G75: -1.6453 | H75: no | I75: CCACVL1_17945 | J75: 0.0816 | K75: 0.0236 | L75: -1.7877 | M75: no
D76: COLO4_23286 | E76: 10.5383 | F76: 5.1700 | G76: -1.0274 | H76: yes | I76: CCACVL1_22180 | J76: 5.1695 | K76: 3.4587 | L76: -0.5798 | M76: yes
D77: COLO4_16937 | E77: 23.4496 | F77: 20.1647 | G77: -0.2177 | H77: no | I77: CCACVL1_15032 | J77: 12.1337 | K77: 21.7452 | L77: 0.8417 | M77: yes
D78: COLO4_20897 | E78: 0.0843 | F78: 0.4465 | G78: 2.4053 | H78: yes
D79: COLO4_06549 | E79: 0.3172 | F79: 0.0000 | G79: -inf | H79: yes
D80: COLO4_09852 | E80: 13.1934 | F80: 1.2943 | G80: -3.3495 | H80: yes | I80: CCACVL1_11210 | J80: 7.7111 | K80: 0.9942 | L80: -2.9553 | M80: yes
D81: COLO4_09848 | E81: 55.5896 | F81: 32.5209 | G81: -0.7734 | H81: no | I81: CCACVL1_11212 | J81: 61.1127 | K81: 132.4390 | L81: 1.1158 | M81: yes
D82: COLO4_07329 | E82: 0.5341 | F82: 1.0148 | G82: 0.9261 | H82: no | I82: CCACVL1_06812 | J82: 0.5182 | K82: 0.2002 | L82: -1.3723 | M82: no
D83: COLO4_36089 | E83: 7.8088 | F83: 0.2810 | G83: -4.7966 | H83: no | I83: CCACVL1_06816 | J83: 0.2503 | K83: 0.0000 | L83: -inf | M83: yes
D84: COLO4_36092 | E84: 7.8088 | F84: 0.2810 | G84: -4.7966 | H84: no
D85: COLO4_15811 | E85: 0.0000 | F85: 0.0000 | G85: 0.0000 | H85: no | I85: CCACVL1_27571 | J85: 0.0038 | K85: 0.2154 | L85: 5.8087 | M85: no
D86: COLO4_15807 | E86: 36.5241 | F86: 11.0500 | G86: -1.7248 | H86: yes | I86: CCACVL1_27570 | J86: 0.3084 | K86: 0.0000 | L86: -inf | M86: yes
D87: COLO4_15813 | E87: 2.8655 | F87: 0.3290 | G87: -3.1226 | H87: yes | I87: CCACVL1_27573_1 | J87: 29.5856 | K87: 20.4174 | L87: -0.5351 | M87: yes
D88: COLO4_15808 | E88: 1.0457 | F88: 0.5313 | G88: -0.9769 | H88: no | I88: CCACVL1_27573 | J88: 29.5856 | K88: 20.4174 | L88: -0.5351 | M88: yes
D89: COLO4_29966 | E89: 0.0000 | F89: 0.0000 | G89: 0.0000 | H89: no | I89: CCACVL1_27569 | J89: 0.1638 | K89: 0.1109 | L89: -0.5621 | M89: no
D90: COLO4_10740 | E90: 3.2651 | F90: 1.1186 | G90: -1.5455 | H90: yes | I90: CCACVL1_13409_2 | J90: 9.9828 | K90: 0.0074 | L90: -10.3948 | M90: no
D91: COLO4_10738 | E91: 14.8387 | F91: 5.8716 | G91: -1.3375 | H91: yes | I91: CCACVL1_13410 | J91: 4.5037 | K91: 0.7787 | L91: -2.5320 | M91: yes
D92: COLO4_10739 | E92: 0.0413 | F92: 0.0279 | G92: -0.5657 | H92: no | I92: CCACVL1_13409_1 | J92: 9.9828 | K92: 0.0074 | L92: -10.3948 | M92: no
D93: COLO4_10741 | E93: 3.8505 | F93: 0.0021 | G93: -10.8094 | H93: no | I93: CCACVL1_13409 | J93: 9.9828 | K93: 0.0074 | L93: -10.3948 | M93: no
D94: COLO4_10742 | E94: 1.6327 | F94: 0.0752 | G94: -4.4412 | H94: yes
D95: COLO4_20024 | E95: 0.1364 | F95: 0.0271 | G95: -2.3328 | H95: no | I95: CCACVL1_00551 | J95: 16.0514 | K95: 6.8410 | L95: -1.2304 | M95: yes
D96: COLO4_06580 | E96: 6.6987 | F96: 0.9797 | G96: -2.7735 | H96: yes | I96: CCACVL1_06758 | J96: 21.7420 | K96: 0.4338 | L96: -5.6472 | M96: yes
D97: COLO4_06582 | E97: 0.8788 | F97: 2.0761 | G97: 1.2403 | H97: yes | I97: CCACVL1_06761 | J97: 0.1856 | K97: 0.0069 | L97: -4.7564 | M97: no
D98: COLO4_21358 | E98: 0.3469 | F98: 0.0000 | G98: -inf | H98: yes | I98: CCACVL1_07954 | J98: 0.0204 | K98: 0.0000 | L98: -inf | M98: no
D99: COLO4_20023 | E99: 0.8932 | F99: 0.0935 | G99: -3.2561 | H99: no | I99: CCACVL1_00551_1 | J99: 16.0514 | K99: 6.8410 | L99: -1.2304 | M99: yes
D100: COLO4_06578 | E100: 10.9570 | F100: 0.0324 | G100: -8.4011 | H100: no | I100: CCACVL1_01846 | J100: 0.1608 | K100: 0.0000 | L100: -inf | M100: yes
D101: COLO4_20025 | E101: 6.4414 | F101: 0.7624 | G101: -3.0787 | H101: yes | I101: CCACVL1_12419 | J101: 1.1619 | K101: 0.1608 | L101: -2.8528 | M101: yes
D102: COLO4_28453 | E102: 44.5526 | F102: 95.9259 | G102: 1.1064 | H102: yes | I102: CCACVL1_30154 | J102: 30.3425 | K102: 37.1570 | L102: 0.2923 | M102: no
I103: CCACVL1_03417 | J103: 49.9457 | K103: 30.4887 | L103: -0.7121 | M103: yes
I104: CCACVL1_09770 | J104: 23.2759 | K104: 7.7557 | L104: -1.5855 | M104: yes
I105: CCACVL1_21304 | J105: 17.1720 | K105: 3.9179 | L105: -2.1319 | M105: yes
I106: CCACVL1_04380 | J106: 3.9146 | K106: 27.7966 | L106: 2.8280 | M106: yes
I107: CCACVL1_25491 | J107: 62.1976 | K107: 32.6631 | L107: -0.9292 | M107: yes
C108: Cellulase | D108: COLO4_03348 | E108: 46.3870 | F108: 2.0469 | G108: -4.5022 | H108: yes | I108: CCACVL1_23970 | J108: 156.2290 | K108: 6.7998 | L108: -4.5220 | M108: yes
D109: COLO4_08359 | E109: 3.8294 | F109: 0.0000 | G109: -inf | H109: yes | I109: CCACVL1_13553 | J109: 0.3385 | K109: 0.0033 | L109: -6.6898 | M109: no
D110: COLO4_09710 | E110: 0.1616 | F110: 0.3678 | G110: 1.1862 | H110: no | I110: CCACVL1_08155 | J110: 14.8266 | K110: 5.5436 | L110: -1.4193 | M110: yes
D111: COLO4_10692 | E111: 240.8960 | F111: 90.8888 | G111: -1.4062 | H111: yes | I111: CCACVL1_13458 | J111: 240.0760 | K111: 47.2222 | L111: -2.3460 | M111: yes
D112: COLO4_10809 | E112: 13.1132 | F112: 0.1673 | G112: -6.2928 | H112: no | I112: CCACVL1_13340 | J112: 81.2492 | K112: 0.0576 | L112: -10.4625 | M112: yes
D113: COLO4_14139 | E113: 0.3154 | F113: 0.1515 | G113: -1.0579 | H113: no | I113: CCACVL1_09977 | J113: 0.0000 | K113: 0.0000 | L113: 0.0000 | M113: no
D114: COLO4_14140 | E114: 0.0000 | F114: 0.0000 | G114: 0.0000 | H114: no | I114: CCACVL1_09978 | J114: 0.1754 | K114: 0.2692 | L114: 0.6175 | M114: no
D115: COLO4_21863 | E115: 13.9408 | F115: 8.4901 | G115: -0.7155 | H115: yes | I115: CCACVL1_11347 | J115: 0.3064 | K115: 0.3388 | L115: 0.1449 | M115: no
D116: COLO4_21922 | E116: 0.0666 | F116: 0.2699 | G116: 2.0193 | H116: yes | I116: CCACVL1_26045 | J116: 0.6488 | K116: 0.4219 | L116: -0.6208 | M116: no
D117: COLO4_22776 | E117: 1.4308 | F117: 0.0203 | G117: -6.1416 | H117: no | I117: CCACVL1_09044 | J117: 14.6757 | K117: 48.1970 | L117: 1.7155 | M117: yes
D118: COLO4_23273 | E118: 0.5529 | F118: 0.1734 | G118: -1.6732 | H118: no | I118: CCACVL1_22168 | J118: 6.7162 | K118: 1.3086 | L118: -2.3597 | M118: yes
D119: COLO4_23316 | E119: 66.0251 | F119: 2.2363 | G119: -4.8839 | H119: yes | I119: CCACVL1_22206 | J119: 250.6910 | K119: 0.6409 | L119: -8.6117 | M119: yes
D120: COLO4_25138 | E120: 5.9993 | F120: 35.3821 | G120: 2.5602 | H120: yes | I120: CCACVL1_29724 | J120: 3.1224 | K120: 4.3725 | L120: 0.4858 | M120: no
D121: COLO4_26038 | E121: 12.4503 | F121: 2.0534 | G121: -2.6001 | H121: yes | I121: CCACVL1_16765 | J121: 10.8418 | K121: 0.5620 | L121: -4.2698 | M121: yes
D122: COLO4_26161 | E122: 26.2211 | F122: 16.3712 | G122: -0.6796 | H122: no | I122: CCACVL1_06031 | J122: 0.1044 | K122: 2.3275 | L122: 4.4788 | M122: yes
D123: COLO4_31102 | E123: 426.3680 | F123: 347.8140 | G123: -0.2938 | H123: no | I123: CCACVL1_19041 | J123: 336.1930 | K123: 345.1250 | L123: 0.0378 | M123: no
D124: COLO4_30246 | E124: 0.5619 | F124: 6.4559 | G124: 3.5221 | H124: yes
B125: Xylan biosynthesis | C125: Xylan synthases | D125: COLO4_11466 | E125: 38.3829 | F125: 63.9069 | G125: 0.7355 | H125: yes | I125: CCACVL1_26419 | J125: 53.5757 | K125: 87.3877 | L125: 0.7059 | M125: yes
D126: COLO4_18673 | E126: 10.1642 | F126: 4.3688 | G126: -1.2182 | H126: yes | I126: CCACVL1_23163 | J126: 7.2435 | K126: 4.9303 | L126: -0.5550 | M126: yes
D127: COLO4_27071 | E127: 6.6473 | F127: 12.3914 | G127: 0.8985 | H127: yes | I127: CCACVL1_17715 | J127: 2.1862 | K127: 36.1770 | L127: 4.0486 | M127: yes
D128: COLO4_35343 | E128: 45.4242 | F128: 56.8461 | G128: 0.3236 | H128: no | I128: CCACVL1_30198 | J128: 26.3092 | K128: 47.8718 | L128: 0.8636 | M128: yes
C129: Irregular Xylem 7 | D129: COLO4_11111 | E129: 16.2659 | F129: 20.0363 | G129: 0.3008 | H129: no | I129: CCACVL1_11708 | J129: 27.5448 | K129: 48.5296 | L129: 0.8171 | M129: yes
B130: Lignin biosynthesis | C130: PAL | D130: COLO4_18142 | E130: 36.8199 | F130: 44.2923 | G130: 0.2666 | H130: no | I130: CCACVL1_20688 | J130: 14.1708 | K130: 1.6187 | L130: -3.1300 | M130: yes
D131: COLO4_21739 | E131: 0.1829 | F131: 0.0000 | G131: -inf | H131: yes | I131: CCACVL1_20537 | J131: 0.0000 | K131: 0.0000 | L131: 0.0000 | M131: no
D132: COLO4_26994 | E132: 556.8090 | F132: 310.9060 | G132: -0.8407 | H132: yes | I132: CCACVL1_17805 | J132: 359.3510 | K132: 1032.3600 | L132: 1.5225 | M132: yes
D133: COLO4_36662 | E133: 137.6670 | F133: 19.6734 | G133: -2.8069 | H133: yes | I133: CCACVL1_05302 | J133: 84.6618 | K133: 70.7087 | L133: -0.2598 | M133: no
C134: C4H | D134: COLO4_11218 | E134: 269.8790 | F134: 24.4744 | G134: -3.4630 | H134: yes | I134: CCACVL1_11618 | J134: 116.3530 | K134: 62.2800 | L134: -0.9017 | M134: yes
D135: COLO4_24913 | E135: 0.4737 | F135: 10.9533 | G135: 4.5313 | H135: no | I135: CCACVL1_22371 | J135: 135.9860 | K135: 159.8170 | L135: 0.2330 | M135: no
I136: CCACVL1_29194 | J136: 0.6445 | K136: 38.4010 | L136: 5.8967 | M136: yes
C137: 4Cl | D137: COLO4_11800 | E137: 3.0053 | F137: 2.3272 | G137: -0.3689 | H137: no | I137: CCACVL1_07493 | J137: 2.0042 | K137: 1.6068 | L137: -0.3188 | M137: no
D138: COLO4_28064 | E138: 30.6678 | F138: 7.2073 | G138: -2.0892 | H138: yes | I138: CCACVL1_11043 | J138: 11.8858 | K138: 1.5123 | L138: -2.9745 | M138: yes
D139: COLO4_16895 | E139: 2.0618 | F139: 0.6957 | G139: -1.5673 | H139: yes | I139: CCACVL1_08745 | J139: 0.2437 | K139: 0.4834 | L139: 0.9880 | M139: yes
D140: COLO4_20414 | E140: 0.0000 | F140: 0.0000 | G140: 0.0000 | H140: no | I140: CCACVL1_24095 | J140: 0.0033 | K140: 0.0000 | L140: -inf | M140: no
D141: COLO4_21602 | E141: 89.2743 | F141: 89.6226 | G141: 0.0056 | H141: no | I141: CCACVL1_02629 | J141: 57.1312 | K141: 77.0590 | L141: 0.4317 | M141: yes
D142: COLO4_21603 | E142: 0.4159 | F142: 0.4991 | G142: 0.2631 | H142: no | I142: CCACVL1_02630 | J142: 1.1928 | K142: 0.2184 | L142: -2.4496 | M142: yes
D143: COLO4_12815 | E143: 10.3838 | F143: 2.7041 | G143: -1.9411 | H143: yes | I143: CCACVL1_24157 | J143: 6.0094 | K143: 1.4588 | L143: -2.0424 | M143: yes
D144: COLO4_28288 | E144: 1.0225 | F144: 1.0835 | G144: 0.0837 | H144: no | I144: CCACVL1_29084 | J144: 3.0744 | K144: 0.5372 | L144: -2.5168 | M144: yes
D145: COLO4_30889 | E145: 206.7830 | F145: 28.1741 | G145: -2.8757 | H145: yes | I145: CCACVL1_18856 | J145: 155.3100 | K145: 84.7122 | L145: -0.8745 | M145: yes
D146: COLO4_32897 | E146: 0.0854 | F146: 0.0519 | G146: -0.7205 | H146: no | I146: CCACVL1_09158 | J146: 0.0000 | K146: 0.0275 | L146: inf | M146: no
D147: COLO4_11059 | E147: 17.4756 | F147: 8.6028 | G147: -1.0225 | H147: yes
D148: COLO4_11060 | E148: 11.9712 | F148: 4.1286 | G148: -1.5359 | H148: yes
D149: COLO4_26952 | E149: 3.6321 | F149: 0.0270 | G149: -7.0707 | H149: no
D150: COLO4_34442 | E150: 702.4380 | F150: 193.4110 | G150: -1.8607 | H150: yes
C151: COMT | D151: COLO4_10840 | E151: 21.4609 | F151: 11.8838 | G151: -0.8527 | H151: no | I151: CCACVL1_13310 | J151: 13.6890 | K151: 14.4956 | L151: 0.0826 | M151: no
D152: COLO4_14378 | E152: 221.9410 | F152: 466.7490 | G152: 1.0725 | H152: yes | I152: CCACVL1_01115 | J152: 18.8266 | K152: 5.0393 | L152: -1.9015 | M152: yes
D153: COLO4_22244 | E153: 44.8190 | F153: 17.8679 | G153: -1.3267 | H153: yes | I153: CCACVL1_12154 | J153: 46.1740 | K153: 22.0915 | L153: -1.0636 | M153: yes
D154: COLO4_23056 | E154: 0.3166 | F154: 0.0525 | G154: -2.5924 | H154: no | I154: CCACVL1_01893 | J154: 6.4237 | K154: 1.6638 | L154: -1.9489 | M154: yes
D155: COLO4_23057 | E155: 0.1302 | F155: 0.0000 | G155: -inf | H155: yes | I155: CCACVL1_06857 | J155: 114.0810 | K155: 39.7356 | L155: -1.5216 | M155: yes
D156: COLO4_25625 | E156: 0.0000 | F156: 0.0000 | G156: 0.0000 | H156: no | I156: CCACVL1_08235 | J156: 0.0036 | K156: 0.0000 | L156: -inf | M156: no
D157: COLO4_28594 | E157: 0.2416 | F157: 0.0721 | G157: -1.7435 | H157: no | I157: CCACVL1_01708 | J157: 20.8347 | K157: 18.6528 | L157: -0.1596 | M157: no
D158: COLO4_28600 | E158: 0.0000 | F158: 0.0000 | G158: 0.0000 | H158: no | I158: CCACVL1_12238 | J158: 0.0784 | K158: 0.0046 | L158: -4.0814 | M158: no
D159: COLO4_28770 | E159: 0.0000 | F159: 0.0000 | G159: 0.0000 | H159: no | I159: CCACVL1_13217 | J159: 34.2058 | K159: 1.5238 | L159: -4.4885 | M159: yes
D160: COLO4_28774 | E160: 0.7471 | F160: 0.1644 | G160: -2.1839 | H160: no | I160: CCACVL1_13218 | J160: 0.0042 | K160: 0.0000 | L160: -inf | M160: no
D161: COLO4_28777 | E161: 13.0908 | F161: 8.0527 | G161: -0.7010 | H161: no | I161: CCACVL1_13219 | J161: 0.1548 | K161: 0.2275 | L161: 0.5549 | M161: no
D162: COLO4_28779 | E162: 5.5002 | F162: 1.5027 | G162: -1.8720 | H162: yes | I162: CCACVL1_15741 | J162: 9.0759 | K162: 2.2020 | L162: -2.0432 | M162: yes
D163: COLO4_28781 | E163: 0.0867 | F163: 0.0000 | G163: -inf | H163: no | I163: CCACVL1_17577 | J163: 0.0000 | K163: 0.0000 | L163: 0.0000 | M163: no
D164: COLO4_28784 | E164: 11.1132 | F164: 10.0490 | G164: -0.1452 | H164: no | I164: CCACVL1_24649 | J164: 1.5525 | K164: 0.0000 | L164: -inf | M164: yes
D165: COLO4_28786 | E165: 11.1132 | F165: 10.0490 | G165: -0.1452 | H165: no | I165: CCACVL1_19487 | J165: 0.0000 | K165: 0.0000 | L165: 0.0000 | M165: no
D166: COLO4_32052 | E166: 0.0000 | F166: 0.0000 | G166: 0.0000 | H166: no
D167: COLO4_38608 | E167: 0.0000 | F167: 0.0000 | G167: 0.0000 | H167: no
C168: HCT | D168: COLO4_18827 | E168: 17.9451 | F168: 36.5007 | G168: 1.0243 | H168: yes | I168: CCACVL1_09321 | J168: 2.4428 | K168: 0.0000 | L168: -inf | M168: yes
D169: COLO4_18828 | E169: 1.3009 | F169: 0.2076 | G169: -2.6478 | H169: no | I169: CCACVL1_04413 | J169: 8.3296 | K169: 0.0476 | L169: -7.4518 | M169: yes
D170: COLO4_18830 | E170: 0.0034 | F170: 0.0000 | G170: -inf | H170: no | I170: CCACVL1_10183 | J170: 23.1466 | K170: 18.0122 | L170: -0.3618 | M170: no
D171: COLO4_26752 | E171: 81.0911 | F171: 49.1148 | G171: -0.7234 | H171: yes | I171: CCACVL1_11455 | J171: 50.4955 | K171: 89.3557 | L171: 0.8234 | M171: yes
D172: COLO4_28788 | E172: 13.8743 | F172: 0.0020 | G172: -12.7472 | H172: no | I172: CCACVL1_11459 | J172: 32.5299 | K172: 18.5125 | L172: -0.8133 | M172: yes
D173: COLO4_28792 | E173: 29.5925 | F173: 13.4750 | G173: -1.1350 | H173: yes
D174: COLO4_28794 | E174: 255.3160 | F174: 40.5725 | G174: -2.6537 | H174: yes
D175: COLO4_28795 | E175: 0.0704 | F175: 0.0000 | G175: -inf | H175: no
D176: COLO4_36453 | E176: 0.0521 | F176: 0.0000 | G176: -inf | H176: no
C177: CCR | D177: COLO4_11124 | E177: 101.0210 | F177: 159.4580 | G177: 0.6585 | H177: yes | I177: CCACVL1_29056 | J177: 88.5631 | K177: 139.7270 | L177: 0.6578 | M177: yes
D178: COLO4_12295 | E178: 7.5307 | F178: 12.2919 | G178: 0.7068 | H178: yes | I178: CCACVL1_11695 | J178: 76.8433 | K178: 85.0428 | L178: 0.1463 | M178: no
D179: COLO4_15196 | E179: 75.2674 | F179: 15.3185 | G179: -2.2968 | H179: yes | I179: CCACVL1_03656 | J179: 17.9368 | K179: 2.4468 | L179: -2.8740 | M179: yes
D180: COLO4_16999 | E180: 10.5043 | F180: 29.9193 | G180: 1.5101 | H180: yes | I180: CCACVL1_00217 | J180: 5.0043 | K180: 0.1742 | L180: -4.8448 | M180: yes
D181: COLO4_26682 | E181: 138.7930 | F181: 138.9730 | G181: 0.0019 | H181: no | I181: CCACVL1_12257 | J181: 10.7338 | K181: 63.8182 | L181: 2.5718 | M181: yes
D182: COLO4_28992 | E182: 17.2101 | F182: 0.5509 | G182: -4.9652 | H182: yes | I182: CCACVL1_15083 | J182: 45.6896 | K182: 43.0330 | L182: -0.0864 | M182: no
D183: COLO4_36426 | E183: 21.0449 | F183: 16.3473 | G183: -0.3644 | H183: no | I183: CCACVL1_30411 | J183: 16.5941 | K183: 17.6210 | L183: 0.0866 | M183: no
D184: COLO4_37812 | E184: 12.3742 | F184: 0.1793 | G184: -6.1089 | H184: yes | I184: CCACVL1_01689 | J184: 9.6405 | K184: 75.4800 | L184: 2.9689 | M184: yes
I185: CCACVL1_19038 | J185: 28.7868 | K185: 15.3374 | L185: -0.9084 | M185: yes
I186: CCACVL1_29651 | J186: 0.7263 | K186: 0.2479 | L186: -1.5510 | M186: yes
C187: CAD | D187: COLO4_10859 | E187: 28.9278 | F187: 8.3976 | G187: -1.7844 | H187: yes | I187: CCACVL1_05526 | J187: 22.8743 | K187: 4.3785 | L187: -2.3852 | M187: yes
D188: COLO4_11486 | E188: 90.5880 | F188: 0.3349 | G188: -8.0796 | H188: yes | I188: CCACVL1_01726 | J188: 0.0688 | K188: 0.0482 | L188: -0.5122 | M188: no
D189: COLO4_11709 | E189: 14.0568 | F189: 11.9277 | G189: -0.2370 | H189: no | I189: CCACVL1_01522 | J189: 43.2143 | K189: 35.0751 | L189: -0.3011 | M189: no
D190: COLO4_11710 | E190: 0.3615 | F190: 0.0000 | G190: -inf | H190: yes | I190: CCACVL1_09101 | J190: 12.5194 | K190: 2.0501 | L190: -2.6104 | M190: yes
D191: COLO4_11711 | E191: 1.1103 | F191: 0.0140 | G191: -6.3144 | H191: no | I191: CCACVL1_01725 | J191: 22.1924 | K191: 0.2067 | L191: -6.7467 | M191: yes
D192: COLO4_11712 | E192: 559.7560 | F192: 1.4889 | G192: -8.5544 | H192: yes | I192: CCACVL1_01727 | J192: 119.9030 | K192: 41.7220 | L192: 0.0000 | M192: no
D193: COLO4_11713 | E193: 49.7260 | F193: 12.9627 | G193: -1.9396 | H193: yes | I193: CCACVL1_01728 | J193: 34.5101 | K193: 226.6360 | L193: 2.7153 | M193: yes
D194: COLO4_11714 | E194: 120.0160 | F194: 0.0185 | G194: -12.6605 | H194: no | I194: CCACVL1_26637 | J194: 9.0402 | K194: 7.6332 | L194: -0.2441 | M194: no
D195: COLO4_26104 | E195: 42.8525 | F195: 15.0580 | G195: -1.5089 | H195: yes | I195: CCACVL1_01729 | J195: 11.6946 | K195: 13.9188 | L195: 0.2512 | M195: no
D196: COLO4_32593 | E196: 163.0070 | F196: 178.7940 | G196: 0.1334 | H196: no | I196: CCACVL1_26440 | J196: 91.9597 | K196: 1.9823 | L196: -5.5357 | M196: yes
I197: CCACVL1_01726_1 | J197: 0.0688 | K197: 0.0482 | L197: -0.5122 | M197: no
I198: CCACVL1_26638 | J198: 9.0402 | K198: 7.6332 | L198: -0.2441 | M198: no
I199: CCACVL1_26993 | J199: 0.0899 | K199: 0.0000 | L199: -inf | M199: no
C200: CCoAOMT | D200: COLO4_27619 | E200: 0.0120 | F200: 0.0000 | G200: -inf | H200: no | I200: CCACVL1_02034 | J200: 0.0000 | K200: 0.0000 | L200: 0.0000 | M200: no
D201: COLO4_24405 | E201: 0.2357 | F201: 0.1068 | G201: -1.1422 | H201: no | I201: CCACVL1_06748 | J201: 1.3169 | K201: 0.5875 | L201: -1.1646 | M201: yes
... 176 more rows

Sheet Supplementary Table 33
A1: Supplementary Table 33. Genes involved in phenylpropanoid and lignin biosynthetic pathways across different plant genomes
B3: PAL | C3: C4H | D3: C3H | E3: 4CL | F3: HCT | G3: CCR | H3: CCoAOMT | I3: CAD | J3: F5H | K3: COMT | L3: Total
A4: C. olitorius | B4: 4 | C4: 2 | D4: 1 | E4: 14 | F4: 9 | G4: 8 | H4: 10 | I4: 10 | J4: 2 | K4: 17 | L4: 77
A5: C. capsularis | B5: 4 | C5: 3 | D5: 1 | E5: 10 | F5: 5 | G5: 10 | H5: 10 | I5: 13 | J5: 2 | K5: 15 | L5: 73
A6: Cacao | B6: 3 | C6: 3 | D6: 1 | E6: 3 | F6: 6 | G6: 9 | H6: 9 | I6: 8 | J6: 2 | K6: 9 | L6: 53
A7: Cotton | B7: 6 | C7: 2 | D7: 3 | E7: 9 | F7: 16 | G7: 9 | H7: 9 | I7: 7 | J7: 4 | K7: 9 | L7: 74
A8: Flax | B8: 4 | C8: 5 | D8: 4 | E8: 8 | F8: 6 | G8: 5 | H8: 7 | I8: 12 | J8: 8 | K8: 8 | L8: 67
A9: Bamboo | B9: 8 | C9: 4 | D9: 3 | E9: 6 | F9: 4 | G9: 3 | H9: 2 | I9: 1 | J9: 3 | K9: 1 | L9: 35
A10: Populus | B10: 5 | C10: 3 | D10: 3 | E10: 5 | F10: 7 | G10: 7 | H10: 2 | I10: 1 | J10: 2 | K10: 2 | L10: 37
A11: Arabidopsis | B11: 4 | C11: 1 | D11: 1 | E11: 5 | F11: 2 | G11: 2 | H11: 2 | I11: 9 | J11: 2 | K11: 1 | L11: 29
A12: Grapevine | B12: 15 | C12: 3 | D12: 1 | E12: 2 | F12: 2 | G12: 1 | H12: 2 | I12: 18 | J12: 3 | K12: 2 | L12: 49
A13: Rice | B13: 9 | C13: 4 | D13: 1 | E13: 5 | F13: 2 | G13: 3 | H13: 1 | I13: 12 | J13: 2 | K13: 1 | L13: 40
A14: PAL; Phenylalanine amonnia lyase, C4H; Cinnamate-4-hydroxylase, C3H; Coumaroyl 3-hydroxylase, 4CL; 4-Coumarate:CoA Ligas, HCT; Hydroxycinnamoyl-CoA:shikimate/quinate hydroxycinnamoyl transferase, CCR; Cinnamoyl-CoA reductase, CCoAOMT; Trans-caffeoyl-CoA 3-O-methyltransferase, CAD; Cinnamyl alcohol dehydrogenase, F5H; Ferulate 5-hydroxylase, COMT; Caffeic acid 3-O-methyltransferase.

Sheet Supplementary Table 34
A1: Supplementary Table 34. Comparison of copy numbers of cellulose synthase (CesA) and cellulose synthase-like (Csl) genes among different plant genomes
B3: Class | C3: C. olitorius | D3: C. capsularis | E3: Cotton | F3: Cacao | G3: Flax | H3: Poplar | I3: Arabidopsis
A4: Cellulose synthase (CesA) | C4: 10 | D4: 10 | E4: 12 | F4: 5 | G4: 10 | H4: 12 | I4: 10
A5: Cellulose synthase-like (Csl) | B5: CslA | C5: 0 | D5: 2 | E5: 2 | F5: 1 | G5: 2 | H5: 2 | I5: 8
B6: CslB | C6: 7 | D6: 7 | E6: 1 | F6: 4 | G6: 1 | H6: 3 | I6: 6
B7: CslC | C7: 1 | D7: 4 | E7: 9 | F7: 4 | G7: 9 | H7: 8 | I7: 5
B8: CslD | C8: 8 | D8: 6 | E8: 6 | F8: 5 | G8: 19 | H8: 12 | I8: 6
B9: CslE | C9: 5 | D9: 4 | E9: 11 | F9: 8 | G9: 1 | H9: 3 | I9: 1
B10: CslG | C10: 10 | D10: 9 | E10: 10 | F10: 13 | G10: 6 | H10: 8 | I10: 3
A11: Sub-total | C11: 31 | D11: 32 | E11: 39 | F11: 35 | G11: 38 | H11: 36 | I11: 29
A12: Total | C12: 41 | D12: 42 | E12: 51 | F12: 40 | G12: 48 | H12: 48 | I12: 39

Sheet Supplementary Table 35
A1: Supplementary Table 35. KEGG pathway enrichment analysis for Corchorus olitorius fiber cells compared to seedlings. Enrichment was considered to be significant at corrected p-value ≤ 0.05.
A3: KEGG pathway | B3: Genes (up) | C3: Genes (tot) | D3: p adj (dist.dir.up)
A4: Proteasome | B4: 36 | C4: 38 | D4: 0
A5: Plant hormone signal transduction | B5: 104 | C5: 155 | D5: 0
A6: Oxidative phosphorylation | B6: 58 | C6: 75 | D6: 0
A7: Regulation of autophagy | B7: 14 | C7: 15 | D7: 0
A8: Ubiquitin mediated proteolysis | B8: 53 | C8: 74 | D8: 0
A9: SNARE interactions in vesicular transport | B9: 17 | C9: 19 | D9: 0
A10: Ribosome | B10: 170 | C10: 207 | D10: 0
A11: Protein processing in endoplasmic reticulum | B11: 76 | C11: 121 | D11: 0.00915
A12: RNA transport | B12: 66 | C12: 104 | D12: 0.025756
A15: KEGG pathway | B15: Genes (down) | C15: Genes (tot) | D15: p adj (dist.dir.dn)
A16: Phenylpropanoid biosynthesis | B16: 88 | C16: 118 | D16: 0
A17: Brassinosteroid biosynthesis | B17: 17 | C17: 17 | D17: 0
A18: Biosynthesis of secondary metabolites | B18: 441 | C18: 639 | D18: 0
A19: Stilbenoid, diarylheptanoid and gingerol biosynthesis | B19: 39 | C19: 47 | D19: 0
A20: Phenylalanine metabolism | B20: 62 | C20: 84 | D20: 0
A21: Cutin, suberine and wax biosynthesis | B21: 16 | C21: 17 | D21: 0
A22: Limonene and pinene degradation | B22: 34 | C22: 39 | D22: 0
A23: Fatty acid metabolism | B23: 32 | C23: 40 | D23: 0
A24: Metabolic pathways | B24: 647 | C24: 1063 | D24: 0
A25: Glutathione metabolism | B25: 50 | C25: 61 | D25: 0
A26: Aminoacyl-tRNA biosynthesis | B26: 29 | C26: 34 | D26: 0
A27: Fatty acid degradation | B27: 24 | C27: 29 | D27: 0.0010167
A28: Ubiquinone and other terpenoid-quinone biosynthesis | B28: 22 | C28: 25 | D28: 0.0017429
A29: Glycerolipid metabolism | B29: 26 | C29: 33 | D29: 0.0017429
A30: Starch and sucrose metabolism | B30: 70 | C30: 105 | D30: 0.00305
A31: Porphyrin and chlorophyll metabolism | B31: 22 | C31: 26 | D31: 0.00305
A32: Tryptophan metabolism | B32: 26 | C32: 34 | D32: 0.00366
A33: Fatty acid biosynthesis | B33: 21 | C33: 26 | D33: 0.00366
A34: ABC transporters | B34: 12 | C34: 13 | D34: 0.00366
A35: Glycine, serine and threonine metabolism | B35: 31 | C35: 41 | D35: 0.00366
A36: Sesquiterpenoid and triterpenoid biosynthesis | B36: 20 | C36: 26 | D36: 0.011619
A37: Biosynthesis of amino acids | B37: 77 | C37: 121 | D37: 0.014418
A38: Lysine degradation | B38: 13 | C38: 15 | D38: 0.021748
A39: alpha-Linolenic acid metabolism | B39: 18 | C39: 24 | D39: 0.039142
A40: Biotin metabolism | B40: 10 | C40: 12 | D40: 0.043432
A41: DNA replication | B41: 24 | C41: 34 | D41: 0.045314
A42: Fatty acid elongation | B42: 11 | C42: 14 | D42: 0.045314
A43: Pyruvate metabolism | B43: 30 | C43: 44 | D43: 0.045314
A44: Glucosinolate biosynthesis | B44: 14 | C44: 19 | D44: 0.048379

Sheet Supplementary Table 36
A1: Supplementary Table 36. KEGG pathway enrichment analysis for Corchorus capsularis fiber cells compared to seedlings. Enrichment was considered to be significant at corrected p-value ≤ 0.05.
A3: KEGG pathway | B3: Genes (up) | C3: Genes (tot) | D3: p adj (dist.dir.up)
A4: Proteasome | B4: 32 | C4: 36 | D4: 0
A5: Ribosome | B5: 165 | C5: 194 | D5: 0
A6: Plant hormone signal transduction | B6: 85 | C6: 125 | D6: 0
A7: SNARE interactions in vesicular transport | B7: 21 | C7: 24 | D7: 0.00615
A8: RNA polymerase | B8: 23 | C8: 29 | D8: 0.00738
A9: Plant-pathogen interaction | B9: 60 | C9: 91 | D9: 0.0123
A10: Oxidative phosphorylation | B10: 50 | C10: 72 | D10: 0.0123
A11: Ribosome biogenesis in eukaryotes | B11: 36 | C11: 52 | D11: 0.016912
A12: Phagosome | B12: 32 | C12: 46 | D12: 0.046467
A15: KEGG pathway | B15: Genes (down) | C15: Genes (tot) | D15: p adj (dist.dir.dn)
A16: Fatty acid biosynthesis | B16: 33 | C16: 37 | D16: 0
A17: Fatty acid metabolism | B17: 50 | C17: 61 | D17: 0
A18: Biosynthesis of secondary metabolites | B18: 366 | C18: 555 | D18: 0
A19: Pyruvate metabolism | B19: 41 | C19: 55 | D19: 0
A20: Metabolic pathways | B20: 655 | C20: 1073 | D20: 0
A21: Porphyrin and chlorophyll metabolism | B21: 25 | C21: 28 | D21: 0
A22: Photosynthesis | B22: 30 | C22: 37 | D22: 0
A23: Aminoacyl-tRNA biosynthesis | B23: 38 | C23: 45 | D23: 0
A24: Glycerolipid metabolism | B24: 28 | C24: 36 | D24: 0.00123
A25: Photosynthesis - antenna proteins | B25: 13 | C25: 14 | D25: 0.00123
A26: Galactose metabolism | B26: 29 | C26: 37 | D26: 0.0022364
A27: Biotin metabolism | B27: 14 | C27: 15 | D27: 0.003075
A28: alpha-Linolenic acid metabolism | B28: 23 | C28: 28 | D28: 0.0046125
A29: Carbon fixation in photosynthetic organisms | B29: 37 | C29: 53 | D29: 0.0046125
A30: Glycine, serine and threonine metabolism | B30: 34 | C30: 46 | D30: 0.0046125
A31: Phenylpropanoid biosynthesis | B31: 56 | C31: 82 | D31: 0.0046125
A32: Starch and sucrose metabolism | B32: 60 | C32: 89 | D32: 0.0050647
A33: Carbon metabolism | B33: 91 | C33: 146 | D33: 0.00615
A34: Phenylalanine metabolism | B34: 48 | C34: 70 | D34: 0.0071211
A35: Ubiquinone and other terpenoid-quinone biosynthesis | B35: 18 | C35: 22 | D35: 0.00738
A36: Cutin, suberine and wax biosynthesis | B36: 13 | C36: 15 | D36: 0.0076143
A37: Carotenoid biosynthesis | B37: 17 | C37: 22 | D37: 0.011182
A38: 2-Oxocarboxylic acid metabolism | B38: 28 | C38: 39 | D38: 0.01123
A39: Alanine, aspartate and glutamate metabolism | B39: 25 | C39: 34 | D39: 0.012813
A40: Fatty acid degradation | B40: 28 | C40: 38 | D40: 0.013776
A41: Brassinosteroid biosynthesis | B41: 6 | C41: 6 | D41: 0.019396
A42: Sphingolipid metabolism | B42: 20 | C42: 27 | D42: 0.02173
A43: Lysine degradation | B43: 15 | C43: 19 | D43: 0.02173
A44: Valine, leucine and isoleucine biosynthesis | B44: 11 | C44: 14 | D44: 0.02173
A45: Citrate cycle (TCA cycle) | B45: 21 | C45: 29 | D45: 0.02173
A46: Steroid biosynthesis | B46: 13 | C46: 16 | D46: 0.031345
A47: Glyoxylate and dicarboxylate metabolism | B47: 30 | C47: 45 | D47: 0.044203

Sheet Supplementary Table 37
B2: Supplementary Table 37. Chemical composition of jute fibres
B4: Contents (%) | C4: Jute retted fiber
C5: C. capsularis | D5: C. olitorius
B6: Alphacellulose | C6: 60.0 – 63.0 | D6: 58.0 - 59.0
B7: Hemicellulose | C7: 21.0 – 24.0 | D7: 22.0 – 25.0
B8: Lignin | C8: 12.0 – 13.0 | D8: 13.0 – 14.0
B9: Fats & Waxes | C9: 0.4 – 1.0 | D9: 0.4 – 0.9
B10: Pectin | C10: 0.2 – 1.5 | D10: 0.2 – 0.5
B11: Proteins/Nitrogenous matter, etc | C11: 0.80 – 1.9 | D11: 0.8 – 1.6
B12: Ash | C12: 0.7 – 1.2 | D12: 0.5 – 1.2

Sheet Supplementary Table 38
B2: Supplementary Table 38. List of GO annotations of the C. olitorius predicted ORFs
B4: Gene model | C4: GoSlim biological process | D4: GoSlim molecular function | E4: GoSlim cellular component
B5: COLO4_00002 | C5: - | D5: oxidoreductase activity | E5: -
B6: COLO4_00003 | C6: small molecule metabolic process; lipid metabolic process; cofactor metabolic process; anatomical structure development; cell differentiation; cellular nitrogen compound metabolic process; biosynthetic process | D6: oxidoreductase activity | E6: plastid
B7: COLO4_00006 | C7: carbohydrate metabolic process; catabolic process | D7: ion binding; hydrolase activity, acting on glycosyl bonds | E7: plastid
B8: COLO4_00010 | C8: signal transduction; response to stress | D8: - | E8: -
B9: COLO4_00013 | C9: - | D9: molecular_function | E9: -
B10: COLO4_00016 | C10: anatomical structure development | D10: oxidoreductase activity; ion binding | E10: -
B11: COLO4_00018 | C11: carbohydrate metabolic process; cell wall organization or biogenesis; biosynthetic process | D11: transferase activity, transferring glycosyl groups | E11: cell wall
B12: COLO4_00020 | C12: tRNA metabolic process | D12: RNA binding; methyltransferase activity | E12: -
B13: COLO4_00022 | C13: small molecule metabolic process; carbohydrate metabolic process; generation of precursor metabolites and energy; catabolic process; cofactor metabolic process; biosynthetic process; cellular nitrogen compound metabolic process | D13: isomerase activity | E13: plastid
B14: COLO4_00023 | C14: catabolic process; anatomical structure development; cellular amino acid metabolic process; cellular nitrogen compound metabolic process; biosynthetic process; response to stress; reproduction | D14: lyase activity | E14: -
B15: COLO4_00025 | C15: cellular protein modification process; response to stress | D15: phosphatase activity; ion binding | E15: -
B16: COLO4_00031 | C16: cellular nitrogen compound metabolic process | D16: methyltransferase activity | E16: -
B17: COLO4_00033 | C17: secondary metabolic process; sulfur compound metabolic process; catabolic process; cell morphogenesis; cellular protein modification process; cellular amino acid metabolic process; developmental maturation; biosynthetic process; growth; carbohydrate metabolic process; pigmentation; cell differentiation; cell wall organization or biogenesis | D17: ion binding; signal transducer activity; kinase activity | E17: plasma membrane; cytoplasmic, membrane-bounded vesicle
B18: COLO4_00044 | C18: anatomical structure development; reproduction | D18: - | E18: -
B19: COLO4_00048 | C19: - | D19: lyase activity | E19: -
B20: COLO4_00049 | C20: cellular nitrogen compound metabolic process; biosynthetic process | D20: DNA binding | E20: nucleus
B21: COLO4_00050 | C21: ribosome biogenesis; translation | D21: structural constituent of ribosome | E21: cytosol; ribosome
B22: COLO4_00057 | C22: secondary metabolic process; homeostatic process; anatomical structure development; developmental maturation; biosynthetic process; reproduction | D22: transmembrane transporter activity | E22: vacuole
B23: COLO4_00061 | C23: - | D23: lyase activity | E23: cellular_component
B24: COLO4_00063 | C24: cofactor metabolic process; cellular amino acid metabolic process; biosynthetic process; cellular nitrogen compound metabolic process; response to stress | D24: ion binding; lyase activity | E24: protein complex; plastid
B25: COLO4_00065 | C25: carbohydrate metabolic process; nucleocytoplasmic transport; signal transduction; anatomical structure development; cell wall organization or biogenesis; biosynthetic process | D25: GTPase activity; ion binding | E25: intracellular; plasma membrane
B26: COLO4_00074 | C26: sulfur compound metabolic process; small molecule metabolic process | D26: nucleotidyltransferase activity; ion binding; translation factor activity, RNA binding; GTPase activity | E26: nucleolus; ribosome; vacuole; plastid; plasma membrane; mitochondrion
B27: COLO4_00078 | C27: carbohydrate metabolic process | D27: hydrolase activity, acting on glycosyl bonds | E27: cell wall
B28: COLO4_00079 | C28: - | D28: - | E28: organelle; intracellular
B29: COLO4_00088 | C29: cellular protein modification process; response to stress; small molecule metabolic process; homeostatic process; cellular nitrogen compound metabolic process | D29: ion binding; phosphatase activity | E29: protein complex; vacuole; cell wall; cytosol
B30: COLO4_00089 | C30: ribosome biogenesis; translation | D30: structural constituent of ribosome | E30: mitochondrion; ribosome
B31: COLO4_00092 | C31: biological_process | D31: molecular_function | E31: -
B32: COLO4_00097 | C32: - | D32: oxidoreductase activity | E32: plastid
B33: COLO4_00107 | C33: - | D33: molecular_function | E33: nuclear envelope; cytosol; protein complex; plastid
B34: COLO4_00108 | C34: small molecule metabolic process; carbohydrate metabolic process; nucleocytoplasmic transport; protein targeting; cytoskeleton organization; catabolic process; protein complex assembly; biosynthetic process | D34: protein transporter activity | E34: nuclear envelope; cytosol
B35: COLO4_00109 | C35: nucleobase-containing compound catabolic process; biosynthetic process; DNA metabolic process | D35: nuclease activity; structural molecule activity | E35: cellular_component
B36: COLO4_00111 | C36: embryo development; generation of precursor metabolites and energy; sulfur compound metabolic process; catabolic process; cellular protein modification process; biosynthetic process; reproduction; small molecule metabolic process; carbohydrate metabolic process; chromosome organization; cofactor metabolic process; photosynthesis; cellular nitrogen compound metabolic process | D36: ion binding; kinase activity | E36: protein complex; cell wall; cytosol
B37: COLO4_00112 | C37: transport | D37: molecular_function | E37: cellular_component
B38: COLO4_00113 | C38: - | D38: ion binding; peptidase activity | E38: mitochondrion; cytoplasmic, membrane-bounded vesicle; extracellular region; vacuole; plastid; plasma membrane
B39: COLO4_00117 | C39: - | D39: ion binding; lyase activity | E39: -
B40: COLO4_00123 | C40: - | D40: - | E40: mitochondrion
B41: COLO4_00126 | C41: - | D41: protein transporter activity | E41: plastid; plasma membrane; thylakoid
B42: COLO4_00128 | C42: lipid metabolic process | D42: molecular_function | E42: -
B43: COLO4_00129 | C43: biological_process | D43: - | E43: plastid
B44: COLO4_00130 | C44: - | D44: oxidoreductase activity; ion binding | E44: -
B45: COLO4_00136 | C45: small molecule metabolic process; secondary metabolic process; lipid metabolic process; biosynthetic process; response to stress | D45: transferase activity, transferring acyl groups | E45: cytoplasm; endoplasmic reticulum; protein complex
B46: COLO4_00137 | C46: - | D46: lyase activity; ion binding | E46: -
B47: COLO4_00149 | C47: small molecule metabolic process; generation of precursor metabolites and energy; cellular nitrogen compound metabolic process; biosynthetic process | D47: ATPase activity; transmembrane transporter activity; ion binding | E47: protein complex; plastid; thylakoid
B48: COLO4_00156 | C48: - | D48: molecular_function | E48: -
B49: COLO4_00157 | C49: response to stress | D49: GTPase activity; ion binding; translation factor activity, RNA binding | E49: cytosol; nucleolus; ribosome; plastid; plasma membrane
B50: COLO4_00159 | C50: catabolic process; cellular protein modification process | D50: - | E50: -
B51: COLO4_00161 | C51: catabolic process; cellular protein modification process | D51: peptidase activity | E51: -
B52: COLO4_00165 | C52: chromosome organization; cellular protein modification process; chromosome segregation; biosynthetic process; DNA metabolic process | D52: methyltransferase activity | E52: -
B53: COLO4_00166 | C53: cellular nitrogen compound metabolic process; response to stress | D53: isomerase activity | E53: -
B54: COLO4_00168 | C54: biosynthetic process; DNA metabolic process; cell cycle | D54: ion binding | E54: -
B55: COLO4_00178 | C55: - | D55: lyase activity | E55: -
B56: COLO4_00181 | C56: transport | D56: - | E56: intracellular
B57: COLO4_00190 | C57: embryo development; cell division; protein complex assembly | D57: - | E57: nucleus; plastid
B58: COLO4_00196 | C58: signal transduction; response to stress | D58: DNA binding | E58: nucleus
B59: COLO4_00200 | C59: - | D59: - | E59: plastid
B60: COLO4_00205 | C60: - | D60: kinase activity | E60: -
B61: COLO4_00211 | C61: - | D61: ion binding | E61: cytosol; plastid
B62: COLO4_00212 | C62: - | D62: oxidoreductase activity; ion binding | E62: peroxisome
B63: COLO4_00213 | C63: sulfur compound metabolic process; cellular amino acid metabolic process; biosynthetic process | D63: transmembrane transporter activity | E63: cellular_component
B64: COLO4_00215 | C64: catabolic process; lipid metabolic process; cellular amino acid metabolic process; cellular nitrogen compound metabolic process; biosynthetic process | D64: transferase activity, transferring acyl groups | E64: -
B65: COLO4_00217 | C65: - | D65: ion binding | E65: -
B66: COLO4_00222 | C66: - | D66: oxidoreductase activity; ion binding | E66: -
B67: COLO4_00227 | C67: biological_process | D67: molecular_function | E67: -
B68: COLO4_00228 | C68: response to stress | D68: - | E68: -
B69: COLO4_00229 | C69: - | D69: - | E69: cellular_component
B70: COLO4_00232 | C70: - | D70: oxidoreductase activity | E70: -
B71: COLO4_00239 | C71: - | D71: oxidoreductase activity | E71: -
B72: COLO4_00240 | C72: - | D72: kinase activity | E72: -
B73: COLO4_00245 | C73: - | D73: molecular_function | E73: plastid
B74: COLO4_00246 | C74: embryo development; cell division; protein complex assembly | D74: - | E74: nucleus; cytoplasm
B75: COLO4_00251 | C75: - | D75: - | E75: intracellular
B76: COLO4_00258 | C76: response to stress | D76: ion binding | E76: -
B77: COLO4_00259 | C77: - | D77: transferase activity, transferring acyl groups | E77: -
B78: COLO4_00260 | C78: cytoskeleton organization; cellular protein modification process; anatomical structure development; cell division; cell-cell signaling; developmental maturation; mRNA processing; symbiosis, encompassing mutualism through parasitism; reproduction; cell cycle; response to stress; immune system process; translation; carbohydrate metabolic process; chromosome organization; lipid metabolic process | D78: transferase activity, transferring glycosyl groups | E78: plastid; cytosol; nucleus; cell wall
B79: COLO4_00263 | C79: cell division; cellular protein modification process; cell cycle; reproduction | D79: enzyme binding | E79: nucleus
B80: COLO4_00268 | C80: biological_process | D80: - | E80: -
B81: COLO4_00270 | C81: protein folding; response to stress; immune system process | D81: molecular_function | E81: cell wall; cytosol; plasma membrane
B82: COLO4_00273 | C82: secondary metabolic process; signal transduction; biosynthetic process; response to stress | D82: oxidoreductase activity | E82: -
B83: COLO4_00278 | C83: secondary metabolic process; sulfur compound metabolic process; catabolic process; cellular amino acid metabolic process; biosynthetic process; response to stress; immune system process; cell wall organization or biogenesis; cellular nitrogen compound metabolic process | D83: oxidoreductase activity | E83: endoplasmic reticulum; cytoplasm
B84: COLO4_00280 | C84: - | D84: DNA binding | E84: -
B85: COLO4_00281 | C85: response to stress | D85: GTPase activity; ion binding; translation factor activity, RNA binding | E85: cytosol; nucleolus; ribosome; plastid; plasma membrane
B86: COLO4_00283 | C86: - | D86: RNA binding | E86: ribosome; plastid
B87: COLO4_00290 | C87: cell morphogenesis; growth | D87: - | E87: nucleus
B88: COLO4_00295 | C88: embryo development; cell division; cytoskeleton organization; nucleobase-containing compound catabolic process; reproduction; cell cycle | D88: molecular_function | E88: -
B89: COLO4_00301 | C89: homeostatic process | D89: DNA binding | E89: nucleus
B90: COLO4_00302 | C90: - | D90: molecular_function | E90: -
B91: COLO4_00303 | C91: - | D91: - | E91: plastid
B92: COLO4_00304 | C92: biosynthetic process | D92: transferase activity, transferring glycosyl groups | E92: -
B93: COLO4_00308 | C93: catabolic process; cellular protein modification process | D93: molecular_function | E93: nucleus; mitochondrion; cytosol; protein complex
B94: COLO4_00311 | C94: membrane organization; carbohydrate metabolic process; biosynthetic process | D94: RNA binding | E94: plastid
B95: COLO4_00312 | C95: membrane organization; carbohydrate metabolic process; biosynthetic process | D95: RNA binding | E95: -
B96: COLO4_00318 | C96: response to stress | D96: transmembrane transporter activity | E96: vacuole; plasma membrane
B97: COLO4_00319 | C97: cellular nitrogen compound metabolic process; biosynthetic process | D97: DNA binding; nucleic acid binding transcription factor activity | E97: protein complex; intracellular
B98: COLO4_00321 | C98: - | D98: ion binding; kinase activity | E98: -
B99: COLO4_00327 | C99: - | D99: transmembrane transporter activity | E99: plastid
B100: COLO4_00331 | C100: anatomical structure development; transport; reproduction; response to stress | D100: - | E100: intracellular; plasma membrane
B101: COLO4_00332 | C101: biological_process | D101: - | E101: -
B102: COLO4_00334 | C102: cellular nitrogen compound metabolic process; biosynthetic process | D102: DNA binding; nucleic acid binding transcription factor activity | E102: protein complex; intracellular
B103: COLO4_00337 | C103: - | D103: - | E103: mitochondrion
B104: COLO4_00343 | C104: signal transduction; biosynthetic process; DNA metabolic process; response to stress; autophagy; lipid metabolic process | D104: peptidase activity; cytoskeletal protein binding; ligase activity | E104: protein complex; vacuole; cytoskeleton
B105: COLO4_00345 | C105: cytoskeleton organization; protein complex assembly; catabolic process; signal transduction; cellular protein modification process; cellular amino acid metabolic process; cell wall organization or biogenesis | D105: ion binding; kinase activity | E105: -
B106: COLO4_00347 | C106: - | D106: ATPase activity; transmembrane transporter activity; ion binding | E106: cellular_component
B107: COLO4_00354 | C107: small molecule metabolic process; carbohydrate metabolic process; photosynthesis; biosynthetic process | D107: oxidoreductase activity; lyase activity; ion binding | E107: protein complex; plastid
B108: COLO4_00361 | C108: - | D108: kinase activity | E108: plasma membrane
B109: COLO4_00363 | C109: - | D109: - | E109: plastid
B110: COLO4_00367 | C110: - | D110: transmembrane transporter activity | E110: plasma membrane
B111: COLO4_00370 | C111: biological_process | D111: - | E111: -
B112: COLO4_00371 | C112: signal transduction | D112: molecular_function | E112: plastid
B113: COLO4_00374 | C113: small molecule metabolic process; cellular nitrogen compound metabolic process; biosynthetic process | D113: transmembrane transporter activity | E113: plastid; thylakoid
B114: COLO4_00376 | C114: embryo development; tRNA metabolic process; cellular amino acid metabolic process; reproduction; translation | D114: ion binding; ligase activity | E114: mitochondrion; cytosol; plastid
B115: COLO4_00383 | C115: generation of precursor metabolites and energy; cellular protein modification process; photosynthesis | D115: oxidoreductase activity; ion binding | E115: protein complex; plastid; thylakoid
B116: COLO4_00384 | C116: small molecule metabolic process; secondary metabolic process; carbohydrate metabolic process; biosynthetic process; cellular nitrogen compound metabolic process | D116: oxidoreductase activity; isomerase activity | E116: cytosol; plastid; plasma membrane
B117: COLO4_00385 | C117: small molecule metabolic process; secondary metabolic process; carbohydrate metabolic process; biosynthetic process; cellular nitrogen compound metabolic process | D117: oxidoreductase activity; isomerase activity | E117: cytosol; plasma membrane
B118: COLO4_00391 | C118: - | D118: transmembrane transporter activity; protein transporter activity | E118: plastid
B119: COLO4_00392 | C119: small molecule metabolic process; cellular nitrogen compound metabolic process; biosynthetic process | D119: DNA binding; nucleotidyltransferase activity | E119: nucleolus; plastid
B120: COLO4_00393 | C120: small molecule metabolic process; generation of precursor metabolites and energy; cellular nitrogen compound metabolic process; biosynthetic process | D120: ATPase activity; transmembrane transporter activity; ion binding | E120: protein complex; plastid; thylakoid
B121: COLO4_00395 | C121: cellular component assembly; anatomical structure development; cellular amino acid metabolic process; biosynthetic process; response to stress; immune system process; protein targeting; cell differentiation; cellular nitrogen compound metabolic process | D121: RNA binding | E121: plastid; thylakoid
B122: COLO4_00396 | C122: cellular nitrogen compound metabolic process; biosynthetic process | D122: - | E122: plastid
B123: COLO4_00397 | C123: cell morphogenesis; cell differentiation; reproduction; growth | D123: - | E123: Golgi apparatus
B124: COLO4_00402 | C124: generation of precursor metabolites and energy; cellular protein modification process; photosynthesis | D124: molecular_function | E124: protein complex; plastid; thylakoid
B125: COLO4_00413 | C125: cellular amino acid metabolic process; tRNA metabolic process; translation | D125: RNA binding; ion binding; lyase activity; ligase activity | E125: cytoplasm; protein complex
B126: COLO4_00421 | C126: - | D126: oxidoreductase activity; ion binding | E126: -
B127: COLO4_00423 | C127: generation of precursor metabolites and energy; photosynthesis; response to stress | D127: oxidoreductase activity; ion binding | E127: protein complex; plastid; thylakoid
B128: COLO4_00442 | C128: lipid metabolic process; anatomical structure development; biosynthetic process | D128: isomerase activity | E128: -
B129: COLO4_00458 | C129: - | D129: molecular_function | E129: -
B130: COLO4_00459 | C130: small molecule metabolic process; generation of precursor metabolites and energy; cellular nitrogen compound metabolic process; biosynthetic process | D130: ATPase activity; transmembrane transporter activity; ion binding | E130: protein complex; plastid; thylakoid
B131: COLO4_00482 | C131: biosynthetic process; cellular nitrogen compound metabolic process | D131: molecular_function | E131: cytoplasm
B132: COLO4_00483 | C132: transport | D132: molecular_function | E132: plasma membrane
B133: COLO4_00488 | C133: generation of precursor metabolites and energy; photosynthesis | D133: molecular_function | E133: plastid; thylakoid
B134: COLO4_00504 | C134: small molecule metabolic process; generation of precursor metabolites and energy; photosynthesis; cellular nitrogen compound metabolic process; biosynthetic process | D134: DNA binding; nucleotidyltransferase activity | E134: nucleolus; plastid
B135: COLO4_00506 | C135: small molecule metabolic process; carbohydrate metabolic process; photosynthesis; biosynthetic process | D135: oxidoreductase activity; lyase activity; ion binding | E135: protein complex; plastid
B136: COLO4_00513 | C136: carbohydrate metabolic process; biosynthetic process | D136: molecular_function | E136: plasma membrane
B137: COLO4_00517 | C137: - | D137: - | E137: plastid
B138: COLO4_00519 | C138: small molecule metabolic process; cellular nitrogen compound metabolic process; biosynthetic process | D138: DNA binding; nucleotidyltransferase activity | E138: nucleolus; plastid
B139: COLO4_00521 | C139: small molecule metabolic process; generation of precursor metabolites and energy; cellular nitrogen compound metabolic process; biosynthetic process | D139: ATPase activity; transmembrane transporter activity; ion binding | E139: protein complex; plastid; thylakoid
B140: COLO4_00523 | C140: small molecule metabolic process; generation of precursor metabolites and energy; cellular nitrogen compound metabolic process; biosynthetic process | D140: ATPase activity; transmembrane transporter activity; ion binding | E140: protein complex; plastid; thylakoid
B141: COLO4_00526 | C141: signal transduction; anatomical structure development; developmental maturation; biosynthetic process; response to stress; small molecule metabolic process; cell differentiation; cellular nitrogen compound metabolic process | D141: transmembrane transporter activity; ion binding | E141: vacuole; plastid; plasma membrane
B142: COLO4_00531 | C142: cellular amino acid metabolic process; cellular nitrogen compound metabolic process; biosynthetic process | D142: ion binding; ligase activity | E142: -
B143: COLO4_00534 | C143: generation of precursor metabolites and energy; protein complex assembly; biosynthetic process; small molecule metabolic process; photosynthesis; cellular nitrogen compound metabolic process | D143: transmembrane transporter activity; lipid binding | E143: protein complex; plastid; thylakoid
B144: COLO4_00535 | C144: small molecule metabolic process; generation of precursor metabolites and energy | D144: oxidoreductase activity | E144: -
B145: COLO4_00542 | C145: - | D145: GTPase activity; ion binding; translation factor activity, RNA binding | E145: ribosome
B146: COLO4_00543 | C146: cell division; cell wall organization or biogenesis; biosynthetic process | D146: transferase activity, transferring glycosyl groups; ion binding | E146: cell wall
B147: COLO4_00557 | C147: generation of precursor metabolites and energy; biosynthetic process; small molecule metabolic process; cellular nitrogen compound metabolic process | D147: ATPase activity; transmembrane transporter activity; ion binding | E147: protein complex; plastid; thylakoid; mitochondrion
B148: COLO4_00572 | C148: ribosome biogenesis; translation | D148: structural constituent of ribosome; rRNA binding | E148: ribosome; plastid
B149: COLO4_00574 | C149: transport | D149: molecular_function | E149: plasma membrane
B150: COLO4_00578 | C150: generation of precursor metabolites and energy; photosynthesis | D150: molecular_function | E150: plastid; thylakoid
B151: COLO4_00585 | C151: - | D151: oxidoreductase activity | E151: cellular_component
B152: COLO4_00587 | C152: small molecule metabolic process; generation of precursor metabolites and energy; cellular nitrogen compound metabolic process; biosynthetic process | D152: ATPase activity; transmembrane transporter activity; ion binding | E152: protein complex; plastid; thylakoid
B153: COLO4_00588 | C153: cellular nitrogen compound metabolic process; biosynthetic process | D153: - | E153: -
B154: COLO4_00592 | C154: small molecule metabolic process; cellular nitrogen compound metabolic process; biosynthetic process | D154: DNA binding; nucleotidyltransferase activity | E154: nucleolus; plastid
B155: COLO4_00598 | C155: generation of precursor metabolites and energy; cellular protein modification process; photosynthesis | D155: molecular_function | E155: protein complex; plastid; thylakoid
B156: COLO4_00599 | C156: generation of precursor metabolites and energy; photosynthesis; response to stress | D156: oxidoreductase activity; ion binding | E156: protein complex; plastid; thylakoid
B157: COLO4_00600 | C157: small molecule metabolic process; generation of precursor metabolites and energy; cellular nitrogen compound metabolic process; biosynthetic process | D157: ATPase activity; transmembrane transporter activity; ion binding | E157: protein complex; plastid; thylakoid
B158: COLO4_00602 | C158: generation of precursor metabolites and energy | D158: ion binding | E158: plastid; thylakoid
B159: COLO4_00608 | C159: cellular nitrogen compound metabolic process; biosynthetic process | D159: DNA binding | E159: -
B160: COLO4_00624 | C160: small molecule metabolic process; generation of precursor metabolites and energy; cellular nitrogen compound metabolic process; biosynthetic process | D160: ATPase activity; transmembrane transporter activity; ion binding | E160: protein complex; plastid; thylakoid
B161: COLO4_00644 | C161: small molecule metabolic process; generation of precursor metabolites and energy; photosynthesis; cellular nitrogen compound metabolic process; biosynthetic process | D161: DNA binding; nucleotidyltransferase activity | E161: nucleolus; plastid
B162: COLO4_00646 | C162: - | D162: transmembrane transporter activity; oxidoreductase activity | E162: cellular_component
B163: COLO4_00652 | C163: small molecule metabolic process; cellular nitrogen compound metabolic process; biosynthetic process | D163: DNA binding; nucleotidyltransferase activity | E163: nucleolus; plastid
B164: COLO4_00654 | C164: small molecule metabolic process; cellular nitrogen compound metabolic process; biosynthetic process | D164: DNA binding; nucleotidyltransferase activity | E164: nucleolus; plastid
B165: COLO4_00659 | C165: - | D165: oxidoreductase activity; ion binding | E165: -
B166: COLO4_00685 | C166: biosynthetic process; DNA metabolic process | D166: DNA binding; ion binding | E166: cytoplasm
B167: COLO4_00688 | C167: - | D167: molecular_function | E167: -
B168: COLO4_00698 | C168: generation of precursor metabolites and energy; cellular protein modification process; photosynthesis | D168: oxidoreductase activity; ion binding | E168: protein complex; plastid; thylakoid
B169: COLO4_00715 | C169: generation of precursor metabolites and energy; ribosome biogenesis; photosynthesis; translation | D169: structural constituent of ribosome; rRNA binding | E169: ribosome; plastid
B170: COLO4_00733 | C170: ribosome biogenesis; translation | D170: structural constituent of ribosome; rRNA binding | E170: ribosome; plastid
B171: COLO4_00749 | C171: - | D171: peptidase activity | E171: -
B172: COLO4_00765 | C172: small molecule metabolic process | D172: oxidoreductase activity; ion binding | E172: -
B173: COLO4_00775 | C173: cell division; cytoskeleton organization; anatomical structure development; cell differentiation; cell cycle; growth | D173: molecular_function | E173: protein complex; intracellular
B174: COLO4_00791 | C174: ribosome biogenesis; translation | D174: RNA binding; structural constituent of ribosome | E174: ribosome; plastid
B175: COLO4_00809 | C175: transport | D175: - | E175: -
B176: COLO4_00813 | C176: generation of precursor metabolites and energy; cellular protein modification process; photosynthesis | D176: molecular_function | E176: protein complex; plastid; thylakoid
B177: COLO4_00815 | C177: small molecule metabolic process; generation of precursor metabolites and energy; photosynthesis; cellular nitrogen compound metabolic process; biosynthetic process | D177: DNA binding; nucleotidyltransferase activity | E177: nucleolus; plastid
B178: COLO4_00824 | C178: small molecule metabolic process; generation of precursor metabolites and energy; cellular nitrogen compound metabolic process; biosynthetic process | D178: ATPase activity; transmembrane transporter activity; ion binding | E178: protein complex; plastid; thylakoid
B179: COLO4_00825 | C179: generation of precursor metabolites and energy; photosynthesis; response to stress | D179: oxidoreductase activity; ion binding | E179: protein complex; plastid; thylakoid
B180: COLO4_00832 | C180: generation of precursor metabolites and energy; cellular protein modification process; photosynthesis | D180: molecular_function | E180: protein complex; plastid; thylakoid
B181: COLO4_00842 | C181: - | D181: - | E181: cell
B182: COLO4_00848 | C182: biological_process | D182: molecular_function | E182: -
B183: COLO4_00863 | C183: signal transduction | D183: molecular_function | E183: -
B184: COLO4_00864 | C184: - | D184: - | E184: cellular_component
B185: COLO4_00878 | C185: - | D185: molecular_function | E185: -
B186: COLO4_00902 | C186: cellular nitrogen compound metabolic process; biosynthetic process | D186: DNA binding; ion binding | E186: cytoplasm
B187: COLO4_00908 | C187: transposition; DNA metabolic process | D187: DNA binding | E187: -
B188: COLO4_00921 | C188: - | D188: signal transducer activity; kinase activity | E188: protein complex
B189: COLO4_00923 | C189: cellular protein modification process | D189: methyltransferase activity | E189: ribosome
B190: COLO4_00933 | C190: small molecule metabolic process; carbohydrate metabolic process; photosynthesis; biosynthetic process | D190: oxidoreductase activity; lyase activity; ion binding | E190: protein complex; plastid
B191: COLO4_00936 | C191: small molecule metabolic process; generation of precursor metabolites and energy; cellular nitrogen compound metabolic process; biosynthetic process | D191: ATPase activity; transmembrane transporter activity; ion binding | E191: protein complex; plastid; thylakoid
B192: COLO4_00940 | C192: - | D192: molecular_function | E192: -
B193: COLO4_00941 | C193: cellular amino acid metabolic process; biosynthetic process | D193: ion binding; lyase activity | E193: -
B194: COLO4_00961 | C194: transport | D194: ion binding | E194: intracellular
B195: COLO4_00968 | C195: small molecule metabolic process; sulfur compound metabolic process; cellular nitrogen compound metabolic process; biosynthetic process | D195: ion binding; kinase activity | E195: -
B196: COLO4_00969 | C196: - | D196: transferase activity, transferring acyl groups; transmembrane transporter activity | E196: cellular_component
B197: COLO4_00972 | C197: - | D197: ion binding; peptidase activity | E197: -
B198: COLO4_00976 | C198: - | D198: - | E198: cellular_component
B199: COLO4_00988 | C199: cell morphogenesis; cell wall organization or biogenesis; biosynthetic process | D199: transferase activity, transferring glycosyl groups; ion binding; peptidase activity | E199: cell wall
B200: COLO4_00997 | C200: transport | D200: molecular_function | E200: cellular_component
B201: COLO4_01002 | C201: small molecule metabolic process; generation of precursor metabolites and energy; cellular nitrogen compound metabolic process; biosynthetic process | D201: ATPase activity; transmembrane transporter activity; ion binding | E201: protein complex; plastid; thylakoid
B202: COLO4_01013 | C202: - | D202: transmembrane transporter activity | E202: -
... 17712 more rows

Sheet Supplementary Table 39
B2: Supplementary Table 39. List of GO annotations of the C. capsularis
B4: Gene model | C4: GoSlim biological process | D4: GoSlim molecular function | E4: GoSlim cellular component
B5: CCACVL1_00016 | C5: biological_process | D5: ion binding | E5: plasma membrane
B6: CCACVL1_00019 | C6: - | D6: oxidoreductase activity; ion binding | E6: -
B7: CCACVL1_00021 | C7: anatomical structure development; developmental maturation; biosynthetic process; transport; response to stress; reproduction; growth; cell differentiation; cellular nitrogen compound metabolic process | D7: DNA binding; oxidoreductase activity; nucleic acid binding transcription factor activity | E7: protein complex; intracellular
B8: CCACVL1_00022 | C8: - | D8: ion binding | E8: plastid
B9: CCACVL1_00023 | C9: biosynthetic process; DNA metabolic process | D9: ion binding | E9: -
B10: CCACVL1_00030 | C10: - | D10: methyltransferase activity | E10: -
B11: CCACVL1_00032 | C11: embryo development; signal transduction; cellular protein modification process; anatomical structure formation involved in morphogenesis; developmental maturation; biosynthetic process; response to stress; reproduction; small molecule metabolic process; nucleocytoplasmic transport; chromosome organization; cell differentiation; cellular nitrogen compound metabolic process | D11: methyltransferase activity; kinase activity | E11: cytosol
B12: CCACVL1_00036 | C12: embryo development; transmembrane transport; reproduction | D12: molecular_function | E12: plasma membrane
B13: CCACVL1_00038 | C13: sulfur compound metabolic process; catabolic process; biosynthetic process; DNA metabolic process; growth; cell cycle; small molecule metabolic process; carbohydrate metabolic process; lipid metabolic process; cofactor metabolic process | D13: methyltransferase activity | E13: endoplasmic reticulum; Golgi apparatus; cytosol
B14: CCACVL1_00039 | C14: small molecule metabolic process; homeostatic process; response to stress | D14: oxidoreductase activity | E14: plastid; thylakoid
B15: CCACVL1_00042 | C15: cellular nitrogen compound metabolic process; biosynthetic process | D15: DNA binding; nucleic acid binding transcription factor activity; ion binding | E15: protein complex; intracellular
B16: CCACVL1_00049 | C16: cellular amino acid metabolic process | D16: - | E16: plastid
B17: CCACVL1_00050 | C17: anatomical structure development; aging; growth; reproduction | D17: - | E17: nucleus
B18: CCACVL1_00064 | C18: - | D18: - | E18: cellular_component
B19: CCACVL1_00065 | C19: cellular protein modification process; cellular amino acid metabolic process | D19: ion binding; signal transducer activity; kinase activity | E19: plasma membrane
B20: CCACVL1_00067 | C20: anatomical structure formation involved in morphogenesis; reproduction; growth | D20: - | E20: nucleus
B21: CCACVL1_00069 | C21: sulfur compound metabolic process; cellular protein modification process; anatomical structure development; cellular amino acid metabolic process; biosynthetic process; growth | D21: ion binding; kinase activity; enzyme binding | E21: Golgi apparatus; vacuole; plastid; plasma membrane; cytosol
B22: CCACVL1_00070 | C22: response to stress | D22: transmembrane transporter activity | E22: cell wall; mitochondrion; protein complex; nucleolus; vacuole; plastid; plasma membrane
B23: CCACVL1_00071 | C23: carbohydrate metabolic process; catabolic process | D23: ion binding; hydrolase activity, acting on glycosyl bonds | E23: plastid
B24: CCACVL1_00073 | C24: cellular nitrogen compound metabolic process; biosynthetic process; response to stress | D24: - | E24: -
B25: CCACVL1_00079 | C25: signal transduction; cellular protein modification process; anatomical structure development; cellular amino acid metabolic process | D25: ion binding; kinase activity | E25: plasma membrane
B26: CCACVL1_00095 | C26: - | D26: - | E26: plastid
B27: CCACVL1_00096 | C27: - | D27: - | E27: cellular_component
B28: CCACVL1_00097 | C28: - | D28: - | E28: cellular_component
B29: CCACVL1_00101 | C29: embryo development; protein targeting; cellular component assembly; reproduction | D29: translation factor activity, RNA binding | E29: mitochondrion; ribosome; plastid
B30: CCACVL1_00107 | C30: DNA metabolic process | D30: DNA binding; ion binding | E30: plastid
B31: CCACVL1_00115 | C31: anatomical structure development; nucleobase-containing compound catabolic process | D31: molecular_function | E31: nucleus; cytosol
B32: CCACVL1_00119 | C32: - | D32: - | E32: cytosol; protein complex; plasma membrane
B33: CCACVL1_00122 | C33: cellular nitrogen compound metabolic process; cell cycle | D33: molecular_function | E33: cellular_component
B34: CCACVL1_00124 | C34: - | D34: transmembrane transporter activity | E34: cellular_component
B35: CCACVL1_00125 | C35: cellular amino acid metabolic process; biosynthetic process; cellular nitrogen compound metabolic process | D35: oxidoreductase activity | E35: -
B36: CCACVL1_00126 | C36: cofactor metabolic process; cellular nitrogen compound metabolic process; biosynthetic process | D36: - | E36: plastid; thylakoid
B37: CCACVL1_00128 | C37: cellular protein modification process | D37: ion binding | E37: intracellular
B38: CCACVL1_00131 | C38: catabolic process; cellular protein modification process | D38: ion binding; kinase activity | E38: nucleus
B39: CCACVL1_00139 | C39: - | D39: ion binding | E39: -
B40: CCACVL1_00144 | C40: - | D40: - | E40: plastid
B41: CCACVL1_00149 | C41: biological_process | D41: - | E41: -
B42: CCACVL1_00151 | C42: lipid metabolic process; biosynthetic process; response to stress | D42: ion binding; lyase activity | E42: plastid
B43: CCACVL1_00152 | C43: generation of precursor metabolites and energy; anatomical structure development; biosynthetic process; small molecule metabolic process; photosynthesis; cellular nitrogen compound metabolic process | D43: ATPase activity; transmembrane transporter activity; enzyme regulator activity | E43: protein complex; plastid; thylakoid
B44: CCACVL1_00153 | C44: lipid metabolic process; biosynthetic process | D44: transferase activity, transferring alkyl or aryl (other than methyl) groups | E44: plastid
B45: CCACVL1_00156 | C45: cellular protein modification process; anatomical structure development; mRNA processing; reproduction; mitochondrion organization; translation; nucleocytoplasmic transport; protein targeting; chromosome organization; cell differentiation; protein maturation | D45: - | E45: intracellular
B46: CCACVL1_00157 | C46: catabolic process; cellular amino acid metabolic process | D46: methyltransferase activity | E46: mitochondrion; cytosol; ribosome; extracellular region; plastid
B47: CCACVL1_00162 | C47: - | D47: kinase activity | E47: -
B48: CCACVL1_00163 | C48: - | D48: - | E48: peroxisome
B49: CCACVL1_00164 | C49: - | D49: - | E49: mitochondrion
B50: CCACVL1_00165 | C50: protein folding; response to stress | D50: ion binding; unfolded protein binding | E50: cell wall; mitochondrion; plastid
B51: CCACVL1_00166 | C51: transmembrane transport | D51: - | E51: -
B52: CCACVL1_00168 | C52: secondary metabolic process; sulfur compound metabolic process; catabolic process; cellular amino acid metabolic process; biosynthetic process; lipid metabolic process; cellular nitrogen compound metabolic process | D52: ion binding; oxidoreductase activity | E52: cytosol
B53: CCACVL1_00172 | C53: secondary metabolic process; sulfur compound metabolic process; catabolic process; cellular amino acid metabolic process; cellular nitrogen compound metabolic process; biosynthetic process | D53: oxidoreductase activity | E53: -
B54: CCACVL1_00175 | C54: cellular protein modification process; cellular amino acid metabolic process; DNA metabolic process; cell cycle; translation | D54: ion binding; kinase activity | E54: -
B55: CCACVL1_00176 | C55: catabolic process; lipid metabolic process; biosynthetic process; response to stress | D55: molecular_function | E55: cytosol; vacuole; plasma membrane
B56: CCACVL1_00181 | C56: - | D56: ion binding | E56: -
B57: CCACVL1_00184 | C57: cell division; cell morphogenesis; cellular protein modification process; cell differentiation; transport | D57: ubiquitin-like protein binding; ligase activity | E57: endosome; protein complex
B58: CCACVL1_00185 | C58: response to stress | D58: - | E58: -
B59: CCACVL1_00186 | C59: - | D59: transmembrane transporter activity | E59: cellular_component
B60: CCACVL1_00189 | C60: biosynthetic process | D60: - | E60: -
B61: CCACVL1_00190 | C61: - | D61: oxidoreductase activity | E61: -
B62: CCACVL1_00192 | C62: biological_process | D62: ion binding | E62: cytoskeleton; plasma membrane
B63: CCACVL1_00193 | C63: small molecule metabolic process; protein targeting; transmembrane transport; catabolic process; lipid metabolic process; anatomical structure development; reproduction | D63: peptidase activity | E63: cell wall; Golgi apparatus
B64: CCACVL1_00198 | C64: signal transduction; cellular amino acid metabolic process; cellular nitrogen compound metabolic process; biosynthetic process; response to stress; growth | D64: RNA binding; phosphatase activity | E64: -
B65: CCACVL1_00199 | C65: anatomical structure development; response to stress | D65: - | E65: -
B66: CCACVL1_00206 | C66: lipid metabolic process; biosynthetic process | D66: transferase activity, transferring acyl groups | E66: -
B67: CCACVL1_00208 | C67: - | D67: ion binding | E67: Golgi apparatus
B68: CCACVL1_00212 | C68: cellular nitrogen compound metabolic process | D68: - | E68: vacuole; plastid
B69: CCACVL1_00213 | C69: signal transduction; cellular protein modification process; anatomical structure development; cellular amino acid metabolic process; growth | D69: oxidoreductase activity; ion binding; kinase activity | E69: cellular_component
B70: CCACVL1_00214 | C70: cell morphogenesis; ribosome biogenesis; cell cycle; translation; cell division; cell differentiation | D70: structural constituent of ribosome | E70: nucleolus; ribosome; plastid; cell wall; cytosol
B71: CCACVL1_00217 | C71: secondary metabolic process; biosynthetic process | D71: oxidoreductase activity | E71: -
B72: CCACVL1_00220 | C72: catabolic process; cell morphogenesis; growth; response to stress; small molecule metabolic process; carbohydrate metabolic process; vesicle-mediated transport | D72: ion binding | E72: protein complex; cytosol; cytoplasmic, membrane-bounded vesicle
B73: CCACVL1_00221 | C73: chromosome organization; cellular component assembly; chromosome segregation; DNA metabolic process; cell cycle; reproduction; response to stress | D73: molecular_function | E73: plastid
B74: CCACVL1_00223 | C74: - | D74: kinase activity | E74: plasma membrane
B75: CCACVL1_00227 | C75: small molecule metabolic process; lipid metabolic process; biosynthetic process | D75: oxidoreductase activity | E75: cytoplasm
B76: CCACVL1_00232 | C76: - | D76: protein transporter activity | E76: cytosol
B77: CCACVL1_00233 | C77: - | D77: - | E77: cytosol
B78: CCACVL1_00237 | C78: secondary metabolic process; cell wall organization or biogenesis | D78: - | E78: cell wall
B79: CCACVL1_00239 | C79: - | D79: nucleotidyltransferase activity; GTPase activity; ion binding; translation factor activity, RNA binding | E79: ribosome
B80: CCACVL1_00241 | C80: small molecule metabolic process; secondary metabolic process; sulfur compound metabolic process; biosynthetic process | D80: transferase activity, transferring acyl groups | E80: -
B81: CCACVL1_00242 | C81: cytoskeleton organization; protein complex assembly; anatomical structure development; growth | D81: cytoskeletal protein binding | E81: cytoskeleton; protein complex
B82: CCACVL1_00246 | C82: tRNA metabolic process; cellular amino acid metabolic process; translation | D82: ion binding; RNA binding; ligase activity | E82: protein complex; plastid; mitochondrion
B83: CCACVL1_00247 | C83: small molecule metabolic process; cellular nitrogen compound metabolic process | D83: phosphatase activity | E83: vacuole; plasma membrane
B84: CCACVL1_00252 | C84: - | D84: transmembrane transporter activity | E84: cellular_component
B85: CCACVL1_00256 | C85: anatomical structure development; cell differentiation | D85: - | E85: -
B86: CCACVL1_00257 | C86: - | D86: - | E86: cellular_component
B87: CCACVL1_00267 | C87: - | D87: molecular_function | E87: -
B88: CCACVL1_00268 | C88: small molecule metabolic process; protein targeting; transmembrane transport; catabolic process; lipid metabolic process; cellular nitrogen compound metabolic process | D88: RNA binding; methyltransferase activity | E88: plastid
B89: CCACVL1_00269 | C89: embryo development; signal transduction; nucleobase-containing compound catabolic process; reproduction | D89: DNA binding; ion binding; helicase activity | E89: cytosol; plasma membrane
B90: CCACVL1_00273 | C90: catabolic process; response to stress; small molecule metabolic process; homeostatic process; lipid metabolic process | D90: transmembrane transporter activity; oxidoreductase activity | E90: vacuole; plasma membrane
B91: CCACVL1_00276 | C91: ribosome biogenesis; translation | D91: structural constituent of ribosome | E91: mitochondrion; cytosol; nucleolus; ribosome; plastid
B92: CCACVL1_00277 | C92: symbiosis, encompassing mutualism through parasitism; response to stress; immune system process | D92: - | E92: Golgi apparatus; plastid
B93: CCACVL1_00278 | C93: biosynthetic process; DNA metabolic process | D93: DNA binding; nucleotidyltransferase activity; RNA binding; peptidase activity | E93: mitochondrion; cytoplasmic, membrane-bounded vesicle
B94: CCACVL1_00282 | C94: autophagy; cellular protein modification process; biosynthetic process | D94: kinase activity | E94: -
B95: CCACVL1_00286 | C95: small molecule metabolic process; generation of precursor metabolites and energy; protein complex assembly | D95: oxidoreductase activity; ion binding | E95: cytoplasm
B96: CCACVL1_00288 | C96: - | D96: peptidase activity | E96: cellular_component
B97: CCACVL1_00289 | C97: secondary metabolic process; sulfur compound metabolic process; catabolic process; cellular amino acid metabolic process; biosynthetic process; cellular nitrogen compound metabolic process | D97: hydrolase activity, acting on carbon-nitrogen (but not peptide) bonds; ion binding | E97: plastid
B98: CCACVL1_00290 | C98: cell death; signal transduction; homeostatic process; protein folding; response to stress; immune system process | D98: ion binding; unfolded protein binding | E98: cytoplasm; endoplasmic reticulum
B99: CCACVL1_00292 | C99: transport | D99: molecular_function | E99: cellular_component
B100: CCACVL1_00293 | C100: transport | D100: molecular_function | E100: cellular_component
B101: CCACVL1_00297 | C101: small molecule metabolic process; secondary metabolic process; sulfur compound metabolic process; biosynthetic process | D101: peptidase activity | E101: cytoplasmic, membrane-bounded vesicle; lysosome
B102: CCACVL1_00298 | C102: sulfur compound metabolic process; homeostatic process; cellular amino acid metabolic process; biosynthetic process; cellular nitrogen compound metabolic process; response to stress | D102: - | E102: endoplasmic reticulum; Golgi apparatus
B103: CCACVL1_00299 | C103: - | D103: molecular_function | E103: -
B104: CCACVL1_00300 | C104: biological_process | D104: - | E104: -
B105: CCACVL1_00301 | C105: catabolic process; cellular amino acid metabolic process; cellular nitrogen compound metabolic process; biosynthetic process; transport | D105: hydrolase activity, acting on carbon-nitrogen (but not peptide) bonds; ligase activity | E105: plastid
B106: CCACVL1_00305 | C106: cellular protein modification process; anatomical structure formation involved in morphogenesis; biosynthetic process; DNA metabolic process; response to stress; reproduction; chromosome organization | D106: ligase activity | E106: nucleus; mitochondrion
B107: CCACVL1_00306 | C107: - | D107: methyltransferase activity | E107: -
B108: CCACVL1_00307 | C108: embryo development; cellular nitrogen compound metabolic process; biosynthetic process; reproduction | D108: DNA binding; nucleic acid binding transcription factor activity | E108: protein complex; intracellular
B109: CCACVL1_00309 | C109: membrane organization; anatomical structure development; developmental maturation; biosynthetic process; response to stress; reproduction; carbohydrate metabolic process; vesicle-mediated transport; homeostatic process; cell differentiation; cell wall organization or biogenesis | D109: ATPase activity; transmembrane transporter activity; ion binding | E109: endoplasmic reticulum; plasma membrane; cytoplasm
B110: CCACVL1_00310 | C110: cellular protein modification process; cellular amino acid metabolic process; response to stress | D110: ion binding; kinase activity | E110: nucleus; cytosol
B111: CCACVL1_00311 | C111: generation of precursor metabolites and energy; sulfur compound metabolic process; response to stress | D111: oxidoreductase activity | E111: -
B112: CCACVL1_00312 | C112: signal transduction | D112: molecular_function | E112: nucleus; cytosol; extracellular region; vacuole; plasma membrane; plastid
B113: CCACVL1_00313 | C113: embryo development; cellular protein modification process; ribosome biogenesis; mRNA processing; DNA metabolic process; response to stress; reproduction; translation; cell division; nucleocytoplasmic transport; protein targeting; chromosome organization; cell differentiation | D113: ATPase activity; ion binding; helicase activity | E113: nucleus; mitochondrion
B114: CCACVL1_00314 | C114: - | D114: phosphatase activity | E114: -
B115: CCACVL1_00317 | C115: small molecule metabolic process; secondary metabolic process; biosynthetic process; transport; response to stress | D115: transferase activity, transferring acyl groups | E115: nucleus; endoplasmic reticulum; vacuole
B116: CCACVL1_00318 | C116: signal transduction; cellular nitrogen compound metabolic process; biosynthetic process; response to stress; immune system process | D116: DNA binding; nucleic acid binding transcription factor activity | E116: protein complex; intracellular
B117: CCACVL1_00321 | C117: anatomical structure development; developmental maturation; growth; response to stress; cell differentiation | D117: transmembrane transporter activity; enzyme binding | E117: vacuole; plastid; plasma membrane
B118: CCACVL1_00325 | C118: cellular nitrogen compound metabolic process | D118: methyltransferase activity | E118: cytosol
B119: CCACVL1_00327 | C119: protein targeting; lipid metabolic process; cellular component assembly; anatomical structure development; cellular amino acid metabolic process; biosynthetic process | D119: - | E119: plastid
B120: CCACVL1_00328 | C120: - | D120: - | E120: nuclear envelope; nucleolus
B121: CCACVL1_00329 | C121: - | D121: molecular_function | E121: -
B122: CCACVL1_00330 | C122: - | D122: molecular_function | E122: -
B123: CCACVL1_00332 | C123: - | D123: - | E123: cytosol; plasma membrane
B124: CCACVL1_00333 | C124: cytoskeleton organization; protein complex assembly; cell morphogenesis; cellular protein modification process; cellular amino acid metabolic process; cell adhesion; developmental maturation; reproduction; response to stress; cell differentiation; cell wall organization or biogenesis | D124: signal transducer activity; oxidoreductase activity; kinase activity | E124: -
B125: CCACVL1_00334 | C125: signal transduction | D125: - | E125: plasma membrane
B126: CCACVL1_00335 | C126: cellular nitrogen compound metabolic process; biosynthetic process | D126: - | E126: -
B127: CCACVL1_00337 | C127: - | D127: molecular_function | E127: -
B128: CCACVL1_00338 | C128: small molecule metabolic process; carbohydrate metabolic process; catabolic process | D128: - | E128: Golgi apparatus; cytoplasmic, membrane-bounded vesicle; endoplasmic reticulum; vacuole
B129: CCACVL1_00340 | C129: catabolic process; cellular protein modification process; cellular amino acid metabolic process; biosynthetic process; cell division; pigmentation; cell wall organization or biogenesis; sulfur compound metabolic process; cell morphogenesis; developmental maturation; growth; reproduction; carbohydrate metabolic process; lipid metabolic process; cell differentiation | D129: lyase activity; RNA binding; phosphatase activity | E129: cytosol; endoplasmic reticulum; protein complex; nucleus
B130: CCACVL1_00341 | C130: DNA metabolic process; response to stress | D130: DNA binding; lyase activity; ion binding | E130: mitochondrion; plastid
B131: CCACVL1_00348 | C131: small molecule metabolic process; embryo development; lipid metabolic process; biosynthetic process; reproduction; response to stress | D131: transferase activity, transferring acyl groups | E131: cytosol; protein complex; plastid
B132: CCACVL1_00349 | C132: nucleocytoplasmic transport; protein targeting | D132: - | E132: intracellular
B133: CCACVL1_00351 | C133: carbohydrate metabolic process | D133: enzyme regulator activity | E133: -
B134: CCACVL1_00354 | C134: generation of precursor metabolites and energy; cell morphogenesis; biosynthetic process; response to stress; reproduction; growth; pigmentation; cell differentiation; cell wall organization or biogenesis; photosynthesis; cellular nitrogen compound metabolic process | D134: DNA binding; nucleic acid binding transcription factor activity | E134: protein complex; plastid; thylakoid
B135: CCACVL1_00355 | C135: small molecule metabolic process; carbohydrate metabolic process; catabolic process | D135: transferase activity, transferring glycosyl groups; ion binding | E135: plastid
B136: CCACVL1_00356 | C136: - | D136: - | E136: plastid
B137: CCACVL1_00359 | C137: cellular protein modification process; protein folding | D137: isomerase activity | E137: cytoplasmic, membrane-bounded vesicle
B138: CCACVL1_00364 | C138: - | D138: kinase activity | E138: -
B139: CCACVL1_00365 | C139: homeostatic process | D139: oxidoreductase activity | E139: Golgi apparatus
B140: CCACVL1_00366 | C140: - | D140: - | E140: cellular_component
B141: CCACVL1_00368 | C141: - | D141: ion binding | E141: -
B142: CCACVL1_00375 | C142: biological_process | D142: molecular_function | E142: -
B143: CCACVL1_00377 | C143: embryo development; small molecule metabolic process; cofactor metabolic process; biosynthetic process | D143: transferase activity, transferring alkyl or aryl (other than methyl) groups | E143: mitochondrion
B144: CCACVL1_00386 | C144: - | D144: - | E144: plastid; plasma membrane
B145: CCACVL1_00387 | C145: small molecule metabolic process; secondary metabolic process; sulfur compound metabolic process; cellular nitrogen compound metabolic process; biosynthetic process | D145: - | E145: -
B146: CCACVL1_00390 | C146: secondary metabolic process; catabolic process; cofactor metabolic process; cellular amino acid metabolic process; biosynthetic process; cellular nitrogen compound metabolic process | D146: molecular_function | E146: plastid
B147: CCACVL1_00391 | C147: - | D147: molecular_function | E147: -
B148: CCACVL1_00396 | C148: - | D148: - | E148: plastid
B149: CCACVL1_00397 | C149: - | D149: oxidoreductase activity; ion binding | E149: cytoplasm; endoplasmic reticulum
B150: CCACVL1_00404 | C150: - | D150: molecular_function | E150: -
B151: CCACVL1_00405 | C151: - | D151: ion binding | E151: intracellular
B152: CCACVL1_00406 | C152: small molecule metabolic process; membrane organization; lipid metabolic process; biosynthetic process; cellular nitrogen compound metabolic process | D152: - | E152: cytoplasmic chromosome; plastid
B153: CCACVL1_00409 | C153: membrane organization; response to stress; immune system process; protein targeting; cell death; vesicle-mediated transport; homeostatic process | D153: transmembrane transporter activity | E153: vacuole
B154: CCACVL1_00411 | C154: transport | D154: molecular_function | E154: intracellular
B155: CCACVL1_00412 | C155: signal transduction; biosynthetic process; mRNA processing; DNA metabolic process | D155: nucleotidyltransferase activity; RNA binding; ion binding | E155: mitochondrion
B156: CCACVL1_00413 | C156: cell morphogenesis; homeostatic process; cell differentiation; cell wall organization or biogenesis; reproduction; growth | D156: transmembrane transporter activity | E156: cellular_component
B157: CCACVL1_00414 | C157: cellular nitrogen compound metabolic process; biosynthetic process | D157: DNA binding; nucleic acid binding transcription factor activity | E157: protein complex; intracellular
B158: CCACVL1_00420 | C158: - | D158: oxidoreductase activity; ion binding | E158: -
B159: CCACVL1_00421 | C159: response to stress | D159: oxidoreductase activity; ion binding | E159: extracellular region; plastid; thylakoid
B160: CCACVL1_00425 | C160: biological_process | D160: - | E160: nucleus
B161: CCACVL1_00426 | C161: small molecule metabolic process; carbohydrate metabolic process; cell wall organization or biogenesis; biosynthetic process; cellular nitrogen compound metabolic process | D161: isomerase activity | E161: Golgi apparatus
B162: CCACVL1_00427 | C162: - | D162: peptidase activity | E162: plastid; plasma membrane
B163: CCACVL1_00428 | C163: - | D163: transferase activity, transferring glycosyl groups | E163: -
B164: CCACVL1_00433 | C164: cellular amino acid metabolic process; cellular nitrogen compound metabolic process | D164: kinase activity | E164: nucleus; cytoskeleton; protein complex
B165: CCACVL1_00434 | C165: sulfur compound metabolic process; cellular amino acid metabolic process | D165: methyltransferase activity | E165: plasma membrane
B166: CCACVL1_00435 | C166: cellular protein modification process; cellular amino acid metabolic process | D166: ion binding; kinase activity | E166: plasma membrane
B167: CCACVL1_00436 | C167: signal transduction | D167: molecular_function | E167: mitochondrion
B168: CCACVL1_00438 | C168: transport | D168: molecular_function | E168: cellular_component
B169: CCACVL1_00439 | C169: membrane organization; signal transduction; biosynthetic process; response to stress; immune system process; small molecule metabolic process; protein targeting; cell death | D169: lipid binding | E169: nucleus; cytoplasm
B170: CCACVL1_00441 | C170: - | D170: molecular_function | E170: -
B171: CCACVL1_00447 | C171: small molecule metabolic process; lipid metabolic process; anatomical structure development; biosynthetic process | D171: molecular_function | E171: cellular_component
